Workbook

Sheet протокол
A1: 1 байт - Адрес: 0-127 (0x00… 0x7F)
A2: 2 байт - Количество передаваемых байт: 0-75 (0x00… 0x4B)
A3: 3 байт – ключ при работе с шифрованием
A4: 4 байт - комманда
A5: Остально - Данные
A6: Последний байт – CRC8
A8: Структура ответа.
A9: Последовательность действий при приеме:
A10: 1. Получить сообщение.
A11: 2. Проверить адрес.
A12: 3. Проверить CRC8.
A13: 4. Дешифровать, если необходимо.
A14: 5. Декодировать команду.
A15: 6. Составить сообщение ответа
A17: Последовательность действий при передаче.
A18: 1. Шифровать, если необходимо.
A19: 2. Посчитать CRC8.
A20: 3. Передать сообщение.
B21: ОТВЕТ БКИ
A22: Известные проверенные команды:
A23: 1 01 Чтение прибора. Откликаются приборы с адресом. | B23: 64 | C23: 0C | D23: 0C | E23: CB | F23: 0 | G23: 0 | H23: 0 | I23: 0 | J23: 0 | K23: 1 | L23: 1 | M23: 5 | N23: 44
A24: Запрос: адрес/6байт/00/01(поиск прибора)/00/00/crc8
A25: 2 02 Ответ прибора. Отвечает 02 если ничего не изменялось (буфер событий пуст)
A26: Ответ: адрес/5 байт/02(присутствие)/число 0-255/00/crc8 (на команду 01)
A27: 3 Сброс тревог
A28: Запрос: адрес/06/00/03/00/00/crc8
A29: Ответ: нет ответа. Прибор грузит следующее событие.
A30: 4 Ответ прибора. Прибор сообщает об изменениях в ШС, питании… В буфере 1 событие.
A31: Ответ: адрес/5байт/04/событие/шлейф/crc8
A32: 5 Чтение конфигурации | D32: 64 | E32: 5 | F32: 6 | G32: 0 | H32: 1 | I32: 0
A33: 7 | D33: 64 | E33: 5 | F33: 0A | G33: 0 | H33: 0 | I33: E5
A34: 9 Запись конфигурации | D34: 64 | E34: 5 | F34: 6 | G34: 0 | H34: 0 | I34: 5E
A35: 10 Ответ прибора при наличии ошибок
A36: Ответ: адрес/5байт/A/код ошибки/00/crc8
A37: 11 | D37: 64 | E37: 5 | F37: 0A | G37: 0 | H37: 0 | I37: E5
A39: 12 Ответ прибора если в буфере событий более 1 события.
A40: Ответ: адрес/11байт/0C/событие/шлейф/время/время/время/дата/дата/дата/crc8
A41: 13 0D Запрос типа и версии | D41: 64 | E41: 6 | F41: 0 | G41: 2C | H41: E1 | I41: 0 | J41: 1D
A42: Запрос: адрес/6байт/00/0D/00/00/crc8
A43: Ответ: адрес/5байт/00/тип/версия/crc8 (для «Сигнал-20П тип = 02, версия = CD)
A44: 15,16 Присвоение адреса
A45: Запрос: адрес/6байт/00/0F/н. адрес/н. адрес/crc8
A46: Ответ: н. адрес/5байт/10/н. адрес/н. адрес/crc8
A47: 17,18 Переход на шифрацию. Посылка байта шифрования.
A48: Запрос: адрес/6 байт/00/11(переход на шифрацию)/ключ/ключ/crc8
A49: Ответ: адрес/5байт/12/ключ/ключ/crc8
A50: 19 Управление ШС
A51: Запрос: адрес/6 байт/00/13/номер шс/команда шс/crc8
A52: Ответ: адрес/5 байт/14/номер шс/команда шс/crc8
A53: Команда шс:
A54: 0 – снятие ШС
A55: 1 – групповое снятие (не поддерживается)
A56: 2 –взятие ШС
A57: 3 – групповое взятие (не поддерживается)
A58: Если номер ШС равен нулю, то действие на все шлейфы
A59: 21,22 Управление реле
A60: Запрос: адрес/6байт/00/21/реле/программа/crc8
A61: Ответ: адрес/5байт/16/реле/программа/crc8
A62: 23, 24 Сброс тревог
A63: Запрос: адрес/6байт/00/17/00/01/crc8
A64: Ответ: адрес/5байт/18/0/1/crc8
A65: 25, 26 Запрос состояния ШС пульта
A66: Запрос: адрес/6байт/00/19/номер шлейфа/00/crc8
A67: Ответ: адрес/5 или 6 байт/1A/номер шлейфа/код состояния/(код состояния 2)/crc8
A68: 27, 28 Запрос АЦП с пульта
A69: Запрос: адрес/6байт/00/1B/номер ШС/0/crc8
A70: Ответ: адрес/5байт/1С/номер ШС/АЦП/crc8
A71: 43 включить диод бки (би)
A73: 53, 54 Запрос версии микропрограммы
A74: Запрос: адрес/6байт/00/53/00/00/crc8
A75: Ответ: адрес/5байт/54/02/02/crc8
A76: 57, 58 Запрос АЦП в Юникод
A77: Запрос: адрес/6байт/00/39/номер ШС/A/crc8
A78: Ответ: адрес/16байт/3A/A/12 символов в Юникод/crc8
A79: 63 ---- вроде начала чтения конфигурации

Sheet дешифр логов
B1: Рандомный байт | C1: 172
N2: Д Е ШИ Ф Р И Р О В А Н Ы Е К О М А Н Д Ы | Y2: КОПИЯ Д Е ШИ Ф Р И Р О В А Н Ы Х К О М А Н Д эмулятора
A3: Команды приняты программой эмулятор Сигнала-20 | B3: CRC8 эмулятора | C3: CRC8 посчитана | N3: Дешифрация принятых команд | Y3: Копия принятых дешифрированных команд для удобства работы, во втором столбце вместо рандомного байта ставим 0 (работаем без шифрации) производи расчет CRC8 и переводим команды в шестнадцатиричный вид для передачи программой Comport tolkit | AI3: Команды собраны в строку для передачи. | AJ3: ОТВЕТ БКИ на переданные команды | AK3: лог Comport tolkit | BF3: П Е Р Е В О Д В Д Е С Я Т И Ч Н ЫЙ Ф О Р М А Т | BZ3: высчитан ключ шифров | CA3: Дешифрованные команды полученные в программе Comport tolkit | CU3: РАСЧЕТ CRC8
D4: приняты команды разложены по ячейкам через меню Данные экселя | Z4: 1 | AA4: 2 | AB4: 3 | AC4: 4 | AD4: 5 | AE4: 6 | AF4: 7 | AG4: 8 | AH4: 9 | AI4: Копируем отсюда и вставляем в Comport tolkit для передачи, там же смотрим ответы прибора | AK4: лог принятый программой | AL4: Лог разложенный побайтно в шестнадцатеричном формате по ячейкам для дальнейше обработки экселем | BF4: Переводим лог разложенный побайтно из шестнадцатеричного формата в десятичный | CA4: Производим дешифрацию принятой информации | CU4: Производим табличный расчет новой CRC8 | DO4: Команды для передачи на БКИ
A5: 100,6,0,1,0,248,158, | D5: 100 | E5: 6 | F5: 0 | G5: 1 | H5: 0 | I5: 248 | J5: 158 | N5: =IF(D5>127,D5-128,D5) -> 100 | O5: =E5 -> 6 | P5: 0 | Q5: 1 | R5: 0 | S5: 248 | T5: 158 | U5: 0 | V5: 0 | W5: 0 | Y5: 100 | Z5: 6 | AA5: 0 | AB5: 1 | AC5: 0 | AD5: 248 | AE5: 158 | AF5: 0 | AG5: 0 | AH5: 0 | AK5: 64 06 00 01 00 F8 9E | AL5: 64 | AM5: 6 | AN5: 0 | AO5: 1 | AP5: 0 | AQ5: F8 | AR5: 9E | BF5: =HEX2DEC(AL5) -> 100 | BG5: =HEX2DEC(AM5) -> 6 | BH5: 0 | BI5: 1 | BJ5: 0 | BK5: 248 | BL5: 158 | BM5: 0 | BN5: 0 | BO5: 0 | BP5: 0 | BQ5: 0 | BR5: 0 | BS5: 0 | BT5: 0 | BU5: 0 | BV5: 0 | BW5: 0 | BX5: 0 | BY5: 0 | CA5: При правильной дешифрации в столбце 2 должен быть рандомный байт, который после дешифрации меняем на 0 (убираем команду шифрации сообщения) | CU5: Крайняя правая цифра в строке является CRC8 в десятичном формате для дешифрованных команд
A6: Принято в обработку | D6: Принято в обработку | AK6: 64 06 04 CB 00 00 1F | AL6: 64 | AM6: 6 | AN6: 4 | AO6: CB | AP6: 0 | AQ6: 0 | AR6: 1F | BF6: =HEX2DEC(AL6) -> 100 | BG6: =HEX2DEC(AM6) -> 6 | BH6: =HEX2DEC(AN6) -> 4 | BI6: =HEX2DEC(AO6) -> 203 | BJ6: =HEX2DEC(AP6) -> 0 | BK6: =HEX2DEC(AQ6) -> 0 | BL6: =HEX2DEC(AR6) -> 31 | BM6: =HEX2DEC(AS6) -> 0 | BN6: =HEX2DEC(AT6) -> 0 | BO6: =HEX2DEC(AU6) -> 0 | BP6: =HEX2DEC(AV6) -> 0 | BQ6: =HEX2DEC(AW6) -> 0 | BR6: =HEX2DEC(AX6) -> 0 | BS6: =HEX2DEC(AY6) -> 0 | BT6: =HEX2DEC(AZ6) -> 0 | BU6: =HEX2DEC(BA6) -> 0 | BV6: =HEX2DEC(BB6) -> 0 | BW6: =HEX2DEC(BC6) -> 0 | BX6: =HEX2DEC(BD6) -> 0 | BY6: =HEX2DEC(BE6) -> 0 | CA6: Убираем последний байт (байт CRC8) принятый в посылке он будет другим поскольку убираем команду шифрации
A7: ОТВЕТ ЭМУЛЯТОРА 2,1,0, | D7: ОТВЕТ ЭМУЛЯТОРА 2 | E7: 1 | F7: 0 | AK7: 64 06 00 11 AC AC CD | AL7: 64 | AM7: 6 | AN7: 0 | AO7: 11 | AP7: AC | AQ7: AC | AR7: CD | BF7: 100 | BG7: 6 | BH7: 0 | BI7: 17 | BJ7: 172 | BK7: 172 | BL7: 205 | BM7: 0 | BN7: 0 | BO7: 0 | BP7: 0 | BQ7: 0 | BR7: 0 | BS7: 0 | BT7: 0 | BU7: 0 | BV7: 0 | BW7: 0 | BX7: 0 | BY7: 0 | CA7: четко виден протокол обмена (в данном случае с БКИ по адресу 100)
AK8: 64 05 12 AC AC 25 | AL8: 64 | AM8: 5 | AN8: 12 | AO8: AC | AP8: AC | AQ8: 25 | BF8: 100 | BG8: 5 | BH8: 18 | BI8: 172 | BJ8: 172 | BK8: 37 | BL8: 0 | BM8: 0 | BN8: 0 | BO8: 0 | BP8: 0 | BQ8: 0 | BR8: 0 | BS8: 0 | BT8: 0 | BU8: 0 | BV8: 0 | BW8: 0 | BX8: 0 | BY8: 0 | CB8: 1 | CC8: 2 | CD8: =CC8+1 -> 3 | CE8: =CD8+1 -> 4 | CF8: 5 | CG8: 6 | CH8: 7 | CI8: 8 | CJ8: 9 | CK8: 10 | CL8: 11 | CM8: 12 | CN8: 13 | CO8: 14 | CP8: 15 | CQ8: 16 | CR8: 17 | CS8: 18 | CT8: 19 | CV8: 1 | CW8: 2 | CX8: 3 | CY8: 4 | CZ8: 5 | DA8: 6 | DB8: 7 | DC8: 8 | DD8: 9 | DE8: 10 | DF8: 11 | DG8: 12 | DH8: 13 | DI8: 14 | DJ8: 15 | DK8: 16 | DL8: 17 | DM8: 18 | DN8: 19
A9: 100,6,4,203,0,0,31, | D9: 100 | E9: 6 | F9: 4 | G9: 203 | H9: 0 | I9: 0 | J9: 31 | N9: =IF(D9>127,D9-128,D9) -> 100 | O9: =E9 -> 6 | P9: 4 | Q9: 203 | R9: 0 | S9: 0 | T9: 31 | U9: 0 | V9: 0 | W9: 0 | Y9: 100 | Z9: 6 | AA9: 4 | AB9: 203 | AC9: 0 | AD9: 0 | AE9: 31 | AF9: 0 | AG9: 0 | AH9: 0 | AK9: E4 06 00 BB AC AF 59 | AL9: E4 | AM9: 6 | AN9: 0 | AO9: BB | AP9: AC | AQ9: AF | AR9: 59 | BF9: 228 | BG9: 6 | BH9: 0 | BI9: 187 | BJ9: 172 | BK9: 175 | BL9: 89 | BM9: 0 | BN9: 0 | BO9: 0 | BP9: 0 | BQ9: 0 | BR9: 0 | BS9: 0 | BT9: 0 | BU9: 0 | BV9: 0 | BW9: 0 | BX9: 0 | BY9: 0 | BZ9: =MyXor(BH9,$C$1) -> 172 | CA9: 100 | CB9: 6 | CC9: 0 | CD9: 23 | CE9: 0 | CF9: 3 | CU9: =MyXor(CA9,0) -> 100 | CV9: =MyXor(CB9,VLOOKUP(CU9,'Таблица CRC'!$A$43:$C$298,3,FALSE)) -> 2 | CW9: =MyXor(CC9,VLOOKUP(CV9,'Таблица CRC'!$A$43:$C$298,3,FALSE)) -> 188 | CX9: =MyXor(CD9,VLOOKUP(CW9,'Таблица CRC'!$A$43:$C$298,3,FALSE)) -> 134 | CY9: =MyXor(CE9,VLOOKUP(CX9,'Таблица CRC'!$A$43:$C$298,3,FALSE)) -> 81 | CZ9: =MyXor(CF9,VLOOKUP(CY9,'Таблица CRC'!$A$43:$C$298,3,FALSE)) -> 134 | DA9: =MyXor(CG9,VLOOKUP(CZ9,'Таблица CRC'!$A$43:$C$298,3,FALSE)) -> 81 | DO9: =CONCATENATE(DEC2HEX(CA9,2)," ",DEC2HEX(CB9,2)," ",DEC2HEX(CC9,2)," ",DEC2HEX(CD9,2)," ",DEC2HEX(CE9,2)," ",DEC2HEX(CF9,2)," ",DEC2HEX(DA9,2)) -> 64 06 00 17 00 03 51
A10: Принято в обработку | D10: Принято в обработку | AK10: E4 05 B4 AC AF 2B | AL10: E4 | AM10: 5 | AN10: B4 | AO10: AC | AP10: AF | AQ10: 2B | BF10: 228 | BG10: 5 | BH10: 180 | BI10: 172 | BJ10: 175 | BK10: 43 | BL10: 0 | BM10: 0 | BN10: 0 | BO10: 0 | BP10: 0 | BQ10: 0 | BR10: 0 | BS10: 0 | BT10: 0 | BU10: 0 | BV10: 0 | BW10: 0 | BX10: 0 | BY10: 0 | BZ10: =MyXor(BH10,$C$1) -> 24 | CA10: 100 | CB10: 5 | CC10: 0 | CD10: 180 | CE10: 183 | CU10: =MyXor(CA10,0) -> 100 | CV10: =MyXor(CB10,VLOOKUP(CU10,'Таблица CRC'!$A$43:$C$298,3,FALSE)) -> 1 | CW10: =MyXor(CC10,VLOOKUP(CV10,'Таблица CRC'!$A$43:$C$298,3,FALSE)) -> 94 | CX10: =MyXor(CD10,VLOOKUP(CW10,'Таблица CRC'!$A$43:$C$298,3,FALSE)) -> 112 | CY10: =MyXor(CE10,VLOOKUP(CX10,'Таблица CRC'!$A$43:$C$298,3,FALSE)) -> 79 | CZ10: =MyXor(CF10,VLOOKUP(CY10,'Таблица CRC'!$A$43:$C$298,3,FALSE)) -> 7 | DO10: =CONCATENATE(DEC2HEX(CA10,2)," ",DEC2HEX(CB10,2)," ",DEC2HEX(CC10,2)," ",DEC2HEX(CD10,2)," ",DEC2HEX(CE10,2)," ",DEC2HEX(CZ10,2)) -> 64 05 00 B4 B7 07
A11: 100,6,0,17,172,172,205, | D11: 100 | E11: 6 | F11: 0 | G11: 17 | H11: 172 | I11: 172 | J11: 205 | N11: =IF(D11>127,D11-128,D11) -> 100 | O11: =E11 -> 6 | P11: 0 | Q11: 17 | R11: 172 | S11: 172 | T11: 205 | U11: 0 | V11: 0 | W11: 0 | Y11: 100 | Z11: 6 | AA11: 0 | AB11: 17 | AC11: 172 | AD11: 172 | AE11: 205 | AF11: 0 | AG11: 0 | AH11: 0 | AK11: E4 06 5E F3 F2 0A BB | AL11: E4 | AM11: 6 | AN11: 5E | AO11: F3 | AP11: F2 | AQ11: 0A | AR11: BB | BF11: 228 | BG11: 6 | BH11: 94 | BI11: 243 | BJ11: 242 | BK11: 10 | BL11: 187 | BM11: 0 | BN11: 0 | BO11: 0 | BP11: 0 | BQ11: 0 | BR11: 0 | BS11: 0 | BT11: 0 | BU11: 0 | BV11: 0 | BW11: 0 | BX11: 0 | BY11: 0 | BZ11: 242 | CA11: 100 | CB11: 6 | CC11: 0 | CD11: 1 | CE11: 0 | CF11: 248 | CU11: 100 | CV11: =MyXor(CB11,VLOOKUP(CU11,'Таблица CRC'!$A$43:$C$298,3,FALSE)) -> 2 | CW11: =MyXor(CC11,VLOOKUP(CV11,'Таблица CRC'!$A$43:$C$298,3,FALSE)) -> 188 | CX11: =MyXor(CD11,VLOOKUP(CW11,'Таблица CRC'!$A$43:$C$298,3,FALSE)) -> 144 | CY11: =MyXor(CE11,VLOOKUP(CX11,'Таблица CRC'!$A$43:$C$298,3,FALSE)) -> 17 | CZ11: =MyXor(CF11,VLOOKUP(CY11,'Таблица CRC'!$A$43:$C$298,3,FALSE)) -> 59 | DA11: =MyXor(CG11,VLOOKUP(CZ11,'Таблица CRC'!$A$43:$C$298,3,FALSE)) -> 158 | DO11: =CONCATENATE(DEC2HEX(CA11,2)," ",DEC2HEX(CB11,2)," ",DEC2HEX(CC11,2)," ",DEC2HEX(CD11,2)," ",DEC2HEX(CE11,2)," ",DEC2HEX(CF11,2)," ",DEC2HEX(DA11,2)) -> 64 06 00 01 00 F8 9E
A12: Принято в обработку | D12: Принято в обработку | AK12: E4 06 F6 39 F2 F2 81 | AL12: E4 | AM12: 6 | AN12: F6 | AO12: 39 | AP12: F2 | AQ12: F2 | AR12: 81 | BF12: 228 | BG12: 6 | BH12: 246 | BI12: 57 | BJ12: 242 | BK12: 242 | BL12: 129 | BM12: 0 | BN12: 0 | BO12: 0 | BP12: 0 | BQ12: 0 | BR12: 0 | BS12: 0 | BT12: 0 | BU12: 0 | BV12: 0 | BW12: 0 | BX12: 0 | BY12: 0 | BZ12: 90 | CA12: 100 | CB12: 6 | CC12: 0 | CD12: 99 | CE12: 168 | CF12: 168 | CU12: 100 | CV12: =MyXor(CB12,VLOOKUP(CU12,'Таблица CRC'!$A$43:$C$298,3,FALSE)) -> 2 | CW12: =MyXor(CC12,VLOOKUP(CV12,'Таблица CRC'!$A$43:$C$298,3,FALSE)) -> 188 | CX12: =MyXor(CD12,VLOOKUP(CW12,'Таблица CRC'!$A$43:$C$298,3,FALSE)) -> 242 | CY12: =MyXor(CE12,VLOOKUP(CX12,'Таблица CRC'!$A$43:$C$298,3,FALSE)) -> 96 | CZ12: =MyXor(CF12,VLOOKUP(CY12,'Таблица CRC'!$A$43:$C$298,3,FALSE)) -> 205 | DA12: =MyXor(CG12,VLOOKUP(CZ12,'Таблица CRC'!$A$43:$C$298,3,FALSE)) -> 55 | DO12: 64 06 00 63 A8 A8 37
A13: ОТВЕТ ЭМУЛЯТОРА 18,172,172, | D13: ОТВЕТ ЭМУЛЯТОРА 18 | E13: 172 | F13: 172 | AK13: E4 06 5E F1 F2 F2 42 | AL13: E4 | AM13: 6 | AN13: 5E | AO13: F1 | AP13: F2 | AQ13: F2 | AR13: 42 | BF13: 228 | BG13: 6 | BH13: 94 | BI13: 241 | BJ13: 242 | BK13: 242 | BL13: 66 | BM13: 0 | BN13: 0 | BO13: 0 | BP13: 0 | BQ13: 0 | BR13: 0 | BS13: 0 | BT13: 0 | BU13: 0 | BV13: 0 | BW13: 0 | BX13: 0 | BY13: 0 | BZ13: 242 | CA13: 100 | CB13: 6 | CC13: 0 | CD13: 3 | CE13: 0 | CF13: 0 | CU13: 100 | CV13: =MyXor(CB13,VLOOKUP(CU13,'Таблица CRC'!$A$43:$C$298,3,FALSE)) -> 2 | CW13: =MyXor(CC13,VLOOKUP(CV13,'Таблица CRC'!$A$43:$C$298,3,FALSE)) -> 188 | CX13: =MyXor(CD13,VLOOKUP(CW13,'Таблица CRC'!$A$43:$C$298,3,FALSE)) -> 146 | CY13: =MyXor(CE13,VLOOKUP(CX13,'Таблица CRC'!$A$43:$C$298,3,FALSE)) -> 173 | CZ13: =MyXor(CF13,VLOOKUP(CY13,'Таблица CRC'!$A$43:$C$298,3,FALSE)) -> 82 | DA13: =MyXor(CG13,VLOOKUP(CZ13,'Таблица CRC'!$A$43:$C$298,3,FALSE)) -> 103 | DO13: 64 06 00 03 00 00 67
A14: 100,5,18,172,172,37, | D14: 100 | E14: 5 | F14: 18 | G14: 172 | H14: 172 | I14: 37 | N14: =IF(D14>127,D14-128,D14) -> 100 | O14: =E14 -> 5 | P14: 18 | Q14: 172 | R14: 172 | S14: 37 | T14: 0 | U14: 0 | V14: 0 | W14: 0 | Y14: 100 | Z14: 5 | AA14: 18 | AB14: 172 | AC14: 172 | AD14: 37 | AE14: 0 | AF14: 0 | AG14: 0 | AH14: 0 | AK14: E4 06 75 C0 D9 D9 32 | AL14: E4 | AM14: 6 | AN14: 75 | AO14: C0 | AP14: D9 | AQ14: D9 | AR14: 32 | BF14: 228 | BG14: 6 | BH14: 117 | BI14: 192 | BJ14: 217 | BK14: 217 | BL14: 50 | BM14: 0 | BN14: 0 | BO14: 0 | BP14: 0 | BQ14: 0 | BR14: 0 | BS14: 0 | BT14: 0 | BU14: 0 | BV14: 0 | BW14: 0 | BX14: 0 | BY14: 0 | BZ14: 217 | CA14: 100 | CB14: 6 | CC14: 0 | CD14: 25 | CE14: 0 | CF14: 0 | CU14: 100 | CV14: =MyXor(CB14,VLOOKUP(CU14,'Таблица CRC'!$A$43:$C$298,3,FALSE)) -> 2 | CW14: =MyXor(CC14,VLOOKUP(CV14,'Таблица CRC'!$A$43:$C$298,3,FALSE)) -> 188 | CX14: =MyXor(CD14,VLOOKUP(CW14,'Таблица CRC'!$A$43:$C$298,3,FALSE)) -> 136 | CY14: =MyXor(CE14,VLOOKUP(CX14,'Таблица CRC'!$A$43:$C$298,3,FALSE)) -> 78 | CZ14: =MyXor(CF14,VLOOKUP(CY14,'Таблица CRC'!$A$43:$C$298,3,FALSE)) -> 89 | DA14: =MyXor(CG14,VLOOKUP(CZ14,'Таблица CRC'!$A$43:$C$298,3,FALSE)) -> 71 | DO14: 64 06 00 19 00 00 47
A15: Принято в обработку | D15: Принято в обработку | AK15: E4 06 C3 D9 1E 41 67 | AL15: E4 | AM15: 6 | AN15: C3 | AO15: D9 | AP15: 1E | AQ15: 41 | AR15: 67 | BF15: 228 | BG15: 6 | BH15: 195 | BI15: 217 | BJ15: 30 | BK15: 65 | BL15: 103 | BM15: 0 | BN15: 0 | BO15: 0 | BP15: 0 | BQ15: 0 | BR15: 0 | BS15: 0 | BT15: 0 | BU15: 0 | BV15: 0 | BW15: 0 | BX15: 0 | BY15: 0 | BZ15: 111 | CA15: 100 | CB15: 6 | CC15: 0 | CD15: 182 | CE15: 113 | CF15: 46 | CU15: 100 | CV15: =MyXor(CB15,VLOOKUP(CU15,'Таблица CRC'!$A$43:$C$298,3,FALSE)) -> 2 | CW15: =MyXor(CC15,VLOOKUP(CV15,'Таблица CRC'!$A$43:$C$298,3,FALSE)) -> 188 | CX15: =MyXor(CD15,VLOOKUP(CW15,'Таблица CRC'!$A$43:$C$298,3,FALSE)) -> 39 | CY15: =MyXor(CE15,VLOOKUP(CX15,'Таблица CRC'!$A$43:$C$298,3,FALSE)) -> 209 | CZ15: =MyXor(CF15,VLOOKUP(CY15,'Таблица CRC'!$A$43:$C$298,3,FALSE)) -> 39 | DA15: =MyXor(CG15,VLOOKUP(CZ15,'Таблица CRC'!$A$43:$C$298,3,FALSE)) -> 160 | DO15: 64 06 00 B6 71 2E A0
A16: 228,6,0,187,172,175,89, | C16: =MyXor(F16,$C$1) -> 172 | D16: 228 | E16: 6 | F16: 0 | G16: 187 | H16: 172 | I16: 175 | J16: 89 | N16: =IF(D16>127,D16-128,D16) -> 100 | O16: =E16 -> 6 | P16: =MyXor(F16,$B18) -> 172 | Q16: 23 | R16: 0 | S16: 3 | T16: 245 | U16: 172 | V16: 172 | W16: 172 | Y16: 100 | Z16: 6 | AA16: 0 | AB16: 23 | AC16: 0 | AD16: 3 | AE16: 245 | AF16: 172 | AG16: 172 | AH16: 172 | AK16: E4 06 88 25 24 DC 03 | AL16: E4 | AM16: 6 | AN16: 88 | AO16: 25 | AP16: 24 | AQ16: DC | AR16: 3 | BF16: 228 | BG16: 6 | BH16: 136 | BI16: 37 | BJ16: 36 | BK16: 220 | BL16: 3 | BM16: 0 | BN16: 0 | BO16: 0 | BP16: 0 | BQ16: 0 | BR16: 0 | BS16: 0 | BT16: 0 | BU16: 0 | BV16: 0 | BW16: 0 | BX16: 0 | BY16: 0 | BZ16: 36 | CA16: 100 | CB16: 6 | CC16: 0 | CD16: 1 | CE16: 0 | CF16: 248 | CU16: 100 | CV16: =MyXor(CB16,VLOOKUP(CU16,'Таблица CRC'!$A$43:$C$298,3,FALSE)) -> 2 | CW16: =MyXor(CC16,VLOOKUP(CV16,'Таблица CRC'!$A$43:$C$298,3,FALSE)) -> 188 | CX16: =MyXor(CD16,VLOOKUP(CW16,'Таблица CRC'!$A$43:$C$298,3,FALSE)) -> 144 | CY16: =MyXor(CE16,VLOOKUP(CX16,'Таблица CRC'!$A$43:$C$298,3,FALSE)) -> 17 | CZ16: =MyXor(CF16,VLOOKUP(CY16,'Таблица CRC'!$A$43:$C$298,3,FALSE)) -> 59 | DA16: =MyXor(CG16,VLOOKUP(CZ16,'Таблица CRC'!$A$43:$C$298,3,FALSE)) -> 158 | DO16: 64 06 00 01 00 F8 9E
A17: Принято в обработку | D17: Принято в обработку | AK17: E4 09 2A 23 25 24 24 24 24 BC | AL17: E4 | AM17: 9 | AN17: 2A | AO17: 23 | AP17: 25 | AQ17: 24 | AR17: 24 | AS17: 24 | AT17: 24 | AU17: BC | BF17: 228 | BG17: 9 | BH17: 42 | BI17: 35 | BJ17: 37 | BK17: 36 | BL17: 36 | BM17: 36 | BN17: 36 | BO17: 188 | BP17: 0 | BQ17: 0 | BR17: 0 | BS17: 0 | BT17: 0 | BU17: 0 | BV17: 0 | BW17: 0 | BX17: 0 | BY17: 0 | BZ17: 134 | CA17: 100 | CB17: 9 | CC17: 0 | CD17: 165 | CE17: 163 | CF17: 162 | CG17: 162 | CH17: 162 | CI17: 162 | CU17: 100 | CV17: =MyXor(CB17,VLOOKUP(CU17,'Таблица CRC'!$A$43:$C$298,3,FALSE)) -> 13 | CW17: =MyXor(CC17,VLOOKUP(CV17,'Таблица CRC'!$A$43:$C$298,3,FALSE)) -> 253 | CX17: =MyXor(CD17,VLOOKUP(CW17,'Таблица CRC'!$A$43:$C$298,3,FALSE)) -> 44 | CY17: =MyXor(CE17,VLOOKUP(CX17,'Таблица CRC'!$A$43:$C$298,3,FALSE)) -> 35 | CZ17: =MyXor(CF17,VLOOKUP(CY17,'Таблица CRC'!$A$43:$C$298,3,FALSE)) -> 99 | DA17: =MyXor(CG17,VLOOKUP(CZ17,'Таблица CRC'!$A$43:$C$298,3,FALSE)) -> 37 | DB17: =MyXor(CH17,VLOOKUP(DA17,'Таблица CRC'!$A$43:$C$298,3,FALSE)) -> 190 | DC17: =MyXor(CI17,VLOOKUP(DB17,'Таблица CRC'!$A$43:$C$298,3,FALSE)) -> 143 | DD17: =MyXor(CJ17,VLOOKUP(DC17,'Таблица CRC'!$A$43:$C$298,3,FALSE)) -> 205 | DO17: =CONCATENATE(DEC2HEX(CA17,2)," ",DEC2HEX(CB17,2)," ",DEC2HEX(CC17,2)," ",DEC2HEX(CD17,2)," ",DEC2HEX(CE17,2)," ",DEC2HEX(CF17,2)," ",DEC2HEX(CG17,2)," ",DEC2HEX(CH17,2)," ",DEC2HEX(CI17,2)," ",DEC2HEX(DD17,2)) -> 64 09 00 A5 A3 A2 A2 A2 A2 CD
A18: ключ шифрования-172 | B18: 172 | D18: ключ шифрования-172 | AK18: E4 06 88 27 24 24 FA | AL18: E4 | AM18: 6 | AN18: 88 | AO18: 27 | AP18: 24 | AQ18: 24 | AR18: FA | BF18: 228 | BG18: 6 | BH18: 136 | BI18: 39 | BJ18: 36 | BK18: 36 | BL18: 250 | BM18: 0 | BN18: 0 | BO18: 0 | BP18: 0 | BQ18: 0 | BR18: 0 | BS18: 0 | BT18: 0 | BU18: 0 | BV18: 0 | BW18: 0 | BX18: 0 | BY18: 0 | BZ18: 36 | CA18: 100 | CB18: 6 | CC18: 0 | CD18: 3 | CE18: 0 | CF18: 0 | CU18: 100 | CV18: =MyXor(CB18,VLOOKUP(CU18,'Таблица CRC'!$A$43:$C$298,3,FALSE)) -> 2 | CW18: =MyXor(CC18,VLOOKUP(CV18,'Таблица CRC'!$A$43:$C$298,3,FALSE)) -> 188 | CX18: =MyXor(CD18,VLOOKUP(CW18,'Таблица CRC'!$A$43:$C$298,3,FALSE)) -> 146 | CY18: =MyXor(CE18,VLOOKUP(CX18,'Таблица CRC'!$A$43:$C$298,3,FALSE)) -> 173 | CZ18: =MyXor(CF18,VLOOKUP(CY18,'Таблица CRC'!$A$43:$C$298,3,FALSE)) -> 82 | DA18: =MyXor(CG18,VLOOKUP(CZ18,'Таблица CRC'!$A$43:$C$298,3,FALSE)) -> 103 | DO18: 64 06 00 03 00 00 67
A19: zapros.s 23,0,3, | D19: zapros.s 23 | E19: 0 | F19: 3 | AK19: E4 06 EE 5B 42 42 7F | AL19: E4 | AM19: 6 | AN19: EE | AO19: 5B | AP19: 42 | AQ19: 42 | AR19: 7F | BF19: 228 | BG19: 6 | BH19: 238 | BI19: 91 | BJ19: 66 | BK19: 66 | BL19: 127 | BM19: 0 | BN19: 0 | BO19: 0 | BP19: 0 | BQ19: 0 | BR19: 0 | BS19: 0 | BT19: 0 | BU19: 0 | BV19: 0 | BW19: 0 | BX19: 0 | BY19: 0 | BZ19: 66 | CA19: 100 | CB19: 6 | CC19: 0 | CD19: 25 | CE19: 0 | CF19: 0 | CU19: 100 | CV19: =MyXor(CB19,VLOOKUP(CU19,'Таблица CRC'!$A$43:$C$298,3,FALSE)) -> 2 | CW19: =MyXor(CC19,VLOOKUP(CV19,'Таблица CRC'!$A$43:$C$298,3,FALSE)) -> 188 | CX19: =MyXor(CD19,VLOOKUP(CW19,'Таблица CRC'!$A$43:$C$298,3,FALSE)) -> 136 | CY19: =MyXor(CE19,VLOOKUP(CX19,'Таблица CRC'!$A$43:$C$298,3,FALSE)) -> 78 | CZ19: =MyXor(CF19,VLOOKUP(CY19,'Таблица CRC'!$A$43:$C$298,3,FALSE)) -> 89 | DA19: =MyXor(CG19,VLOOKUP(CZ19,'Таблица CRC'!$A$43:$C$298,3,FALSE)) -> 71 | DO19: 64 06 00 19 00 00 47
A20: ОТВЕТ ЭМУЛЯТОРА 166,168,172, | D20: ОТВЕТ ЭМУЛЯТОРА 166 | E20: 168 | F20: 172 | AK20: E4 06 58 42 85 DA 2A | AL20: E4 | AM20: 6 | AN20: 58 | AO20: 42 | AP20: 85 | AQ20: DA | AR20: 2A | BF20: 228 | BG20: 6 | BH20: 88 | BI20: 66 | BJ20: 133 | BK20: 218 | BL20: 42 | BM20: 0 | BN20: 0 | BO20: 0 | BP20: 0 | BQ20: 0 | BR20: 0 | BS20: 0 | BT20: 0 | BU20: 0 | BV20: 0 | BW20: 0 | BX20: 0 | BY20: 0 | BZ20: 244 | CA20: 100 | CB20: 6 | CC20: 0 | CD20: 182 | CE20: 113 | CF20: 46 | CU20: 100 | CV20: =MyXor(CB20,VLOOKUP(CU20,'Таблица CRC'!$A$43:$C$298,3,FALSE)) -> 2 | CW20: =MyXor(CC20,VLOOKUP(CV20,'Таблица CRC'!$A$43:$C$298,3,FALSE)) -> 188 | CX20: =MyXor(CD20,VLOOKUP(CW20,'Таблица CRC'!$A$43:$C$298,3,FALSE)) -> 39 | CY20: =MyXor(CE20,VLOOKUP(CX20,'Таблица CRC'!$A$43:$C$298,3,FALSE)) -> 209 | CZ20: =MyXor(CF20,VLOOKUP(CY20,'Таблица CRC'!$A$43:$C$298,3,FALSE)) -> 39 | DA20: =MyXor(CG20,VLOOKUP(CZ20,'Таблица CRC'!$A$43:$C$298,3,FALSE)) -> 160 | DO20: 64 06 00 B6 71 2E A0
A21: 228,5,180,172,175,43, | C21: =MyXor(F21,$C$1) -> 24 | D21: 228 | E21: 5 | F21: 180 | G21: 172 | H21: 175 | I21: 43 | N21: =IF(D21>127,D21-128,D21) -> 100 | O21: =E21 -> 5 | P21: =MyXor(F21,$B23) -> 172 | Q21: 180 | R21: 183 | S21: 51 | T21: 24 | U21: 24 | V21: 24 | W21: 24 | Y21: 100 | Z21: 5 | AA21: 0 | AB21: 180 | AC21: 183 | AD21: 51 | AE21: 24 | AF21: 24 | AG21: 24 | AH21: 24 | AK21: E4 06 53 FE FF 07 42 | AL21: E4 | AM21: 6 | AN21: 53 | AO21: FE | AP21: FF | AQ21: 7 | AR21: 42 | BF21: 228 | BG21: 6 | BH21: 83 | BI21: 254 | BJ21: 255 | BK21: 7 | BL21: 66 | BM21: 0 | BN21: 0 | BO21: 0 | BP21: 0 | BQ21: 0 | BR21: 0 | BS21: 0 | BT21: 0 | BU21: 0 | BV21: 0 | BW21: 0 | BX21: 0 | BY21: 0 | BZ21: 255 | CA21: 100 | CB21: 6 | CC21: 0 | CD21: 1 | CE21: 0 | CF21: 248 | CU21: 100 | CV21: =MyXor(CB21,VLOOKUP(CU21,'Таблица CRC'!$A$43:$C$298,3,FALSE)) -> 2 | CW21: =MyXor(CC21,VLOOKUP(CV21,'Таблица CRC'!$A$43:$C$298,3,FALSE)) -> 188 | CX21: =MyXor(CD21,VLOOKUP(CW21,'Таблица CRC'!$A$43:$C$298,3,FALSE)) -> 144 | CY21: =MyXor(CE21,VLOOKUP(CX21,'Таблица CRC'!$A$43:$C$298,3,FALSE)) -> 17 | CZ21: =MyXor(CF21,VLOOKUP(CY21,'Таблица CRC'!$A$43:$C$298,3,FALSE)) -> 59 | DA21: =MyXor(CG21,VLOOKUP(CZ21,'Таблица CRC'!$A$43:$C$298,3,FALSE)) -> 158 | DO21: 64 06 00 01 00 F8 9E
A22: Принято в обработку | D22: Принято в обработку | AK22: E4 05 FD FF FF 6D | AL22: E4 | AM22: 5 | AN22: FD | AO22: FF | AP22: FF | AQ22: 6D | BF22: 228 | BG22: 5 | BH22: 253 | BI22: 255 | BJ22: 255 | BK22: 109 | BL22: 0 | BM22: 0 | BN22: 0 | BO22: 0 | BP22: 0 | BQ22: 0 | BR22: 0 | BS22: 0 | BT22: 0 | BU22: 0 | BV22: 0 | BW22: 0 | BX22: 0 | BY22: 0 | BZ22: 81 | CA22: 100 | CB22: 5 | CC22: 0 | CD22: 174 | CE22: 174 | CU22: =MyXor(CA22,0) -> 100 | CV22: =MyXor(CB22,VLOOKUP(CU22,'Таблица CRC'!$A$43:$C$298,3,FALSE)) -> 1 | CW22: =MyXor(CC22,VLOOKUP(CV22,'Таблица CRC'!$A$43:$C$298,3,FALSE)) -> 94 | CX22: =MyXor(CD22,VLOOKUP(CW22,'Таблица CRC'!$A$43:$C$298,3,FALSE)) -> 106 | CY22: =MyXor(CE22,VLOOKUP(CX22,'Таблица CRC'!$A$43:$C$298,3,FALSE)) -> 181 | CZ22: =MyXor(CF22,VLOOKUP(CY22,'Таблица CRC'!$A$43:$C$298,3,FALSE)) -> 13 | DO22: =CONCATENATE(DEC2HEX(CA22,2)," ",DEC2HEX(CB22,2)," ",DEC2HEX(CC22,2)," ",DEC2HEX(CD22,2)," ",DEC2HEX(CE22,2)," ",DEC2HEX(CZ22,2)) -> 64 05 00 AE AE 0D
A23: otvet 24,0,3, | B23: 24 | D23: otvet 24 | E23: 0 | F23: 3 | AK23: E4 08 98 1F 24 35 34 CB FD | AL23: E4 | AM23: 8 | AN23: 98 | AO23: 1F | AP23: 24 | AQ23: 35 | AR23: 34 | AS23: CB | AT23: FD | BF23: 228 | BG23: 8 | BH23: 152 | BI23: 31 | BJ23: 36 | BK23: 53 | BL23: 52 | BM23: 203 | BN23: 253 | BO23: 0 | BP23: 0 | BQ23: 0 | BR23: 0 | BS23: 0 | BT23: 0 | BU23: 0 | BV23: 0 | BW23: 0 | BX23: 0 | BY23: 0 | BZ23: 52 | CA23: 100 | CB23: 8 | CC23: 0 | CD23: 43 | CE23: 16 | CF23: 1 | CG23: 0 | CH23: 255 | CU23: 100 | CV23: =MyXor(CB23,VLOOKUP(CU23,'Таблица CRC'!$A$43:$C$298,3,FALSE)) -> 12 | CW23: =MyXor(CC23,VLOOKUP(CV23,'Таблица CRC'!$A$43:$C$298,3,FALSE)) -> 163 | CX23: =MyXor(CD23,VLOOKUP(CW23,'Таблица CRC'!$A$43:$C$298,3,FALSE)) -> 102 | CY23: =MyXor(CE23,VLOOKUP(CX23,'Таблица CRC'!$A$43:$C$298,3,FALSE)) -> 168 | CZ23: =MyXor(CF23,VLOOKUP(CY23,'Таблица CRC'!$A$43:$C$298,3,FALSE)) -> 108 | DA23: =MyXor(CG23,VLOOKUP(CZ23,'Таблица CRC'!$A$43:$C$298,3,FALSE)) -> 198 | DB23: =MyXor(CH23,VLOOKUP(DA23,'Таблица CRC'!$A$43:$C$298,3,FALSE)) -> 232 | DC23: =MyXor(CI23,VLOOKUP(DB23,'Таблица CRC'!$A$43:$C$298,3,FALSE)) -> 43 | DO23: =CONCATENATE(DEC2HEX(CA23,2)," ",DEC2HEX(CB23,2)," ",DEC2HEX(CC23,2)," ",DEC2HEX(CD23,2)," ",DEC2HEX(CE23,2)," ",DEC2HEX(CF23,2)," ",DEC2HEX(CG23,2)," ",DEC2HEX(CH23,2)," ",DEC2HEX(DC23,2)) -> 64 08 00 2B 10 01 00 FF 2B
A24: 228,6,94,243,242,10,187, | C24: =MyXor(F24,$C$1) -> 242 | D24: 228 | E24: 6 | F24: 94 | G24: 243 | H24: 242 | I24: 10 | J24: 187 | N24: =IF(D24>127,D24-128,D24) -> 100 | O24: =E24 -> 6 | P24: =MyXor(F24,$B26) -> 172 | Q24: 1 | R24: 0 | S24: 248 | T24: 73 | U24: 242 | V24: 242 | W24: 242 | Y24: 100 | Z24: 6 | AA24: 0 | AB24: 1 | AC24: 0 | AD24: 248 | AE24: 73 | AF24: 242 | AG24: 242 | AH24: 242 | AK24: E4 05 18 34 34 E2 | AL24: E4 | AM24: 5 | AN24: 18 | AO24: 34 | AP24: 34 | AQ24: E2 | BF24: 228 | BG24: 5 | BH24: 24 | BI24: 52 | BJ24: 52 | BK24: 226 | BL24: 0 | BM24: 0 | BN24: 0 | BO24: 0 | BP24: 0 | BQ24: 0 | BR24: 0 | BS24: 0 | BT24: 0 | BU24: 0 | BV24: 0 | BW24: 0 | BX24: 0 | BY24: 0 | BZ24: 180 | CA24: 100 | CB24: 5 | CC24: 0 | CD24: 128 | CE24: 128 | CU24: 100 | CV24: =MyXor(CB24,VLOOKUP(CU24,'Таблица CRC'!$A$43:$C$298,3,FALSE)) -> 1 | CW24: =MyXor(CC24,VLOOKUP(CV24,'Таблица CRC'!$A$43:$C$298,3,FALSE)) -> 94 | CX24: =MyXor(CD24,VLOOKUP(CW24,'Таблица CRC'!$A$43:$C$298,3,FALSE)) -> 68 | CY24: =MyXor(CE24,VLOOKUP(CX24,'Таблица CRC'!$A$43:$C$298,3,FALSE)) -> 167 | CZ24: =MyXor(CF24,VLOOKUP(CY24,'Таблица CRC'!$A$43:$C$298,3,FALSE)) -> 44 | DO24: =CONCATENATE(DEC2HEX(CA24,2)," ",DEC2HEX(CB24,2)," ",DEC2HEX(CC24,2)," ",DEC2HEX(CD24,2)," ",DEC2HEX(CE24,2)," ",DEC2HEX(CZ24,2)) -> 64 05 00 80 80 2C
A25: Принято в обработку | D25: Принято в обработку | AK25: E4 06 41 EC ED 15 24 | AL25: E4 | AM25: 6 | AN25: 41 | AO25: EC | AP25: ED | AQ25: 15 | AR25: 24 | BF25: 228 | BG25: 6 | BH25: 65 | BI25: 236 | BJ25: 237 | BK25: 21 | BL25: 36 | BM25: 0 | BN25: 0 | BO25: 0 | BP25: 0 | BQ25: 0 | BR25: 0 | BS25: 0 | BT25: 0 | BU25: 0 | BV25: 0 | BW25: 0 | BX25: 0 | BY25: 0 | BZ25: 237 | CA25: 100 | CB25: 6 | CC25: 0 | CD25: 1 | CE25: 0 | CF25: 248 | CU25: 100 | CV25: =MyXor(CB25,VLOOKUP(CU25,'Таблица CRC'!$A$43:$C$298,3,FALSE)) -> 2 | CW25: =MyXor(CC25,VLOOKUP(CV25,'Таблица CRC'!$A$43:$C$298,3,FALSE)) -> 188 | CX25: =MyXor(CD25,VLOOKUP(CW25,'Таблица CRC'!$A$43:$C$298,3,FALSE)) -> 144 | CY25: =MyXor(CE25,VLOOKUP(CX25,'Таблица CRC'!$A$43:$C$298,3,FALSE)) -> 17 | CZ25: =MyXor(CF25,VLOOKUP(CY25,'Таблица CRC'!$A$43:$C$298,3,FALSE)) -> 59 | DA25: =MyXor(CG25,VLOOKUP(CZ25,'Таблица CRC'!$A$43:$C$298,3,FALSE)) -> 158 | DO25: 64 06 00 01 00 F8 9E
A26: ключ шифрования-242 | B26: 242 | D26: ключ шифрования-242 | AK26: E4 09 E3 EA EE ED ED ED ED 5C | AL26: E4 | AM26: 9 | AN26: E3 | AO26: EA | AP26: EE | AQ26: ED | AR26: ED | AS26: ED | AT26: ED | AU26: 5C | BF26: 228 | BG26: 9 | BH26: 227 | BI26: 234 | BJ26: 238 | BK26: 237 | BL26: 237 | BM26: 237 | BN26: 237 | BO26: 92 | BP26: 0 | BQ26: 0 | BR26: 0 | BS26: 0 | BT26: 0 | BU26: 0 | BV26: 0 | BW26: 0 | BX26: 0 | BY26: 0 | BZ26: 79 | CA26: 100 | CB26: 9 | CC26: 0 | CD26: 165 | CE26: 161 | CF26: 162 | CG26: 162 | CH26: 162 | CI26: 162 | CU26: 100 | CV26: =MyXor(CB26,VLOOKUP(CU26,'Таблица CRC'!$A$43:$C$298,3,FALSE)) -> 13 | CW26: =MyXor(CC26,VLOOKUP(CV26,'Таблица CRC'!$A$43:$C$298,3,FALSE)) -> 253 | CX26: =MyXor(CD26,VLOOKUP(CW26,'Таблица CRC'!$A$43:$C$298,3,FALSE)) -> 44 | CY26: =MyXor(CE26,VLOOKUP(CX26,'Таблица CRC'!$A$43:$C$298,3,FALSE)) -> 33 | CZ26: =MyXor(CF26,VLOOKUP(CY26,'Таблица CRC'!$A$43:$C$298,3,FALSE)) -> 223 | DA26: =MyXor(CG26,VLOOKUP(CZ26,'Таблица CRC'!$A$43:$C$298,3,FALSE)) -> 180 | DB26: =MyXor(CH26,VLOOKUP(DA26,'Таблица CRC'!$A$43:$C$298,3,FALSE)) -> 241 | DC26: =MyXor(CI26,VLOOKUP(DB26,'Таблица CRC'!$A$43:$C$298,3,FALSE)) -> 136 | DD26: =MyXor(CJ26,VLOOKUP(DC26,'Таблица CRC'!$A$43:$C$298,3,FALSE)) -> 78 | DO26: =CONCATENATE(DEC2HEX(CA26,2)," ",DEC2HEX(CB26,2)," ",DEC2HEX(CC26,2)," ",DEC2HEX(CD26,2)," ",DEC2HEX(CE26,2)," ",DEC2HEX(CF26,2)," ",DEC2HEX(CG26,2)," ",DEC2HEX(CH26,2)," ",DEC2HEX(CI26,2)," ",DEC2HEX(DD26,2)) -> 64 09 00 A5 A1 A2 A2 A2 A2 4E
A27: zapros.s 1,0,248, | D27: zapros.s 1 | E27: 0 | F27: 248 | AK27: E4 06 41 EE ED ED DD | AL27: E4 | AM27: 6 | AN27: 41 | AO27: EE | AP27: ED | AQ27: ED | AR27: DD | BF27: 228 | BG27: 6 | BH27: 65 | BI27: 238 | BJ27: 237 | BK27: 237 | BL27: 221 | BM27: 0 | BN27: 0 | BO27: 0 | BP27: 0 | BQ27: 0 | BR27: 0 | BS27: 0 | BT27: 0 | BU27: 0 | BV27: 0 | BW27: 0 | BX27: 0 | BY27: 0 | BZ27: 237 | CA27: 100 | CB27: 6 | CC27: 0 | CD27: 3 | CE27: 0 | CF27: 0 | CU27: 100 | CV27: =MyXor(CB27,VLOOKUP(CU27,'Таблица CRC'!$A$43:$C$298,3,FALSE)) -> 2 | CW27: =MyXor(CC27,VLOOKUP(CV27,'Таблица CRC'!$A$43:$C$298,3,FALSE)) -> 188 | CX27: =MyXor(CD27,VLOOKUP(CW27,'Таблица CRC'!$A$43:$C$298,3,FALSE)) -> 146 | CY27: =MyXor(CE27,VLOOKUP(CX27,'Таблица CRC'!$A$43:$C$298,3,FALSE)) -> 173 | CZ27: =MyXor(CF27,VLOOKUP(CY27,'Таблица CRC'!$A$43:$C$298,3,FALSE)) -> 82 | DA27: =MyXor(CG27,VLOOKUP(CZ27,'Таблица CRC'!$A$43:$C$298,3,FALSE)) -> 103 | DO27: 64 06 00 03 00 00 67
A28: ОТВЕТ ЭМУЛЯТОРА 240,241,242, | D28: ОТВЕТ ЭМУЛЯТОРА 240 | E28: 241 | F28: 242 | AK28: E4 08 51 D6 F9 FE FD FC 10 | AL28: E4 | AM28: 8 | AN28: 51 | AO28: D6 | AP28: F9 | AQ28: FE | AR28: FD | AS28: FC | AT28: 10 | BF28: 228 | BG28: 8 | BH28: 81 | BI28: 214 | BJ28: 249 | BK28: 254 | BL28: 253 | BM28: 252 | BN28: 16 | BO28: 0 | BP28: 0 | BQ28: 0 | BR28: 0 | BS28: 0 | BT28: 0 | BU28: 0 | BV28: 0 | BW28: 0 | BX28: 0 | BY28: 0 | BZ28: 253 | CA28: 100 | CB28: 8 | CC28: 0 | CD28: 43 | CE28: 4 | CF28: 3 | CG28: 0 | CH28: 1 | CU28: 100 | CV28: =MyXor(CB28,VLOOKUP(CU28,'Таблица CRC'!$A$43:$C$298,3,FALSE)) -> 12 | CW28: =MyXor(CC28,VLOOKUP(CV28,'Таблица CRC'!$A$43:$C$298,3,FALSE)) -> 163 | CX28: =MyXor(CD28,VLOOKUP(CW28,'Таблица CRC'!$A$43:$C$298,3,FALSE)) -> 102 | CY28: =MyXor(CE28,VLOOKUP(CX28,'Таблица CRC'!$A$43:$C$298,3,FALSE)) -> 188 | CZ28: =MyXor(CF28,VLOOKUP(CY28,'Таблица CRC'!$A$43:$C$298,3,FALSE)) -> 146 | DA28: =MyXor(CG28,VLOOKUP(CZ28,'Таблица CRC'!$A$43:$C$298,3,FALSE)) -> 173 | DB28: =MyXor(CH28,VLOOKUP(DA28,'Таблица CRC'!$A$43:$C$298,3,FALSE)) -> 83 | DC28: =MyXor(CI28,VLOOKUP(DB28,'Таблица CRC'!$A$43:$C$298,3,FALSE)) -> 57 | DO28: =CONCATENATE(DEC2HEX(CA28,2)," ",DEC2HEX(CB28,2)," ",DEC2HEX(CC28,2)," ",DEC2HEX(CD28,2)," ",DEC2HEX(CE28,2)," ",DEC2HEX(CF28,2)," ",DEC2HEX(CG28,2)," ",DEC2HEX(CH28,2)," ",DEC2HEX(DC28,2)) -> 64 08 00 2B 04 03 00 01 39
A29: 228,6,246,57,242,242,129, | C29: =MyXor(F29,$C$1) -> 90 | D29: 228 | E29: 6 | F29: 246 | G29: 57 | H29: 242 | I29: 242 | J29: 129 | N29: =IF(D29>127,D29-128,D29) -> 100 | O29: =E29 -> 6 | P29: =MyXor(F29,$B31) -> 172 | Q29: 99 | R29: 168 | S29: 168 | T29: 219 | U29: 90 | V29: 90 | W29: 90 | Y29: 100 | Z29: 6 | AA29: 0 | AB29: 99 | AC29: 168 | AD29: 168 | AK29: E4 05 D1 FD FD 6F | AL29: E4 | AM29: 5 | AN29: D1 | AO29: FD | AP29: FD | AQ29: 6F | BF29: 228 | BG29: 5 | BH29: 209 | BI29: 253 | BJ29: 253 | BK29: 111 | BL29: 0 | BM29: 0 | BN29: 0 | BO29: 0 | BP29: 0 | BQ29: 0 | BR29: 0 | BS29: 0 | BT29: 0 | BU29: 0 | BV29: 0 | BW29: 0 | BX29: 0 | BY29: 0 | BZ29: 125 | CA29: 100 | CB29: 5 | CC29: 0 | CD29: 128 | CE29: 128 | CU29: 100 | CV29: =MyXor(CB29,VLOOKUP(CU29,'Таблица CRC'!$A$43:$C$298,3,FALSE)) -> 1 | CW29: =MyXor(CC29,VLOOKUP(CV29,'Таблица CRC'!$A$43:$C$298,3,FALSE)) -> 94 | CX29: =MyXor(CD29,VLOOKUP(CW29,'Таблица CRC'!$A$43:$C$298,3,FALSE)) -> 68 | CY29: =MyXor(CE29,VLOOKUP(CX29,'Таблица CRC'!$A$43:$C$298,3,FALSE)) -> 167 | CZ29: =MyXor(CF29,VLOOKUP(CY29,'Таблица CRC'!$A$43:$C$298,3,FALSE)) -> 44 | DO29: =CONCATENATE(DEC2HEX(CA29,2)," ",DEC2HEX(CB29,2)," ",DEC2HEX(CC29,2)," ",DEC2HEX(CD29,2)," ",DEC2HEX(CE29,2)," ",DEC2HEX(CZ29,2)) -> 64 05 00 80 80 2C
A30: Принято в обработку | D30: Принято в обработку | Y30: =MyXor(Y29,0) -> 100 | Z30: =MyXor(Z29,VLOOKUP(Y30,'Таблица CRC'!$A$43:$C$298,3,FALSE)) -> 2 | AA30: =MyXor(AA29,VLOOKUP(Z30,'Таблица CRC'!$A$43:$C$298,3,FALSE)) -> 188 | AB30: =MyXor(AB29,VLOOKUP(AA30,'Таблица CRC'!$A$43:$C$298,3,FALSE)) -> 242 | AC30: =MyXor(AC29,VLOOKUP(AB30,'Таблица CRC'!$A$43:$C$298,3,FALSE)) -> 96 | AD30: =MyXor(AD29,VLOOKUP(AC30,'Таблица CRC'!$A$43:$C$298,3,FALSE)) -> 205 | AE30: =MyXor(AE29,VLOOKUP(AD30,'Таблица CRC'!$A$43:$C$298,3,FALSE)) -> 55 | AK30: E4 06 BE 13 12 EA A9 | AL30: E4 | AM30: 6 | AN30: BE | AO30: 13 | AP30: 12 | AQ30: EA | AR30: A9 | BF30: 228 | BG30: 6 | BH30: 190 | BI30: 19 | BJ30: 18 | BK30: 234 | BL30: 169 | BM30: 0 | BN30: 0 | BO30: 0 | BP30: 0 | BQ30: 0 | BR30: 0 | BS30: 0 | BT30: 0 | BU30: 0 | BV30: 0 | BW30: 0 | BX30: 0 | BY30: 0 | BZ30: 18 | CA30: 100 | CB30: 6 | CC30: 0 | CD30: 1 | CE30: 0 | CF30: 248 | CU30: 100 | CV30: =MyXor(CB30,VLOOKUP(CU30,'Таблица CRC'!$A$43:$C$298,3,FALSE)) -> 2 | CW30: =MyXor(CC30,VLOOKUP(CV30,'Таблица CRC'!$A$43:$C$298,3,FALSE)) -> 188 | CX30: =MyXor(CD30,VLOOKUP(CW30,'Таблица CRC'!$A$43:$C$298,3,FALSE)) -> 144 | CY30: =MyXor(CE30,VLOOKUP(CX30,'Таблица CRC'!$A$43:$C$298,3,FALSE)) -> 17 | CZ30: =MyXor(CF30,VLOOKUP(CY30,'Таблица CRC'!$A$43:$C$298,3,FALSE)) -> 59 | DA30: =MyXor(CG30,VLOOKUP(CZ30,'Таблица CRC'!$A$43:$C$298,3,FALSE)) -> 158 | DO30: 64 06 00 01 00 F8 9E
A31: ключ шифрования-90 | B31: 90 | D31: ключ шифрования-90 | Y31: =DEC2HEX(Y29,2) -> 64 | Z31: =DEC2HEX(Z29,2) -> 06 | AA31: 00 | AB31: 63 | AC31: A8 | AD31: A8 | AE31: =DEC2HEX(AE30,2) -> 37 | AI31: =CONCATENATE(Y31," ",Z31," ",AA31," ",AB31," ",AC31," ",AD31," ",AE31," ",AF31," ",AG31," ",AH31) -> 64 06 00 63 A8 A8 37 | AJ31: 64 05 0A 00 00 E5 | AK31: E4 09 1C 15 16 12 12 12 12 19 | AL31: E4 | AM31: 9 | AN31: 1C | AO31: 15 | AP31: 16 | AQ31: 12 | AR31: 12 | AS31: 12 | AT31: 12 | AU31: 19 | BF31: 228 | BG31: 9 | BH31: 28 | BI31: 21 | BJ31: 22 | BK31: 18 | BL31: 18 | BM31: 18 | BN31: 18 | BO31: 25 | BP31: 0 | BQ31: 0 | BR31: 0 | BS31: 0 | BT31: 0 | BU31: 0 | BV31: 0 | BW31: 0 | BX31: 0 | BY31: 0 | BZ31: 176 | CA31: 100 | CB31: 9 | CC31: 0 | CD31: 165 | CE31: 166 | CF31: 162 | CG31: 162 | CH31: 162 | CI31: 162 | CU31: 100 | CV31: =MyXor(CB31,VLOOKUP(CU31,'Таблица CRC'!$A$43:$C$298,3,FALSE)) -> 13 | CW31: =MyXor(CC31,VLOOKUP(CV31,'Таблица CRC'!$A$43:$C$298,3,FALSE)) -> 253 | CX31: =MyXor(CD31,VLOOKUP(CW31,'Таблица CRC'!$A$43:$C$298,3,FALSE)) -> 44 | CY31: =MyXor(CE31,VLOOKUP(CX31,'Таблица CRC'!$A$43:$C$298,3,FALSE)) -> 38 | CZ31: =MyXor(CF31,VLOOKUP(CY31,'Таблица CRC'!$A$43:$C$298,3,FALSE)) -> 92 | DA31: =MyXor(CG31,VLOOKUP(CZ31,'Таблица CRC'!$A$43:$C$298,3,FALSE)) -> 218 | DB31: =MyXor(CH31,VLOOKUP(DA31,'Таблица CRC'!$A$43:$C$298,3,FALSE)) -> 139 | DC31: =MyXor(CI31,VLOOKUP(DB31,'Таблица CRC'!$A$43:$C$298,3,FALSE)) -> 14 | DD31: =MyXor(CJ31,VLOOKUP(DC31,'Таблица CRC'!$A$43:$C$298,3,FALSE)) -> 31 | DO31: =CONCATENATE(DEC2HEX(CA31,2)," ",DEC2HEX(CB31,2)," ",DEC2HEX(CC31,2)," ",DEC2HEX(CD31,2)," ",DEC2HEX(CE31,2)," ",DEC2HEX(CF31,2)," ",DEC2HEX(CG31,2)," ",DEC2HEX(CH31,2)," ",DEC2HEX(CI31,2)," ",DEC2HEX(DD31,2)) -> 64 09 00 A5 A6 A2 A2 A2 A2 1F
A32: zapros.s 99,168,168, | D32: zapros.s 99 | E32: 168 | F32: 168 | AK32: E4 06 BE 11 12 12 50 | AL32: E4 | AM32: 6 | AN32: BE | AO32: 11 | AP32: 12 | AQ32: 12 | AR32: 50 | BF32: 228 | BG32: 6 | BH32: 190 | BI32: 17 | BJ32: 18 | BK32: 18 | BL32: 80 | BM32: 0 | BN32: 0 | BO32: 0 | BP32: 0 | BQ32: 0 | BR32: 0 | BS32: 0 | BT32: 0 | BU32: 0 | BV32: 0 | BW32: 0 | BX32: 0 | BY32: 0 | BZ32: 18 | CA32: 100 | CB32: 6 | CC32: 0 | CD32: 3 | CE32: 0 | CF32: 0 | CU32: 100 | CV32: =MyXor(CB32,VLOOKUP(CU32,'Таблица CRC'!$A$43:$C$298,3,FALSE)) -> 2 | CW32: =MyXor(CC32,VLOOKUP(CV32,'Таблица CRC'!$A$43:$C$298,3,FALSE)) -> 188 | CX32: =MyXor(CD32,VLOOKUP(CW32,'Таблица CRC'!$A$43:$C$298,3,FALSE)) -> 146 | CY32: =MyXor(CE32,VLOOKUP(CX32,'Таблица CRC'!$A$43:$C$298,3,FALSE)) -> 173 | CZ32: =MyXor(CF32,VLOOKUP(CY32,'Таблица CRC'!$A$43:$C$298,3,FALSE)) -> 82 | DA32: =MyXor(CG32,VLOOKUP(CZ32,'Таблица CRC'!$A$43:$C$298,3,FALSE)) -> 103 | DO32: 64 06 00 03 00 00 67
A33: 228,6,94,241,242,242,66, | C33: =MyXor(F33,$C$1) -> 242 | D33: 228 | E33: 6 | F33: 94 | G33: 241 | H33: 242 | I33: 242 | J33: 66 | N33: =IF(D33>127,D33-128,D33) -> 100 | O33: =E33 -> 6 | P33: =MyXor(F33,$B35) -> 172 | Q33: 3 | R33: 0 | S33: 0 | T33: 176 | U33: 242 | V33: 242 | W33: 242 | Y33: 100 | Z33: 6 | AA33: 0 | AB33: 3 | AC33: 0 | AD33: 0 | AK33: E4 08 7E F9 D6 D6 D2 D3 F5 | AL33: E4 | AM33: 8 | AN33: 7E | AO33: F9 | AP33: D6 | AQ33: D6 | AR33: D2 | AS33: D3 | AT33: F5 | BF33: 228 | BG33: 8 | BH33: 126 | BI33: 249 | BJ33: 214 | BK33: 214 | BL33: 210 | BM33: 211 | BN33: 245 | BO33: 0 | BP33: 0 | BQ33: 0 | BR33: 0 | BS33: 0 | BT33: 0 | BU33: 0 | BV33: 0 | BW33: 0 | BX33: 0 | BY33: 0 | BZ33: 210 | CA33: 100 | CB33: 8 | CC33: 0 | CD33: 43 | CE33: 4 | CF33: 4 | CG33: 0 | CH33: 1 | CU33: 100 | CV33: =MyXor(CB33,VLOOKUP(CU33,'Таблица CRC'!$A$43:$C$298,3,FALSE)) -> 12 | CW33: =MyXor(CC33,VLOOKUP(CV33,'Таблица CRC'!$A$43:$C$298,3,FALSE)) -> 163 | CX33: =MyXor(CD33,VLOOKUP(CW33,'Таблица CRC'!$A$43:$C$298,3,FALSE)) -> 102 | CY33: =MyXor(CE33,VLOOKUP(CX33,'Таблица CRC'!$A$43:$C$298,3,FALSE)) -> 188 | CZ33: =MyXor(CF33,VLOOKUP(CY33,'Таблица CRC'!$A$43:$C$298,3,FALSE)) -> 149 | DA33: =MyXor(CG33,VLOOKUP(CZ33,'Таблица CRC'!$A$43:$C$298,3,FALSE)) -> 46 | DB33: =MyXor(CH33,VLOOKUP(DA33,'Таблица CRC'!$A$43:$C$298,3,FALSE)) -> 61 | DC33: =MyXor(CI33,VLOOKUP(DB33,'Таблица CRC'!$A$43:$C$298,3,FALSE)) -> 67 | DO33: =CONCATENATE(DEC2HEX(CA33,2)," ",DEC2HEX(CB33,2)," ",DEC2HEX(CC33,2)," ",DEC2HEX(CD33,2)," ",DEC2HEX(CE33,2)," ",DEC2HEX(CF33,2)," ",DEC2HEX(CG33,2)," ",DEC2HEX(CH33,2)," ",DEC2HEX(DC33,2)) -> 64 08 00 2B 04 04 00 01 43
A34: Принято в обработку | D34: Принято в обработку | Y34: =MyXor(Y33,0) -> 100 | Z34: =MyXor(Z33,VLOOKUP(Y34,'Таблица CRC'!$A$43:$C$298,3,FALSE)) -> 2 | AA34: =MyXor(AA33,VLOOKUP(Z34,'Таблица CRC'!$A$43:$C$298,3,FALSE)) -> 188 | AB34: =MyXor(AB33,VLOOKUP(AA34,'Таблица CRC'!$A$43:$C$298,3,FALSE)) -> 146 | AC34: =MyXor(AC33,VLOOKUP(AB34,'Таблица CRC'!$A$43:$C$298,3,FALSE)) -> 173 | AD34: =MyXor(AD33,VLOOKUP(AC34,'Таблица CRC'!$A$43:$C$298,3,FALSE)) -> 82 | AE34: =MyXor(AE33,VLOOKUP(AD34,'Таблица CRC'!$A$43:$C$298,3,FALSE)) -> 103 | AK34: E4 05 FE D2 D2 1F | AL34: E4 | AM34: 5 | AN34: FE | AO34: D2 | AP34: D2 | AQ34: 1F | BF34: 228 | BG34: 5 | BH34: 254 | BI34: 210 | BJ34: 210 | BK34: 31 | BL34: 0 | BM34: 0 | BN34: 0 | BO34: 0 | BP34: 0 | BQ34: 0 | BR34: 0 | BS34: 0 | BT34: 0 | BU34: 0 | BV34: 0 | BW34: 0 | BX34: 0 | BY34: 0 | BZ34: 82 | CA34: 100 | CB34: 5 | CC34: 0 | CD34: 128 | CE34: 128 | CU34: 100 | CV34: =MyXor(CB34,VLOOKUP(CU34,'Таблица CRC'!$A$43:$C$298,3,FALSE)) -> 1 | CW34: =MyXor(CC34,VLOOKUP(CV34,'Таблица CRC'!$A$43:$C$298,3,FALSE)) -> 94 | CX34: =MyXor(CD34,VLOOKUP(CW34,'Таблица CRC'!$A$43:$C$298,3,FALSE)) -> 68 | CY34: =MyXor(CE34,VLOOKUP(CX34,'Таблица CRC'!$A$43:$C$298,3,FALSE)) -> 167 | CZ34: =MyXor(CF34,VLOOKUP(CY34,'Таблица CRC'!$A$43:$C$298,3,FALSE)) -> 44 | DO34: =CONCATENATE(DEC2HEX(CA34,2)," ",DEC2HEX(CB34,2)," ",DEC2HEX(CC34,2)," ",DEC2HEX(CD34,2)," ",DEC2HEX(CE34,2)," ",DEC2HEX(CZ34,2)) -> 64 05 00 80 80 2C
A35: ключ шифрования-242 | B35: 242 | D35: ключ шифрования-242 | Y35: =DEC2HEX(Y33,2) -> 64 | Z35: =DEC2HEX(Z33,2) -> 06 | AA35: 00 | AB35: 03 | AC35: 00 | AD35: 00 | AE35: =DEC2HEX(AE34,2) -> 67 | AI35: =CONCATENATE(Y35," ",Z35," ",AA35," ",AB35," ",AC35," ",AD35," ",AE35," ",AF35," ",AG35," ",AH35) -> 64 06 00 03 00 00 67 | AK35: E4 06 82 2F 2E D6 EB | AL35: E4 | AM35: 6 | AN35: 82 | AO35: 2F | AP35: 2E | AQ35: D6 | AR35: EB | BF35: 228 | BG35: 6 | BH35: 130 | BI35: 47 | BJ35: 46 | BK35: 214 | BL35: 235 | BM35: 0 | BN35: 0 | BO35: 0 | BP35: 0 | BQ35: 0 | BR35: 0 | BS35: 0 | BT35: 0 | BU35: 0 | BV35: 0 | BW35: 0 | BX35: 0 | BY35: 0 | BZ35: 46 | CA35: 100 | CB35: 6 | CC35: 0 | CD35: 1 | CE35: 0 | CF35: 248 | CU35: 100 | CV35: =MyXor(CB35,VLOOKUP(CU35,'Таблица CRC'!$A$43:$C$298,3,FALSE)) -> 2 | CW35: =MyXor(CC35,VLOOKUP(CV35,'Таблица CRC'!$A$43:$C$298,3,FALSE)) -> 188 | CX35: =MyXor(CD35,VLOOKUP(CW35,'Таблица CRC'!$A$43:$C$298,3,FALSE)) -> 144 | CY35: =MyXor(CE35,VLOOKUP(CX35,'Таблица CRC'!$A$43:$C$298,3,FALSE)) -> 17 | CZ35: =MyXor(CF35,VLOOKUP(CY35,'Таблица CRC'!$A$43:$C$298,3,FALSE)) -> 59 | DA35: =MyXor(CG35,VLOOKUP(CZ35,'Таблица CRC'!$A$43:$C$298,3,FALSE)) -> 158 | DO35: 64 06 00 01 00 F8 9E
A36: zapros.s 3,0,0, | D36: zapros.s 3 | E36: 0 | F36: 0 | AK36: E4 09 20 29 2B 2E 2E 2E 2E B2 | AL36: E4 | AM36: 9 | AN36: 20 | AO36: 29 | AP36: 2B | AQ36: 2E | AR36: 2E | AS36: 2E | AT36: 2E | AU36: B2 | BF36: 228 | BG36: 9 | BH36: 32 | BI36: 41 | BJ36: 43 | BK36: 46 | BL36: 46 | BM36: 46 | BN36: 46 | BO36: 178 | BP36: 0 | BQ36: 0 | BR36: 0 | BS36: 0 | BT36: 0 | BU36: 0 | BV36: 0 | BW36: 0 | BX36: 0 | BY36: 0 | BZ36: 140 | CA36: 100 | CB36: 9 | CC36: 0 | CD36: 165 | CE36: 167 | CF36: 162 | CG36: 162 | CH36: 162 | CI36: 162 | CU36: 100 | CV36: =MyXor(CB36,VLOOKUP(CU36,'Таблица CRC'!$A$43:$C$298,3,FALSE)) -> 13 | CW36: =MyXor(CC36,VLOOKUP(CV36,'Таблица CRC'!$A$43:$C$298,3,FALSE)) -> 253 | CX36: =MyXor(CD36,VLOOKUP(CW36,'Таблица CRC'!$A$43:$C$298,3,FALSE)) -> 44 | CY36: =MyXor(CE36,VLOOKUP(CX36,'Таблица CRC'!$A$43:$C$298,3,FALSE)) -> 39 | CZ36: =MyXor(CF36,VLOOKUP(CY36,'Таблица CRC'!$A$43:$C$298,3,FALSE)) -> 2 | DA36: =MyXor(CG36,VLOOKUP(CZ36,'Таблица CRC'!$A$43:$C$298,3,FALSE)) -> 30 | DB36: =MyXor(CH36,VLOOKUP(DA36,'Таблица CRC'!$A$43:$C$298,3,FALSE)) -> 32 | DC36: =MyXor(CI36,VLOOKUP(DB36,'Таблица CRC'!$A$43:$C$298,3,FALSE)) -> 129 | DD36: =MyXor(CJ36,VLOOKUP(DC36,'Таблица CRC'!$A$43:$C$298,3,FALSE)) -> 210 | DO36: =CONCATENATE(DEC2HEX(CA36,2)," ",DEC2HEX(CB36,2)," ",DEC2HEX(CC36,2)," ",DEC2HEX(CD36,2)," ",DEC2HEX(CE36,2)," ",DEC2HEX(CF36,2)," ",DEC2HEX(CG36,2)," ",DEC2HEX(CH36,2)," ",DEC2HEX(CI36,2)," ",DEC2HEX(DD36,2)) -> 64 09 00 A5 A7 A2 A2 A2 A2 D2
A37: 228,6,117,192,217,217,50, | C37: =MyXor(F37,$C$1) -> 217 | D37: 228 | E37: 6 | F37: 117 | G37: 192 | H37: 217 | I37: 217 | J37: 50 | N37: =IF(D37>127,D37-128,D37) -> 100 | O37: =E37 -> 6 | P37: =MyXor(F37,$B39) -> 172 | Q37: 25 | R37: 0 | S37: 0 | T37: 235 | U37: 217 | V37: 217 | W37: 217 | Y37: 100 | Z37: 6 | AA37: 0 | AB37: 25 | AC37: 0 | AD37: 0 | AH37: 217 | AK37: E4 06 82 2D 2E 2E 12 | AL37: E4 | AM37: 6 | AN37: 82 | AO37: 2D | AP37: 2E | AQ37: 2E | AR37: 12 | BF37: 228 | BG37: 6 | BH37: 130 | BI37: 45 | BJ37: 46 | BK37: 46 | BL37: 18 | BM37: 0 | BN37: 0 | BO37: 0 | BP37: 0 | BQ37: 0 | BR37: 0 | BS37: 0 | BT37: 0 | BU37: 0 | BV37: 0 | BW37: 0 | BX37: 0 | BY37: 0 | BZ37: 46 | CA37: 100 | CB37: 6 | CC37: 0 | CD37: 3 | CE37: 0 | CF37: 0 | CU37: 100 | CV37: =MyXor(CB37,VLOOKUP(CU37,'Таблица CRC'!$A$43:$C$298,3,FALSE)) -> 2 | CW37: =MyXor(CC37,VLOOKUP(CV37,'Таблица CRC'!$A$43:$C$298,3,FALSE)) -> 188 | CX37: =MyXor(CD37,VLOOKUP(CW37,'Таблица CRC'!$A$43:$C$298,3,FALSE)) -> 146 | CY37: =MyXor(CE37,VLOOKUP(CX37,'Таблица CRC'!$A$43:$C$298,3,FALSE)) -> 173 | CZ37: =MyXor(CF37,VLOOKUP(CY37,'Таблица CRC'!$A$43:$C$298,3,FALSE)) -> 82 | DA37: =MyXor(CG37,VLOOKUP(CZ37,'Таблица CRC'!$A$43:$C$298,3,FALSE)) -> 103 | DO37: 64 06 00 03 00 00 67
A38: Принято в обработку | D38: Принято в обработку | Y38: =MyXor(Y37,0) -> 100 | Z38: =MyXor(Z37,VLOOKUP(Y38,'Таблица CRC'!$A$43:$C$298,3,FALSE)) -> 2 | AA38: =MyXor(AA37,VLOOKUP(Z38,'Таблица CRC'!$A$43:$C$298,3,FALSE)) -> 188 | AB38: =MyXor(AB37,VLOOKUP(AA38,'Таблица CRC'!$A$43:$C$298,3,FALSE)) -> 136 | AC38: =MyXor(AC37,VLOOKUP(AB38,'Таблица CRC'!$A$43:$C$298,3,FALSE)) -> 78 | AD38: =MyXor(AD37,VLOOKUP(AC38,'Таблица CRC'!$A$43:$C$298,3,FALSE)) -> 89 | AE38: =MyXor(AE37,VLOOKUP(AD38,'Таблица CRC'!$A$43:$C$298,3,FALSE)) -> 71 | AK38: E4 08 D2 55 7A 7B 7E 7F 34 | AL38: E4 | AM38: 8 | AN38: D2 | AO38: 55 | AP38: 7A | AQ38: 7B | AR38: 7E | AS38: 7F | AT38: 34 | BF38: 228 | BG38: 8 | BH38: 210 | BI38: 85 | BJ38: 122 | BK38: 123 | BL38: 126 | BM38: 127 | BN38: 52 | BO38: 0 | BP38: 0 | BQ38: 0 | BR38: 0 | BS38: 0 | BT38: 0 | BU38: 0 | BV38: 0 | BW38: 0 | BX38: 0 | BY38: 0 | BZ38: 126 | CA38: 100 | CB38: 8 | CC38: 0 | CD38: 43 | CE38: 4 | CF38: 5 | CG38: 0 | CH38: 1 | CU38: 100 | CV38: =MyXor(CB38,VLOOKUP(CU38,'Таблица CRC'!$A$43:$C$298,3,FALSE)) -> 12 | CW38: =MyXor(CC38,VLOOKUP(CV38,'Таблица CRC'!$A$43:$C$298,3,FALSE)) -> 163 | CX38: =MyXor(CD38,VLOOKUP(CW38,'Таблица CRC'!$A$43:$C$298,3,FALSE)) -> 102 | CY38: =MyXor(CE38,VLOOKUP(CX38,'Таблица CRC'!$A$43:$C$298,3,FALSE)) -> 188 | CZ38: =MyXor(CF38,VLOOKUP(CY38,'Таблица CRC'!$A$43:$C$298,3,FALSE)) -> 148 | DA38: =MyXor(CG38,VLOOKUP(CZ38,'Таблица CRC'!$A$43:$C$298,3,FALSE)) -> 112 | DB38: =MyXor(CH38,VLOOKUP(DA38,'Таблица CRC'!$A$43:$C$298,3,FALSE)) -> 249 | DC38: =MyXor(CI38,VLOOKUP(DB38,'Таблица CRC'!$A$43:$C$298,3,FALSE)) -> 252 | DO38: =CONCATENATE(DEC2HEX(CA38,2)," ",DEC2HEX(CB38,2)," ",DEC2HEX(CC38,2)," ",DEC2HEX(CD38,2)," ",DEC2HEX(CE38,2)," ",DEC2HEX(CF38,2)," ",DEC2HEX(CG38,2)," ",DEC2HEX(CH38,2)," ",DEC2HEX(DC38,2)) -> 64 08 00 2B 04 05 00 01 FC
A39: ключ шифрования-217 | B39: 217 | D39: ключ шифрования-217 | Y39: =DEC2HEX(Y37,2) -> 64 | Z39: =DEC2HEX(Z37,2) -> 06 | AA39: 00 | AB39: 19 | AC39: 00 | AD39: 00 | AE39: =DEC2HEX(AE38,2) -> 47 | AI39: =CONCATENATE(Y39," ",Z39," ",AA39," ",AB39," ",AC39," ",AD39," ",AE39," ",AF39," ",AG39," ",AH39) -> 64 06 00 19 00 00 47 | AJ39: 64 06 1A 00 C7 98 A9 | AK39: E4 05 52 7E 7E FD | AL39: E4 | AM39: 5 | AN39: 52 | AO39: 7E | AP39: 7E | AQ39: FD | BF39: 228 | BG39: 5 | BH39: 82 | BI39: 126 | BJ39: 126 | BK39: 253 | BL39: 0 | BM39: 0 | BN39: 0 | BO39: 0 | BP39: 0 | BQ39: 0 | BR39: 0 | BS39: 0 | BT39: 0 | BU39: 0 | BV39: 0 | BW39: 0 | BX39: 0 | BY39: 0 | BZ39: 254 | CA39: 100 | CB39: 5 | CC39: 0 | CD39: 128 | CE39: 128 | CU39: 100 | CV39: =MyXor(CB39,VLOOKUP(CU39,'Таблица CRC'!$A$43:$C$298,3,FALSE)) -> 1 | CW39: =MyXor(CC39,VLOOKUP(CV39,'Таблица CRC'!$A$43:$C$298,3,FALSE)) -> 94 | CX39: =MyXor(CD39,VLOOKUP(CW39,'Таблица CRC'!$A$43:$C$298,3,FALSE)) -> 68 | CY39: =MyXor(CE39,VLOOKUP(CX39,'Таблица CRC'!$A$43:$C$298,3,FALSE)) -> 167 | CZ39: =MyXor(CF39,VLOOKUP(CY39,'Таблица CRC'!$A$43:$C$298,3,FALSE)) -> 44 | DO39: =CONCATENATE(DEC2HEX(CA39,2)," ",DEC2HEX(CB39,2)," ",DEC2HEX(CC39,2)," ",DEC2HEX(CD39,2)," ",DEC2HEX(CE39,2)," ",DEC2HEX(CZ39,2)) -> 64 05 00 80 80 2C
A40: zapros.s 25,0,0, | D40: zapros.s 25 | E40: 0 | F40: 0 | AK40: E4 06 CC 61 60 98 C5 | AL40: E4 | AM40: 6 | AN40: CC | AO40: 61 | AP40: 60 | AQ40: 98 | AR40: C5 | BF40: 228 | BG40: 6 | BH40: 204 | BI40: 97 | BJ40: 96 | BK40: 152 | BL40: 197 | BM40: 0 | BN40: 0 | BO40: 0 | BP40: 0 | BQ40: 0 | BR40: 0 | BS40: 0 | BT40: 0 | BU40: 0 | BV40: 0 | BW40: 0 | BX40: 0 | BY40: 0 | BZ40: 96 | CA40: 100 | CB40: 6 | CC40: 0 | CD40: 1 | CE40: 0 | CF40: 248 | CU40: 100 | CV40: =MyXor(CB40,VLOOKUP(CU40,'Таблица CRC'!$A$43:$C$298,3,FALSE)) -> 2 | CW40: =MyXor(CC40,VLOOKUP(CV40,'Таблица CRC'!$A$43:$C$298,3,FALSE)) -> 188 | CX40: =MyXor(CD40,VLOOKUP(CW40,'Таблица CRC'!$A$43:$C$298,3,FALSE)) -> 144 | CY40: =MyXor(CE40,VLOOKUP(CX40,'Таблица CRC'!$A$43:$C$298,3,FALSE)) -> 17 | CZ40: =MyXor(CF40,VLOOKUP(CY40,'Таблица CRC'!$A$43:$C$298,3,FALSE)) -> 59 | DA40: =MyXor(CG40,VLOOKUP(CZ40,'Таблица CRC'!$A$43:$C$298,3,FALSE)) -> 158 | DO40: 64 06 00 01 00 F8 9E
A41: ОТВЕТ ЭМУЛЯТОРА 233,243,52, | D41: ОТВЕТ ЭМУЛЯТОРА 233 | E41: 243 | F41: 52 | AK41: E4 09 6E 67 66 60 60 60 60 47 | AL41: E4 | AM41: 9 | AN41: 6E | AO41: 67 | AP41: 66 | AQ41: 60 | AR41: 60 | AS41: 60 | AT41: 60 | AU41: 47 | BF41: 228 | BG41: 9 | BH41: 110 | BI41: 103 | BJ41: 102 | BK41: 96 | BL41: 96 | BM41: 96 | BN41: 96 | BO41: 71 | BP41: 0 | BQ41: 0 | BR41: 0 | BS41: 0 | BT41: 0 | BU41: 0 | BV41: 0 | BW41: 0 | BX41: 0 | BY41: 0 | BZ41: 194 | CA41: 100 | CB41: 9 | CC41: 0 | CD41: 165 | CE41: 164 | CF41: 162 | CG41: 162 | CH41: 162 | CI41: 162 | CU41: 100 | CV41: =MyXor(CB41,VLOOKUP(CU41,'Таблица CRC'!$A$43:$C$298,3,FALSE)) -> 13 | CW41: =MyXor(CC41,VLOOKUP(CV41,'Таблица CRC'!$A$43:$C$298,3,FALSE)) -> 253 | CX41: =MyXor(CD41,VLOOKUP(CW41,'Таблица CRC'!$A$43:$C$298,3,FALSE)) -> 44 | CY41: =MyXor(CE41,VLOOKUP(CX41,'Таблица CRC'!$A$43:$C$298,3,FALSE)) -> 36 | CZ41: =MyXor(CF41,VLOOKUP(CY41,'Таблица CRC'!$A$43:$C$298,3,FALSE)) -> 224 | DA41: =MyXor(CG41,VLOOKUP(CZ41,'Таблица CRC'!$A$43:$C$298,3,FALSE)) -> 75 | DB41: =MyXor(CH41,VLOOKUP(DA41,'Таблица CRC'!$A$43:$C$298,3,FALSE)) -> 196 | DC41: =MyXor(CI41,VLOOKUP(DB41,'Таблица CRC'!$A$43:$C$298,3,FALSE)) -> 9 | DD41: =MyXor(CJ41,VLOOKUP(DC41,'Таблица CRC'!$A$43:$C$298,3,FALSE)) -> 156 | DO41: =CONCATENATE(DEC2HEX(CA41,2)," ",DEC2HEX(CB41,2)," ",DEC2HEX(CC41,2)," ",DEC2HEX(CD41,2)," ",DEC2HEX(CE41,2)," ",DEC2HEX(CF41,2)," ",DEC2HEX(CG41,2)," ",DEC2HEX(CH41,2)," ",DEC2HEX(CI41,2)," ",DEC2HEX(DD41,2)) -> 64 09 00 A5 A4 A2 A2 A2 A2 9C
A42: 228,6,195,217,30,65,103, | C42: =MyXor(F42,$C$1) -> 111 | D42: 228 | E42: 6 | F42: 195 | G42: 217 | H42: 30 | I42: 65 | J42: 103 | N42: =IF(D42>127,D42-128,D42) -> 100 | O42: =E42 -> 6 | P42: =MyXor(F42,$B44) -> 172 | Q42: 182 | R42: 113 | S42: 46 | T42: 8 | U42: 111 | V42: 111 | W42: 111 | Y42: 100 | Z42: 6 | AA42: 0 | AB42: 182 | AC42: 113 | AD42: 46 | AK42: E4 06 CC 63 60 60 EB | AL42: E4 | AM42: 6 | AN42: CC | AO42: 63 | AP42: 60 | AQ42: 60 | AR42: EB | BF42: 228 | BG42: 6 | BH42: 204 | BI42: 99 | BJ42: 96 | BK42: 96 | BL42: 235 | BM42: 0 | BN42: 0 | BO42: 0 | BP42: 0 | BQ42: 0 | BR42: 0 | BS42: 0 | BT42: 0 | BU42: 0 | BV42: 0 | BW42: 0 | BX42: 0 | BY42: 0 | BZ42: 96 | CA42: 100 | CB42: 6 | CC42: 0 | CD42: 3 | CE42: 0 | CF42: 0 | CU42: 100 | CV42: =MyXor(CB42,VLOOKUP(CU42,'Таблица CRC'!$A$43:$C$298,3,FALSE)) -> 2 | CW42: =MyXor(CC42,VLOOKUP(CV42,'Таблица CRC'!$A$43:$C$298,3,FALSE)) -> 188 | CX42: =MyXor(CD42,VLOOKUP(CW42,'Таблица CRC'!$A$43:$C$298,3,FALSE)) -> 146 | CY42: =MyXor(CE42,VLOOKUP(CX42,'Таблица CRC'!$A$43:$C$298,3,FALSE)) -> 173 | CZ42: =MyXor(CF42,VLOOKUP(CY42,'Таблица CRC'!$A$43:$C$298,3,FALSE)) -> 82 | DA42: =MyXor(CG42,VLOOKUP(CZ42,'Таблица CRC'!$A$43:$C$298,3,FALSE)) -> 103 | DO42: 64 06 00 03 00 00 67
A43: Принято в обработку | D43: Принято в обработку | Y43: =MyXor(Y42,0) -> 100 | Z43: =MyXor(Z42,VLOOKUP(Y43,'Таблица CRC'!$A$43:$C$298,3,FALSE)) -> 2 | AA43: =MyXor(AA42,VLOOKUP(Z43,'Таблица CRC'!$A$43:$C$298,3,FALSE)) -> 188 | AB43: =MyXor(AB42,VLOOKUP(AA43,'Таблица CRC'!$A$43:$C$298,3,FALSE)) -> 39 | AC43: =MyXor(AC42,VLOOKUP(AB43,'Таблица CRC'!$A$43:$C$298,3,FALSE)) -> 209 | AD43: =MyXor(AD42,VLOOKUP(AC43,'Таблица CRC'!$A$43:$C$298,3,FALSE)) -> 39 | AE43: =MyXor(AE42,VLOOKUP(AD43,'Таблица CRC'!$A$43:$C$298,3,FALSE)) -> 160 | AK43: E4 08 36 B1 9E 9C 9A 9B 38 | AL43: E4 | AM43: 8 | AN43: 36 | AO43: B1 | AP43: 9E | AQ43: 9C | AR43: 9A | AS43: 9B | AT43: 38 | BF43: 228 | BG43: 8 | BH43: 54 | BI43: 177 | BJ43: 158 | BK43: 156 | BL43: 154 | BM43: 155 | BN43: 56 | BO43: 0 | BP43: 0 | BQ43: 0 | BR43: 0 | BS43: 0 | BT43: 0 | BU43: 0 | BV43: 0 | BW43: 0 | BX43: 0 | BY43: 0 | BZ43: 154 | CA43: 100 | CB43: 8 | CC43: 0 | CD43: 43 | CE43: 4 | CF43: 6 | CG43: 0 | CH43: 1 | CU43: 100 | CV43: =MyXor(CB43,VLOOKUP(CU43,'Таблица CRC'!$A$43:$C$298,3,FALSE)) -> 12 | CW43: =MyXor(CC43,VLOOKUP(CV43,'Таблица CRC'!$A$43:$C$298,3,FALSE)) -> 163 | CX43: =MyXor(CD43,VLOOKUP(CW43,'Таблица CRC'!$A$43:$C$298,3,FALSE)) -> 102 | CY43: =MyXor(CE43,VLOOKUP(CX43,'Таблица CRC'!$A$43:$C$298,3,FALSE)) -> 188 | CZ43: =MyXor(CF43,VLOOKUP(CY43,'Таблица CRC'!$A$43:$C$298,3,FALSE)) -> 151 | DA43: =MyXor(CG43,VLOOKUP(CZ43,'Таблица CRC'!$A$43:$C$298,3,FALSE)) -> 146 | DB43: =MyXor(CH43,VLOOKUP(DA43,'Таблица CRC'!$A$43:$C$298,3,FALSE)) -> 172 | DC43: =MyXor(CI43,VLOOKUP(DB43,'Таблица CRC'!$A$43:$C$298,3,FALSE)) -> 12 | DO43: =CONCATENATE(DEC2HEX(CA43,2)," ",DEC2HEX(CB43,2)," ",DEC2HEX(CC43,2)," ",DEC2HEX(CD43,2)," ",DEC2HEX(CE43,2)," ",DEC2HEX(CF43,2)," ",DEC2HEX(CG43,2)," ",DEC2HEX(CH43,2)," ",DEC2HEX(DC43,2)) -> 64 08 00 2B 04 06 00 01 0C
A44: ключ шифрования-111 | B44: 111 | D44: ключ шифрования-111 | Y44: =DEC2HEX(Y42,2) -> 64 | Z44: =DEC2HEX(Z42,2) -> 06 | AA44: 00 | AB44: B6 | AC44: 71 | AD44: 2E | AE44: =DEC2HEX(AE43,2) -> A0 | AI44: =CONCATENATE(Y44," ",Z44," ",AA44," ",AB44," ",AC44," ",AD44," ",AE44," ",AF44," ",AG44," ",AH44) -> 64 06 00 B6 71 2E A0 | AK44: E4 05 B6 9A 9A 62 | AL44: E4 | AM44: 5 | AN44: B6 | AO44: 9A | AP44: 9A | AQ44: 62 | BF44: 228 | BG44: 5 | BH44: 182 | BI44: 154 | BJ44: 154 | BK44: 98 | BL44: 0 | BM44: 0 | BN44: 0 | BO44: 0 | BP44: 0 | BQ44: 0 | BR44: 0 | BS44: 0 | BT44: 0 | BU44: 0 | BV44: 0 | BW44: 0 | BX44: 0 | BY44: 0 | BZ44: 26 | CA44: 100 | CB44: 5 | CC44: 0 | CD44: 128 | CE44: 128 | CU44: 100 | CV44: =MyXor(CB44,VLOOKUP(CU44,'Таблица CRC'!$A$43:$C$298,3,FALSE)) -> 1 | CW44: =MyXor(CC44,VLOOKUP(CV44,'Таблица CRC'!$A$43:$C$298,3,FALSE)) -> 94 | CX44: =MyXor(CD44,VLOOKUP(CW44,'Таблица CRC'!$A$43:$C$298,3,FALSE)) -> 68 | CY44: =MyXor(CE44,VLOOKUP(CX44,'Таблица CRC'!$A$43:$C$298,3,FALSE)) -> 167 | CZ44: =MyXor(CF44,VLOOKUP(CY44,'Таблица CRC'!$A$43:$C$298,3,FALSE)) -> 44 | DO44: =CONCATENATE(DEC2HEX(CA44,2)," ",DEC2HEX(CB44,2)," ",DEC2HEX(CC44,2)," ",DEC2HEX(CD44,2)," ",DEC2HEX(CE44,2)," ",DEC2HEX(CZ44,2)) -> 64 05 00 80 80 2C
A45: zapros.s 182,113,46, | D45: zapros.s 182 | E45: 113 | F45: 46 | AK45: E4 06 1F B2 B3 4B 09 | AL45: E4 | AM45: 6 | AN45: 1F | AO45: B2 | AP45: B3 | AQ45: 4B | AR45: 9 | BF45: 228 | BG45: 6 | BH45: 31 | BI45: 178 | BJ45: 179 | BK45: 75 | BL45: 9 | BM45: 0 | BN45: 0 | BO45: 0 | BP45: 0 | BQ45: 0 | BR45: 0 | BS45: 0 | BT45: 0 | BU45: 0 | BV45: 0 | BW45: 0 | BX45: 0 | BY45: 0 | BZ45: 179 | CA45: 100 | CB45: 6 | CC45: 0 | CD45: 1 | CE45: 0 | CF45: 248 | CU45: 100 | CV45: =MyXor(CB45,VLOOKUP(CU45,'Таблица CRC'!$A$43:$C$298,3,FALSE)) -> 2 | CW45: =MyXor(CC45,VLOOKUP(CV45,'Таблица CRC'!$A$43:$C$298,3,FALSE)) -> 188 | CX45: =MyXor(CD45,VLOOKUP(CW45,'Таблица CRC'!$A$43:$C$298,3,FALSE)) -> 144 | CY45: =MyXor(CE45,VLOOKUP(CX45,'Таблица CRC'!$A$43:$C$298,3,FALSE)) -> 17 | CZ45: =MyXor(CF45,VLOOKUP(CY45,'Таблица CRC'!$A$43:$C$298,3,FALSE)) -> 59 | DA45: =MyXor(CG45,VLOOKUP(CZ45,'Таблица CRC'!$A$43:$C$298,3,FALSE)) -> 158 | DO45: 64 06 00 01 00 F8 9E
A46: 228,6,136,37,36,220,3, | C46: =MyXor(F46,$C$1) -> 36 | D46: 228 | E46: 6 | F46: 136 | G46: 37 | H46: 36 | I46: 220 | J46: 3 | N46: =IF(D46>127,D46-128,D46) -> 100 | O46: =E46 -> 6 | P46: =MyXor(F46,$B48) -> 172 | Q46: 1 | R46: 0 | S46: 248 | T46: 39 | U46: 36 | V46: 36 | W46: 36 | Y46: 100 | Z46: 6 | AA46: 0 | AB46: 1 | AC46: 0 | AD46: 248 | AK46: E4 09 BD B4 B4 B3 B3 B3 B3 27 | AL46: E4 | AM46: 9 | AN46: BD | AO46: B4 | AP46: B4 | AQ46: B3 | AR46: B3 | AS46: B3 | AT46: B3 | AU46: 27 | BF46: 228 | BG46: 9 | BH46: 189 | BI46: 180 | BJ46: 180 | BK46: 179 | BL46: 179 | BM46: 179 | BN46: 179 | BO46: 39 | BP46: 0 | BQ46: 0 | BR46: 0 | BS46: 0 | BT46: 0 | BU46: 0 | BV46: 0 | BW46: 0 | BX46: 0 | BY46: 0 | BZ46: 17 | CA46: 100 | CB46: 9 | CC46: 0 | CD46: 165 | CE46: 165 | CF46: 162 | CG46: 162 | CH46: 162 | CI46: 162 | CU46: 100 | CV46: =MyXor(CB46,VLOOKUP(CU46,'Таблица CRC'!$A$43:$C$298,3,FALSE)) -> 13 | CW46: =MyXor(CC46,VLOOKUP(CV46,'Таблица CRC'!$A$43:$C$298,3,FALSE)) -> 253 | CX46: =MyXor(CD46,VLOOKUP(CW46,'Таблица CRC'!$A$43:$C$298,3,FALSE)) -> 44 | CY46: =MyXor(CE46,VLOOKUP(CX46,'Таблица CRC'!$A$43:$C$298,3,FALSE)) -> 37 | CZ46: =MyXor(CF46,VLOOKUP(CY46,'Таблица CRC'!$A$43:$C$298,3,FALSE)) -> 190 | DA46: =MyXor(CG46,VLOOKUP(CZ46,'Таблица CRC'!$A$43:$C$298,3,FALSE)) -> 143 | DB46: =MyXor(CH46,VLOOKUP(DA46,'Таблица CRC'!$A$43:$C$298,3,FALSE)) -> 111 | DC46: =MyXor(CI46,VLOOKUP(DB46,'Таблица CRC'!$A$43:$C$298,3,FALSE)) -> 134 | DD46: =MyXor(CJ46,VLOOKUP(DC46,'Таблица CRC'!$A$43:$C$298,3,FALSE)) -> 81 | DO46: =CONCATENATE(DEC2HEX(CA46,2)," ",DEC2HEX(CB46,2)," ",DEC2HEX(CC46,2)," ",DEC2HEX(CD46,2)," ",DEC2HEX(CE46,2)," ",DEC2HEX(CF46,2)," ",DEC2HEX(CG46,2)," ",DEC2HEX(CH46,2)," ",DEC2HEX(CI46,2)," ",DEC2HEX(DD46,2)) -> 64 09 00 A5 A5 A2 A2 A2 A2 51
A47: Принято в обработку | D47: Принято в обработку | Y47: =MyXor(Y46,0) -> 100 | Z47: =MyXor(Z46,VLOOKUP(Y47,'Таблица CRC'!$A$43:$C$298,3,FALSE)) -> 2 | AA47: =MyXor(AA46,VLOOKUP(Z47,'Таблица CRC'!$A$43:$C$298,3,FALSE)) -> 188 | AB47: =MyXor(AB46,VLOOKUP(AA47,'Таблица CRC'!$A$43:$C$298,3,FALSE)) -> 144 | AC47: =MyXor(AC46,VLOOKUP(AB47,'Таблица CRC'!$A$43:$C$298,3,FALSE)) -> 17 | AD47: =MyXor(AD46,VLOOKUP(AC47,'Таблица CRC'!$A$43:$C$298,3,FALSE)) -> 59 | AE47: =MyXor(AE46,VLOOKUP(AD47,'Таблица CRC'!$A$43:$C$298,3,FALSE)) -> 158 | AK47: E4 06 1F B0 B3 B3 F0 | AL47: E4 | AM47: 6 | AN47: 1F | AO47: B0 | AP47: B3 | AQ47: B3 | AR47: F0 | BF47: 228 | BG47: 6 | BH47: 31 | BI47: 176 | BJ47: 179 | BK47: 179 | BL47: 240 | BM47: 0 | BN47: 0 | BO47: 0 | BP47: 0 | BQ47: 0 | BR47: 0 | BS47: 0 | BT47: 0 | BU47: 0 | BV47: 0 | BW47: 0 | BX47: 0 | BY47: 0 | BZ47: 179 | CA47: 100 | CB47: 6 | CC47: 0 | CD47: 3 | CE47: 0 | CF47: 0 | CU47: 100 | CV47: =MyXor(CB47,VLOOKUP(CU47,'Таблица CRC'!$A$43:$C$298,3,FALSE)) -> 2 | CW47: =MyXor(CC47,VLOOKUP(CV47,'Таблица CRC'!$A$43:$C$298,3,FALSE)) -> 188 | CX47: =MyXor(CD47,VLOOKUP(CW47,'Таблица CRC'!$A$43:$C$298,3,FALSE)) -> 146 | CY47: =MyXor(CE47,VLOOKUP(CX47,'Таблица CRC'!$A$43:$C$298,3,FALSE)) -> 173 | CZ47: =MyXor(CF47,VLOOKUP(CY47,'Таблица CRC'!$A$43:$C$298,3,FALSE)) -> 82 | DA47: =MyXor(CG47,VLOOKUP(CZ47,'Таблица CRC'!$A$43:$C$298,3,FALSE)) -> 103 | DO47: 64 06 00 03 00 00 67
A48: ключ шифрования-36 | B48: 36 | D48: ключ шифрования-36 | Y48: =DEC2HEX(Y46,2) -> 64 | Z48: =DEC2HEX(Z46,2) -> 06 | AA48: 00 | AB48: 01 | AC48: 00 | AD48: F8 | AE48: =DEC2HEX(AE47,2) -> 9E | AI48: =CONCATENATE(Y48," ",Z48," ",AA48," ",AB48," ",AC48," ",AD48," ",AE48," ",AF48," ",AG48," ",AH48) -> 64 06 00 01 00 F8 9E | AJ48: 64 0C 0C CB 00 00 00 00 00 01 01 05 44 | AK48: E4 08 23 A4 8B 88 8F 8E FA | AL48: E4 | AM48: 8 | AN48: 23 | AO48: A4 | AP48: 8B | AQ48: 88 | AR48: 8F | AS48: 8E | AT48: FA | BF48: 228 | BG48: 8 | BH48: 35 | BI48: 164 | BJ48: 139 | BK48: 136 | BL48: 143 | BM48: 142 | BN48: 250 | BO48: 0 | BP48: 0 | BQ48: 0 | BR48: 0 | BS48: 0 | BT48: 0 | BU48: 0 | BV48: 0 | BW48: 0 | BX48: 0 | BY48: 0 | BZ48: 143 | CA48: 100 | CB48: 8 | CC48: 0 | CD48: 43 | CE48: 4 | CF48: 7 | CG48: 0 | CH48: 1 | CU48: 100 | CV48: =MyXor(CB48,VLOOKUP(CU48,'Таблица CRC'!$A$43:$C$298,3,FALSE)) -> 12 | CW48: =MyXor(CC48,VLOOKUP(CV48,'Таблица CRC'!$A$43:$C$298,3,FALSE)) -> 163 | CX48: =MyXor(CD48,VLOOKUP(CW48,'Таблица CRC'!$A$43:$C$298,3,FALSE)) -> 102 | CY48: =MyXor(CE48,VLOOKUP(CX48,'Таблица CRC'!$A$43:$C$298,3,FALSE)) -> 188 | CZ48: =MyXor(CF48,VLOOKUP(CY48,'Таблица CRC'!$A$43:$C$298,3,FALSE)) -> 150 | DA48: =MyXor(CG48,VLOOKUP(CZ48,'Таблица CRC'!$A$43:$C$298,3,FALSE)) -> 204 | DB48: =MyXor(CH48,VLOOKUP(DA48,'Таблица CRC'!$A$43:$C$298,3,FALSE)) -> 104 | DC48: =MyXor(CI48,VLOOKUP(DB48,'Таблица CRC'!$A$43:$C$298,3,FALSE)) -> 167 | DO48: =CONCATENATE(DEC2HEX(CA48,2)," ",DEC2HEX(CB48,2)," ",DEC2HEX(CC48,2)," ",DEC2HEX(CD48,2)," ",DEC2HEX(CE48,2)," ",DEC2HEX(CF48,2)," ",DEC2HEX(CG48,2)," ",DEC2HEX(CH48,2)," ",DEC2HEX(DC48,2)) -> 64 08 00 2B 04 07 00 01 A7
A49: zapros.s 1,0,248, | D49: zapros.s 1 | E49: 0 | F49: 248 | AK49: E4 05 A3 8F 8F AC | AL49: E4 | AM49: 5 | AN49: A3 | AO49: 8F | AP49: 8F | AQ49: AC | BF49: 228 | BG49: 5 | BH49: 163 | BI49: 143 | BJ49: 143 | BK49: 172 | BL49: 0 | BM49: 0 | BN49: 0 | BO49: 0 | BP49: 0 | BQ49: 0 | BR49: 0 | BS49: 0 | BT49: 0 | BU49: 0 | BV49: 0 | BW49: 0 | BX49: 0 | BY49: 0 | BZ49: 15 | CA49: 100 | CB49: 5 | CC49: 0 | CD49: 128 | CE49: 128 | CU49: 100 | CV49: =MyXor(CB49,VLOOKUP(CU49,'Таблица CRC'!$A$43:$C$298,3,FALSE)) -> 1 | CW49: =MyXor(CC49,VLOOKUP(CV49,'Таблица CRC'!$A$43:$C$298,3,FALSE)) -> 94 | CX49: =MyXor(CD49,VLOOKUP(CW49,'Таблица CRC'!$A$43:$C$298,3,FALSE)) -> 68 | CY49: =MyXor(CE49,VLOOKUP(CX49,'Таблица CRC'!$A$43:$C$298,3,FALSE)) -> 167 | CZ49: =MyXor(CF49,VLOOKUP(CY49,'Таблица CRC'!$A$43:$C$298,3,FALSE)) -> 44 | DO49: =CONCATENATE(DEC2HEX(CA49,2)," ",DEC2HEX(CB49,2)," ",DEC2HEX(CC49,2)," ",DEC2HEX(CD49,2)," ",DEC2HEX(CE49,2)," ",DEC2HEX(CZ49,2)) -> 64 05 00 80 80 2C
A50: ОТВЕТ ЭМУЛЯТОРА 38,39,36, | D50: ОТВЕТ ЭМУЛЯТОРА 38 | E50: 39 | F50: 36 | AK50: E4 06 92 3F 3E C6 FC | AL50: E4 | AM50: 6 | AN50: 92 | AO50: 3F | AP50: 3E | AQ50: C6 | AR50: FC | BF50: 228 | BG50: 6 | BH50: 146 | BI50: 63 | BJ50: 62 | BK50: 198 | BL50: 252 | BM50: 0 | BN50: 0 | BO50: 0 | BP50: 0 | BQ50: 0 | BR50: 0 | BS50: 0 | BT50: 0 | BU50: 0 | BV50: 0 | BW50: 0 | BX50: 0 | BY50: 0 | BZ50: 62 | CA50: 100 | CB50: 6 | CC50: 0 | CD50: 1 | CE50: 0 | CF50: 248 | CU50: 100 | CV50: =MyXor(CB50,VLOOKUP(CU50,'Таблица CRC'!$A$43:$C$298,3,FALSE)) -> 2 | CW50: =MyXor(CC50,VLOOKUP(CV50,'Таблица CRC'!$A$43:$C$298,3,FALSE)) -> 188 | CX50: =MyXor(CD50,VLOOKUP(CW50,'Таблица CRC'!$A$43:$C$298,3,FALSE)) -> 144 | CY50: =MyXor(CE50,VLOOKUP(CX50,'Таблица CRC'!$A$43:$C$298,3,FALSE)) -> 17 | CZ50: =MyXor(CF50,VLOOKUP(CY50,'Таблица CRC'!$A$43:$C$298,3,FALSE)) -> 59 | DA50: =MyXor(CG50,VLOOKUP(CZ50,'Таблица CRC'!$A$43:$C$298,3,FALSE)) -> 158 | DO50: 64 06 00 01 00 F8 9E
A51: 228,9,42,35,37,36,36,36,36,188, | C51: =MyXor(F51,$C$1) -> 134 | D51: 228 | E51: 9 | F51: 42 | G51: 35 | H51: 37 | I51: 36 | J51: 36 | K51: 36 | L51: 36 | M51: 188 | N51: =IF(D51>127,D51-128,D51) -> 100 | O51: =E51 -> 9 | P51: =MyXor(F51,$B53) -> 172 | Q51: 165 | R51: 163 | S51: 162 | T51: 162 | U51: 162 | V51: 162 | W51: 58 | Y51: 100 | Z51: 9 | AA51: 0 | AB51: 165 | AC51: 163 | AD51: 162 | AE51: 162 | AF51: 162 | AG51: 162 | AK51: E4 09 30 39 36 3E 3E 3E 3E 81 | AL51: E4 | AM51: 9 | AN51: 30 | AO51: 39 | AP51: 36 | AQ51: 3E | AR51: 3E | AS51: 3E | AT51: 3E | AU51: 81 | BF51: 228 | BG51: 9 | BH51: 48 | BI51: 57 | BJ51: 54 | BK51: 62 | BL51: 62 | BM51: 62 | BN51: 62 | BO51: 129 | BP51: 0 | BQ51: 0 | BR51: 0 | BS51: 0 | BT51: 0 | BU51: 0 | BV51: 0 | BW51: 0 | BX51: 0 | BY51: 0 | BZ51: 156 | CA51: 100 | CB51: 9 | CC51: 0 | CD51: 165 | CE51: 170 | CF51: 162 | CG51: 162 | CH51: 162 | CI51: 162 | CU51: 100 | CV51: =MyXor(CB51,VLOOKUP(CU51,'Таблица CRC'!$A$43:$C$298,3,FALSE)) -> 13 | CW51: =MyXor(CC51,VLOOKUP(CV51,'Таблица CRC'!$A$43:$C$298,3,FALSE)) -> 253 | CX51: =MyXor(CD51,VLOOKUP(CW51,'Таблица CRC'!$A$43:$C$298,3,FALSE)) -> 44 | CY51: =MyXor(CE51,VLOOKUP(CX51,'Таблица CRC'!$A$43:$C$298,3,FALSE)) -> 42 | CZ51: =MyXor(CF51,VLOOKUP(CY51,'Таблица CRC'!$A$43:$C$298,3,FALSE)) -> 255 | DA51: =MyXor(CG51,VLOOKUP(CZ51,'Таблица CRC'!$A$43:$C$298,3,FALSE)) -> 151 | DB51: =MyXor(CH51,VLOOKUP(DA51,'Таблица CRC'!$A$43:$C$298,3,FALSE)) -> 48 | DC51: =MyXor(CI51,VLOOKUP(DB51,'Таблица CRC'!$A$43:$C$298,3,FALSE)) -> 28 | DD51: =MyXor(CJ51,VLOOKUP(DC51,'Таблица CRC'!$A$43:$C$298,3,FALSE)) -> 62 | DO51: =CONCATENATE(DEC2HEX(CA51,2)," ",DEC2HEX(CB51,2)," ",DEC2HEX(CC51,2)," ",DEC2HEX(CD51,2)," ",DEC2HEX(CE51,2)," ",DEC2HEX(CF51,2)," ",DEC2HEX(CG51,2)," ",DEC2HEX(CH51,2)," ",DEC2HEX(CI51,2)," ",DEC2HEX(DD51,2)) -> 64 09 00 A5 AA A2 A2 A2 A2 3E
A52: Принято в обработку | D52: Принято в обработку | Y52: =MyXor(Y51,0) -> 100 | Z52: =MyXor(Z51,VLOOKUP(Y52,'Таблица CRC'!$A$43:$C$298,3,FALSE)) -> 13 | AA52: =MyXor(AA51,VLOOKUP(Z52,'Таблица CRC'!$A$43:$C$298,3,FALSE)) -> 253 | AB52: =MyXor(AB51,VLOOKUP(AA52,'Таблица CRC'!$A$43:$C$298,3,FALSE)) -> 44 | AC52: =MyXor(AC51,VLOOKUP(AB52,'Таблица CRC'!$A$43:$C$298,3,FALSE)) -> 35 | AD52: =MyXor(AD51,VLOOKUP(AC52,'Таблица CRC'!$A$43:$C$298,3,FALSE)) -> 99 | AE52: =MyXor(AE51,VLOOKUP(AD52,'Таблица CRC'!$A$43:$C$298,3,FALSE)) -> 37 | AF52: =MyXor(AF51,VLOOKUP(AE52,'Таблица CRC'!$A$43:$C$298,3,FALSE)) -> 190 | AG52: =MyXor(AG51,VLOOKUP(AF52,'Таблица CRC'!$A$43:$C$298,3,FALSE)) -> 143 | AH52: =MyXor(AH51,VLOOKUP(AG52,'Таблица CRC'!$A$43:$C$298,3,FALSE)) -> 205 | AK52: E4 06 92 3D 3E 3E 11 | AL52: E4 | AM52: 6 | AN52: 92 | AO52: 3D | AP52: 3E | AQ52: 3E | AR52: 11 | BF52: 228 | BG52: 6 | BH52: 146 | BI52: 61 | BJ52: 62 | BK52: 62 | BL52: 17 | BM52: 0 | BN52: 0 | BO52: 0 | BP52: 0 | BQ52: 0 | BR52: 0 | BS52: 0 | BT52: 0 | BU52: 0 | BV52: 0 | BW52: 0 | BX52: 0 | BY52: 0 | BZ52: 62 | CA52: 100 | CB52: 6 | CC52: 0 | CD52: 3 | CE52: 0 | CF52: 0 | CU52: 100 | CV52: =MyXor(CB52,VLOOKUP(CU52,'Таблица CRC'!$A$43:$C$298,3,FALSE)) -> 2 | CW52: =MyXor(CC52,VLOOKUP(CV52,'Таблица CRC'!$A$43:$C$298,3,FALSE)) -> 188 | CX52: =MyXor(CD52,VLOOKUP(CW52,'Таблица CRC'!$A$43:$C$298,3,FALSE)) -> 146 | CY52: =MyXor(CE52,VLOOKUP(CX52,'Таблица CRC'!$A$43:$C$298,3,FALSE)) -> 173 | CZ52: =MyXor(CF52,VLOOKUP(CY52,'Таблица CRC'!$A$43:$C$298,3,FALSE)) -> 82 | DA52: =MyXor(CG52,VLOOKUP(CZ52,'Таблица CRC'!$A$43:$C$298,3,FALSE)) -> 103 | DO52: 64 06 00 03 00 00 67
A53: ключ шифрования-134 | B53: 134 | D53: ключ шифрования-134 | Y53: =DEC2HEX(Y51,2) -> 64 | Z53: =DEC2HEX(Z51,2) -> 09 | AA53: 00 | AB53: A5 | AC53: A3 | AD53: A2 | AE53: A2 | AF53: A2 | AG53: A2 | AH53: =DEC2HEX(AH52,2) -> CD | AI53: =CONCATENATE(Y53," ",Z53," ",AA53," ",AB53," ",AC53," ",AD53," ",AE53," ",AF53," ",AG53," ",AH53) -> 64 09 00 A5 A3 A2 A2 A2 A2 CD | AJ53: 64 05 0A 00 00 E5 | AK53: E4 08 BC 3B 14 18 10 11 6F | AL53: E4 | AM53: 8 | AN53: BC | AO53: 3B | AP53: 14 | AQ53: 18 | AR53: 10 | AS53: 11 | AT53: 6F | BF53: 228 | BG53: 8 | BH53: 188 | BI53: 59 | BJ53: 20 | BK53: 24 | BL53: 16 | BM53: 17 | BN53: 111 | BO53: 0 | BP53: 0 | BQ53: 0 | BR53: 0 | BS53: 0 | BT53: 0 | BU53: 0 | BV53: 0 | BW53: 0 | BX53: 0 | BY53: 0 | BZ53: 16 | CA53: 100 | CB53: 8 | CC53: 0 | CD53: 43 | CE53: 4 | CF53: 8 | CG53: 0 | CH53: 1 | CU53: 100 | CV53: =MyXor(CB53,VLOOKUP(CU53,'Таблица CRC'!$A$43:$C$298,3,FALSE)) -> 12 | CW53: =MyXor(CC53,VLOOKUP(CV53,'Таблица CRC'!$A$43:$C$298,3,FALSE)) -> 163 | CX53: =MyXor(CD53,VLOOKUP(CW53,'Таблица CRC'!$A$43:$C$298,3,FALSE)) -> 102 | CY53: =MyXor(CE53,VLOOKUP(CX53,'Таблица CRC'!$A$43:$C$298,3,FALSE)) -> 188 | CZ53: =MyXor(CF53,VLOOKUP(CY53,'Таблица CRC'!$A$43:$C$298,3,FALSE)) -> 153 | DA53: =MyXor(CG53,VLOOKUP(CZ53,'Таблица CRC'!$A$43:$C$298,3,FALSE)) -> 141 | DB53: =MyXor(CH53,VLOOKUP(DA53,'Таблица CRC'!$A$43:$C$298,3,FALSE)) -> 112 | DC53: =MyXor(CI53,VLOOKUP(DB53,'Таблица CRC'!$A$43:$C$298,3,FALSE)) -> 248 | DO53: =CONCATENATE(DEC2HEX(CA53,2)," ",DEC2HEX(CB53,2)," ",DEC2HEX(CC53,2)," ",DEC2HEX(CD53,2)," ",DEC2HEX(CE53,2)," ",DEC2HEX(CF53,2)," ",DEC2HEX(CG53,2)," ",DEC2HEX(CH53,2)," ",DEC2HEX(DC53,2)) -> 64 08 00 2B 04 08 00 01 F8
A54: zapros.s 165,163,162, | D54: zapros.s 165 | E54: 163 | F54: 162 | AK54: E4 05 3C 10 10 50 | AL54: E4 | AM54: 5 | AN54: 3C | AO54: 10 | AP54: 10 | AQ54: 50 | BF54: 228 | BG54: 5 | BH54: 60 | BI54: 16 | BJ54: 16 | BK54: 80 | BL54: 0 | BM54: 0 | BN54: 0 | BO54: 0 | BP54: 0 | BQ54: 0 | BR54: 0 | BS54: 0 | BT54: 0 | BU54: 0 | BV54: 0 | BW54: 0 | BX54: 0 | BY54: 0 | BZ54: 144 | CA54: 100 | CB54: 5 | CC54: 0 | CD54: 128 | CE54: 128 | CU54: 100 | CV54: =MyXor(CB54,VLOOKUP(CU54,'Таблица CRC'!$A$43:$C$298,3,FALSE)) -> 1 | CW54: =MyXor(CC54,VLOOKUP(CV54,'Таблица CRC'!$A$43:$C$298,3,FALSE)) -> 94 | CX54: =MyXor(CD54,VLOOKUP(CW54,'Таблица CRC'!$A$43:$C$298,3,FALSE)) -> 68 | CY54: =MyXor(CE54,VLOOKUP(CX54,'Таблица CRC'!$A$43:$C$298,3,FALSE)) -> 167 | CZ54: =MyXor(CF54,VLOOKUP(CY54,'Таблица CRC'!$A$43:$C$298,3,FALSE)) -> 44 | DO54: =CONCATENATE(DEC2HEX(CA54,2)," ",DEC2HEX(CB54,2)," ",DEC2HEX(CC54,2)," ",DEC2HEX(CD54,2)," ",DEC2HEX(CE54,2)," ",DEC2HEX(CZ54,2)) -> 64 05 00 80 80 2C
A55: 228,6,136,39,36,36,250, | C55: =MyXor(F55,$C$1) -> 36 | D55: 228 | E55: 6 | F55: 136 | G55: 39 | H55: 36 | I55: 36 | J55: 250 | N55: =IF(D55>127,D55-128,D55) -> 100 | O55: =E55 -> 6 | P55: =MyXor(F55,$B57) -> 172 | Q55: 3 | R55: 0 | S55: 0 | T55: 222 | U55: 36 | V55: 36 | W55: 36 | Y55: 100 | Z55: 6 | AA55: 0 | AB55: 3 | AC55: 0 | AD55: 0 | AK55: E4 06 6D C0 C1 39 65 | AL55: E4 | AM55: 6 | AN55: 6D | AO55: C0 | AP55: C1 | AQ55: 39 | AR55: 65 | BF55: 228 | BG55: 6 | BH55: 109 | BI55: 192 | BJ55: 193 | BK55: 57 | BL55: 101 | BM55: 0 | BN55: 0 | BO55: 0 | BP55: 0 | BQ55: 0 | BR55: 0 | BS55: 0 | BT55: 0 | BU55: 0 | BV55: 0 | BW55: 0 | BX55: 0 | BY55: 0 | BZ55: 193 | CA55: 100 | CB55: 6 | CC55: 0 | CD55: 1 | CE55: 0 | CF55: 248 | CU55: 100 | CV55: =MyXor(CB55,VLOOKUP(CU55,'Таблица CRC'!$A$43:$C$298,3,FALSE)) -> 2 | CW55: =MyXor(CC55,VLOOKUP(CV55,'Таблица CRC'!$A$43:$C$298,3,FALSE)) -> 188 | CX55: =MyXor(CD55,VLOOKUP(CW55,'Таблица CRC'!$A$43:$C$298,3,FALSE)) -> 144 | CY55: =MyXor(CE55,VLOOKUP(CX55,'Таблица CRC'!$A$43:$C$298,3,FALSE)) -> 17 | CZ55: =MyXor(CF55,VLOOKUP(CY55,'Таблица CRC'!$A$43:$C$298,3,FALSE)) -> 59 | DA55: =MyXor(CG55,VLOOKUP(CZ55,'Таблица CRC'!$A$43:$C$298,3,FALSE)) -> 158 | DO55: 64 06 00 01 00 F8 9E
A56: Принято в обработку | D56: Принято в обработку | Y56: =MyXor(Y55,0) -> 100 | Z56: =MyXor(Z55,VLOOKUP(Y56,'Таблица CRC'!$A$43:$C$298,3,FALSE)) -> 2 | AA56: =MyXor(AA55,VLOOKUP(Z56,'Таблица CRC'!$A$43:$C$298,3,FALSE)) -> 188 | AB56: =MyXor(AB55,VLOOKUP(AA56,'Таблица CRC'!$A$43:$C$298,3,FALSE)) -> 146 | AC56: =MyXor(AC55,VLOOKUP(AB56,'Таблица CRC'!$A$43:$C$298,3,FALSE)) -> 173 | AD56: =MyXor(AD55,VLOOKUP(AC56,'Таблица CRC'!$A$43:$C$298,3,FALSE)) -> 82 | AE56: =MyXor(AE55,VLOOKUP(AD56,'Таблица CRC'!$A$43:$C$298,3,FALSE)) -> 103 | AK56: E4 09 CF C6 C8 C1 C1 C1 C1 58 | AL56: E4 | AM56: 9 | AN56: CF | AO56: C6 | AP56: C8 | AQ56: C1 | AR56: C1 | AS56: C1 | AT56: C1 | AU56: 58 | BF56: 228 | BG56: 9 | BH56: 207 | BI56: 198 | BJ56: 200 | BK56: 193 | BL56: 193 | BM56: 193 | BN56: 193 | BO56: 88 | BP56: 0 | BQ56: 0 | BR56: 0 | BS56: 0 | BT56: 0 | BU56: 0 | BV56: 0 | BW56: 0 | BX56: 0 | BY56: 0 | BZ56: 99 | CA56: 100 | CB56: 9 | CC56: 0 | CD56: 165 | CE56: 171 | CF56: 162 | CG56: 162 | CH56: 162 | CI56: 162 | CU56: 100 | CV56: =MyXor(CB56,VLOOKUP(CU56,'Таблица CRC'!$A$43:$C$298,3,FALSE)) -> 13 | CW56: =MyXor(CC56,VLOOKUP(CV56,'Таблица CRC'!$A$43:$C$298,3,FALSE)) -> 253 | CX56: =MyXor(CD56,VLOOKUP(CW56,'Таблица CRC'!$A$43:$C$298,3,FALSE)) -> 44 | CY56: =MyXor(CE56,VLOOKUP(CX56,'Таблица CRC'!$A$43:$C$298,3,FALSE)) -> 43 | CZ56: =MyXor(CF56,VLOOKUP(CY56,'Таблица CRC'!$A$43:$C$298,3,FALSE)) -> 161 | DA56: =MyXor(CG56,VLOOKUP(CZ56,'Таблица CRC'!$A$43:$C$298,3,FALSE)) -> 83 | DB56: =MyXor(CH56,VLOOKUP(DA56,'Таблица CRC'!$A$43:$C$298,3,FALSE)) -> 155 | DC56: =MyXor(CI56,VLOOKUP(DB56,'Таблица CRC'!$A$43:$C$298,3,FALSE)) -> 147 | DD56: =MyXor(CJ56,VLOOKUP(DC56,'Таблица CRC'!$A$43:$C$298,3,FALSE)) -> 243 | DO56: =CONCATENATE(DEC2HEX(CA56,2)," ",DEC2HEX(CB56,2)," ",DEC2HEX(CC56,2)," ",DEC2HEX(CD56,2)," ",DEC2HEX(CE56,2)," ",DEC2HEX(CF56,2)," ",DEC2HEX(CG56,2)," ",DEC2HEX(CH56,2)," ",DEC2HEX(CI56,2)," ",DEC2HEX(DD56,2)) -> 64 09 00 A5 AB A2 A2 A2 A2 F3
A57: ключ шифрования-36 | B57: 36 | D57: ключ шифрования-36 | Y57: =DEC2HEX(Y55,2) -> 64 | Z57: =DEC2HEX(Z55,2) -> 06 | AA57: 00 | AB57: 03 | AC57: 00 | AD57: 00 | AE57: =DEC2HEX(AE56,2) -> 67 | AI57: =CONCATENATE(Y57," ",Z57," ",AA57," ",AB57," ",AC57," ",AD57," ",AE57," ",AF57," ",AG57," ",AH57) -> 64 06 00 03 00 00 67 | AK57: E4 06 6D C2 C1 C1 9C | AL57: E4 | AM57: 6 | AN57: 6D | AO57: C2 | AP57: C1 | AQ57: C1 | AR57: 9C | BF57: 228 | BG57: 6 | BH57: 109 | BI57: 194 | BJ57: 193 | BK57: 193 | BL57: 156 | BM57: 0 | BN57: 0 | BO57: 0 | BP57: 0 | BQ57: 0 | BR57: 0 | BS57: 0 | BT57: 0 | BU57: 0 | BV57: 0 | BW57: 0 | BX57: 0 | BY57: 0 | BZ57: 193 | CA57: 100 | CB57: 6 | CC57: 0 | CD57: 3 | CE57: 0 | CF57: 0 | CU57: 100 | CV57: =MyXor(CB57,VLOOKUP(CU57,'Таблица CRC'!$A$43:$C$298,3,FALSE)) -> 2 | CW57: =MyXor(CC57,VLOOKUP(CV57,'Таблица CRC'!$A$43:$C$298,3,FALSE)) -> 188 | CX57: =MyXor(CD57,VLOOKUP(CW57,'Таблица CRC'!$A$43:$C$298,3,FALSE)) -> 146 | CY57: =MyXor(CE57,VLOOKUP(CX57,'Таблица CRC'!$A$43:$C$298,3,FALSE)) -> 173 | CZ57: =MyXor(CF57,VLOOKUP(CY57,'Таблица CRC'!$A$43:$C$298,3,FALSE)) -> 82 | DA57: =MyXor(CG57,VLOOKUP(CZ57,'Таблица CRC'!$A$43:$C$298,3,FALSE)) -> 103 | DO57: 64 06 00 03 00 00 67
A58: zapros.s 3,0,0, | D58: zapros.s 3 | E58: 0 | F58: 0 | AK58: E4 08 97 10 3F 32 3B 3A 52 | AL58: E4 | AM58: 8 | AN58: 97 | AO58: 10 | AP58: 3F | AQ58: 32 | AR58: 3B | AS58: 3A | AT58: 52 | BF58: 228 | BG58: 8 | BH58: 151 | BI58: 16 | BJ58: 63 | BK58: 50 | BL58: 59 | BM58: 58 | BN58: 82 | BO58: 0 | BP58: 0 | BQ58: 0 | BR58: 0 | BS58: 0 | BT58: 0 | BU58: 0 | BV58: 0 | BW58: 0 | BX58: 0 | BY58: 0 | BZ58: 59 | CA58: 100 | CB58: 8 | CC58: 0 | CD58: 43 | CE58: 4 | CF58: 9 | CG58: 0 | CH58: 1 | CU58: 100 | CV58: =MyXor(CB58,VLOOKUP(CU58,'Таблица CRC'!$A$43:$C$298,3,FALSE)) -> 12 | CW58: =MyXor(CC58,VLOOKUP(CV58,'Таблица CRC'!$A$43:$C$298,3,FALSE)) -> 163 | CX58: =MyXor(CD58,VLOOKUP(CW58,'Таблица CRC'!$A$43:$C$298,3,FALSE)) -> 102 | CY58: =MyXor(CE58,VLOOKUP(CX58,'Таблица CRC'!$A$43:$C$298,3,FALSE)) -> 188 | CZ58: =MyXor(CF58,VLOOKUP(CY58,'Таблица CRC'!$A$43:$C$298,3,FALSE)) -> 152 | DA58: =MyXor(CG58,VLOOKUP(CZ58,'Таблица CRC'!$A$43:$C$298,3,FALSE)) -> 211 | DB58: =MyXor(CH58,VLOOKUP(DA58,'Таблица CRC'!$A$43:$C$298,3,FALSE)) -> 180 | DC58: =MyXor(CI58,VLOOKUP(DB58,'Таблица CRC'!$A$43:$C$298,3,FALSE)) -> 83 | DO58: =CONCATENATE(DEC2HEX(CA58,2)," ",DEC2HEX(CB58,2)," ",DEC2HEX(CC58,2)," ",DEC2HEX(CD58,2)," ",DEC2HEX(CE58,2)," ",DEC2HEX(CF58,2)," ",DEC2HEX(CG58,2)," ",DEC2HEX(CH58,2)," ",DEC2HEX(DC58,2)) -> 64 08 00 2B 04 09 00 01 53
A59: 228,6,238,91,66,66,127, | C59: =MyXor(F59,$C$1) -> 66 | D59: 228 | E59: 6 | F59: 238 | G59: 91 | H59: 66 | I59: 66 | J59: 127 | N59: =IF(D59>127,D59-128,D59) -> 100 | O59: =E59 -> 6 | P59: =MyXor(F59,$B61) -> 172 | Q59: 25 | R59: 0 | S59: 0 | T59: 61 | U59: 66 | V59: 66 | W59: 66 | Y59: 100 | Z59: 6 | AA59: 0 | AB59: 25 | AC59: 0 | AD59: 0 | AK59: E4 05 17 3B 3B E4 | AL59: E4 | AM59: 5 | AN59: 17 | AO59: 3B | AP59: 3B | AQ59: E4 | BF59: 228 | BG59: 5 | BH59: 23 | BI59: 59 | BJ59: 59 | BK59: 228 | BL59: 0 | BM59: 0 | BN59: 0 | BO59: 0 | BP59: 0 | BQ59: 0 | BR59: 0 | BS59: 0 | BT59: 0 | BU59: 0 | BV59: 0 | BW59: 0 | BX59: 0 | BY59: 0 | BZ59: 187 | CA59: 100 | CB59: 5 | CC59: 0 | CD59: 128 | CE59: 128 | CU59: 100 | CV59: =MyXor(CB59,VLOOKUP(CU59,'Таблица CRC'!$A$43:$C$298,3,FALSE)) -> 1 | CW59: =MyXor(CC59,VLOOKUP(CV59,'Таблица CRC'!$A$43:$C$298,3,FALSE)) -> 94 | CX59: =MyXor(CD59,VLOOKUP(CW59,'Таблица CRC'!$A$43:$C$298,3,FALSE)) -> 68 | CY59: =MyXor(CE59,VLOOKUP(CX59,'Таблица CRC'!$A$43:$C$298,3,FALSE)) -> 167 | CZ59: =MyXor(CF59,VLOOKUP(CY59,'Таблица CRC'!$A$43:$C$298,3,FALSE)) -> 44 | DO59: =CONCATENATE(DEC2HEX(CA59,2)," ",DEC2HEX(CB59,2)," ",DEC2HEX(CC59,2)," ",DEC2HEX(CD59,2)," ",DEC2HEX(CE59,2)," ",DEC2HEX(CZ59,2)) -> 64 05 00 80 80 2C
A60: Принято в обработку | D60: Принято в обработку | Y60: =MyXor(Y59,0) -> 100 | Z60: =MyXor(Z59,VLOOKUP(Y60,'Таблица CRC'!$A$43:$C$298,3,FALSE)) -> 2 | AA60: =MyXor(AA59,VLOOKUP(Z60,'Таблица CRC'!$A$43:$C$298,3,FALSE)) -> 188 | AB60: =MyXor(AB59,VLOOKUP(AA60,'Таблица CRC'!$A$43:$C$298,3,FALSE)) -> 136 | AC60: =MyXor(AC59,VLOOKUP(AB60,'Таблица CRC'!$A$43:$C$298,3,FALSE)) -> 78 | AD60: =MyXor(AD59,VLOOKUP(AC60,'Таблица CRC'!$A$43:$C$298,3,FALSE)) -> 89 | AE60: =MyXor(AE59,VLOOKUP(AD60,'Таблица CRC'!$A$43:$C$298,3,FALSE)) -> 71 | AK60: E4 06 66 CB CA 32 33 | AL60: E4 | AM60: 6 | AN60: 66 | AO60: CB | AP60: CA | AQ60: 32 | AR60: 33 | BF60: 228 | BG60: 6 | BH60: 102 | BI60: 203 | BJ60: 202 | BK60: 50 | BL60: 51 | BM60: 0 | BN60: 0 | BO60: 0 | BP60: 0 | BQ60: 0 | BR60: 0 | BS60: 0 | BT60: 0 | BU60: 0 | BV60: 0 | BW60: 0 | BX60: 0 | BY60: 0 | BZ60: 202 | CA60: 100 | CB60: 6 | CC60: 0 | CD60: 1 | CE60: 0 | CF60: 248 | CU60: 100 | CV60: =MyXor(CB60,VLOOKUP(CU60,'Таблица CRC'!$A$43:$C$298,3,FALSE)) -> 2 | CW60: =MyXor(CC60,VLOOKUP(CV60,'Таблица CRC'!$A$43:$C$298,3,FALSE)) -> 188 | CX60: =MyXor(CD60,VLOOKUP(CW60,'Таблица CRC'!$A$43:$C$298,3,FALSE)) -> 144 | CY60: =MyXor(CE60,VLOOKUP(CX60,'Таблица CRC'!$A$43:$C$298,3,FALSE)) -> 17 | CZ60: =MyXor(CF60,VLOOKUP(CY60,'Таблица CRC'!$A$43:$C$298,3,FALSE)) -> 59 | DA60: =MyXor(CG60,VLOOKUP(CZ60,'Таблица CRC'!$A$43:$C$298,3,FALSE)) -> 158 | DO60: 64 06 00 01 00 F8 9E
A61: ключ шифрования-66 | B61: 66 | D61: ключ шифрования-66 | Y61: =DEC2HEX(Y59,2) -> 64 | Z61: =DEC2HEX(Z59,2) -> 06 | AA61: 00 | AB61: 19 | AC61: 00 | AD61: 00 | AE61: =DEC2HEX(AE60,2) -> 47 | AI61: =CONCATENATE(Y61," ",Z61," ",AA61," ",AB61," ",AC61," ",AD61," ",AE61," ",AF61," ",AG61," ",AH61) -> 64 06 00 19 00 00 47 | AJ61: 64 06 1A 00 C7 98 A9 | AK61: E4 09 C4 CD C0 CA CA CA CA 7E | AL61: E4 | AM61: 9 | AN61: C4 | AO61: CD | AP61: C0 | AQ61: CA | AR61: CA | AS61: CA | AT61: CA | AU61: 7E | BF61: 228 | BG61: 9 | BH61: 196 | BI61: 205 | BJ61: 192 | BK61: 202 | BL61: 202 | BM61: 202 | BN61: 202 | BO61: 126 | BP61: 0 | BQ61: 0 | BR61: 0 | BS61: 0 | BT61: 0 | BU61: 0 | BV61: 0 | BW61: 0 | BX61: 0 | BY61: 0 | BZ61: 104 | CA61: 100 | CB61: 9 | CC61: 0 | CD61: 165 | CE61: 168 | CF61: 162 | CG61: 162 | CH61: 162 | CI61: 162 | CU61: 100 | CV61: =MyXor(CB61,VLOOKUP(CU61,'Таблица CRC'!$A$43:$C$298,3,FALSE)) -> 13 | CW61: =MyXor(CC61,VLOOKUP(CV61,'Таблица CRC'!$A$43:$C$298,3,FALSE)) -> 253 | CX61: =MyXor(CD61,VLOOKUP(CW61,'Таблица CRC'!$A$43:$C$298,3,FALSE)) -> 44 | CY61: =MyXor(CE61,VLOOKUP(CX61,'Таблица CRC'!$A$43:$C$298,3,FALSE)) -> 40 | CZ61: =MyXor(CF61,VLOOKUP(CY61,'Таблица CRC'!$A$43:$C$298,3,FALSE)) -> 67 | DA61: =MyXor(CG61,VLOOKUP(CZ61,'Таблица CRC'!$A$43:$C$298,3,FALSE)) -> 6 | DB61: =MyXor(CH61,VLOOKUP(DA61,'Таблица CRC'!$A$43:$C$298,3,FALSE)) -> 127 | DC61: =MyXor(CI61,VLOOKUP(DB61,'Таблица CRC'!$A$43:$C$298,3,FALSE)) -> 27 | DD61: =MyXor(CJ61,VLOOKUP(DC61,'Таблица CRC'!$A$43:$C$298,3,FALSE)) -> 189 | DO61: =CONCATENATE(DEC2HEX(CA61,2)," ",DEC2HEX(CB61,2)," ",DEC2HEX(CC61,2)," ",DEC2HEX(CD61,2)," ",DEC2HEX(CE61,2)," ",DEC2HEX(CF61,2)," ",DEC2HEX(CG61,2)," ",DEC2HEX(CH61,2)," ",DEC2HEX(CI61,2)," ",DEC2HEX(DD61,2)) -> 64 09 00 A5 A8 A2 A2 A2 A2 BD
A62: zapros.s 25,0,0, | D62: zapros.s 25 | E62: 0 | F62: 0 | AK62: E4 06 66 C9 CA CA CA | AL62: E4 | AM62: 6 | AN62: 66 | AO62: C9 | AP62: CA | AQ62: CA | AR62: CA | BF62: 228 | BG62: 6 | BH62: 102 | BI62: 201 | BJ62: 202 | BK62: 202 | BL62: 202 | BM62: 0 | BN62: 0 | BO62: 0 | BP62: 0 | BQ62: 0 | BR62: 0 | BS62: 0 | BT62: 0 | BU62: 0 | BV62: 0 | BW62: 0 | BX62: 0 | BY62: 0 | BZ62: 202 | CA62: 100 | CB62: 6 | CC62: 0 | CD62: 3 | CE62: 0 | CF62: 0 | CU62: 100 | CV62: =MyXor(CB62,VLOOKUP(CU62,'Таблица CRC'!$A$43:$C$298,3,FALSE)) -> 2 | CW62: =MyXor(CC62,VLOOKUP(CV62,'Таблица CRC'!$A$43:$C$298,3,FALSE)) -> 188 | CX62: =MyXor(CD62,VLOOKUP(CW62,'Таблица CRC'!$A$43:$C$298,3,FALSE)) -> 146 | CY62: =MyXor(CE62,VLOOKUP(CX62,'Таблица CRC'!$A$43:$C$298,3,FALSE)) -> 173 | CZ62: =MyXor(CF62,VLOOKUP(CY62,'Таблица CRC'!$A$43:$C$298,3,FALSE)) -> 82 | DA62: =MyXor(CG62,VLOOKUP(CZ62,'Таблица CRC'!$A$43:$C$298,3,FALSE)) -> 103 | DO62: 64 06 00 03 00 00 67
A63: ОТВЕТ ЭМУЛЯТОРА 114,104,175, | D63: ОТВЕТ ЭМУЛЯТОРА 114 | E63: 104 | F63: 175 | AK63: E4 08 92 15 3A 34 3E 3F FB | AL63: E4 | AM63: 8 | AN63: 92 | AO63: 15 | AP63: 3A | AQ63: 34 | AR63: 3E | AS63: 3F | AT63: FB | BF63: 228 | BG63: 8 | BH63: 146 | BI63: 21 | BJ63: 58 | BK63: 52 | BL63: 62 | BM63: 63 | BN63: 251 | BO63: 0 | BP63: 0 | BQ63: 0 | BR63: 0 | BS63: 0 | BT63: 0 | BU63: 0 | BV63: 0 | BW63: 0 | BX63: 0 | BY63: 0 | BZ63: 62 | CA63: 100 | CB63: 8 | CC63: 0 | CD63: 43 | CE63: 4 | CF63: 10 | CG63: 0 | CH63: 1 | CU63: 100 | CV63: =MyXor(CB63,VLOOKUP(CU63,'Таблица CRC'!$A$43:$C$298,3,FALSE)) -> 12 | CW63: =MyXor(CC63,VLOOKUP(CV63,'Таблица CRC'!$A$43:$C$298,3,FALSE)) -> 163 | CX63: =MyXor(CD63,VLOOKUP(CW63,'Таблица CRC'!$A$43:$C$298,3,FALSE)) -> 102 | CY63: =MyXor(CE63,VLOOKUP(CX63,'Таблица CRC'!$A$43:$C$298,3,FALSE)) -> 188 | CZ63: =MyXor(CF63,VLOOKUP(CY63,'Таблица CRC'!$A$43:$C$298,3,FALSE)) -> 155 | DA63: =MyXor(CG63,VLOOKUP(CZ63,'Таблица CRC'!$A$43:$C$298,3,FALSE)) -> 49 | DB63: =MyXor(CH63,VLOOKUP(DA63,'Таблица CRC'!$A$43:$C$298,3,FALSE)) -> 225 | DC63: =MyXor(CI63,VLOOKUP(DB63,'Таблица CRC'!$A$43:$C$298,3,FALSE)) -> 183 | DO63: =CONCATENATE(DEC2HEX(CA63,2)," ",DEC2HEX(CB63,2)," ",DEC2HEX(CC63,2)," ",DEC2HEX(CD63,2)," ",DEC2HEX(CE63,2)," ",DEC2HEX(CF63,2)," ",DEC2HEX(CG63,2)," ",DEC2HEX(CH63,2)," ",DEC2HEX(DC63,2)) -> 64 08 00 2B 04 0A 00 01 B7
A64: 228,6,88,66,133,218,42, | C64: =MyXor(F64,$C$1) -> 244 | D64: 228 | E64: 6 | F64: 88 | G64: 66 | H64: 133 | I64: 218 | J64: 42 | N64: =IF(D64>127,D64-128,D64) -> 100 | O64: =E64 -> 6 | P64: =MyXor(F64,$B66) -> 172 | Q64: 182 | R64: 113 | S64: 46 | T64: 222 | U64: 244 | V64: 244 | W64: 244 | Y64: 100 | Z64: 6 | AA64: 0 | AB64: 182 | AC64: 113 | AD64: 46 | AK64: E4 05 12 3E 3E 11 | AL64: E4 | AM64: 5 | AN64: 12 | AO64: 3E | AP64: 3E | AQ64: 11 | BF64: 228 | BG64: 5 | BH64: 18 | BI64: 62 | BJ64: 62 | BK64: 17 | BL64: 0 | BM64: 0 | BN64: 0 | BO64: 0 | BP64: 0 | BQ64: 0 | BR64: 0 | BS64: 0 | BT64: 0 | BU64: 0 | BV64: 0 | BW64: 0 | BX64: 0 | BY64: 0 | BZ64: 190 | CA64: 100 | CB64: 5 | CC64: 0 | CD64: 128 | CE64: 128 | CU64: 100 | CV64: =MyXor(CB64,VLOOKUP(CU64,'Таблица CRC'!$A$43:$C$298,3,FALSE)) -> 1 | CW64: =MyXor(CC64,VLOOKUP(CV64,'Таблица CRC'!$A$43:$C$298,3,FALSE)) -> 94 | CX64: =MyXor(CD64,VLOOKUP(CW64,'Таблица CRC'!$A$43:$C$298,3,FALSE)) -> 68 | CY64: =MyXor(CE64,VLOOKUP(CX64,'Таблица CRC'!$A$43:$C$298,3,FALSE)) -> 167 | CZ64: =MyXor(CF64,VLOOKUP(CY64,'Таблица CRC'!$A$43:$C$298,3,FALSE)) -> 44 | DO64: =CONCATENATE(DEC2HEX(CA64,2)," ",DEC2HEX(CB64,2)," ",DEC2HEX(CC64,2)," ",DEC2HEX(CD64,2)," ",DEC2HEX(CE64,2)," ",DEC2HEX(CZ64,2)) -> 64 05 00 80 80 2C
A65: Принято в обработку | D65: Принято в обработку | Y65: =MyXor(Y64,0) -> 100 | Z65: =MyXor(Z64,VLOOKUP(Y65,'Таблица CRC'!$A$43:$C$298,3,FALSE)) -> 2 | AA65: =MyXor(AA64,VLOOKUP(Z65,'Таблица CRC'!$A$43:$C$298,3,FALSE)) -> 188 | AB65: =MyXor(AB64,VLOOKUP(AA65,'Таблица CRC'!$A$43:$C$298,3,FALSE)) -> 39 | AC65: =MyXor(AC64,VLOOKUP(AB65,'Таблица CRC'!$A$43:$C$298,3,FALSE)) -> 209 | AD65: =MyXor(AD64,VLOOKUP(AC65,'Таблица CRC'!$A$43:$C$298,3,FALSE)) -> 39 | AE65: =MyXor(AE64,VLOOKUP(AD65,'Таблица CRC'!$A$43:$C$298,3,FALSE)) -> 160 | AK65: E4 06 A7 0A 0B F3 99 | AL65: E4 | AM65: 6 | AN65: A7 | AO65: 0A | AP65: 0B | AQ65: F3 | AR65: 99 | BF65: 228 | BG65: 6 | BH65: 167 | BI65: 10 | BJ65: 11 | BK65: 243 | BL65: 153 | BM65: 0 | BN65: 0 | BO65: 0 | BP65: 0 | BQ65: 0 | BR65: 0 | BS65: 0 | BT65: 0 | BU65: 0 | BV65: 0 | BW65: 0 | BX65: 0 | BY65: 0 | BZ65: 11 | CA65: 100 | CB65: 6 | CC65: 0 | CD65: 1 | CE65: 0 | CF65: 248 | CU65: 100 | CV65: =MyXor(CB65,VLOOKUP(CU65,'Таблица CRC'!$A$43:$C$298,3,FALSE)) -> 2 | CW65: =MyXor(CC65,VLOOKUP(CV65,'Таблица CRC'!$A$43:$C$298,3,FALSE)) -> 188 | CX65: =MyXor(CD65,VLOOKUP(CW65,'Таблица CRC'!$A$43:$C$298,3,FALSE)) -> 144 | CY65: =MyXor(CE65,VLOOKUP(CX65,'Таблица CRC'!$A$43:$C$298,3,FALSE)) -> 17 | CZ65: =MyXor(CF65,VLOOKUP(CY65,'Таблица CRC'!$A$43:$C$298,3,FALSE)) -> 59 | DA65: =MyXor(CG65,VLOOKUP(CZ65,'Таблица CRC'!$A$43:$C$298,3,FALSE)) -> 158 | DO65: 64 06 00 01 00 F8 9E
A66: ключ шифрования-244 | B66: 244 | D66: ключ шифрования-244 | Y66: =DEC2HEX(Y64,2) -> 64 | Z66: =DEC2HEX(Z64,2) -> 06 | AA66: 00 | AB66: B6 | AC66: 71 | AD66: 2E | AE66: =DEC2HEX(AE65,2) -> A0 | AI66: =CONCATENATE(Y66," ",Z66," ",AA66," ",AB66," ",AC66," ",AD66," ",AE66," ",AF66," ",AG66," ",AH66) -> 64 06 00 B6 71 2E A0 | AK66: E4 09 05 0C 00 0B 0B 0B 0B 33 | AL66: E4 | AM66: 9 | AN66: 5 | AO66: 0C | AP66: 0 | AQ66: 0B | AR66: 0B | AS66: 0B | AT66: 0B | AU66: 33 | BF66: 228 | BG66: 9 | BH66: 5 | BI66: 12 | BJ66: 0 | BK66: 11 | BL66: 11 | BM66: 11 | BN66: 11 | BO66: 51 | BP66: 0 | BQ66: 0 | BR66: 0 | BS66: 0 | BT66: 0 | BU66: 0 | BV66: 0 | BW66: 0 | BX66: 0 | BY66: 0 | BZ66: 169 | CA66: 100 | CB66: 9 | CC66: 0 | CD66: 165 | CE66: 169 | CF66: 162 | CG66: 162 | CH66: 162 | CI66: 162 | CU66: 100 | CV66: =MyXor(CB66,VLOOKUP(CU66,'Таблица CRC'!$A$43:$C$298,3,FALSE)) -> 13 | CW66: =MyXor(CC66,VLOOKUP(CV66,'Таблица CRC'!$A$43:$C$298,3,FALSE)) -> 253 | CX66: =MyXor(CD66,VLOOKUP(CW66,'Таблица CRC'!$A$43:$C$298,3,FALSE)) -> 44 | CY66: =MyXor(CE66,VLOOKUP(CX66,'Таблица CRC'!$A$43:$C$298,3,FALSE)) -> 41 | CZ66: =MyXor(CF66,VLOOKUP(CY66,'Таблица CRC'!$A$43:$C$298,3,FALSE)) -> 29 | DA66: =MyXor(CG66,VLOOKUP(CZ66,'Таблица CRC'!$A$43:$C$298,3,FALSE)) -> 194 | DB66: =MyXor(CH66,VLOOKUP(DA66,'Таблица CRC'!$A$43:$C$298,3,FALSE)) -> 212 | DC66: =MyXor(CI66,VLOOKUP(DB66,'Таблица CRC'!$A$43:$C$298,3,FALSE)) -> 148 | DD66: =MyXor(CJ66,VLOOKUP(DC66,'Таблица CRC'!$A$43:$C$298,3,FALSE)) -> 112 | DO66: =CONCATENATE(DEC2HEX(CA66,2)," ",DEC2HEX(CB66,2)," ",DEC2HEX(CC66,2)," ",DEC2HEX(CD66,2)," ",DEC2HEX(CE66,2)," ",DEC2HEX(CF66,2)," ",DEC2HEX(CG66,2)," ",DEC2HEX(CH66,2)," ",DEC2HEX(CI66,2)," ",DEC2HEX(DD66,2)) -> 64 09 00 A5 A9 A2 A2 A2 A2 70
A67: zapros.s 182,113,46, | D67: zapros.s 182 | E67: 113 | F67: 46 | AK67: E4 06 A7 08 0B 0B 60 | AL67: E4 | AM67: 6 | AN67: A7 | AO67: 8 | AP67: 0B | AQ67: 0B | AR67: 60 | BF67: 228 | BG67: 6 | BH67: 167 | BI67: 8 | BJ67: 11 | BK67: 11 | BL67: 96 | BM67: 0 | BN67: 0 | BO67: 0 | BP67: 0 | BQ67: 0 | BR67: 0 | BS67: 0 | BT67: 0 | BU67: 0 | BV67: 0 | BW67: 0 | BX67: 0 | BY67: 0 | BZ67: 11 | CA67: 100 | CB67: 6 | CC67: 0 | CD67: 3 | CE67: 0 | CF67: 0 | CU67: 100 | CV67: =MyXor(CB67,VLOOKUP(CU67,'Таблица CRC'!$A$43:$C$298,3,FALSE)) -> 2 | CW67: =MyXor(CC67,VLOOKUP(CV67,'Таблица CRC'!$A$43:$C$298,3,FALSE)) -> 188 | CX67: =MyXor(CD67,VLOOKUP(CW67,'Таблица CRC'!$A$43:$C$298,3,FALSE)) -> 146 | CY67: =MyXor(CE67,VLOOKUP(CX67,'Таблица CRC'!$A$43:$C$298,3,FALSE)) -> 173 | CZ67: =MyXor(CF67,VLOOKUP(CY67,'Таблица CRC'!$A$43:$C$298,3,FALSE)) -> 82 | DA67: =MyXor(CG67,VLOOKUP(CZ67,'Таблица CRC'!$A$43:$C$298,3,FALSE)) -> 103 | DO67: 64 06 00 03 00 00 67
A68: 228,6,83,254,255,7,66, | C68: =MyXor(F68,$C$1) -> 255 | D68: 228 | E68: 6 | F68: 83 | G68: 254 | H68: 255 | I68: 7 | J68: 66 | N68: =IF(D68>127,D68-128,D68) -> 100 | O68: =E68 -> 6 | P68: =MyXor(F68,$B70) -> 172 | Q68: 1 | R68: 0 | S68: 248 | T68: 189 | U68: 255 | V68: 255 | W68: 255 | Y68: 100 | Z68: 6 | AA68: 0 | AB68: 1 | AC68: 0 | AD68: 248 | AK68: E4 08 5A DD F2 FD F6 F7 EB | AL68: E4 | AM68: 8 | AN68: 5A | AO68: DD | AP68: F2 | AQ68: FD | AR68: F6 | AS68: F7 | AT68: EB | BF68: 228 | BG68: 8 | BH68: 90 | BI68: 221 | BJ68: 242 | BK68: 253 | BL68: 246 | BM68: 247 | BN68: 235 | BO68: 0 | BP68: 0 | BQ68: 0 | BR68: 0 | BS68: 0 | BT68: 0 | BU68: 0 | BV68: 0 | BW68: 0 | BX68: 0 | BY68: 0 | BZ68: 246 | CA68: 100 | CB68: 8 | CC68: 0 | CD68: 43 | CE68: 4 | CF68: 11 | CG68: 0 | CH68: 1 | CU68: 100 | CV68: =MyXor(CB68,VLOOKUP(CU68,'Таблица CRC'!$A$43:$C$298,3,FALSE)) -> 12 | CW68: =MyXor(CC68,VLOOKUP(CV68,'Таблица CRC'!$A$43:$C$298,3,FALSE)) -> 163 | CX68: =MyXor(CD68,VLOOKUP(CW68,'Таблица CRC'!$A$43:$C$298,3,FALSE)) -> 102 | CY68: =MyXor(CE68,VLOOKUP(CX68,'Таблица CRC'!$A$43:$C$298,3,FALSE)) -> 188 | CZ68: =MyXor(CF68,VLOOKUP(CY68,'Таблица CRC'!$A$43:$C$298,3,FALSE)) -> 154 | DA68: =MyXor(CG68,VLOOKUP(CZ68,'Таблица CRC'!$A$43:$C$298,3,FALSE)) -> 111 | DB68: =MyXor(CH68,VLOOKUP(DA68,'Таблица CRC'!$A$43:$C$298,3,FALSE)) -> 37 | DC68: =MyXor(CI68,VLOOKUP(DB68,'Таблица CRC'!$A$43:$C$298,3,FALSE)) -> 28 | DO68: =CONCATENATE(DEC2HEX(CA68,2)," ",DEC2HEX(CB68,2)," ",DEC2HEX(CC68,2)," ",DEC2HEX(CD68,2)," ",DEC2HEX(CE68,2)," ",DEC2HEX(CF68,2)," ",DEC2HEX(CG68,2)," ",DEC2HEX(CH68,2)," ",DEC2HEX(DC68,2)) -> 64 08 00 2B 04 0B 00 01 1C
A69: Принято в обработку | D69: Принято в обработку | Y69: =MyXor(Y68,0) -> 100 | Z69: =MyXor(Z68,VLOOKUP(Y69,'Таблица CRC'!$A$43:$C$298,3,FALSE)) -> 2 | AA69: =MyXor(AA68,VLOOKUP(Z69,'Таблица CRC'!$A$43:$C$298,3,FALSE)) -> 188 | AB69: =MyXor(AB68,VLOOKUP(AA69,'Таблица CRC'!$A$43:$C$298,3,FALSE)) -> 144 | AC69: =MyXor(AC68,VLOOKUP(AB69,'Таблица CRC'!$A$43:$C$298,3,FALSE)) -> 17 | AD69: =MyXor(AD68,VLOOKUP(AC69,'Таблица CRC'!$A$43:$C$298,3,FALSE)) -> 59 | AE69: =MyXor(AE68,VLOOKUP(AD69,'Таблица CRC'!$A$43:$C$298,3,FALSE)) -> 158 | AK69: E4 05 DA F6 F6 AD | AL69: E4 | AM69: 5 | AN69: DA | AO69: F6 | AP69: F6 | AQ69: AD | BF69: 228 | BG69: 5 | BH69: 218 | BI69: 246 | BJ69: 246 | BK69: 173 | BL69: 0 | BM69: 0 | BN69: 0 | BO69: 0 | BP69: 0 | BQ69: 0 | BR69: 0 | BS69: 0 | BT69: 0 | BU69: 0 | BV69: 0 | BW69: 0 | BX69: 0 | BY69: 0 | BZ69: 118 | CA69: 100 | CB69: 5 | CC69: 0 | CD69: 128 | CE69: 128 | CU69: 100 | CV69: =MyXor(CB69,VLOOKUP(CU69,'Таблица CRC'!$A$43:$C$298,3,FALSE)) -> 1 | CW69: =MyXor(CC69,VLOOKUP(CV69,'Таблица CRC'!$A$43:$C$298,3,FALSE)) -> 94 | CX69: =MyXor(CD69,VLOOKUP(CW69,'Таблица CRC'!$A$43:$C$298,3,FALSE)) -> 68 | CY69: =MyXor(CE69,VLOOKUP(CX69,'Таблица CRC'!$A$43:$C$298,3,FALSE)) -> 167 | CZ69: =MyXor(CF69,VLOOKUP(CY69,'Таблица CRC'!$A$43:$C$298,3,FALSE)) -> 44 | DO69: =CONCATENATE(DEC2HEX(CA69,2)," ",DEC2HEX(CB69,2)," ",DEC2HEX(CC69,2)," ",DEC2HEX(CD69,2)," ",DEC2HEX(CE69,2)," ",DEC2HEX(CZ69,2)) -> 64 05 00 80 80 2C
A70: ключ шифрования-255 | B70: 255 | D70: ключ шифрования-255 | Y70: =DEC2HEX(Y68,2) -> 64 | Z70: =DEC2HEX(Z68,2) -> 06 | AA70: 00 | AB70: 01 | AC70: 00 | AD70: F8 | AE70: =DEC2HEX(AE69,2) -> 9E | AI70: =CONCATENATE(Y70," ",Z70," ",AA70," ",AB70," ",AC70," ",AD70," ",AE70," ",AF70," ",AG70," ",AH70) -> 64 06 00 01 00 F8 9E | AJ70: 64 09 0E 07 01 00 00 00 00 4B | AK70: E4 06 54 F9 F8 00 53 | AL70: E4 | AM70: 6 | AN70: 54 | AO70: F9 | AP70: F8 | AQ70: 0 | AR70: 53 | BF70: =HEX2DEC(AL70) -> 228 | BG70: =HEX2DEC(AM70) -> 6 | BH70: =HEX2DEC(AN70) -> 84 | BI70: =HEX2DEC(AO70) -> 249 | BJ70: =HEX2DEC(AP70) -> 248 | BK70: =HEX2DEC(AQ70) -> 0 | BL70: =HEX2DEC(AR70) -> 83 | BM70: =HEX2DEC(AS70) -> 0 | BN70: =HEX2DEC(AT70) -> 0 | BO70: =HEX2DEC(AU70) -> 0 | BP70: =HEX2DEC(AV70) -> 0 | BQ70: =HEX2DEC(AW70) -> 0 | BR70: =HEX2DEC(AX70) -> 0 | BS70: =HEX2DEC(AY70) -> 0 | BT70: =HEX2DEC(AZ70) -> 0 | BU70: =HEX2DEC(BA70) -> 0 | BV70: =HEX2DEC(BB70) -> 0 | BW70: =HEX2DEC(BC70) -> 0 | BX70: =HEX2DEC(BD70) -> 0 | BY70: =HEX2DEC(BE70) -> 0 | BZ70: 248 | CA70: 100 | CB70: 6 | CC70: 0 | CD70: 1 | CE70: 0 | CF70: 248 | CU70: 100 | CV70: =MyXor(CB70,VLOOKUP(CU70,'Таблица CRC'!$A$43:$C$298,3,FALSE)) -> 2 | CW70: =MyXor(CC70,VLOOKUP(CV70,'Таблица CRC'!$A$43:$C$298,3,FALSE)) -> 188 | CX70: =MyXor(CD70,VLOOKUP(CW70,'Таблица CRC'!$A$43:$C$298,3,FALSE)) -> 144 | CY70: =MyXor(CE70,VLOOKUP(CX70,'Таблица CRC'!$A$43:$C$298,3,FALSE)) -> 17 | CZ70: =MyXor(CF70,VLOOKUP(CY70,'Таблица CRC'!$A$43:$C$298,3,FALSE)) -> 59 | DA70: =MyXor(CG70,VLOOKUP(CZ70,'Таблица CRC'!$A$43:$C$298,3,FALSE)) -> 158 | DO70: 64 06 00 01 00 F8 9E
A71: zapros.s 1,0,248, | D71: zapros.s 1 | E71: 0 | F71: 248 | AK71: E4 09 F6 FF F4 F8 F8 F8 F8 68 | AL71: E4 | AM71: 9 | AN71: F6 | AO71: FF | AP71: F4 | AQ71: F8 | AR71: F8 | AS71: F8 | AT71: F8 | AU71: 68 | BF71: 228 | BG71: 9 | BH71: 246 | BI71: 255 | BJ71: 244 | BK71: 248 | BL71: 248 | BM71: 248 | BN71: 248 | BO71: 104 | BP71: 0 | BQ71: 0 | BR71: 0 | BS71: 0 | BT71: 0 | BU71: 0 | BV71: 0 | BW71: 0 | BX71: 0 | BY71: 0 | BZ71: 90 | CA71: 100 | CB71: 9 | CC71: 0 | CD71: 165 | CE71: 174 | CF71: 162 | CG71: 162 | CH71: 162 | CI71: 162 | CU71: 100 | CV71: =MyXor(CB71,VLOOKUP(CU71,'Таблица CRC'!$A$43:$C$298,3,FALSE)) -> 13 | CW71: =MyXor(CC71,VLOOKUP(CV71,'Таблица CRC'!$A$43:$C$298,3,FALSE)) -> 253 | CX71: =MyXor(CD71,VLOOKUP(CW71,'Таблица CRC'!$A$43:$C$298,3,FALSE)) -> 44 | CY71: =MyXor(CE71,VLOOKUP(CX71,'Таблица CRC'!$A$43:$C$298,3,FALSE)) -> 46 | CZ71: =MyXor(CF71,VLOOKUP(CY71,'Таблица CRC'!$A$43:$C$298,3,FALSE)) -> 158 | DA71: =MyXor(CG71,VLOOKUP(CZ71,'Таблица CRC'!$A$43:$C$298,3,FALSE)) -> 172 | DB71: =MyXor(CH71,VLOOKUP(DA71,'Таблица CRC'!$A$43:$C$298,3,FALSE)) -> 174 | DC71: =MyXor(CI71,VLOOKUP(DB71,'Таблица CRC'!$A$43:$C$298,3,FALSE)) -> 18 | DD71: =MyXor(CJ71,VLOOKUP(DC71,'Таблица CRC'!$A$43:$C$298,3,FALSE)) -> 33 | DO71: =CONCATENATE(DEC2HEX(CA71,2)," ",DEC2HEX(CB71,2)," ",DEC2HEX(CC71,2)," ",DEC2HEX(CD71,2)," ",DEC2HEX(CE71,2)," ",DEC2HEX(CF71,2)," ",DEC2HEX(CG71,2)," ",DEC2HEX(CH71,2)," ",DEC2HEX(CI71,2)," ",DEC2HEX(DD71,2)) -> 64 09 00 A5 AE A2 A2 A2 A2 21
A72: ОТВЕТ ЭМУЛЯТОРА 253,252,255, | D72: ОТВЕТ ЭМУЛЯТОРА 253 | E72: 252 | F72: 255 | AK72: E4 06 54 FB F8 F8 AA | AL72: E4 | AM72: 6 | AN72: 54 | AO72: FB | AP72: F8 | AQ72: F8 | AR72: AA | BF72: 228 | BG72: 6 | BH72: 84 | BI72: 251 | BJ72: 248 | BK72: 248 | BL72: 170 | BM72: 0 | BN72: 0 | BO72: 0 | BP72: 0 | BQ72: 0 | BR72: 0 | BS72: 0 | BT72: 0 | BU72: 0 | BV72: 0 | BW72: 0 | BX72: 0 | BY72: 0 | BZ72: 248 | CA72: 100 | CB72: 6 | CC72: 0 | CD72: 3 | CE72: 0 | CF72: 0 | CU72: 100 | CV72: =MyXor(CB72,VLOOKUP(CU72,'Таблица CRC'!$A$43:$C$298,3,FALSE)) -> 2 | CW72: =MyXor(CC72,VLOOKUP(CV72,'Таблица CRC'!$A$43:$C$298,3,FALSE)) -> 188 | CX72: =MyXor(CD72,VLOOKUP(CW72,'Таблица CRC'!$A$43:$C$298,3,FALSE)) -> 146 | CY72: =MyXor(CE72,VLOOKUP(CX72,'Таблица CRC'!$A$43:$C$298,3,FALSE)) -> 173 | CZ72: =MyXor(CF72,VLOOKUP(CY72,'Таблица CRC'!$A$43:$C$298,3,FALSE)) -> 82 | DA72: =MyXor(CG72,VLOOKUP(CZ72,'Таблица CRC'!$A$43:$C$298,3,FALSE)) -> 103 | DO72: 64 06 00 03 00 00 67
A73: 228,5,253,255,255,109, | C73: =MyXor(F73,$C$1) -> 81 | D73: 228 | E73: 5 | F73: 253 | G73: 255 | H73: 255 | I73: 109 | N73: =IF(D73>127,D73-128,D73) -> 100 | O73: =E73 -> 5 | P73: =MyXor(F73,$B75) -> 172 | Q73: 174 | R73: 174 | S73: 60 | T73: 81 | U73: 81 | V73: 81 | W73: 81 | Y73: 100 | Z73: 5 | AA73: 0 | AB73: 174 | AC73: 174 | AK73: E4 08 89 0E 21 29 25 24 D0 | AL73: E4 | AM73: 8 | AN73: 89 | AO73: 0E | AP73: 21 | AQ73: 29 | AR73: 25 | AS73: 24 | AT73: D0 | BF73: 228 | BG73: 8 | BH73: 137 | BI73: 14 | BJ73: 33 | BK73: 41 | BL73: 37 | BM73: 36 | BN73: 208 | BO73: 0 | BP73: 0 | BQ73: 0 | BR73: 0 | BS73: 0 | BT73: 0 | BU73: 0 | BV73: 0 | BW73: 0 | BX73: 0 | BY73: 0 | BZ73: 37 | CA73: 100 | CB73: 8 | CC73: 0 | CD73: 43 | CE73: 4 | CF73: 12 | CG73: 0 | CH73: 1 | CU73: 100 | CV73: =MyXor(CB73,VLOOKUP(CU73,'Таблица CRC'!$A$43:$C$298,3,FALSE)) -> 12 | CW73: =MyXor(CC73,VLOOKUP(CV73,'Таблица CRC'!$A$43:$C$298,3,FALSE)) -> 163 | CX73: =MyXor(CD73,VLOOKUP(CW73,'Таблица CRC'!$A$43:$C$298,3,FALSE)) -> 102 | CY73: =MyXor(CE73,VLOOKUP(CX73,'Таблица CRC'!$A$43:$C$298,3,FALSE)) -> 188 | CZ73: =MyXor(CF73,VLOOKUP(CY73,'Таблица CRC'!$A$43:$C$298,3,FALSE)) -> 157 | DA73: =MyXor(CG73,VLOOKUP(CZ73,'Таблица CRC'!$A$43:$C$298,3,FALSE)) -> 236 | DB73: =MyXor(CH73,VLOOKUP(DA73,'Таблица CRC'!$A$43:$C$298,3,FALSE)) -> 75 | DC73: =MyXor(CI73,VLOOKUP(DB73,'Таблица CRC'!$A$43:$C$298,3,FALSE)) -> 102 | DO73: =CONCATENATE(DEC2HEX(CA73,2)," ",DEC2HEX(CB73,2)," ",DEC2HEX(CC73,2)," ",DEC2HEX(CD73,2)," ",DEC2HEX(CE73,2)," ",DEC2HEX(CF73,2)," ",DEC2HEX(CG73,2)," ",DEC2HEX(CH73,2)," ",DEC2HEX(DC73,2)) -> 64 08 00 2B 04 0C 00 01 66
A74: Принято в обработку | D74: Принято в обработку | Y74: =MyXor(Y73,0) -> 100 | Z74: =MyXor(Z73,VLOOKUP(Y74,'Таблица CRC'!$A$43:$C$298,3,FALSE)) -> 1 | AA74: =MyXor(AA73,VLOOKUP(Z74,'Таблица CRC'!$A$43:$C$298,3,FALSE)) -> 94 | AB74: =MyXor(AB73,VLOOKUP(AA74,'Таблица CRC'!$A$43:$C$298,3,FALSE)) -> 106 | AC74: =MyXor(AC73,VLOOKUP(AB74,'Таблица CRC'!$A$43:$C$298,3,FALSE)) -> 181 | AD74: =MyXor(AD73,VLOOKUP(AC74,'Таблица CRC'!$A$43:$C$298,3,FALSE)) -> 13 | AK74: E4 05 09 25 25 FC | AL74: E4 | AM74: 5 | AN74: 9 | AO74: 25 | AP74: 25 | AQ74: FC | BF74: 228 | BG74: 5 | BH74: 9 | BI74: 37 | BJ74: 37 | BK74: 252 | BL74: 0 | BM74: 0 | BN74: 0 | BO74: 0 | BP74: 0 | BQ74: 0 | BR74: 0 | BS74: 0 | BT74: 0 | BU74: 0 | BV74: 0 | BW74: 0 | BX74: 0 | BY74: 0 | BZ74: =MyXor(BH74,$C$1) -> 165 | CA74: 100 | CB74: 5 | CC74: 0 | CD74: 128 | CE74: 128 | CU74: 100 | CV74: =MyXor(CB74,VLOOKUP(CU74,'Таблица CRC'!$A$43:$C$298,3,FALSE)) -> 1 | CW74: =MyXor(CC74,VLOOKUP(CV74,'Таблица CRC'!$A$43:$C$298,3,FALSE)) -> 94 | CX74: =MyXor(CD74,VLOOKUP(CW74,'Таблица CRC'!$A$43:$C$298,3,FALSE)) -> 68 | CY74: =MyXor(CE74,VLOOKUP(CX74,'Таблица CRC'!$A$43:$C$298,3,FALSE)) -> 167 | CZ74: =MyXor(CF74,VLOOKUP(CY74,'Таблица CRC'!$A$43:$C$298,3,FALSE)) -> 44 | DO74: =CONCATENATE(DEC2HEX(CA74,2)," ",DEC2HEX(CB74,2)," ",DEC2HEX(CC74,2)," ",DEC2HEX(CD74,2)," ",DEC2HEX(CE74,2)," ",DEC2HEX(CZ74,2)) -> 64 05 00 80 80 2C
A75: otvet 2,0,0, | B75: 81 | D75: otvet 2 | E75: 0 | F75: 0 | Y75: =DEC2HEX(Y73,2) -> 64 | Z75: =DEC2HEX(Z73,2) -> 05 | AA75: 00 | AB75: AE | AC75: AE | AD75: =DEC2HEX(AD74,2) -> 0D | AI75: =CONCATENATE(Y75," ",Z75," ",AA75," ",AB75," ",AC75," ",AD75," ",AE75," ",AF75," ",AG75," ",AH75) -> 64 05 00 AE AE 0D | AK75: E4 06 15 B8 B9 41 E1 | AL75: E4 | AM75: 6 | AN75: 15 | AO75: B8 | AP75: B9 | AQ75: 41 | AR75: E1 | BF75: 228 | BG75: 6 | BH75: 21 | BI75: 184 | BJ75: 185 | BK75: 65 | BL75: 225 | BM75: 0 | BN75: 0 | BO75: 0 | BP75: 0 | BQ75: 0 | BR75: 0 | BS75: 0 | BT75: 0 | BU75: 0 | BV75: 0 | BW75: 0 | BX75: 0 | BY75: 0 | BZ75: 185 | CA75: 100 | CB75: 6 | CC75: 0 | CD75: 1 | CE75: 0 | CF75: 248 | CU75: 100 | CV75: =MyXor(CB75,VLOOKUP(CU75,'Таблица CRC'!$A$43:$C$298,3,FALSE)) -> 2 | CW75: =MyXor(CC75,VLOOKUP(CV75,'Таблица CRC'!$A$43:$C$298,3,FALSE)) -> 188 | CX75: =MyXor(CD75,VLOOKUP(CW75,'Таблица CRC'!$A$43:$C$298,3,FALSE)) -> 144 | CY75: =MyXor(CE75,VLOOKUP(CX75,'Таблица CRC'!$A$43:$C$298,3,FALSE)) -> 17 | CZ75: =MyXor(CF75,VLOOKUP(CY75,'Таблица CRC'!$A$43:$C$298,3,FALSE)) -> 59 | DA75: =MyXor(CG75,VLOOKUP(CZ75,'Таблица CRC'!$A$43:$C$298,3,FALSE)) -> 158 | DO75: =CONCATENATE(DEC2HEX(CA75,2)," ",DEC2HEX(CB75,2)," ",DEC2HEX(CC75,2)," ",DEC2HEX(CD75,2)," ",DEC2HEX(CE75,2)," ",DEC2HEX(CF75,2)," ",DEC2HEX(DA75,2)) -> 64 06 00 01 00 F8 9E
A76: 228,8,152,31,36,53,52,203,253, | C76: =MyXor(F76,$C$1) -> 52 | D76: 228 | E76: 8 | F76: 152 | G76: 31 | H76: 36 | I76: 53 | J76: 52 | K76: 203 | L76: 253 | N76: =IF(D76>127,D76-128,D76) -> 100 | O76: =E76 -> 8 | P76: =MyXor(F76,$B78) -> 172 | Q76: 43 | R76: 16 | S76: 1 | T76: 0 | U76: 255 | V76: 201 | W76: 52 | Y76: 100 | Z76: 8 | AA76: 0 | AB76: 43 | AC76: 16 | AD76: 1 | AE76: 0 | AF76: 255 | AK76: E4 09 B7 BE B4 B9 B9 B9 B9 8B | AL76: E4 | AM76: 9 | AN76: B7 | AO76: BE | AP76: B4 | AQ76: B9 | AR76: B9 | AS76: B9 | AT76: B9 | AU76: 8B | BF76: 228 | BG76: 9 | BH76: 183 | BI76: 190 | BJ76: 180 | BK76: 185 | BL76: 185 | BM76: 185 | BN76: 185 | BO76: 139 | BP76: 0 | BQ76: 0 | BR76: 0 | BS76: 0 | BT76: 0 | BU76: 0 | BV76: 0 | BW76: 0 | BX76: 0 | BY76: 0 | BZ76: 27 | CA76: 100 | CB76: 9 | CC76: 0 | CD76: 165 | CE76: 175 | CF76: 162 | CG76: 162 | CH76: 162 | CI76: 162 | CU76: 100 | CV76: =MyXor(CB76,VLOOKUP(CU76,'Таблица CRC'!$A$43:$C$298,3,FALSE)) -> 13 | CW76: =MyXor(CC76,VLOOKUP(CV76,'Таблица CRC'!$A$43:$C$298,3,FALSE)) -> 253 | CX76: =MyXor(CD76,VLOOKUP(CW76,'Таблица CRC'!$A$43:$C$298,3,FALSE)) -> 44 | CY76: =MyXor(CE76,VLOOKUP(CX76,'Таблица CRC'!$A$43:$C$298,3,FALSE)) -> 47 | CZ76: =MyXor(CF76,VLOOKUP(CY76,'Таблица CRC'!$A$43:$C$298,3,FALSE)) -> 192 | DA76: =MyXor(CG76,VLOOKUP(CZ76,'Таблица CRC'!$A$43:$C$298,3,FALSE)) -> 104 | DB76: =MyXor(CH76,VLOOKUP(DA76,'Таблица CRC'!$A$43:$C$298,3,FALSE)) -> 5 | DC76: =MyXor(CI76,VLOOKUP(DB76,'Таблица CRC'!$A$43:$C$298,3,FALSE)) -> 157 | DD76: =MyXor(CJ76,VLOOKUP(DC76,'Таблица CRC'!$A$43:$C$298,3,FALSE)) -> 236 | DO76: =CONCATENATE(DEC2HEX(CA76,2)," ",DEC2HEX(CB76,2)," ",DEC2HEX(CC76,2)," ",DEC2HEX(CD76,2)," ",DEC2HEX(CE76,2)," ",DEC2HEX(CF76,2)," ",DEC2HEX(CG76,2)," ",DEC2HEX(CH76,2)," ",DEC2HEX(CI76,2)," ",DEC2HEX(DD76,2)) -> 64 09 00 A5 AF A2 A2 A2 A2 EC
A77: Принято в обработку | D77: Принято в обработку | Y77: =MyXor(Y76,0) -> 100 | Z77: =MyXor(Z76,VLOOKUP(Y77,'Таблица CRC'!$A$43:$C$298,3,FALSE)) -> 12 | AA77: =MyXor(AA76,VLOOKUP(Z77,'Таблица CRC'!$A$43:$C$298,3,FALSE)) -> 163 | AB77: =MyXor(AB76,VLOOKUP(AA77,'Таблица CRC'!$A$43:$C$298,3,FALSE)) -> 102 | AC77: =MyXor(AC76,VLOOKUP(AB77,'Таблица CRC'!$A$43:$C$298,3,FALSE)) -> 168 | AD77: =MyXor(AD76,VLOOKUP(AC77,'Таблица CRC'!$A$43:$C$298,3,FALSE)) -> 108 | AE77: =MyXor(AE76,VLOOKUP(AD77,'Таблица CRC'!$A$43:$C$298,3,FALSE)) -> 198 | AF77: =MyXor(AF76,VLOOKUP(AE77,'Таблица CRC'!$A$43:$C$298,3,FALSE)) -> 232 | AG77: =MyXor(AG76,VLOOKUP(AF77,'Таблица CRC'!$A$43:$C$298,3,FALSE)) -> 43 | AK77: E4 06 15 BA B9 B9 18 | AL77: E4 | AM77: 6 | AN77: 15 | AO77: BA | AP77: B9 | AQ77: B9 | AR77: 18 | BF77: 228 | BG77: 6 | BH77: 21 | BI77: 186 | BJ77: 185 | BK77: 185 | BL77: 24 | BM77: 0 | BN77: 0 | BO77: 0 | BP77: 0 | BQ77: 0 | BR77: 0 | BS77: 0 | BT77: 0 | BU77: 0 | BV77: 0 | BW77: 0 | BX77: 0 | BY77: 0 | BZ77: 185 | CA77: 100 | CB77: 6 | CC77: 0 | CD77: 3 | CE77: 0 | CF77: 0 | CU77: 100 | CV77: =MyXor(CB77,VLOOKUP(CU77,'Таблица CRC'!$A$43:$C$298,3,FALSE)) -> 2 | CW77: =MyXor(CC77,VLOOKUP(CV77,'Таблица CRC'!$A$43:$C$298,3,FALSE)) -> 188 | CX77: =MyXor(CD77,VLOOKUP(CW77,'Таблица CRC'!$A$43:$C$298,3,FALSE)) -> 146 | CY77: =MyXor(CE77,VLOOKUP(CX77,'Таблица CRC'!$A$43:$C$298,3,FALSE)) -> 173 | CZ77: =MyXor(CF77,VLOOKUP(CY77,'Таблица CRC'!$A$43:$C$298,3,FALSE)) -> 82 | DA77: =MyXor(CG77,VLOOKUP(CZ77,'Таблица CRC'!$A$43:$C$298,3,FALSE)) -> 103 | DO77: 64 06 00 03 00 00 67
A78: ключ шифрования-52 | B78: 52 | D78: ключ шифрования-52 | Y78: =DEC2HEX(Y76,2) -> 64 | Z78: =DEC2HEX(Z76,2) -> 08 | AA78: 00 | AB78: 2B | AC78: 10 | AD78: 01 | AE78: 00 | AF78: FF | AG78: =DEC2HEX(AG77,2) -> 2B | AI78: =CONCATENATE(Y78," ",Z78," ",AA78," ",AB78," ",AC78," ",AD78," ",AE78," ",AF78," ",AG78," ",AH78) -> 64 08 00 2B 10 01 00 FF 2B | AJ78: 64 05 2C 00 00 A0 | AK78: E4 08 6D EA C5 CC C1 C0 93 | AL78: E4 | AM78: 8 | AN78: 6D | AO78: EA | AP78: C5 | AQ78: CC | AR78: C1 | AS78: C0 | AT78: 93 | BF78: 228 | BG78: 8 | BH78: 109 | BI78: 234 | BJ78: 197 | BK78: 204 | BL78: 193 | BM78: 192 | BN78: 147 | BO78: 0 | BP78: 0 | BQ78: 0 | BR78: 0 | BS78: 0 | BT78: 0 | BU78: 0 | BV78: 0 | BW78: 0 | BX78: 0 | BY78: 0 | BZ78: 193 | CA78: 100 | CB78: 8 | CC78: 0 | CD78: 43 | CE78: 4 | CF78: 13 | CG78: 0 | CH78: 1 | CU78: 100 | CV78: =MyXor(CB78,VLOOKUP(CU78,'Таблица CRC'!$A$43:$C$298,3,FALSE)) -> 12 | CW78: =MyXor(CC78,VLOOKUP(CV78,'Таблица CRC'!$A$43:$C$298,3,FALSE)) -> 163 | CX78: =MyXor(CD78,VLOOKUP(CW78,'Таблица CRC'!$A$43:$C$298,3,FALSE)) -> 102 | CY78: =MyXor(CE78,VLOOKUP(CX78,'Таблица CRC'!$A$43:$C$298,3,FALSE)) -> 188 | CZ78: =MyXor(CF78,VLOOKUP(CY78,'Таблица CRC'!$A$43:$C$298,3,FALSE)) -> 156 | DA78: =MyXor(CG78,VLOOKUP(CZ78,'Таблица CRC'!$A$43:$C$298,3,FALSE)) -> 178 | DB78: =MyXor(CH78,VLOOKUP(DA78,'Таблица CRC'!$A$43:$C$298,3,FALSE)) -> 143 | DC78: =MyXor(CI78,VLOOKUP(DB78,'Таблица CRC'!$A$43:$C$298,3,FALSE)) -> 205 | DO78: =CONCATENATE(DEC2HEX(CA78,2)," ",DEC2HEX(CB78,2)," ",DEC2HEX(CC78,2)," ",DEC2HEX(CD78,2)," ",DEC2HEX(CE78,2)," ",DEC2HEX(CF78,2)," ",DEC2HEX(CG78,2)," ",DEC2HEX(CH78,2)," ",DEC2HEX(DC78,2)) -> 64 08 00 2B 04 0D 00 01 CD
A79: zapros.s 43,16,1, | D79: zapros.s 43 | E79: 16 | F79: 1 | AK79: E4 05 ED C1 C1 77 | AL79: E4 | AM79: 5 | AN79: ED | AO79: C1 | AP79: C1 | AQ79: 77 | BF79: 228 | BG79: 5 | BH79: 237 | BI79: 193 | BJ79: 193 | BK79: 119 | BL79: 0 | BM79: 0 | BN79: 0 | BO79: 0 | BP79: 0 | BQ79: 0 | BR79: 0 | BS79: 0 | BT79: 0 | BU79: 0 | BV79: 0 | BW79: 0 | BX79: 0 | BY79: 0 | BZ79: 65 | CA79: 100 | CB79: 5 | CC79: 0 | CD79: 128 | CE79: 128 | CU79: 100 | CV79: =MyXor(CB79,VLOOKUP(CU79,'Таблица CRC'!$A$43:$C$298,3,FALSE)) -> 1 | CW79: =MyXor(CC79,VLOOKUP(CV79,'Таблица CRC'!$A$43:$C$298,3,FALSE)) -> 94 | CX79: =MyXor(CD79,VLOOKUP(CW79,'Таблица CRC'!$A$43:$C$298,3,FALSE)) -> 68 | CY79: =MyXor(CE79,VLOOKUP(CX79,'Таблица CRC'!$A$43:$C$298,3,FALSE)) -> 167 | CZ79: =MyXor(CF79,VLOOKUP(CY79,'Таблица CRC'!$A$43:$C$298,3,FALSE)) -> 44 | DO79: =CONCATENATE(DEC2HEX(CA79,2)," ",DEC2HEX(CB79,2)," ",DEC2HEX(CC79,2)," ",DEC2HEX(CD79,2)," ",DEC2HEX(CE79,2)," ",DEC2HEX(CZ79,2)) -> 64 05 00 80 80 2C
A80: 228,5,24,52,52,226, | C80: =MyXor(F80,$C$1) -> 180 | D80: 228 | E80: 5 | F80: 24 | G80: 52 | H80: 52 | I80: 226 | N80: =IF(D80>127,D80-128,D80) -> 100 | O80: =E80 -> 5 | P80: =MyXor(F80,$B82) -> 172 | Q80: 128 | R80: 128 | S80: 86 | T80: 180 | U80: 180 | V80: 180 | W80: 180 | Y80: 100 | Z80: 5 | AA80: 0 | AB80: 128 | AC80: 128 | AK80: E4 06 63 CE CF 37 47 | AL80: E4 | AM80: 6 | AN80: 63 | AO80: CE | AP80: CF | AQ80: 37 | AR80: 47 | BF80: 228 | BG80: 6 | BH80: 99 | BI80: 206 | BJ80: 207 | BK80: 55 | BL80: 71 | BM80: 0 | BN80: 0 | BO80: 0 | BP80: 0 | BQ80: 0 | BR80: 0 | BS80: 0 | BT80: 0 | BU80: 0 | BV80: 0 | BW80: 0 | BX80: 0 | BY80: 0 | BZ80: 207 | CA80: 100 | CB80: 6 | CC80: 0 | CD80: 1 | CE80: 0 | CF80: 248 | CU80: 100 | CV80: =MyXor(CB80,VLOOKUP(CU80,'Таблица CRC'!$A$43:$C$298,3,FALSE)) -> 2 | CW80: =MyXor(CC80,VLOOKUP(CV80,'Таблица CRC'!$A$43:$C$298,3,FALSE)) -> 188 | CX80: =MyXor(CD80,VLOOKUP(CW80,'Таблица CRC'!$A$43:$C$298,3,FALSE)) -> 144 | CY80: =MyXor(CE80,VLOOKUP(CX80,'Таблица CRC'!$A$43:$C$298,3,FALSE)) -> 17 | CZ80: =MyXor(CF80,VLOOKUP(CY80,'Таблица CRC'!$A$43:$C$298,3,FALSE)) -> 59 | DA80: =MyXor(CG80,VLOOKUP(CZ80,'Таблица CRC'!$A$43:$C$298,3,FALSE)) -> 158 | DO80: 64 06 00 01 00 F8 9E
A81: Принято в обработку | D81: Принято в обработку | Y81: =MyXor(Y80,0) -> 100 | Z81: =MyXor(Z80,VLOOKUP(Y81,'Таблица CRC'!$A$43:$C$298,3,FALSE)) -> 1 | AA81: =MyXor(AA80,VLOOKUP(Z81,'Таблица CRC'!$A$43:$C$298,3,FALSE)) -> 94 | AB81: =MyXor(AB80,VLOOKUP(AA81,'Таблица CRC'!$A$43:$C$298,3,FALSE)) -> 68 | AC81: =MyXor(AC80,VLOOKUP(AB81,'Таблица CRC'!$A$43:$C$298,3,FALSE)) -> 167 | AD81: =MyXor(AD80,VLOOKUP(AC81,'Таблица CRC'!$A$43:$C$298,3,FALSE)) -> 44 | AK81: E4 09 C1 C8 C1 CF CF CF CF E5 | AL81: E4 | AM81: 9 | AN81: C1 | AO81: C8 | AP81: C1 | AQ81: CF | AR81: CF | AS81: CF | AT81: CF | AU81: E5 | BF81: 228 | BG81: 9 | BH81: 193 | BI81: 200 | BJ81: 193 | BK81: 207 | BL81: 207 | BM81: 207 | BN81: 207 | BO81: 229 | BP81: 0 | BQ81: 0 | BR81: 0 | BS81: 0 | BT81: 0 | BU81: 0 | BV81: 0 | BW81: 0 | BX81: 0 | BY81: 0 | BZ81: 109 | CA81: 100 | CB81: 9 | CC81: 0 | CD81: 165 | CE81: 172 | CF81: 162 | CG81: 162 | CH81: 162 | CI81: 162 | CU81: 100 | CV81: =MyXor(CB81,VLOOKUP(CU81,'Таблица CRC'!$A$43:$C$298,3,FALSE)) -> 13 | CW81: =MyXor(CC81,VLOOKUP(CV81,'Таблица CRC'!$A$43:$C$298,3,FALSE)) -> 253 | CX81: =MyXor(CD81,VLOOKUP(CW81,'Таблица CRC'!$A$43:$C$298,3,FALSE)) -> 44 | CY81: =MyXor(CE81,VLOOKUP(CX81,'Таблица CRC'!$A$43:$C$298,3,FALSE)) -> 44 | CZ81: =MyXor(CF81,VLOOKUP(CY81,'Таблица CRC'!$A$43:$C$298,3,FALSE)) -> 34 | DA81: =MyXor(CG81,VLOOKUP(CZ81,'Таблица CRC'!$A$43:$C$298,3,FALSE)) -> 61 | DB81: =MyXor(CH81,VLOOKUP(DA81,'Таблица CRC'!$A$43:$C$298,3,FALSE)) -> 225 | DC81: =MyXor(CI81,VLOOKUP(DB81,'Таблица CRC'!$A$43:$C$298,3,FALSE)) -> 21 | DD81: =MyXor(CJ81,VLOOKUP(DC81,'Таблица CRC'!$A$43:$C$298,3,FALSE)) -> 162 | DO81: =CONCATENATE(DEC2HEX(CA81,2)," ",DEC2HEX(CB81,2)," ",DEC2HEX(CC81,2)," ",DEC2HEX(CD81,2)," ",DEC2HEX(CE81,2)," ",DEC2HEX(CF81,2)," ",DEC2HEX(CG81,2)," ",DEC2HEX(CH81,2)," ",DEC2HEX(CI81,2)," ",DEC2HEX(DD81,2)) -> 64 09 00 A5 AC A2 A2 A2 A2 A2
A82: otvet 44,0,0, | B82: 180 | D82: otvet 44 | E82: 0 | F82: 0 | Y82: =DEC2HEX(Y80,2) -> 64 | Z82: =DEC2HEX(Z80,2) -> 05 | AA82: 00 | AB82: 80 | AC82: 80 | AD82: =DEC2HEX(AD81,2) -> 2C | AI82: =CONCATENATE(Y82," ",Z82," ",AA82," ",AB82," ",AC82," ",AD82," ",AE82," ",AF82," ",AG82," ",AH82) -> 64 05 00 80 80 2C | AK82: E4 06 63 CC CF CF BE | AL82: E4 | AM82: 6 | AN82: 63 | AO82: CC | AP82: CF | AQ82: CF | AR82: BE | BF82: 228 | BG82: 6 | BH82: 99 | BI82: 204 | BJ82: 207 | BK82: 207 | BL82: 190 | BM82: 0 | BN82: 0 | BO82: 0 | BP82: 0 | BQ82: 0 | BR82: 0 | BS82: 0 | BT82: 0 | BU82: 0 | BV82: 0 | BW82: 0 | BX82: 0 | BY82: 0 | BZ82: 207 | CA82: 100 | CB82: 6 | CC82: 0 | CD82: 3 | CE82: 0 | CF82: 0 | CU82: 100 | CV82: =MyXor(CB82,VLOOKUP(CU82,'Таблица CRC'!$A$43:$C$298,3,FALSE)) -> 2 | CW82: =MyXor(CC82,VLOOKUP(CV82,'Таблица CRC'!$A$43:$C$298,3,FALSE)) -> 188 | CX82: =MyXor(CD82,VLOOKUP(CW82,'Таблица CRC'!$A$43:$C$298,3,FALSE)) -> 146 | CY82: =MyXor(CE82,VLOOKUP(CX82,'Таблица CRC'!$A$43:$C$298,3,FALSE)) -> 173 | CZ82: =MyXor(CF82,VLOOKUP(CY82,'Таблица CRC'!$A$43:$C$298,3,FALSE)) -> 82 | DA82: =MyXor(CG82,VLOOKUP(CZ82,'Таблица CRC'!$A$43:$C$298,3,FALSE)) -> 103 | DO82: 64 06 00 03 00 00 67
A83: 228,6,65,236,237,21,36, | C83: =MyXor(F83,$C$1) -> 237 | D83: 228 | E83: 6 | F83: 65 | G83: 236 | H83: 237 | I83: 21 | J83: 36 | N83: =IF(D83>127,D83-128,D83) -> 100 | O83: =E83 -> 6 | P83: =MyXor(F83,$B85) -> 172 | Q83: 1 | R83: 0 | S83: 248 | T83: 201 | U83: 237 | V83: 237 | W83: 237 | Y83: 100 | Z83: 6 | AA83: 0 | AB83: 1 | AC83: 0 | AD83: 248 | AK83: E4 08 89 0E 21 2B 25 24 9F | AL83: E4 | AM83: 8 | AN83: 89 | AO83: 0E | AP83: 21 | AQ83: 2B | AR83: 25 | AS83: 24 | AT83: 9F | BF83: 228 | BG83: 8 | BH83: 137 | BI83: 14 | BJ83: 33 | BK83: 43 | BL83: 37 | BM83: 36 | BN83: 159 | BO83: 0 | BP83: 0 | BQ83: 0 | BR83: 0 | BS83: 0 | BT83: 0 | BU83: 0 | BV83: 0 | BW83: 0 | BX83: 0 | BY83: 0 | BZ83: 37 | CA83: 100 | CB83: 8 | CC83: 0 | CD83: 43 | CE83: 4 | CF83: 14 | CG83: 0 | CH83: 1 | CU83: 100 | CV83: =MyXor(CB83,VLOOKUP(CU83,'Таблица CRC'!$A$43:$C$298,3,FALSE)) -> 12 | CW83: =MyXor(CC83,VLOOKUP(CV83,'Таблица CRC'!$A$43:$C$298,3,FALSE)) -> 163 | CX83: =MyXor(CD83,VLOOKUP(CW83,'Таблица CRC'!$A$43:$C$298,3,FALSE)) -> 102 | CY83: =MyXor(CE83,VLOOKUP(CX83,'Таблица CRC'!$A$43:$C$298,3,FALSE)) -> 188 | CZ83: =MyXor(CF83,VLOOKUP(CY83,'Таблица CRC'!$A$43:$C$298,3,FALSE)) -> 159 | DA83: =MyXor(CG83,VLOOKUP(CZ83,'Таблица CRC'!$A$43:$C$298,3,FALSE)) -> 80 | DB83: =MyXor(CH83,VLOOKUP(DA83,'Таблица CRC'!$A$43:$C$298,3,FALSE)) -> 218 | DC83: =MyXor(CI83,VLOOKUP(DB83,'Таблица CRC'!$A$43:$C$298,3,FALSE)) -> 41 | DO83: =CONCATENATE(DEC2HEX(CA83,2)," ",DEC2HEX(CB83,2)," ",DEC2HEX(CC83,2)," ",DEC2HEX(CD83,2)," ",DEC2HEX(CE83,2)," ",DEC2HEX(CF83,2)," ",DEC2HEX(CG83,2)," ",DEC2HEX(CH83,2)," ",DEC2HEX(DC83,2)) -> 64 08 00 2B 04 0E 00 01 29
A84: Принято в обработку | D84: Принято в обработку | Y84: =MyXor(Y83,0) -> 100 | Z84: =MyXor(Z83,VLOOKUP(Y84,'Таблица CRC'!$A$43:$C$298,3,FALSE)) -> 2 | AA84: =MyXor(AA83,VLOOKUP(Z84,'Таблица CRC'!$A$43:$C$298,3,FALSE)) -> 188 | AB84: =MyXor(AB83,VLOOKUP(AA84,'Таблица CRC'!$A$43:$C$298,3,FALSE)) -> 144 | AC84: =MyXor(AC83,VLOOKUP(AB84,'Таблица CRC'!$A$43:$C$298,3,FALSE)) -> 17 | AD84: =MyXor(AD83,VLOOKUP(AC84,'Таблица CRC'!$A$43:$C$298,3,FALSE)) -> 59 | AE84: =MyXor(AE83,VLOOKUP(AD84,'Таблица CRC'!$A$43:$C$298,3,FALSE)) -> 158 | AK84: E4 05 09 25 25 FC | AL84: E4 | AM84: 5 | AN84: 9 | AO84: 25 | AP84: 25 | AQ84: FC | BF84: 228 | BG84: 5 | BH84: 9 | BI84: 37 | BJ84: 37 | BK84: 252 | BL84: 0 | BM84: 0 | BN84: 0 | BO84: 0 | BP84: 0 | BQ84: 0 | BR84: 0 | BS84: 0 | BT84: 0 | BU84: 0 | BV84: 0 | BW84: 0 | BX84: 0 | BY84: 0 | BZ84: 165 | CA84: 100 | CB84: 5 | CC84: 0 | CD84: 128 | CE84: 128 | CU84: 100 | CV84: =MyXor(CB84,VLOOKUP(CU84,'Таблица CRC'!$A$43:$C$298,3,FALSE)) -> 1 | CW84: =MyXor(CC84,VLOOKUP(CV84,'Таблица CRC'!$A$43:$C$298,3,FALSE)) -> 94 | CX84: =MyXor(CD84,VLOOKUP(CW84,'Таблица CRC'!$A$43:$C$298,3,FALSE)) -> 68 | CY84: =MyXor(CE84,VLOOKUP(CX84,'Таблица CRC'!$A$43:$C$298,3,FALSE)) -> 167 | CZ84: =MyXor(CF84,VLOOKUP(CY84,'Таблица CRC'!$A$43:$C$298,3,FALSE)) -> 44 | DO84: =CONCATENATE(DEC2HEX(CA84,2)," ",DEC2HEX(CB84,2)," ",DEC2HEX(CC84,2)," ",DEC2HEX(CD84,2)," ",DEC2HEX(CE84,2)," ",DEC2HEX(CZ84,2)) -> 64 05 00 80 80 2C
A85: ключ шифрования-237 | B85: 237 | D85: ключ шифрования-237 | Y85: =DEC2HEX(Y83,2) -> 64 | Z85: =DEC2HEX(Z83,2) -> 06 | AA85: 00 | AB85: 01 | AC85: 00 | AD85: F8 | AE85: =DEC2HEX(AE84,2) -> 9E | AI85: =CONCATENATE(Y85," ",Z85," ",AA85," ",AB85," ",AC85," ",AD85," ",AE85," ",AF85," ",AG85," ",AH85) -> 64 06 00 01 00 F8 9E | AJ85: 64 09 0E 07 02 00 00 00 00 05 | AK85: E4 06 4E E3 E2 1A B8 | AL85: E4 | AM85: 6 | AN85: 4E | AO85: E3 | AP85: E2 | AQ85: 1A | AR85: B8 | BF85: 228 | BG85: 6 | BH85: 78 | BI85: 227 | BJ85: 226 | BK85: 26 | BL85: 184 | BM85: 0 | BN85: 0 | BO85: 0 | BP85: 0 | BQ85: 0 | BR85: 0 | BS85: 0 | BT85: 0 | BU85: 0 | BV85: 0 | BW85: 0 | BX85: 0 | BY85: 0 | BZ85: 226 | CA85: 100 | CB85: 6 | CC85: 0 | CD85: 1 | CE85: 0 | CF85: 248 | CU85: 100 | CV85: =MyXor(CB85,VLOOKUP(CU85,'Таблица CRC'!$A$43:$C$298,3,FALSE)) -> 2 | CW85: =MyXor(CC85,VLOOKUP(CV85,'Таблица CRC'!$A$43:$C$298,3,FALSE)) -> 188 | CX85: =MyXor(CD85,VLOOKUP(CW85,'Таблица CRC'!$A$43:$C$298,3,FALSE)) -> 144 | CY85: =MyXor(CE85,VLOOKUP(CX85,'Таблица CRC'!$A$43:$C$298,3,FALSE)) -> 17 | CZ85: =MyXor(CF85,VLOOKUP(CY85,'Таблица CRC'!$A$43:$C$298,3,FALSE)) -> 59 | DA85: =MyXor(CG85,VLOOKUP(CZ85,'Таблица CRC'!$A$43:$C$298,3,FALSE)) -> 158 | DO85: 64 06 00 01 00 F8 9E
A86: zapros.s 1,0,248, | D86: zapros.s 1 | E86: 0 | F86: 248 | AK86: E4 09 EC E5 ED E2 E2 E2 E2 FC | AL86: E4 | AM86: 9 | AN86: EC | AO86: E5 | AP86: ED | AQ86: E2 | AR86: E2 | AS86: E2 | AT86: E2 | AU86: FC | BF86: 228 | BG86: 9 | BH86: 236 | BI86: 229 | BJ86: 237 | BK86: 226 | BL86: 226 | BM86: 226 | BN86: 226 | BO86: 252 | BP86: 0 | BQ86: 0 | BR86: 0 | BS86: 0 | BT86: 0 | BU86: 0 | BV86: 0 | BW86: 0 | BX86: 0 | BY86: 0 | BZ86: 64 | CA86: 100 | CB86: 9 | CC86: 0 | CD86: 165 | CE86: 173 | CF86: 162 | CG86: 162 | CH86: 162 | CI86: 162 | CU86: =MyXor(CA86,0) -> 100 | CV86: =MyXor(CB86,VLOOKUP(CU86,'Таблица CRC'!$A$43:$C$298,3,FALSE)) -> 13 | CW86: =MyXor(CC86,VLOOKUP(CV86,'Таблица CRC'!$A$43:$C$298,3,FALSE)) -> 253 | CX86: =MyXor(CD86,VLOOKUP(CW86,'Таблица CRC'!$A$43:$C$298,3,FALSE)) -> 44 | CY86: =MyXor(CE86,VLOOKUP(CX86,'Таблица CRC'!$A$43:$C$298,3,FALSE)) -> 45 | CZ86: =MyXor(CF86,VLOOKUP(CY86,'Таблица CRC'!$A$43:$C$298,3,FALSE)) -> 124 | DA86: =MyXor(CG86,VLOOKUP(CZ86,'Таблица CRC'!$A$43:$C$298,3,FALSE)) -> 249 | DB86: =MyXor(CH86,VLOOKUP(DA86,'Таблица CRC'!$A$43:$C$298,3,FALSE)) -> 94 | DC86: =MyXor(CI86,VLOOKUP(DB86,'Таблица CRC'!$A$43:$C$298,3,FALSE)) -> 102 | DD86: =MyXor(CJ86,VLOOKUP(DC86,'Таблица CRC'!$A$43:$C$298,3,FALSE)) -> 184 | DO86: =CONCATENATE(DEC2HEX(CA86,2)," ",DEC2HEX(CB86,2)," ",DEC2HEX(CC86,2)," ",DEC2HEX(CD86,2)," ",DEC2HEX(CE86,2)," ",DEC2HEX(CF86,2)," ",DEC2HEX(CG86,2)," ",DEC2HEX(CH86,2)," ",DEC2HEX(CI86,2)," ",DEC2HEX(DD86,2)) -> 64 09 00 A5 AD A2 A2 A2 A2 B8
A87: ОТВЕТ ЭМУЛЯТОРА 239,234,237, | D87: ОТВЕТ ЭМУЛЯТОРА 239 | E87: 234 | F87: 237 | AK87: E4 06 4E E1 E2 E2 41 | AL87: E4 | AM87: 6 | AN87: 4E | AO87: E1 | AP87: E2 | AQ87: E2 | AR87: 41 | BF87: 228 | BG87: 6 | BH87: 78 | BI87: 225 | BJ87: 226 | BK87: 226 | BL87: 65 | BM87: 0 | BN87: 0 | BO87: 0 | BP87: 0 | BQ87: 0 | BR87: 0 | BS87: 0 | BT87: 0 | BU87: 0 | BV87: 0 | BW87: 0 | BX87: 0 | BY87: 0 | BZ87: 226 | CA87: 100 | CB87: 6 | CC87: 0 | CD87: 3 | CE87: 0 | CF87: 0 | CU87: 100 | CV87: =MyXor(CB87,VLOOKUP(CU87,'Таблица CRC'!$A$43:$C$298,3,FALSE)) -> 2 | CW87: =MyXor(CC87,VLOOKUP(CV87,'Таблица CRC'!$A$43:$C$298,3,FALSE)) -> 188 | CX87: =MyXor(CD87,VLOOKUP(CW87,'Таблица CRC'!$A$43:$C$298,3,FALSE)) -> 146 | CY87: =MyXor(CE87,VLOOKUP(CX87,'Таблица CRC'!$A$43:$C$298,3,FALSE)) -> 173 | CZ87: =MyXor(CF87,VLOOKUP(CY87,'Таблица CRC'!$A$43:$C$298,3,FALSE)) -> 82 | DA87: =MyXor(CG87,VLOOKUP(CZ87,'Таблица CRC'!$A$43:$C$298,3,FALSE)) -> 103 | DO87: 64 06 00 03 00 00 67
A88: 228,9,227,234,238,237,237,237,237,92, | C88: =MyXor(F88,$C$1) -> 79 | D88: 228 | E88: 9 | F88: 227 | G88: 234 | H88: 238 | I88: 237 | J88: 237 | K88: 237 | L88: 237 | M88: 92 | N88: =IF(D88>127,D88-128,D88) -> 100 | O88: =E88 -> 9 | P88: =MyXor(F88,$B90) -> 172 | Q88: 165 | R88: 161 | S88: 162 | T88: 162 | U88: 162 | V88: 162 | W88: 19 | Y88: 100 | Z88: 9 | AA88: 0 | AB88: 165 | AC88: 161 | AD88: 162 | AE88: 162 | AF88: 162 | AG88: 162 | AK88: E4 08 E2 65 4A 41 4E 4F 32 | AL88: E4 | AM88: 8 | AN88: E2 | AO88: 65 | AP88: 4A | AQ88: 41 | AR88: 4E | AS88: 4F | AT88: 32 | BF88: 228 | BG88: 8 | BH88: 226 | BI88: 101 | BJ88: 74 | BK88: 65 | BL88: 78 | BM88: 79 | BN88: 50 | BO88: 0 | BP88: 0 | BQ88: 0 | BR88: 0 | BS88: 0 | BT88: 0 | BU88: 0 | BV88: 0 | BW88: 0 | BX88: 0 | BY88: 0 | BZ88: 78 | CA88: 100 | CB88: 8 | CC88: 0 | CD88: 43 | CE88: 4 | CF88: 15 | CG88: 0 | CH88: 1 | CU88: 100 | CV88: =MyXor(CB88,VLOOKUP(CU88,'Таблица CRC'!$A$43:$C$298,3,FALSE)) -> 12 | CW88: =MyXor(CC88,VLOOKUP(CV88,'Таблица CRC'!$A$43:$C$298,3,FALSE)) -> 163 | CX88: =MyXor(CD88,VLOOKUP(CW88,'Таблица CRC'!$A$43:$C$298,3,FALSE)) -> 102 | CY88: =MyXor(CE88,VLOOKUP(CX88,'Таблица CRC'!$A$43:$C$298,3,FALSE)) -> 188 | CZ88: =MyXor(CF88,VLOOKUP(CY88,'Таблица CRC'!$A$43:$C$298,3,FALSE)) -> 158 | DA88: =MyXor(CG88,VLOOKUP(CZ88,'Таблица CRC'!$A$43:$C$298,3,FALSE)) -> 14 | DB88: =MyXor(CH88,VLOOKUP(DA88,'Таблица CRC'!$A$43:$C$298,3,FALSE)) -> 30 | DC88: =MyXor(CI88,VLOOKUP(DB88,'Таблица CRC'!$A$43:$C$298,3,FALSE)) -> 130 | DO88: =CONCATENATE(DEC2HEX(CA88,2)," ",DEC2HEX(CB88,2)," ",DEC2HEX(CC88,2)," ",DEC2HEX(CD88,2)," ",DEC2HEX(CE88,2)," ",DEC2HEX(CF88,2)," ",DEC2HEX(CG88,2)," ",DEC2HEX(CH88,2)," ",DEC2HEX(DC88,2)) -> 64 08 00 2B 04 0F 00 01 82
A89: Принято в обработку | D89: Принято в обработку | Y89: =MyXor(Y88,0) -> 100 | Z89: =MyXor(Z88,VLOOKUP(Y89,'Таблица CRC'!$A$43:$C$298,3,FALSE)) -> 13 | AA89: =MyXor(AA88,VLOOKUP(Z89,'Таблица CRC'!$A$43:$C$298,3,FALSE)) -> 253 | AB89: =MyXor(AB88,VLOOKUP(AA89,'Таблица CRC'!$A$43:$C$298,3,FALSE)) -> 44 | AC89: =MyXor(AC88,VLOOKUP(AB89,'Таблица CRC'!$A$43:$C$298,3,FALSE)) -> 33 | AD89: =MyXor(AD88,VLOOKUP(AC89,'Таблица CRC'!$A$43:$C$298,3,FALSE)) -> 223 | AE89: =MyXor(AE88,VLOOKUP(AD89,'Таблица CRC'!$A$43:$C$298,3,FALSE)) -> 180 | AF89: =MyXor(AF88,VLOOKUP(AE89,'Таблица CRC'!$A$43:$C$298,3,FALSE)) -> 241 | AG89: =MyXor(AG88,VLOOKUP(AF89,'Таблица CRC'!$A$43:$C$298,3,FALSE)) -> 136 | AH89: =MyXor(AH88,VLOOKUP(AG89,'Таблица CRC'!$A$43:$C$298,3,FALSE)) -> 78 | AK89: E4 05 62 4E 4E B0 | AL89: E4 | AM89: 5 | AN89: 62 | AO89: 4E | AP89: 4E | AQ89: B0 | BF89: 228 | BG89: 5 | BH89: 98 | BI89: 78 | BJ89: 78 | BK89: 176 | BL89: 0 | BM89: 0 | BN89: 0 | BO89: 0 | BP89: 0 | BQ89: 0 | BR89: 0 | BS89: 0 | BT89: 0 | BU89: 0 | BV89: 0 | BW89: 0 | BX89: 0 | BY89: 0 | BZ89: 206 | CA89: 100 | CB89: 5 | CC89: 0 | CD89: 128 | CE89: 128 | CU89: 100 | CV89: =MyXor(CB89,VLOOKUP(CU89,'Таблица CRC'!$A$43:$C$298,3,FALSE)) -> 1 | CW89: =MyXor(CC89,VLOOKUP(CV89,'Таблица CRC'!$A$43:$C$298,3,FALSE)) -> 94 | CX89: =MyXor(CD89,VLOOKUP(CW89,'Таблица CRC'!$A$43:$C$298,3,FALSE)) -> 68 | CY89: =MyXor(CE89,VLOOKUP(CX89,'Таблица CRC'!$A$43:$C$298,3,FALSE)) -> 167 | CZ89: =MyXor(CF89,VLOOKUP(CY89,'Таблица CRC'!$A$43:$C$298,3,FALSE)) -> 44 | DO89: =CONCATENATE(DEC2HEX(CA89,2)," ",DEC2HEX(CB89,2)," ",DEC2HEX(CC89,2)," ",DEC2HEX(CD89,2)," ",DEC2HEX(CE89,2)," ",DEC2HEX(CZ89,2)) -> 64 05 00 80 80 2C
A90: ключ шифрования-79 | B90: 79 | D90: ключ шифрования-79 | Y90: =DEC2HEX(Y88,2) -> 64 | Z90: =DEC2HEX(Z88,2) -> 09 | AA90: 00 | AB90: A5 | AC90: A1 | AD90: A2 | AE90: A2 | AF90: A2 | AG90: A2 | AH90: =DEC2HEX(AH89,2) -> 4E | AI90: =CONCATENATE(Y90," ",Z90," ",AA90," ",AB90," ",AC90," ",AD90," ",AE90," ",AF90," ",AG90," ",AH90) -> 64 09 00 A5 A1 A2 A2 A2 A2 4E | AJ90: 64 05 0A 00 00 E5 | AK90: E4 06 CA 67 66 9E 6A | AL90: E4 | AM90: 6 | AN90: CA | AO90: 67 | AP90: 66 | AQ90: 9E | AR90: 6A | BF90: 228 | BG90: 6 | BH90: 202 | BI90: 103 | BJ90: 102 | BK90: 158 | BL90: 106 | BM90: 0 | BN90: 0 | BO90: 0 | BP90: 0 | BQ90: 0 | BR90: 0 | BS90: 0 | BT90: 0 | BU90: 0 | BV90: 0 | BW90: 0 | BX90: 0 | BY90: 0 | BZ90: 102 | CA90: 100 | CB90: 6 | CC90: 0 | CD90: 1 | CE90: 0 | CF90: 248 | CU90: 100 | CV90: =MyXor(CB90,VLOOKUP(CU90,'Таблица CRC'!$A$43:$C$298,3,FALSE)) -> 2 | CW90: =MyXor(CC90,VLOOKUP(CV90,'Таблица CRC'!$A$43:$C$298,3,FALSE)) -> 188 | CX90: =MyXor(CD90,VLOOKUP(CW90,'Таблица CRC'!$A$43:$C$298,3,FALSE)) -> 144 | CY90: =MyXor(CE90,VLOOKUP(CX90,'Таблица CRC'!$A$43:$C$298,3,FALSE)) -> 17 | CZ90: =MyXor(CF90,VLOOKUP(CY90,'Таблица CRC'!$A$43:$C$298,3,FALSE)) -> 59 | DA90: =MyXor(CG90,VLOOKUP(CZ90,'Таблица CRC'!$A$43:$C$298,3,FALSE)) -> 158 | DO90: 64 06 00 01 00 F8 9E
A91: zapros.s 165,161,162, | D91: zapros.s 165 | E91: 161 | F91: 162 | AK91: E4 09 68 61 76 66 66 66 66 A8 | AL91: E4 | AM91: 9 | AN91: 68 | AO91: 61 | AP91: 76 | AQ91: 66 | AR91: 66 | AS91: 66 | AT91: 66 | AU91: A8 | BF91: 228 | BG91: 9 | BH91: 104 | BI91: 97 | BJ91: 118 | BK91: 102 | BL91: 102 | BM91: 102 | BN91: 102 | BO91: 168 | BP91: 0 | BQ91: 0 | BR91: 0 | BS91: 0 | BT91: 0 | BU91: 0 | BV91: 0 | BW91: 0 | BX91: 0 | BY91: 0 | BZ91: 196 | CA91: 100 | CB91: 9 | CC91: 0 | CD91: 165 | CE91: 178 | CF91: 162 | CG91: 162 | CH91: 162 | CI91: 162 | CU91: 100 | CV91: =MyXor(CB91,VLOOKUP(CU91,'Таблица CRC'!$A$43:$C$298,3,FALSE)) -> 13 | CW91: =MyXor(CC91,VLOOKUP(CV91,'Таблица CRC'!$A$43:$C$298,3,FALSE)) -> 253 | CX91: =MyXor(CD91,VLOOKUP(CW91,'Таблица CRC'!$A$43:$C$298,3,FALSE)) -> 44 | CY91: =MyXor(CE91,VLOOKUP(CX91,'Таблица CRC'!$A$43:$C$298,3,FALSE)) -> 50 | CZ91: =MyXor(CF91,VLOOKUP(CY91,'Таблица CRC'!$A$43:$C$298,3,FALSE)) -> 160 | DA91: =MyXor(CG91,VLOOKUP(CZ91,'Таблица CRC'!$A$43:$C$298,3,FALSE)) -> 13 | DB91: =MyXor(CH91,VLOOKUP(DA91,'Таблица CRC'!$A$43:$C$298,3,FALSE)) -> 95 | DC91: =MyXor(CI91,VLOOKUP(DB91,'Таблица CRC'!$A$43:$C$298,3,FALSE)) -> 56 | DD91: =MyXor(CJ91,VLOOKUP(DC91,'Таблица CRC'!$A$43:$C$298,3,FALSE)) -> 124 | DO91: =CONCATENATE(DEC2HEX(CA91,2)," ",DEC2HEX(CB91,2)," ",DEC2HEX(CC91,2)," ",DEC2HEX(CD91,2)," ",DEC2HEX(CE91,2)," ",DEC2HEX(CF91,2)," ",DEC2HEX(CG91,2)," ",DEC2HEX(CH91,2)," ",DEC2HEX(CI91,2)," ",DEC2HEX(DD91,2)) -> 64 09 00 A5 B2 A2 A2 A2 A2 7C
A92: 228,6,65,238,237,237,221, | C92: =MyXor(F92,$C$1) -> 237 | D92: 228 | E92: 6 | F92: 65 | G92: 238 | H92: 237 | I92: 237 | J92: 221 | N92: =IF(D92>127,D92-128,D92) -> 100 | O92: =E92 -> 6 | P92: =MyXor(F92,$B94) -> 172 | Q92: 3 | R92: 0 | S92: 0 | T92: 48 | U92: 237 | V92: 237 | W92: 237 | Y92: 100 | Z92: 6 | AA92: 0 | AB92: 3 | AC92: 0 | AD92: 0 | AK92: E4 06 CA 65 66 66 6F | AL92: E4 | AM92: 6 | AN92: CA | AO92: 65 | AP92: 66 | AQ92: 66 | AR92: 6F | BF92: 228 | BG92: 6 | BH92: 202 | BI92: 101 | BJ92: 102 | BK92: 102 | BL92: 111 | BM92: 0 | BN92: 0 | BO92: 0 | BP92: 0 | BQ92: 0 | BR92: 0 | BS92: 0 | BT92: 0 | BU92: 0 | BV92: 0 | BW92: 0 | BX92: 0 | BY92: 0 | BZ92: 102 | CA92: 100 | CB92: 6 | CC92: 0 | CD92: 3 | CE92: 0 | CF92: 0 | CU92: 100 | CV92: =MyXor(CB92,VLOOKUP(CU92,'Таблица CRC'!$A$43:$C$298,3,FALSE)) -> 2 | CW92: =MyXor(CC92,VLOOKUP(CV92,'Таблица CRC'!$A$43:$C$298,3,FALSE)) -> 188 | CX92: =MyXor(CD92,VLOOKUP(CW92,'Таблица CRC'!$A$43:$C$298,3,FALSE)) -> 146 | CY92: =MyXor(CE92,VLOOKUP(CX92,'Таблица CRC'!$A$43:$C$298,3,FALSE)) -> 173 | CZ92: =MyXor(CF92,VLOOKUP(CY92,'Таблица CRC'!$A$43:$C$298,3,FALSE)) -> 82 | DA92: =MyXor(CG92,VLOOKUP(CZ92,'Таблица CRC'!$A$43:$C$298,3,FALSE)) -> 103 | DO92: 64 06 00 03 00 00 67
A93: Принято в обработку | D93: Принято в обработку | Y93: =MyXor(Y92,0) -> 100 | Z93: =MyXor(Z92,VLOOKUP(Y93,'Таблица CRC'!$A$43:$C$298,3,FALSE)) -> 2 | AA93: =MyXor(AA92,VLOOKUP(Z93,'Таблица CRC'!$A$43:$C$298,3,FALSE)) -> 188 | AB93: =MyXor(AB92,VLOOKUP(AA93,'Таблица CRC'!$A$43:$C$298,3,FALSE)) -> 146 | AC93: =MyXor(AC92,VLOOKUP(AB93,'Таблица CRC'!$A$43:$C$298,3,FALSE)) -> 173 | AD93: =MyXor(AD92,VLOOKUP(AC93,'Таблица CRC'!$A$43:$C$298,3,FALSE)) -> 82 | AE93: =MyXor(AE92,VLOOKUP(AD93,'Таблица CRC'!$A$43:$C$298,3,FALSE)) -> 103 | AK93: E4 08 63 E4 CB DF CF CE 5A | AL93: E4 | AM93: 8 | AN93: 63 | AO93: E4 | AP93: CB | AQ93: DF | AR93: CF | AS93: CE | AT93: 5A | BF93: 228 | BG93: 8 | BH93: 99 | BI93: 228 | BJ93: 203 | BK93: 223 | BL93: 207 | BM93: 206 | BN93: 90 | BO93: 0 | BP93: 0 | BQ93: 0 | BR93: 0 | BS93: 0 | BT93: 0 | BU93: 0 | BV93: 0 | BW93: 0 | BX93: 0 | BY93: 0 | BZ93: 207 | CA93: 100 | CB93: 8 | CC93: 0 | CD93: 43 | CE93: 4 | CF93: 16 | CG93: 0 | CH93: 1 | CU93: 100 | CV93: =MyXor(CB93,VLOOKUP(CU93,'Таблица CRC'!$A$43:$C$298,3,FALSE)) -> 12 | CW93: =MyXor(CC93,VLOOKUP(CV93,'Таблица CRC'!$A$43:$C$298,3,FALSE)) -> 163 | CX93: =MyXor(CD93,VLOOKUP(CW93,'Таблица CRC'!$A$43:$C$298,3,FALSE)) -> 102 | CY93: =MyXor(CE93,VLOOKUP(CX93,'Таблица CRC'!$A$43:$C$298,3,FALSE)) -> 188 | CZ93: =MyXor(CF93,VLOOKUP(CY93,'Таблица CRC'!$A$43:$C$298,3,FALSE)) -> 129 | DA93: =MyXor(CG93,VLOOKUP(CZ93,'Таблица CRC'!$A$43:$C$298,3,FALSE)) -> 210 | DB93: =MyXor(CH93,VLOOKUP(DA93,'Таблица CRC'!$A$43:$C$298,3,FALSE)) -> 234 | DC93: =MyXor(CI93,VLOOKUP(DB93,'Таблица CRC'!$A$43:$C$298,3,FALSE)) -> 151 | DO93: =CONCATENATE(DEC2HEX(CA93,2)," ",DEC2HEX(CB93,2)," ",DEC2HEX(CC93,2)," ",DEC2HEX(CD93,2)," ",DEC2HEX(CE93,2)," ",DEC2HEX(CF93,2)," ",DEC2HEX(CG93,2)," ",DEC2HEX(CH93,2)," ",DEC2HEX(DC93,2)) -> 64 08 00 2B 04 10 00 01 97
A94: ключ шифрования-237 | B94: 237 | D94: ключ шифрования-237 | Y94: =DEC2HEX(Y92,2) -> 64 | Z94: =DEC2HEX(Z92,2) -> 06 | AA94: 00 | AB94: 03 | AC94: 00 | AD94: 00 | AE94: =DEC2HEX(AE93,2) -> 67 | AI94: =CONCATENATE(Y94," ",Z94," ",AA94," ",AB94," ",AC94," ",AD94," ",AE94," ",AF94," ",AG94," ",AH94) -> 64 06 00 03 00 00 67 | AK94: E4 05 E3 CF CF 40 | AL94: E4 | AM94: 5 | AN94: E3 | AO94: CF | AP94: CF | AQ94: 40 | BF94: 228 | BG94: 5 | BH94: 227 | BI94: 207 | BJ94: 207 | BK94: 64 | BL94: 0 | BM94: 0 | BN94: 0 | BO94: 0 | BP94: 0 | BQ94: 0 | BR94: 0 | BS94: 0 | BT94: 0 | BU94: 0 | BV94: 0 | BW94: 0 | BX94: 0 | BY94: 0 | BZ94: 79 | CA94: 100 | CB94: 5 | CC94: 0 | CD94: 128 | CE94: 128 | CU94: 100 | CV94: =MyXor(CB94,VLOOKUP(CU94,'Таблица CRC'!$A$43:$C$298,3,FALSE)) -> 1 | CW94: =MyXor(CC94,VLOOKUP(CV94,'Таблица CRC'!$A$43:$C$298,3,FALSE)) -> 94 | CX94: =MyXor(CD94,VLOOKUP(CW94,'Таблица CRC'!$A$43:$C$298,3,FALSE)) -> 68 | CY94: =MyXor(CE94,VLOOKUP(CX94,'Таблица CRC'!$A$43:$C$298,3,FALSE)) -> 167 | CZ94: =MyXor(CF94,VLOOKUP(CY94,'Таблица CRC'!$A$43:$C$298,3,FALSE)) -> 44 | DO94: =CONCATENATE(DEC2HEX(CA94,2)," ",DEC2HEX(CB94,2)," ",DEC2HEX(CC94,2)," ",DEC2HEX(CD94,2)," ",DEC2HEX(CE94,2)," ",DEC2HEX(CZ94,2)) -> 64 05 00 80 80 2C
A95: zapros.s 3,0,0, | D95: zapros.s 3 | E95: 0 | F95: 0 | AK95: E4 06 DC 71 70 88 C6 | AL95: E4 | AM95: 6 | AN95: DC | AO95: 71 | AP95: 70 | AQ95: 88 | AR95: C6 | BF95: 228 | BG95: 6 | BH95: 220 | BI95: 113 | BJ95: 112 | BK95: 136 | BL95: 198 | BM95: 0 | BN95: 0 | BO95: 0 | BP95: 0 | BQ95: 0 | BR95: 0 | BS95: 0 | BT95: 0 | BU95: 0 | BV95: 0 | BW95: 0 | BX95: 0 | BY95: 0 | BZ95: 112 | CA95: 100 | CB95: 6 | CC95: 0 | CD95: 1 | CE95: 0 | CF95: 248 | CU95: 100 | CV95: =MyXor(CB95,VLOOKUP(CU95,'Таблица CRC'!$A$43:$C$298,3,FALSE)) -> 2 | CW95: =MyXor(CC95,VLOOKUP(CV95,'Таблица CRC'!$A$43:$C$298,3,FALSE)) -> 188 | CX95: =MyXor(CD95,VLOOKUP(CW95,'Таблица CRC'!$A$43:$C$298,3,FALSE)) -> 144 | CY95: =MyXor(CE95,VLOOKUP(CX95,'Таблица CRC'!$A$43:$C$298,3,FALSE)) -> 17 | CZ95: =MyXor(CF95,VLOOKUP(CY95,'Таблица CRC'!$A$43:$C$298,3,FALSE)) -> 59 | DA95: =MyXor(CG95,VLOOKUP(CZ95,'Таблица CRC'!$A$43:$C$298,3,FALSE)) -> 158 | DO95: 64 06 00 01 00 F8 9E
A96: 228,8,81,214,249,254,253,252,16, | C96: =MyXor(F96,$C$1) -> 253 | D96: 228 | E96: 8 | F96: 81 | G96: 214 | H96: 249 | I96: 254 | J96: 253 | K96: 252 | L96: 16 | N96: =IF(D96>127,D96-128,D96) -> 100 | O96: =E96 -> 8 | P96: =MyXor(F96,$B98) -> 172 | Q96: 43 | R96: 4 | S96: 3 | T96: 0 | U96: 1 | V96: 237 | W96: 253 | Y96: 100 | Z96: 8 | AA96: 0 | AB96: 43 | AC96: 4 | AD96: 3 | AE96: 0 | AF96: 1 | AK96: E4 09 7E 77 61 70 70 70 70 B5 | AL96: E4 | AM96: 9 | AN96: 7E | AO96: 77 | AP96: 61 | AQ96: 70 | AR96: 70 | AS96: 70 | AT96: 70 | AU96: B5 | BF96: 228 | BG96: 9 | BH96: 126 | BI96: 119 | BJ96: 97 | BK96: 112 | BL96: 112 | BM96: 112 | BN96: 112 | BO96: 181 | BP96: 0 | BQ96: 0 | BR96: 0 | BS96: 0 | BT96: 0 | BU96: 0 | BV96: 0 | BW96: 0 | BX96: 0 | BY96: 0 | BZ96: 210 | CA96: 100 | CB96: 9 | CC96: 0 | CD96: 165 | CE96: 179 | CF96: 162 | CG96: 162 | CH96: 162 | CI96: 162 | CU96: 100 | CV96: =MyXor(CB96,VLOOKUP(CU96,'Таблица CRC'!$A$43:$C$298,3,FALSE)) -> 13 | CW96: =MyXor(CC96,VLOOKUP(CV96,'Таблица CRC'!$A$43:$C$298,3,FALSE)) -> 253 | CX96: =MyXor(CD96,VLOOKUP(CW96,'Таблица CRC'!$A$43:$C$298,3,FALSE)) -> 44 | CY96: =MyXor(CE96,VLOOKUP(CX96,'Таблица CRC'!$A$43:$C$298,3,FALSE)) -> 51 | CZ96: =MyXor(CF96,VLOOKUP(CY96,'Таблица CRC'!$A$43:$C$298,3,FALSE)) -> 254 | DA96: =MyXor(CG96,VLOOKUP(CZ96,'Таблица CRC'!$A$43:$C$298,3,FALSE)) -> 201 | DB96: =MyXor(CH96,VLOOKUP(DA96,'Таблица CRC'!$A$43:$C$298,3,FALSE)) -> 244 | DC96: =MyXor(CI96,VLOOKUP(DB96,'Таблица CRC'!$A$43:$C$298,3,FALSE)) -> 183 | DD96: =MyXor(CJ96,VLOOKUP(DC96,'Таблица CRC'!$A$43:$C$298,3,FALSE)) -> 177 | DO96: =CONCATENATE(DEC2HEX(CA96,2)," ",DEC2HEX(CB96,2)," ",DEC2HEX(CC96,2)," ",DEC2HEX(CD96,2)," ",DEC2HEX(CE96,2)," ",DEC2HEX(CF96,2)," ",DEC2HEX(CG96,2)," ",DEC2HEX(CH96,2)," ",DEC2HEX(CI96,2)," ",DEC2HEX(DD96,2)) -> 64 09 00 A5 B3 A2 A2 A2 A2 B1
A97: Принято в обработку | D97: Принято в обработку | Y97: =MyXor(Y96,0) -> 100 | Z97: =MyXor(Z96,VLOOKUP(Y97,'Таблица CRC'!$A$43:$C$298,3,FALSE)) -> 12 | AA97: =MyXor(AA96,VLOOKUP(Z97,'Таблица CRC'!$A$43:$C$298,3,FALSE)) -> 163 | AB97: =MyXor(AB96,VLOOKUP(AA97,'Таблица CRC'!$A$43:$C$298,3,FALSE)) -> 102 | AC97: =MyXor(AC96,VLOOKUP(AB97,'Таблица CRC'!$A$43:$C$298,3,FALSE)) -> 188 | AD97: =MyXor(AD96,VLOOKUP(AC97,'Таблица CRC'!$A$43:$C$298,3,FALSE)) -> 146 | AE97: =MyXor(AE96,VLOOKUP(AD97,'Таблица CRC'!$A$43:$C$298,3,FALSE)) -> 173 | AF97: =MyXor(AF96,VLOOKUP(AE97,'Таблица CRC'!$A$43:$C$298,3,FALSE)) -> 83 | AG97: =MyXor(AG96,VLOOKUP(AF97,'Таблица CRC'!$A$43:$C$298,3,FALSE)) -> 57 | AK97: E4 06 DC 73 70 70 3F | AL97: E4 | AM97: 6 | AN97: DC | AO97: 73 | AP97: 70 | AQ97: 70 | AR97: 3F | BF97: 228 | BG97: 6 | BH97: 220 | BI97: 115 | BJ97: 112 | BK97: 112 | BL97: 63 | BM97: 0 | BN97: 0 | BO97: 0 | BP97: 0 | BQ97: 0 | BR97: 0 | BS97: 0 | BT97: 0 | BU97: 0 | BV97: 0 | BW97: 0 | BX97: 0 | BY97: 0 | BZ97: 112 | CA97: 100 | CB97: 6 | CC97: 0 | CD97: 3 | CE97: 0 | CF97: 0 | CU97: 100 | CV97: =MyXor(CB97,VLOOKUP(CU97,'Таблица CRC'!$A$43:$C$298,3,FALSE)) -> 2 | CW97: =MyXor(CC97,VLOOKUP(CV97,'Таблица CRC'!$A$43:$C$298,3,FALSE)) -> 188 | CX97: =MyXor(CD97,VLOOKUP(CW97,'Таблица CRC'!$A$43:$C$298,3,FALSE)) -> 146 | CY97: =MyXor(CE97,VLOOKUP(CX97,'Таблица CRC'!$A$43:$C$298,3,FALSE)) -> 173 | CZ97: =MyXor(CF97,VLOOKUP(CY97,'Таблица CRC'!$A$43:$C$298,3,FALSE)) -> 82 | DA97: =MyXor(CG97,VLOOKUP(CZ97,'Таблица CRC'!$A$43:$C$298,3,FALSE)) -> 103 | DO97: 64 06 00 03 00 00 67
A98: ключ шифрования-253 | B98: 253 | D98: ключ шифрования-253 | Y98: =DEC2HEX(Y96,2) -> 64 | Z98: =DEC2HEX(Z96,2) -> 08 | AA98: 00 | AB98: 2B | AC98: 04 | AD98: 03 | AE98: 00 | AF98: 01 | AG98: =DEC2HEX(AG97,2) -> 39 | AI98: =CONCATENATE(Y98," ",Z98," ",AA98," ",AB98," ",AC98," ",AD98," ",AE98," ",AF98," ",AG98," ",AH98) -> 64 08 00 2B 04 03 00 01 39 | AJ98: 64 05 2C 00 00 A0 | AK98: E4 08 99 1E 31 24 35 34 AE | AL98: E4 | AM98: 8 | AN98: 99 | AO98: 1E | AP98: 31 | AQ98: 24 | AR98: 35 | AS98: 34 | AT98: AE | BF98: 228 | BG98: 8 | BH98: 153 | BI98: 30 | BJ98: 49 | BK98: 36 | BL98: 53 | BM98: 52 | BN98: 174 | BO98: 0 | BP98: 0 | BQ98: 0 | BR98: 0 | BS98: 0 | BT98: 0 | BU98: 0 | BV98: 0 | BW98: 0 | BX98: 0 | BY98: 0 | BZ98: 53 | CA98: 100 | CB98: 8 | CC98: 0 | CD98: 43 | CE98: 4 | CF98: 17 | CG98: 0 | CH98: 1 | CU98: 100 | CV98: =MyXor(CB98,VLOOKUP(CU98,'Таблица CRC'!$A$43:$C$298,3,FALSE)) -> 12 | CW98: =MyXor(CC98,VLOOKUP(CV98,'Таблица CRC'!$A$43:$C$298,3,FALSE)) -> 163 | CX98: =MyXor(CD98,VLOOKUP(CW98,'Таблица CRC'!$A$43:$C$298,3,FALSE)) -> 102 | CY98: =MyXor(CE98,VLOOKUP(CX98,'Таблица CRC'!$A$43:$C$298,3,FALSE)) -> 188 | CZ98: =MyXor(CF98,VLOOKUP(CY98,'Таблица CRC'!$A$43:$C$298,3,FALSE)) -> 128 | DA98: =MyXor(CG98,VLOOKUP(CZ98,'Таблица CRC'!$A$43:$C$298,3,FALSE)) -> 140 | DB98: =MyXor(CH98,VLOOKUP(DA98,'Таблица CRC'!$A$43:$C$298,3,FALSE)) -> 46 | DC98: =MyXor(CI98,VLOOKUP(DB98,'Таблица CRC'!$A$43:$C$298,3,FALSE)) -> 60 | DO98: =CONCATENATE(DEC2HEX(CA98,2)," ",DEC2HEX(CB98,2)," ",DEC2HEX(CC98,2)," ",DEC2HEX(CD98,2)," ",DEC2HEX(CE98,2)," ",DEC2HEX(CF98,2)," ",DEC2HEX(CG98,2)," ",DEC2HEX(CH98,2)," ",DEC2HEX(DC98,2)) -> 64 08 00 2B 04 11 00 01 3C
A99: zapros.s 43,4,3, | D99: zapros.s 43 | E99: 4 | F99: 3 | AK99: E4 05 19 35 35 D3 | AL99: E4 | AM99: 5 | AN99: 19 | AO99: 35 | AP99: 35 | AQ99: D3 | BF99: 228 | BG99: 5 | BH99: 25 | BI99: 53 | BJ99: 53 | BK99: 211 | BL99: 0 | BM99: 0 | BN99: 0 | BO99: 0 | BP99: 0 | BQ99: 0 | BR99: 0 | BS99: 0 | BT99: 0 | BU99: 0 | BV99: 0 | BW99: 0 | BX99: 0 | BY99: 0 | BZ99: 181 | CA99: 100 | CB99: 5 | CC99: 0 | CD99: 128 | CE99: 128 | CU99: 100 | CV99: =MyXor(CB99,VLOOKUP(CU99,'Таблица CRC'!$A$43:$C$298,3,FALSE)) -> 1 | CW99: =MyXor(CC99,VLOOKUP(CV99,'Таблица CRC'!$A$43:$C$298,3,FALSE)) -> 94 | CX99: =MyXor(CD99,VLOOKUP(CW99,'Таблица CRC'!$A$43:$C$298,3,FALSE)) -> 68 | CY99: =MyXor(CE99,VLOOKUP(CX99,'Таблица CRC'!$A$43:$C$298,3,FALSE)) -> 167 | CZ99: =MyXor(CF99,VLOOKUP(CY99,'Таблица CRC'!$A$43:$C$298,3,FALSE)) -> 44 | DO99: =CONCATENATE(DEC2HEX(CA99,2)," ",DEC2HEX(CB99,2)," ",DEC2HEX(CC99,2)," ",DEC2HEX(CD99,2)," ",DEC2HEX(CE99,2)," ",DEC2HEX(CZ99,2)) -> 64 05 00 80 80 2C
A100: 228,5,209,253,253,111, | C100: =MyXor(F100,$C$1) -> 125 | D100: 228 | E100: 5 | F100: 209 | G100: 253 | H100: 253 | I100: 111 | N100: =IF(D100>127,D100-128,D100) -> 100 | O100: =E100 -> 5 | P100: =MyXor(F100,$B102) -> 172 | Q100: 128 | R100: 128 | S100: 18 | T100: 125 | U100: 125 | V100: 125 | W100: 125 | Y100: 100 | Z100: 5 | AA100: 0 | AB100: 128 | AC100: 128 | AK100: E4 06 82 2F 2E D6 EB | AL100: E4 | AM100: 6 | AN100: 82 | AO100: 2F | AP100: 2E | AQ100: D6 | AR100: EB | BF100: 228 | BG100: 6 | BH100: 130 | BI100: 47 | BJ100: 46 | BK100: 214 | BL100: 235 | BM100: 0 | BN100: 0 | BO100: 0 | BP100: 0 | BQ100: 0 | BR100: 0 | BS100: 0 | BT100: 0 | BU100: 0 | BV100: 0 | BW100: 0 | BX100: 0 | BY100: 0 | BZ100: 46 | CA100: 100 | CB100: 6 | CC100: 0 | CD100: 1 | CE100: 0 | CF100: 248 | CU100: 100 | CV100: =MyXor(CB100,VLOOKUP(CU100,'Таблица CRC'!$A$43:$C$298,3,FALSE)) -> 2 | CW100: =MyXor(CC100,VLOOKUP(CV100,'Таблица CRC'!$A$43:$C$298,3,FALSE)) -> 188 | CX100: =MyXor(CD100,VLOOKUP(CW100,'Таблица CRC'!$A$43:$C$298,3,FALSE)) -> 144 | CY100: =MyXor(CE100,VLOOKUP(CX100,'Таблица CRC'!$A$43:$C$298,3,FALSE)) -> 17 | CZ100: =MyXor(CF100,VLOOKUP(CY100,'Таблица CRC'!$A$43:$C$298,3,FALSE)) -> 59 | DA100: =MyXor(CG100,VLOOKUP(CZ100,'Таблица CRC'!$A$43:$C$298,3,FALSE)) -> 158 | DO100: 64 06 00 01 00 F8 9E
A101: Принято в обработку | D101: Принято в обработку | Y101: =MyXor(Y100,0) -> 100 | Z101: =MyXor(Z100,VLOOKUP(Y101,'Таблица CRC'!$A$43:$C$298,3,FALSE)) -> 1 | AA101: =MyXor(AA100,VLOOKUP(Z101,'Таблица CRC'!$A$43:$C$298,3,FALSE)) -> 94 | AB101: =MyXor(AB100,VLOOKUP(AA101,'Таблица CRC'!$A$43:$C$298,3,FALSE)) -> 68 | AC101: =MyXor(AC100,VLOOKUP(AB101,'Таблица CRC'!$A$43:$C$298,3,FALSE)) -> 167 | AD101: =MyXor(AD100,VLOOKUP(AC101,'Таблица CRC'!$A$43:$C$298,3,FALSE)) -> 44 | AK101: E4 09 20 29 3C 2E 2E 2E 2E 9F | AL101: E4 | AM101: 9 | AN101: 20 | AO101: 29 | AP101: 3C | AQ101: 2E | AR101: 2E | AS101: 2E | AT101: 2E | AU101: 9F | BF101: 228 | BG101: 9 | BH101: 32 | BI101: 41 | BJ101: 60 | BK101: 46 | BL101: 46 | BM101: 46 | BN101: 46 | BO101: 159 | BP101: 0 | BQ101: 0 | BR101: 0 | BS101: 0 | BT101: 0 | BU101: 0 | BV101: 0 | BW101: 0 | BX101: 0 | BY101: 0 | BZ101: 140 | CA101: 100 | CB101: 9 | CC101: 0 | CD101: 165 | CE101: 176 | CF101: 162 | CG101: 162 | CH101: 162 | CI101: 162 | CU101: 100 | CV101: =MyXor(CB101,VLOOKUP(CU101,'Таблица CRC'!$A$43:$C$298,3,FALSE)) -> 13 | CW101: =MyXor(CC101,VLOOKUP(CV101,'Таблица CRC'!$A$43:$C$298,3,FALSE)) -> 253 | CX101: =MyXor(CD101,VLOOKUP(CW101,'Таблица CRC'!$A$43:$C$298,3,FALSE)) -> 44 | CY101: =MyXor(CE101,VLOOKUP(CX101,'Таблица CRC'!$A$43:$C$298,3,FALSE)) -> 48 | CZ101: =MyXor(CF101,VLOOKUP(CY101,'Таблица CRC'!$A$43:$C$298,3,FALSE)) -> 28 | DA101: =MyXor(CG101,VLOOKUP(CZ101,'Таблица CRC'!$A$43:$C$298,3,FALSE)) -> 156 | DB101: =MyXor(CH101,VLOOKUP(DA101,'Таблица CRC'!$A$43:$C$298,3,FALSE)) -> 16 | DC101: =MyXor(CI101,VLOOKUP(DB101,'Таблица CRC'!$A$43:$C$298,3,FALSE)) -> 63 | DD101: =MyXor(CJ101,VLOOKUP(DC101,'Таблица CRC'!$A$43:$C$298,3,FALSE)) -> 255 | DO101: =CONCATENATE(DEC2HEX(CA101,2)," ",DEC2HEX(CB101,2)," ",DEC2HEX(CC101,2)," ",DEC2HEX(CD101,2)," ",DEC2HEX(CE101,2)," ",DEC2HEX(CF101,2)," ",DEC2HEX(CG101,2)," ",DEC2HEX(CH101,2)," ",DEC2HEX(CI101,2)," ",DEC2HEX(DD101,2)) -> 64 09 00 A5 B0 A2 A2 A2 A2 FF
A102: otvet 44,0,0, | B102: 125 | D102: otvet 44 | E102: 0 | F102: 0 | Y102: =DEC2HEX(Y100,2) -> 64 | Z102: =DEC2HEX(Z100,2) -> 05 | AA102: 00 | AB102: 80 | AC102: 80 | AD102: =DEC2HEX(AD101,2) -> 2C | AI102: =CONCATENATE(Y102," ",Z102," ",AA102," ",AB102," ",AC102," ",AD102," ",AE102," ",AF102," ",AG102," ",AH102) -> 64 05 00 80 80 2C | AK102: E4 06 82 2D 2E 2E 12 | AL102: E4 | AM102: 6 | AN102: 82 | AO102: 2D | AP102: 2E | AQ102: 2E | AR102: 12 | BF102: 228 | BG102: 6 | BH102: 130 | BI102: 45 | BJ102: 46 | BK102: 46 | BL102: 18 | BM102: 0 | BN102: 0 | BO102: 0 | BP102: 0 | BQ102: 0 | BR102: 0 | BS102: 0 | BT102: 0 | BU102: 0 | BV102: 0 | BW102: 0 | BX102: 0 | BY102: 0 | BZ102: 46 | CA102: 100 | CB102: 6 | CC102: 0 | CD102: 3 | CE102: 0 | CF102: 0 | CU102: 100 | CV102: =MyXor(CB102,VLOOKUP(CU102,'Таблица CRC'!$A$43:$C$298,3,FALSE)) -> 2 | CW102: =MyXor(CC102,VLOOKUP(CV102,'Таблица CRC'!$A$43:$C$298,3,FALSE)) -> 188 | CX102: =MyXor(CD102,VLOOKUP(CW102,'Таблица CRC'!$A$43:$C$298,3,FALSE)) -> 146 | CY102: =MyXor(CE102,VLOOKUP(CX102,'Таблица CRC'!$A$43:$C$298,3,FALSE)) -> 173 | CZ102: =MyXor(CF102,VLOOKUP(CY102,'Таблица CRC'!$A$43:$C$298,3,FALSE)) -> 82 | DA102: =MyXor(CG102,VLOOKUP(CZ102,'Таблица CRC'!$A$43:$C$298,3,FALSE)) -> 103 | DO102: 64 06 00 03 00 00 67
A103: 228,6,190,19,18,234,169, | C103: =MyXor(F103,$C$1) -> 18 | D103: 228 | E103: 6 | F103: 190 | G103: 19 | H103: 18 | I103: 234 | J103: 169 | N103: =IF(D103>127,D103-128,D103) -> 100 | O103: =E103 -> 6 | P103: =MyXor(F103,$B105) -> 172 | Q103: 1 | R103: 0 | S103: 248 | T103: 187 | U103: 18 | V103: 18 | W103: 18 | Y103: 100 | Z103: 6 | AA103: 0 | AB103: 1 | AC103: 0 | AD103: 248 | AK103: E4 08 D7 50 7F 69 7B 7A 49 | AL103: E4 | AM103: 8 | AN103: D7 | AO103: 50 | AP103: 7F | AQ103: 69 | AR103: 7B | AS103: 7A | AT103: 49 | BF103: 228 | BG103: 8 | BH103: 215 | BI103: 80 | BJ103: 127 | BK103: 105 | BL103: 123 | BM103: 122 | BN103: 73 | BO103: 0 | BP103: 0 | BQ103: 0 | BR103: 0 | BS103: 0 | BT103: 0 | BU103: 0 | BV103: 0 | BW103: 0 | BX103: 0 | BY103: 0 | BZ103: 123 | CA103: 100 | CB103: 8 | CC103: 0 | CD103: 43 | CE103: 4 | CF103: 18 | CG103: 0 | CH103: 1 | CU103: 100 | CV103: =MyXor(CB103,VLOOKUP(CU103,'Таблица CRC'!$A$43:$C$298,3,FALSE)) -> 12 | CW103: =MyXor(CC103,VLOOKUP(CV103,'Таблица CRC'!$A$43:$C$298,3,FALSE)) -> 163 | CX103: =MyXor(CD103,VLOOKUP(CW103,'Таблица CRC'!$A$43:$C$298,3,FALSE)) -> 102 | CY103: =MyXor(CE103,VLOOKUP(CX103,'Таблица CRC'!$A$43:$C$298,3,FALSE)) -> 188 | CZ103: =MyXor(CF103,VLOOKUP(CY103,'Таблица CRC'!$A$43:$C$298,3,FALSE)) -> 131 | DA103: =MyXor(CG103,VLOOKUP(CZ103,'Таблица CRC'!$A$43:$C$298,3,FALSE)) -> 110 | DB103: =MyXor(CH103,VLOOKUP(DA103,'Таблица CRC'!$A$43:$C$298,3,FALSE)) -> 123 | DC103: =MyXor(CI103,VLOOKUP(DB103,'Таблица CRC'!$A$43:$C$298,3,FALSE)) -> 216 | DO103: =CONCATENATE(DEC2HEX(CA103,2)," ",DEC2HEX(CB103,2)," ",DEC2HEX(CC103,2)," ",DEC2HEX(CD103,2)," ",DEC2HEX(CE103,2)," ",DEC2HEX(CF103,2)," ",DEC2HEX(CG103,2)," ",DEC2HEX(CH103,2)," ",DEC2HEX(DC103,2)) -> 64 08 00 2B 04 12 00 01 D8
A104: Принято в обработку | D104: Принято в обработку | Y104: =MyXor(Y103,0) -> 100 | Z104: =MyXor(Z103,VLOOKUP(Y104,'Таблица CRC'!$A$43:$C$298,3,FALSE)) -> 2 | AA104: =MyXor(AA103,VLOOKUP(Z104,'Таблица CRC'!$A$43:$C$298,3,FALSE)) -> 188 | AB104: =MyXor(AB103,VLOOKUP(AA104,'Таблица CRC'!$A$43:$C$298,3,FALSE)) -> 144 | AC104: =MyXor(AC103,VLOOKUP(AB104,'Таблица CRC'!$A$43:$C$298,3,FALSE)) -> 17 | AD104: =MyXor(AD103,VLOOKUP(AC104,'Таблица CRC'!$A$43:$C$298,3,FALSE)) -> 59 | AE104: =MyXor(AE103,VLOOKUP(AD104,'Таблица CRC'!$A$43:$C$298,3,FALSE)) -> 158 | AK104: E4 05 57 7B 7B 08 | AL104: E4 | AM104: 5 | AN104: 57 | AO104: 7B | AP104: 7B | AQ104: 8 | BF104: 228 | BG104: 5 | BH104: 87 | BI104: 123 | BJ104: 123 | BK104: 8 | BL104: 0 | BM104: 0 | BN104: 0 | BO104: 0 | BP104: 0 | BQ104: 0 | BR104: 0 | BS104: 0 | BT104: 0 | BU104: 0 | BV104: 0 | BW104: 0 | BX104: 0 | BY104: 0 | BZ104: 251 | CA104: 100 | CB104: 5 | CC104: 0 | CD104: 128 | CE104: 128 | CU104: 100 | CV104: =MyXor(CB104,VLOOKUP(CU104,'Таблица CRC'!$A$43:$C$298,3,FALSE)) -> 1 | CW104: =MyXor(CC104,VLOOKUP(CV104,'Таблица CRC'!$A$43:$C$298,3,FALSE)) -> 94 | CX104: =MyXor(CD104,VLOOKUP(CW104,'Таблица CRC'!$A$43:$C$298,3,FALSE)) -> 68 | CY104: =MyXor(CE104,VLOOKUP(CX104,'Таблица CRC'!$A$43:$C$298,3,FALSE)) -> 167 | CZ104: =MyXor(CF104,VLOOKUP(CY104,'Таблица CRC'!$A$43:$C$298,3,FALSE)) -> 44 | DO104: =CONCATENATE(DEC2HEX(CA104,2)," ",DEC2HEX(CB104,2)," ",DEC2HEX(CC104,2)," ",DEC2HEX(CD104,2)," ",DEC2HEX(CE104,2)," ",DEC2HEX(CZ104,2)) -> 64 05 00 80 80 2C
A105: ключ шифрования-18 | B105: 18 | D105: ключ шифрования-18 | Y105: =DEC2HEX(Y103,2) -> 64 | Z105: =DEC2HEX(Z103,2) -> 06 | AA105: 00 | AB105: 01 | AC105: 00 | AD105: F8 | AE105: =DEC2HEX(AE104,2) -> 9E | AI105: =CONCATENATE(Y105," ",Z105," ",AA105," ",AB105," ",AC105," ",AD105," ",AE105," ",AF105," ",AG105," ",AH105) -> 64 06 00 01 00 F8 9E | AJ105: 64 05 02 00 00 C0 | AK105: E4 06 C8 65 64 9C 0F | AL105: E4 | AM105: 6 | AN105: C8 | AO105: 65 | AP105: 64 | AQ105: 9C | AR105: 0F | BF105: 228 | BG105: 6 | BH105: 200 | BI105: 101 | BJ105: 100 | BK105: 156 | BL105: 15 | BM105: 0 | BN105: 0 | BO105: 0 | BP105: 0 | BQ105: 0 | BR105: 0 | BS105: 0 | BT105: 0 | BU105: 0 | BV105: 0 | BW105: 0 | BX105: 0 | BY105: 0 | BZ105: 100 | CA105: 100 | CB105: 6 | CC105: 0 | CD105: 1 | CE105: 0 | CF105: 248 | CU105: 100 | CV105: =MyXor(CB105,VLOOKUP(CU105,'Таблица CRC'!$A$43:$C$298,3,FALSE)) -> 2 | CW105: =MyXor(CC105,VLOOKUP(CV105,'Таблица CRC'!$A$43:$C$298,3,FALSE)) -> 188 | CX105: =MyXor(CD105,VLOOKUP(CW105,'Таблица CRC'!$A$43:$C$298,3,FALSE)) -> 144 | CY105: =MyXor(CE105,VLOOKUP(CX105,'Таблица CRC'!$A$43:$C$298,3,FALSE)) -> 17 | CZ105: =MyXor(CF105,VLOOKUP(CY105,'Таблица CRC'!$A$43:$C$298,3,FALSE)) -> 59 | DA105: =MyXor(CG105,VLOOKUP(CZ105,'Таблица CRC'!$A$43:$C$298,3,FALSE)) -> 158 | DO105: 64 06 00 01 00 F8 9E
A106: zapros.s 1,0,248, | D106: zapros.s 1 | E106: 0 | F106: 248 | AK106: E4 09 6A 63 77 64 64 64 64 14 | AL106: E4 | AM106: 9 | AN106: 6A | AO106: 63 | AP106: 77 | AQ106: 64 | AR106: 64 | AS106: 64 | AT106: 64 | AU106: 14 | BF106: 228 | BG106: 9 | BH106: 106 | BI106: 99 | BJ106: 119 | BK106: 100 | BL106: 100 | BM106: 100 | BN106: 100 | BO106: 20 | BP106: 0 | BQ106: 0 | BR106: 0 | BS106: 0 | BT106: 0 | BU106: 0 | BV106: 0 | BW106: 0 | BX106: 0 | BY106: 0 | BZ106: 198 | CA106: 100 | CB106: 9 | CC106: 0 | CD106: 165 | CE106: 177 | CF106: 162 | CG106: 162 | CH106: 162 | CI106: 162 | CU106: 100 | CV106: =MyXor(CB106,VLOOKUP(CU106,'Таблица CRC'!$A$43:$C$298,3,FALSE)) -> 13 | CW106: =MyXor(CC106,VLOOKUP(CV106,'Таблица CRC'!$A$43:$C$298,3,FALSE)) -> 253 | CX106: =MyXor(CD106,VLOOKUP(CW106,'Таблица CRC'!$A$43:$C$298,3,FALSE)) -> 44 | CY106: =MyXor(CE106,VLOOKUP(CX106,'Таблица CRC'!$A$43:$C$298,3,FALSE)) -> 49 | CZ106: =MyXor(CF106,VLOOKUP(CY106,'Таблица CRC'!$A$43:$C$298,3,FALSE)) -> 66 | DA106: =MyXor(CG106,VLOOKUP(CZ106,'Таблица CRC'!$A$43:$C$298,3,FALSE)) -> 88 | DB106: =MyXor(CH106,VLOOKUP(DA106,'Таблица CRC'!$A$43:$C$298,3,FALSE)) -> 187 | DC106: =MyXor(CI106,VLOOKUP(DB106,'Таблица CRC'!$A$43:$C$298,3,FALSE)) -> 176 | DD106: =MyXor(CJ106,VLOOKUP(DC106,'Таблица CRC'!$A$43:$C$298,3,FALSE)) -> 50 | DO106: =CONCATENATE(DEC2HEX(CA106,2)," ",DEC2HEX(CB106,2)," ",DEC2HEX(CC106,2)," ",DEC2HEX(CD106,2)," ",DEC2HEX(CE106,2)," ",DEC2HEX(CF106,2)," ",DEC2HEX(CG106,2)," ",DEC2HEX(CH106,2)," ",DEC2HEX(CI106,2)," ",DEC2HEX(DD106,2)) -> 64 09 00 A5 B1 A2 A2 A2 A2 32
A107: ОТВЕТ ЭМУЛЯТОРА 16,17,18, | D107: ОТВЕТ ЭМУЛЯТОРА 16 | E107: 17 | F107: 18 | AK107: E4 06 C8 67 64 64 F6 | AL107: E4 | AM107: 6 | AN107: C8 | AO107: 67 | AP107: 64 | AQ107: 64 | AR107: F6 | BF107: 228 | BG107: 6 | BH107: 200 | BI107: 103 | BJ107: 100 | BK107: 100 | BL107: 246 | BM107: 0 | BN107: 0 | BO107: 0 | BP107: 0 | BQ107: 0 | BR107: 0 | BS107: 0 | BT107: 0 | BU107: 0 | BV107: 0 | BW107: 0 | BX107: 0 | BY107: 0 | BZ107: 100 | CA107: 100 | CB107: 6 | CC107: 0 | CD107: 3 | CE107: 0 | CF107: 0 | CU107: 100 | CV107: =MyXor(CB107,VLOOKUP(CU107,'Таблица CRC'!$A$43:$C$298,3,FALSE)) -> 2 | CW107: =MyXor(CC107,VLOOKUP(CV107,'Таблица CRC'!$A$43:$C$298,3,FALSE)) -> 188 | CX107: =MyXor(CD107,VLOOKUP(CW107,'Таблица CRC'!$A$43:$C$298,3,FALSE)) -> 146 | CY107: =MyXor(CE107,VLOOKUP(CX107,'Таблица CRC'!$A$43:$C$298,3,FALSE)) -> 173 | CZ107: =MyXor(CF107,VLOOKUP(CY107,'Таблица CRC'!$A$43:$C$298,3,FALSE)) -> 82 | DA107: =MyXor(CG107,VLOOKUP(CZ107,'Таблица CRC'!$A$43:$C$298,3,FALSE)) -> 103 | DO107: 64 06 00 03 00 00 67
A108: 228,9,28,21,22,18,18,18,18,25, | C108: =MyXor(F108,$C$1) -> 176 | D108: 228 | E108: 9 | F108: 28 | G108: 21 | H108: 22 | I108: 18 | J108: 18 | K108: 18 | L108: 18 | M108: 25 | N108: =IF(D108>127,D108-128,D108) -> 100 | O108: =E108 -> 9 | P108: =MyXor(F108,$B110) -> 172 | Q108: 165 | R108: 166 | S108: 162 | T108: 162 | U108: 162 | V108: 162 | W108: 169 | Y108: 100 | Z108: 9 | AA108: 0 | AB108: 165 | AC108: 166 | AD108: 162 | AE108: 162 | AF108: 162 | AG108: 162 | AK108: E4 08 98 1F 30 27 34 35 A5 | AL108: E4 | AM108: 8 | AN108: 98 | AO108: 1F | AP108: 30 | AQ108: 27 | AR108: 34 | AS108: 35 | AT108: A5 | BF108: 228 | BG108: 8 | BH108: 152 | BI108: 31 | BJ108: 48 | BK108: 39 | BL108: 52 | BM108: 53 | BN108: 165 | BO108: 0 | BP108: 0 | BQ108: 0 | BR108: 0 | BS108: 0 | BT108: 0 | BU108: 0 | BV108: 0 | BW108: 0 | BX108: 0 | BY108: 0 | BZ108: 52 | CA108: 100 | CB108: 8 | CC108: 0 | CD108: 43 | CE108: 4 | CF108: 19 | CG108: 0 | CH108: 1 | CU108: 100 | CV108: =MyXor(CB108,VLOOKUP(CU108,'Таблица CRC'!$A$43:$C$298,3,FALSE)) -> 12 | CW108: =MyXor(CC108,VLOOKUP(CV108,'Таблица CRC'!$A$43:$C$298,3,FALSE)) -> 163 | CX108: =MyXor(CD108,VLOOKUP(CW108,'Таблица CRC'!$A$43:$C$298,3,FALSE)) -> 102 | CY108: =MyXor(CE108,VLOOKUP(CX108,'Таблица CRC'!$A$43:$C$298,3,FALSE)) -> 188 | CZ108: =MyXor(CF108,VLOOKUP(CY108,'Таблица CRC'!$A$43:$C$298,3,FALSE)) -> 130 | DA108: =MyXor(CG108,VLOOKUP(CZ108,'Таблица CRC'!$A$43:$C$298,3,FALSE)) -> 48 | DB108: =MyXor(CH108,VLOOKUP(DA108,'Таблица CRC'!$A$43:$C$298,3,FALSE)) -> 191 | DC108: =MyXor(CI108,VLOOKUP(DB108,'Таблица CRC'!$A$43:$C$298,3,FALSE)) -> 115 | DO108: =CONCATENATE(DEC2HEX(CA108,2)," ",DEC2HEX(CB108,2)," ",DEC2HEX(CC108,2)," ",DEC2HEX(CD108,2)," ",DEC2HEX(CE108,2)," ",DEC2HEX(CF108,2)," ",DEC2HEX(CG108,2)," ",DEC2HEX(CH108,2)," ",DEC2HEX(DC108,2)) -> 64 08 00 2B 04 13 00 01 73
A109: Принято в обработку | D109: Принято в обработку | Y109: =MyXor(Y108,0) -> 100 | Z109: =MyXor(Z108,VLOOKUP(Y109,'Таблица CRC'!$A$43:$C$298,3,FALSE)) -> 13 | AA109: =MyXor(AA108,VLOOKUP(Z109,'Таблица CRC'!$A$43:$C$298,3,FALSE)) -> 253 | AB109: =MyXor(AB108,VLOOKUP(AA109,'Таблица CRC'!$A$43:$C$298,3,FALSE)) -> 44 | AC109: =MyXor(AC108,VLOOKUP(AB109,'Таблица CRC'!$A$43:$C$298,3,FALSE)) -> 38 | AD109: =MyXor(AD108,VLOOKUP(AC109,'Таблица CRC'!$A$43:$C$298,3,FALSE)) -> 92 | AE109: =MyXor(AE108,VLOOKUP(AD109,'Таблица CRC'!$A$43:$C$298,3,FALSE)) -> 218 | AF109: =MyXor(AF108,VLOOKUP(AE109,'Таблица CRC'!$A$43:$C$298,3,FALSE)) -> 139 | AG109: =MyXor(AG108,VLOOKUP(AF109,'Таблица CRC'!$A$43:$C$298,3,FALSE)) -> 14 | AH109: =MyXor(AH108,VLOOKUP(AG109,'Таблица CRC'!$A$43:$C$298,3,FALSE)) -> 31 | AK109: E4 05 18 34 34 E2 | AL109: E4 | AM109: 5 | AN109: 18 | AO109: 34 | AP109: 34 | AQ109: E2 | BF109: 228 | BG109: 5 | BH109: 24 | BI109: 52 | BJ109: 52 | BK109: 226 | BL109: 0 | BM109: 0 | BN109: 0 | BO109: 0 | BP109: 0 | BQ109: 0 | BR109: 0 | BS109: 0 | BT109: 0 | BU109: 0 | BV109: 0 | BW109: 0 | BX109: 0 | BY109: 0 | BZ109: 180 | CA109: 100 | CB109: 5 | CC109: 0 | CD109: 128 | CE109: 128 | CU109: 100 | CV109: =MyXor(CB109,VLOOKUP(CU109,'Таблица CRC'!$A$43:$C$298,3,FALSE)) -> 1 | CW109: =MyXor(CC109,VLOOKUP(CV109,'Таблица CRC'!$A$43:$C$298,3,FALSE)) -> 94 | CX109: =MyXor(CD109,VLOOKUP(CW109,'Таблица CRC'!$A$43:$C$298,3,FALSE)) -> 68 | CY109: =MyXor(CE109,VLOOKUP(CX109,'Таблица CRC'!$A$43:$C$298,3,FALSE)) -> 167 | CZ109: =MyXor(CF109,VLOOKUP(CY109,'Таблица CRC'!$A$43:$C$298,3,FALSE)) -> 44 | DO109: =CONCATENATE(DEC2HEX(CA109,2)," ",DEC2HEX(CB109,2)," ",DEC2HEX(CC109,2)," ",DEC2HEX(CD109,2)," ",DEC2HEX(CE109,2)," ",DEC2HEX(CZ109,2)) -> 64 05 00 80 80 2C
A110: ключ шифрования-176 | B110: 176 | D110: ключ шифрования-176 | Y110: =DEC2HEX(Y108,2) -> 64 | Z110: =DEC2HEX(Z108,2) -> 09 | AA110: 00 | AB110: A5 | AC110: A6 | AD110: A2 | AE110: A2 | AF110: A2 | AG110: A2 | AH110: =DEC2HEX(AH109,2) -> 1F | AI110: =CONCATENATE(Y110," ",Z110," ",AA110," ",AB110," ",AC110," ",AD110," ",AE110," ",AF110," ",AG110," ",AH110) -> 64 09 00 A5 A6 A2 A2 A2 A2 1F | AJ110: 64 05 0A 00 00 E5 | AK110: E4 06 72 DF DE 26 FA | AL110: E4 | AM110: 6 | AN110: 72 | AO110: DF | AP110: DE | AQ110: 26 | AR110: FA | BF110: 228 | BG110: 6 | BH110: 114 | BI110: 223 | BJ110: 222 | BK110: 38 | BL110: 250 | BM110: 0 | BN110: 0 | BO110: 0 | BP110: 0 | BQ110: 0 | BR110: 0 | BS110: 0 | BT110: 0 | BU110: 0 | BV110: 0 | BW110: 0 | BX110: 0 | BY110: 0 | BZ110: 222 | CA110: 100 | CB110: 6 | CC110: 0 | CD110: 1 | CE110: 0 | CF110: 248 | CU110: 100 | CV110: =MyXor(CB110,VLOOKUP(CU110,'Таблица CRC'!$A$43:$C$298,3,FALSE)) -> 2 | CW110: =MyXor(CC110,VLOOKUP(CV110,'Таблица CRC'!$A$43:$C$298,3,FALSE)) -> 188 | CX110: =MyXor(CD110,VLOOKUP(CW110,'Таблица CRC'!$A$43:$C$298,3,FALSE)) -> 144 | CY110: =MyXor(CE110,VLOOKUP(CX110,'Таблица CRC'!$A$43:$C$298,3,FALSE)) -> 17 | CZ110: =MyXor(CF110,VLOOKUP(CY110,'Таблица CRC'!$A$43:$C$298,3,FALSE)) -> 59 | DA110: =MyXor(CG110,VLOOKUP(CZ110,'Таблица CRC'!$A$43:$C$298,3,FALSE)) -> 158 | DO110: 64 06 00 01 00 F8 9E
A111: zapros.s 165,166,162, | D111: zapros.s 165 | E111: 166 | F111: 162 | AK111: E4 09 D0 D9 CA DE DE DE DE 82 | AL111: E4 | AM111: 9 | AN111: D0 | AO111: D9 | AP111: CA | AQ111: DE | AR111: DE | AS111: DE | AT111: DE | AU111: 82 | BF111: 228 | BG111: 9 | BH111: 208 | BI111: 217 | BJ111: 202 | BK111: 222 | BL111: 222 | BM111: 222 | BN111: 222 | BO111: 130 | BP111: 0 | BQ111: 0 | BR111: 0 | BS111: 0 | BT111: 0 | BU111: 0 | BV111: 0 | BW111: 0 | BX111: 0 | BY111: 0 | BZ111: 124 | CA111: 100 | CB111: 9 | CC111: 0 | CD111: 165 | CE111: 182 | CF111: 162 | CG111: 162 | CH111: 162 | CI111: 162 | CU111: 100 | CV111: =MyXor(CB111,VLOOKUP(CU111,'Таблица CRC'!$A$43:$C$298,3,FALSE)) -> 13 | CW111: =MyXor(CC111,VLOOKUP(CV111,'Таблица CRC'!$A$43:$C$298,3,FALSE)) -> 253 | CX111: =MyXor(CD111,VLOOKUP(CW111,'Таблица CRC'!$A$43:$C$298,3,FALSE)) -> 44 | CY111: =MyXor(CE111,VLOOKUP(CX111,'Таблица CRC'!$A$43:$C$298,3,FALSE)) -> 54 | CZ111: =MyXor(CF111,VLOOKUP(CY111,'Таблица CRC'!$A$43:$C$298,3,FALSE)) -> 193 | DA111: =MyXor(CG111,VLOOKUP(CZ111,'Таблица CRC'!$A$43:$C$298,3,FALSE)) -> 54 | DB111: =MyXor(CH111,VLOOKUP(DA111,'Таблица CRC'!$A$43:$C$298,3,FALSE)) -> 193 | DC111: =MyXor(CI111,VLOOKUP(DB111,'Таблица CRC'!$A$43:$C$298,3,FALSE)) -> 54 | DD111: =MyXor(CJ111,VLOOKUP(DC111,'Таблица CRC'!$A$43:$C$298,3,FALSE)) -> 99 | DO111: =CONCATENATE(DEC2HEX(CA111,2)," ",DEC2HEX(CB111,2)," ",DEC2HEX(CC111,2)," ",DEC2HEX(CD111,2)," ",DEC2HEX(CE111,2)," ",DEC2HEX(CF111,2)," ",DEC2HEX(CG111,2)," ",DEC2HEX(CH111,2)," ",DEC2HEX(CI111,2)," ",DEC2HEX(DD111,2)) -> 64 09 00 A5 B6 A2 A2 A2 A2 63
A112: 228,6,190,17,18,18,80, | C112: =MyXor(F112,$C$1) -> 18 | D112: 228 | E112: 6 | F112: 190 | G112: 17 | H112: 18 | I112: 18 | J112: 80 | N112: =IF(D112>127,D112-128,D112) -> 100 | O112: =E112 -> 6 | P112: =MyXor(F112,$B114) -> 172 | Q112: 3 | R112: 0 | S112: 0 | T112: 66 | U112: 18 | V112: 18 | W112: 18 | Y112: 100 | Z112: 6 | AA112: 0 | AB112: 3 | AC112: 0 | AD112: 0 | AK112: E4 06 72 DD DE DE 03 | AL112: E4 | AM112: 6 | AN112: 72 | AO112: DD | AP112: DE | AQ112: DE | AR112: 3 | BF112: 228 | BG112: 6 | BH112: 114 | BI112: 221 | BJ112: 222 | BK112: 222 | BL112: 3 | BM112: 0 | BN112: 0 | BO112: 0 | BP112: 0 | BQ112: 0 | BR112: 0 | BS112: 0 | BT112: 0 | BU112: 0 | BV112: 0 | BW112: 0 | BX112: 0 | BY112: 0 | BZ112: 222 | CA112: 100 | CB112: 6 | CC112: 0 | CD112: 3 | CE112: 0 | CF112: 0 | CU112: 100 | CV112: =MyXor(CB112,VLOOKUP(CU112,'Таблица CRC'!$A$43:$C$298,3,FALSE)) -> 2 | CW112: =MyXor(CC112,VLOOKUP(CV112,'Таблица CRC'!$A$43:$C$298,3,FALSE)) -> 188 | CX112: =MyXor(CD112,VLOOKUP(CW112,'Таблица CRC'!$A$43:$C$298,3,FALSE)) -> 146 | CY112: =MyXor(CE112,VLOOKUP(CX112,'Таблица CRC'!$A$43:$C$298,3,FALSE)) -> 173 | CZ112: =MyXor(CF112,VLOOKUP(CY112,'Таблица CRC'!$A$43:$C$298,3,FALSE)) -> 82 | DA112: =MyXor(CG112,VLOOKUP(CZ112,'Таблица CRC'!$A$43:$C$298,3,FALSE)) -> 103 | DO112: 64 06 00 03 00 00 67
A113: Принято в обработку | D113: Принято в обработку | Y113: =MyXor(Y112,0) -> 100 | Z113: =MyXor(Z112,VLOOKUP(Y113,'Таблица CRC'!$A$43:$C$298,3,FALSE)) -> 2 | AA113: =MyXor(AA112,VLOOKUP(Z113,'Таблица CRC'!$A$43:$C$298,3,FALSE)) -> 188 | AB113: =MyXor(AB112,VLOOKUP(AA113,'Таблица CRC'!$A$43:$C$298,3,FALSE)) -> 146 | AC113: =MyXor(AC112,VLOOKUP(AB113,'Таблица CRC'!$A$43:$C$298,3,FALSE)) -> 173 | AD113: =MyXor(AD112,VLOOKUP(AC113,'Таблица CRC'!$A$43:$C$298,3,FALSE)) -> 82 | AE113: =MyXor(AE112,VLOOKUP(AD113,'Таблица CRC'!$A$43:$C$298,3,FALSE)) -> 103 | AK113: E4 08 B0 37 18 08 1C 1D 85 | AL113: E4 | AM113: 8 | AN113: B0 | AO113: 37 | AP113: 18 | AQ113: 8 | AR113: 1C | AS113: 1D | AT113: 85 | BF113: 228 | BG113: 8 | BH113: 176 | BI113: 55 | BJ113: 24 | BK113: 8 | BL113: 28 | BM113: 29 | BN113: 133 | BO113: 0 | BP113: 0 | BQ113: 0 | BR113: 0 | BS113: 0 | BT113: 0 | BU113: 0 | BV113: 0 | BW113: 0 | BX113: 0 | BY113: 0 | BZ113: 28 | CA113: 100 | CB113: 8 | CC113: 0 | CD113: 43 | CE113: 4 | CF113: 20 | CG113: 0 | CH113: 1 | CU113: 100 | CV113: =MyXor(CB113,VLOOKUP(CU113,'Таблица CRC'!$A$43:$C$298,3,FALSE)) -> 12 | CW113: =MyXor(CC113,VLOOKUP(CV113,'Таблица CRC'!$A$43:$C$298,3,FALSE)) -> 163 | CX113: =MyXor(CD113,VLOOKUP(CW113,'Таблица CRC'!$A$43:$C$298,3,FALSE)) -> 102 | CY113: =MyXor(CE113,VLOOKUP(CX113,'Таблица CRC'!$A$43:$C$298,3,FALSE)) -> 188 | CZ113: =MyXor(CF113,VLOOKUP(CY113,'Таблица CRC'!$A$43:$C$298,3,FALSE)) -> 133 | DA113: =MyXor(CG113,VLOOKUP(CZ113,'Таблица CRC'!$A$43:$C$298,3,FALSE)) -> 179 | DB113: =MyXor(CH113,VLOOKUP(DA113,'Таблица CRC'!$A$43:$C$298,3,FALSE)) -> 209 | DC113: =MyXor(CI113,VLOOKUP(DB113,'Таблица CRC'!$A$43:$C$298,3,FALSE)) -> 9 | DO113: =CONCATENATE(DEC2HEX(CA113,2)," ",DEC2HEX(CB113,2)," ",DEC2HEX(CC113,2)," ",DEC2HEX(CD113,2)," ",DEC2HEX(CE113,2)," ",DEC2HEX(CF113,2)," ",DEC2HEX(CG113,2)," ",DEC2HEX(CH113,2)," ",DEC2HEX(DC113,2)) -> 64 08 00 2B 04 14 00 01 09
A114: ключ шифрования-18 | B114: 18 | D114: ключ шифрования-18 | Y114: =DEC2HEX(Y112,2) -> 64 | Z114: =DEC2HEX(Z112,2) -> 06 | AA114: 00 | AB114: 03 | AC114: 00 | AD114: 00 | AE114: =DEC2HEX(AE113,2) -> 67 | AI114: =CONCATENATE(Y114," ",Z114," ",AA114," ",AB114," ",AC114," ",AD114," ",AE114," ",AF114," ",AG114," ",AH114) -> 64 06 00 03 00 00 67 | AK114: E4 05 30 1C 1C 05 | AL114: E4 | AM114: 5 | AN114: 30 | AO114: 1C | AP114: 1C | AQ114: 5 | BF114: 228 | BG114: 5 | BH114: 48 | BI114: 28 | BJ114: 28 | BK114: 5 | BL114: 0 | BM114: 0 | BN114: 0 | BO114: 0 | BP114: 0 | BQ114: 0 | BR114: 0 | BS114: 0 | BT114: 0 | BU114: 0 | BV114: 0 | BW114: 0 | BX114: 0 | BY114: 0 | BZ114: 156 | CA114: 100 | CB114: 5 | CC114: 0 | CD114: 128 | CE114: 128 | CU114: 100 | CV114: =MyXor(CB114,VLOOKUP(CU114,'Таблица CRC'!$A$43:$C$298,3,FALSE)) -> 1 | CW114: =MyXor(CC114,VLOOKUP(CV114,'Таблица CRC'!$A$43:$C$298,3,FALSE)) -> 94 | CX114: =MyXor(CD114,VLOOKUP(CW114,'Таблица CRC'!$A$43:$C$298,3,FALSE)) -> 68 | CY114: =MyXor(CE114,VLOOKUP(CX114,'Таблица CRC'!$A$43:$C$298,3,FALSE)) -> 167 | CZ114: =MyXor(CF114,VLOOKUP(CY114,'Таблица CRC'!$A$43:$C$298,3,FALSE)) -> 44 | DO114: =CONCATENATE(DEC2HEX(CA114,2)," ",DEC2HEX(CB114,2)," ",DEC2HEX(CC114,2)," ",DEC2HEX(CD114,2)," ",DEC2HEX(CE114,2)," ",DEC2HEX(CZ114,2)) -> 64 05 00 80 80 2C
A115: zapros.s 3,0,0, | D115: zapros.s 3 | E115: 0 | F115: 0 | AK115: E4 06 C5 68 69 91 F6 | AL115: E4 | AM115: 6 | AN115: C5 | AO115: 68 | AP115: 69 | AQ115: 91 | AR115: F6 | BF115: 228 | BG115: 6 | BH115: 197 | BI115: 104 | BJ115: 105 | BK115: 145 | BL115: 246 | BM115: 0 | BN115: 0 | BO115: 0 | BP115: 0 | BQ115: 0 | BR115: 0 | BS115: 0 | BT115: 0 | BU115: 0 | BV115: 0 | BW115: 0 | BX115: 0 | BY115: 0 | BZ115: 105 | CA115: 100 | CB115: 6 | CC115: 0 | CD115: 1 | CE115: 0 | CF115: 248 | CU115: 100 | CV115: =MyXor(CB115,VLOOKUP(CU115,'Таблица CRC'!$A$43:$C$298,3,FALSE)) -> 2 | CW115: =MyXor(CC115,VLOOKUP(CV115,'Таблица CRC'!$A$43:$C$298,3,FALSE)) -> 188 | CX115: =MyXor(CD115,VLOOKUP(CW115,'Таблица CRC'!$A$43:$C$298,3,FALSE)) -> 144 | CY115: =MyXor(CE115,VLOOKUP(CX115,'Таблица CRC'!$A$43:$C$298,3,FALSE)) -> 17 | CZ115: =MyXor(CF115,VLOOKUP(CY115,'Таблица CRC'!$A$43:$C$298,3,FALSE)) -> 59 | DA115: =MyXor(CG115,VLOOKUP(CZ115,'Таблица CRC'!$A$43:$C$298,3,FALSE)) -> 158 | DO115: 64 06 00 01 00 F8 9E
A116: 228,8,126,249,214,214,210,211,245, | C116: =MyXor(F116,$C$1) -> 210 | D116: 228 | E116: 8 | F116: 126 | G116: 249 | H116: 214 | I116: 214 | J116: 210 | K116: 211 | L116: 245 | N116: =IF(D116>127,D116-128,D116) -> 100 | O116: =E116 -> 8 | P116: =MyXor(F116,$B118) -> 172 | Q116: 43 | R116: 4 | S116: 4 | T116: 0 | U116: 1 | V116: 39 | W116: 210 | Y116: 100 | Z116: 8 | AA116: 0 | AB116: 43 | AC116: 4 | AD116: 4 | AE116: 0 | AF116: 1 | AK116: E4 09 67 6E 7C 69 69 69 69 EF | AL116: E4 | AM116: 9 | AN116: 67 | AO116: 6E | AP116: 7C | AQ116: 69 | AR116: 69 | AS116: 69 | AT116: 69 | AU116: EF | BF116: 228 | BG116: 9 | BH116: 103 | BI116: 110 | BJ116: 124 | BK116: 105 | BL116: 105 | BM116: 105 | BN116: 105 | BO116: 239 | BP116: 0 | BQ116: 0 | BR116: 0 | BS116: 0 | BT116: 0 | BU116: 0 | BV116: 0 | BW116: 0 | BX116: 0 | BY116: 0 | BZ116: 203 | CA116: 100 | CB116: 9 | CC116: 0 | CD116: 165 | CE116: 183 | CF116: 162 | CG116: 162 | CH116: 162 | CI116: 162 | CU116: 100 | CV116: =MyXor(CB116,VLOOKUP(CU116,'Таблица CRC'!$A$43:$C$298,3,FALSE)) -> 13 | CW116: =MyXor(CC116,VLOOKUP(CV116,'Таблица CRC'!$A$43:$C$298,3,FALSE)) -> 253 | CX116: =MyXor(CD116,VLOOKUP(CW116,'Таблица CRC'!$A$43:$C$298,3,FALSE)) -> 44 | CY116: =MyXor(CE116,VLOOKUP(CX116,'Таблица CRC'!$A$43:$C$298,3,FALSE)) -> 55 | CZ116: =MyXor(CF116,VLOOKUP(CY116,'Таблица CRC'!$A$43:$C$298,3,FALSE)) -> 159 | DA116: =MyXor(CG116,VLOOKUP(CZ116,'Таблица CRC'!$A$43:$C$298,3,FALSE)) -> 242 | DB116: =MyXor(CH116,VLOOKUP(DA116,'Таблица CRC'!$A$43:$C$298,3,FALSE)) -> 106 | DC116: =MyXor(CI116,VLOOKUP(DB116,'Таблица CRC'!$A$43:$C$298,3,FALSE)) -> 185 | DD116: =MyXor(CJ116,VLOOKUP(DC116,'Таблица CRC'!$A$43:$C$298,3,FALSE)) -> 174 | DO116: =CONCATENATE(DEC2HEX(CA116,2)," ",DEC2HEX(CB116,2)," ",DEC2HEX(CC116,2)," ",DEC2HEX(CD116,2)," ",DEC2HEX(CE116,2)," ",DEC2HEX(CF116,2)," ",DEC2HEX(CG116,2)," ",DEC2HEX(CH116,2)," ",DEC2HEX(CI116,2)," ",DEC2HEX(DD116,2)) -> 64 09 00 A5 B7 A2 A2 A2 A2 AE
A117: Принято в обработку | D117: Принято в обработку | Y117: =MyXor(Y116,0) -> 100 | Z117: =MyXor(Z116,VLOOKUP(Y117,'Таблица CRC'!$A$43:$C$298,3,FALSE)) -> 12 | AA117: =MyXor(AA116,VLOOKUP(Z117,'Таблица CRC'!$A$43:$C$298,3,FALSE)) -> 163 | AB117: =MyXor(AB116,VLOOKUP(AA117,'Таблица CRC'!$A$43:$C$298,3,FALSE)) -> 102 | AC117: =MyXor(AC116,VLOOKUP(AB117,'Таблица CRC'!$A$43:$C$298,3,FALSE)) -> 188 | AD117: =MyXor(AD116,VLOOKUP(AC117,'Таблица CRC'!$A$43:$C$298,3,FALSE)) -> 149 | AE117: =MyXor(AE116,VLOOKUP(AD117,'Таблица CRC'!$A$43:$C$298,3,FALSE)) -> 46 | AF117: =MyXor(AF116,VLOOKUP(AE117,'Таблица CRC'!$A$43:$C$298,3,FALSE)) -> 61 | AG117: =MyXor(AG116,VLOOKUP(AF117,'Таблица CRC'!$A$43:$C$298,3,FALSE)) -> 67 | AK117: E4 06 C5 6A 69 69 0F | AL117: E4 | AM117: 6 | AN117: C5 | AO117: 6A | AP117: 69 | AQ117: 69 | AR117: 0F | BF117: 228 | BG117: 6 | BH117: 197 | BI117: 106 | BJ117: 105 | BK117: 105 | BL117: 15 | BM117: 0 | BN117: 0 | BO117: 0 | BP117: 0 | BQ117: 0 | BR117: 0 | BS117: 0 | BT117: 0 | BU117: 0 | BV117: 0 | BW117: 0 | BX117: 0 | BY117: 0 | BZ117: 105 | CA117: 100 | CB117: 6 | CC117: 0 | CD117: 3 | CE117: 0 | CF117: 0 | CU117: 100 | CV117: =MyXor(CB117,VLOOKUP(CU117,'Таблица CRC'!$A$43:$C$298,3,FALSE)) -> 2 | CW117: =MyXor(CC117,VLOOKUP(CV117,'Таблица CRC'!$A$43:$C$298,3,FALSE)) -> 188 | CX117: =MyXor(CD117,VLOOKUP(CW117,'Таблица CRC'!$A$43:$C$298,3,FALSE)) -> 146 | CY117: =MyXor(CE117,VLOOKUP(CX117,'Таблица CRC'!$A$43:$C$298,3,FALSE)) -> 173 | CZ117: =MyXor(CF117,VLOOKUP(CY117,'Таблица CRC'!$A$43:$C$298,3,FALSE)) -> 82 | DA117: =MyXor(CG117,VLOOKUP(CZ117,'Таблица CRC'!$A$43:$C$298,3,FALSE)) -> 103 | DO117: 64 06 00 03 00 00 67
A118: ключ шифрования-210 | B118: 210 | D118: ключ шифрования-210 | Y118: =DEC2HEX(Y116,2) -> 64 | Z118: =DEC2HEX(Z116,2) -> 08 | AA118: 00 | AB118: 2B | AC118: 04 | AD118: 04 | AE118: 00 | AF118: 01 | AG118: =DEC2HEX(AG117,2) -> 43 | AI118: =CONCATENATE(Y118," ",Z118," ",AA118," ",AB118," ",AC118," ",AD118," ",AE118," ",AF118," ",AG118," ",AH118) -> 64 08 00 2B 04 04 00 01 43 | AJ118: 64 05 2C 00 00 A0 | AK118: E4 08 88 0F 20 31 24 25 50 | AL118: E4 | AM118: 8 | AN118: 88 | AO118: 0F | AP118: 20 | AQ118: 31 | AR118: 24 | AS118: 25 | AT118: 50 | BF118: 228 | BG118: 8 | BH118: 136 | BI118: 15 | BJ118: 32 | BK118: 49 | BL118: 36 | BM118: 37 | BN118: 80 | BO118: 0 | BP118: 0 | BQ118: 0 | BR118: 0 | BS118: 0 | BT118: 0 | BU118: 0 | BV118: 0 | BW118: 0 | BX118: 0 | BY118: 0 | BZ118: 36 | CA118: 100 | CB118: 8 | CC118: 0 | CD118: 43 | CE118: 4 | CF118: 21 | CG118: 0 | CH118: 1 | CU118: 100 | CV118: =MyXor(CB118,VLOOKUP(CU118,'Таблица CRC'!$A$43:$C$298,3,FALSE)) -> 12 | CW118: =MyXor(CC118,VLOOKUP(CV118,'Таблица CRC'!$A$43:$C$298,3,FALSE)) -> 163 | CX118: =MyXor(CD118,VLOOKUP(CW118,'Таблица CRC'!$A$43:$C$298,3,FALSE)) -> 102 | CY118: =MyXor(CE118,VLOOKUP(CX118,'Таблица CRC'!$A$43:$C$298,3,FALSE)) -> 188 | CZ118: =MyXor(CF118,VLOOKUP(CY118,'Таблица CRC'!$A$43:$C$298,3,FALSE)) -> 132 | DA118: =MyXor(CG118,VLOOKUP(CZ118,'Таблица CRC'!$A$43:$C$298,3,FALSE)) -> 237 | DB118: =MyXor(CH118,VLOOKUP(DA118,'Таблица CRC'!$A$43:$C$298,3,FALSE)) -> 21 | DC118: =MyXor(CI118,VLOOKUP(DB118,'Таблица CRC'!$A$43:$C$298,3,FALSE)) -> 162 | DO118: =CONCATENATE(DEC2HEX(CA118,2)," ",DEC2HEX(CB118,2)," ",DEC2HEX(CC118,2)," ",DEC2HEX(CD118,2)," ",DEC2HEX(CE118,2)," ",DEC2HEX(CF118,2)," ",DEC2HEX(CG118,2)," ",DEC2HEX(CH118,2)," ",DEC2HEX(DC118,2)) -> 64 08 00 2B 04 15 00 01 A2
A119: zapros.s 43,4,4, | D119: zapros.s 43 | E119: 4 | F119: 4 | AK119: E4 05 08 24 24 D9 | AL119: E4 | AM119: 5 | AN119: 8 | AO119: 24 | AP119: 24 | AQ119: D9 | BF119: 228 | BG119: 5 | BH119: 8 | BI119: 36 | BJ119: 36 | BK119: 217 | BL119: 0 | BM119: 0 | BN119: 0 | BO119: 0 | BP119: 0 | BQ119: 0 | BR119: 0 | BS119: 0 | BT119: 0 | BU119: 0 | BV119: 0 | BW119: 0 | BX119: 0 | BY119: 0 | BZ119: 164 | CA119: 100 | CB119: 5 | CC119: 0 | CD119: 128 | CE119: 128 | CU119: 100 | CV119: =MyXor(CB119,VLOOKUP(CU119,'Таблица CRC'!$A$43:$C$298,3,FALSE)) -> 1 | CW119: =MyXor(CC119,VLOOKUP(CV119,'Таблица CRC'!$A$43:$C$298,3,FALSE)) -> 94 | CX119: =MyXor(CD119,VLOOKUP(CW119,'Таблица CRC'!$A$43:$C$298,3,FALSE)) -> 68 | CY119: =MyXor(CE119,VLOOKUP(CX119,'Таблица CRC'!$A$43:$C$298,3,FALSE)) -> 167 | CZ119: =MyXor(CF119,VLOOKUP(CY119,'Таблица CRC'!$A$43:$C$298,3,FALSE)) -> 44 | DO119: =CONCATENATE(DEC2HEX(CA119,2)," ",DEC2HEX(CB119,2)," ",DEC2HEX(CC119,2)," ",DEC2HEX(CD119,2)," ",DEC2HEX(CE119,2)," ",DEC2HEX(CZ119,2)) -> 64 05 00 80 80 2C
A120: 228,5,254,210,210,31, | C120: =MyXor(F120,$C$1) -> 82 | D120: 228 | E120: 5 | F120: 254 | G120: 210 | H120: 210 | I120: 31 | N120: =IF(D120>127,D120-128,D120) -> 100 | O120: =E120 -> 5 | P120: =MyXor(F120,$B122) -> 172 | Q120: 128 | R120: 128 | S120: 77 | T120: 82 | U120: 82 | V120: 82 | W120: 82 | Y120: 100 | Z120: 5 | AA120: 0 | AB120: 128 | AC120: 128 | AK120: E4 06 77 DA DB 23 8E | AL120: E4 | AM120: 6 | AN120: 77 | AO120: DA | AP120: DB | AQ120: 23 | AR120: 8E | BF120: 228 | BG120: 6 | BH120: 119 | BI120: 218 | BJ120: 219 | BK120: 35 | BL120: 142 | BM120: 0 | BN120: 0 | BO120: 0 | BP120: 0 | BQ120: 0 | BR120: 0 | BS120: 0 | BT120: 0 | BU120: 0 | BV120: 0 | BW120: 0 | BX120: 0 | BY120: 0 | BZ120: 219 | CA120: 100 | CB120: 6 | CC120: 0 | CD120: 1 | CE120: 0 | CF120: 248 | CU120: 100 | CV120: =MyXor(CB120,VLOOKUP(CU120,'Таблица CRC'!$A$43:$C$298,3,FALSE)) -> 2 | CW120: =MyXor(CC120,VLOOKUP(CV120,'Таблица CRC'!$A$43:$C$298,3,FALSE)) -> 188 | CX120: =MyXor(CD120,VLOOKUP(CW120,'Таблица CRC'!$A$43:$C$298,3,FALSE)) -> 144 | CY120: =MyXor(CE120,VLOOKUP(CX120,'Таблица CRC'!$A$43:$C$298,3,FALSE)) -> 17 | CZ120: =MyXor(CF120,VLOOKUP(CY120,'Таблица CRC'!$A$43:$C$298,3,FALSE)) -> 59 | DA120: =MyXor(CG120,VLOOKUP(CZ120,'Таблица CRC'!$A$43:$C$298,3,FALSE)) -> 158 | DO120: 64 06 00 01 00 F8 9E
A121: Принято в обработку | D121: Принято в обработку | Y121: =MyXor(Y120,0) -> 100 | Z121: =MyXor(Z120,VLOOKUP(Y121,'Таблица CRC'!$A$43:$C$298,3,FALSE)) -> 1 | AA121: =MyXor(AA120,VLOOKUP(Z121,'Таблица CRC'!$A$43:$C$298,3,FALSE)) -> 94 | AB121: =MyXor(AB120,VLOOKUP(AA121,'Таблица CRC'!$A$43:$C$298,3,FALSE)) -> 68 | AC121: =MyXor(AC120,VLOOKUP(AB121,'Таблица CRC'!$A$43:$C$298,3,FALSE)) -> 167 | AD121: =MyXor(AD120,VLOOKUP(AC121,'Таблица CRC'!$A$43:$C$298,3,FALSE)) -> 44 | AE121: =MyXor(AE120,VLOOKUP(AD121,'Таблица CRC'!$A$43:$C$298,3,FALSE)) -> 128 | AK121: E4 11 D5 D4 DA DA DB DB 2B CA CA 24 | AL121: E4 | AM121: 11 | AN121: D5 | AO121: D4 | AP121: DA | AQ121: DA | AR121: DB | AS121: DB | AT121: 2B | AU121: CA | AV121: CA | AW121: 24 | BF121: 228 | BG121: 17 | BH121: 213 | BI121: 212 | BJ121: 218 | BK121: 218 | BL121: 219 | BM121: 219 | BN121: 43 | BO121: 202 | BP121: 202 | BQ121: 36 | BR121: 0 | BS121: 0 | BT121: 0 | BU121: 0 | BV121: 0 | BW121: 0 | BX121: 0 | BY121: 0 | BZ121: 121 | CA121: 100 | CB121: 17 | CC121: 0 | CD121: 173 | CE121: 163 | CF121: 163 | CG121: 162 | CH121: 162 | CI121: 82 | CJ121: 179 | CK121: 179 | CL121: 93 | CM121: 121 | CN121: 121 | CO121: 121 | CP121: 121 | CQ121: 121 | CU121: 100 | CV121: =MyXor(CB121,VLOOKUP(CU121,'Таблица CRC'!$A$43:$C$298,3,FALSE)) -> 21 | CW121: =MyXor(CC121,VLOOKUP(CV121,'Таблица CRC'!$A$43:$C$298,3,FALSE)) -> 162 | CX121: =MyXor(CD121,VLOOKUP(CW121,'Таблица CRC'!$A$43:$C$298,3,FALSE)) -> 190 | CY121: =MyXor(CE121,VLOOKUP(CX121,'Таблица CRC'!$A$43:$C$298,3,FALSE)) -> 142 | CZ121: =MyXor(CF121,VLOOKUP(CY121,'Таблица CRC'!$A$43:$C$298,3,FALSE)) -> 48 | DA121: =MyXor(CG121,VLOOKUP(CZ121,'Таблица CRC'!$A$43:$C$298,3,FALSE)) -> 28 | DB121: =MyXor(CH121,VLOOKUP(DA121,'Таблица CRC'!$A$43:$C$298,3,FALSE)) -> 156 | DC121: =MyXor(CI121,VLOOKUP(DB121,'Таблица CRC'!$A$43:$C$298,3,FALSE)) -> 224 | DD121: =MyXor(CJ121,VLOOKUP(DC121,'Таблица CRC'!$A$43:$C$298,3,FALSE)) -> 90 | DE121: =MyXor(CK121,VLOOKUP(DD121,'Таблица CRC'!$A$43:$C$298,3,FALSE)) -> 22 | DF121: =MyXor(CL121,VLOOKUP(DE121,'Таблица CRC'!$A$43:$C$298,3,FALSE)) -> 29 | DG121: =MyXor(CM121,VLOOKUP(DF121,'Таблица CRC'!$A$43:$C$298,3,FALSE)) -> 25 | DH121: =MyXor(CN121,VLOOKUP(DG121,'Таблица CRC'!$A$43:$C$298,3,FALSE)) -> 120 | DI121: =MyXor(CO121,VLOOKUP(DH121,'Таблица CRC'!$A$43:$C$298,3,FALSE)) -> 67 | DJ121: =MyXor(CP121,VLOOKUP(DI121,'Таблица CRC'!$A$43:$C$298,3,FALSE)) -> 221 | DK121: =MyXor(CQ121,VLOOKUP(DJ121,'Таблица CRC'!$A$43:$C$298,3,FALSE)) -> 211 | DL121: =MyXor(CR121,VLOOKUP(DK121,'Таблица CRC'!$A$43:$C$298,3,FALSE)) -> 181 | DO121: =CONCATENATE(DEC2HEX(CA121,2)," ",DEC2HEX(CB121,2)," ",DEC2HEX(CC121,2)," ",DEC2HEX(CD121,2)," ",DEC2HEX(CE121,2)," ",DEC2HEX(CF121,2)," ",DEC2HEX(CG121,2)," ",DEC2HEX(CH121,2)," ",DEC2HEX(CI121,2)," ",DEC2HEX(CJ121,2)," ",DEC2HEX(CK121,2)," ",DEC2HEX(CL121,2)," ",DEC2HEX(CM121,2)," ",DEC2HEX(CN121,2)," ",DEC2HEX(CO121,2)," ",DEC2HEX(CP121,2)," ",DEC2HEX(CQ121,2)," ",DEC2HEX(DL121,2)) -> 64 11 00 AD A3 A3 A2 A2 52 B3 B3 5D 79 79 79 79 79 B5
A122: otvet 44,0,0, | B122: 82 | D122: otvet 44 | E122: 0 | F122: 0 | Y122: =DEC2HEX(Y120,2) -> 64 | Z122: =DEC2HEX(Z120,2) -> 05 | AA122: 00 | AB122: 80 | AC122: 80 | AD122: 00 | AE122: =DEC2HEX(AE121,2) -> 80 | AI122: =CONCATENATE(Y122," ",Z122," ",AA122," ",AB122," ",AC122," ",AD122," ",AE122," ",AF122," ",AG122," ",AH122) -> 64 05 00 80 80 00 80 | AK122: E4 06 77 D8 DB DB 77 | AL122: E4 | AM122: 6 | AN122: 77 | AO122: D8 | AP122: DB | AQ122: DB | AR122: 77 | BF122: 228 | BG122: 6 | BH122: 119 | BI122: 216 | BJ122: 219 | BK122: 219 | BL122: 119 | BM122: 0 | BN122: 0 | BO122: 0 | BP122: 0 | BQ122: 0 | BR122: 0 | BS122: 0 | BT122: 0 | BU122: 0 | BV122: 0 | BW122: 0 | BX122: 0 | BY122: 0 | BZ122: 219 | CA122: 100 | CB122: 6 | CC122: 0 | CD122: 3 | CE122: 0 | CF122: 0 | CH122: 0 | CI122: 16 | CJ122: 6 | CK122: 240 | CL122: 17 | CM122: 17 | CN122: 255 | CO122: 255 | CP122: 255 | CQ122: 255 | CR122: 20 | CS122: 24 | CU122: 100 | CV122: =MyXor(CB122,VLOOKUP(CU122,'Таблица CRC'!$A$43:$C$298,3,FALSE)) -> 2 | CW122: =MyXor(CC122,VLOOKUP(CV122,'Таблица CRC'!$A$43:$C$298,3,FALSE)) -> 188 | CX122: =MyXor(CD122,VLOOKUP(CW122,'Таблица CRC'!$A$43:$C$298,3,FALSE)) -> 146 | CY122: =MyXor(CE122,VLOOKUP(CX122,'Таблица CRC'!$A$43:$C$298,3,FALSE)) -> 173 | CZ122: =MyXor(CF122,VLOOKUP(CY122,'Таблица CRC'!$A$43:$C$298,3,FALSE)) -> 82 | DA122: =MyXor(CG122,VLOOKUP(CZ122,'Таблица CRC'!$A$43:$C$298,3,FALSE)) -> 103 | DO122: 64 06 00 03 00 00 67
A123: 228,6,130,47,46,214,235, | C123: =MyXor(F123,$C$1) -> 46 | D123: 228 | E123: 6 | F123: 130 | G123: 47 | H123: 46 | I123: 214 | J123: 235 | N123: =IF(D123>127,D123-128,D123) -> 100 | O123: =E123 -> 6 | P123: =MyXor(F123,$B125) -> 172 | Q123: 1 | R123: 0 | S123: 248 | T123: 197 | U123: 46 | V123: 46 | W123: 46 | Y123: 100 | Z123: 6 | AA123: 0 | AB123: 1 | AC123: 0 | AD123: 248 | AK123: E4 13 E1 66 5C 4C 4C 4D 5D 4B BD 5C 5C B2 B2 B2 B2 59 55 82 | AL123: E4 | AM123: 13 | AN123: E1 | AO123: 66 | AP123: 5C | AQ123: 4C | AR123: 4C | AS123: 4D | AT123: 5D | AU123: 4B | AV123: BD | AW123: 5C | AX123: 5C | AY123: B2 | AZ123: B2 | BA123: B2 | BB123: B2 | BC123: 59 | BD123: 55 | BE123: 82 | BF123: 228 | BG123: 19 | BH123: 225 | BI123: 102 | BJ123: 92 | BK123: 76 | BL123: 76 | BM123: 77 | BN123: 93 | BO123: 75 | BP123: 189 | BQ123: 92 | BR123: 92 | BS123: 178 | BT123: 178 | BU123: 178 | BV123: 178 | BW123: 89 | BX123: 85 | BY123: 130 | BZ123: 77 | CA123: 100 | CB123: 19 | CC123: 0 | CD123: 43 | CE123: 17 | CF123: 1 | CG123: 1 | CH123: 0 | CI123: 17 | CJ123: 5 | CK123: 239 | CL123: 16 | CM123: 16 | CN123: 254 | CO123: 254 | CP123: 254 | CQ123: 254 | CR123: 20 | CS123: 23 | CU123: 100 | CV123: =MyXor(CB123,VLOOKUP(CU123,'Таблица CRC'!$A$43:$C$298,3,FALSE)) -> 23 | CW123: =MyXor(CC123,VLOOKUP(CV123,'Таблица CRC'!$A$43:$C$298,3,FALSE)) -> 30 | CX123: =MyXor(CD123,VLOOKUP(CW123,'Таблица CRC'!$A$43:$C$298,3,FALSE)) -> 169 | CY123: =MyXor(CE123,VLOOKUP(CX123,'Таблица CRC'!$A$43:$C$298,3,FALSE)) -> 34 | CZ123: =MyXor(CF123,VLOOKUP(CY123,'Таблица CRC'!$A$43:$C$298,3,FALSE)) -> 158 | DA123: =MyXor(CG123,VLOOKUP(CZ123,'Таблица CRC'!$A$43:$C$298,3,FALSE)) -> 15 | DB123: =MyXor(CH123,VLOOKUP(DA123,'Таблица CRC'!$A$43:$C$298,3,FALSE)) -> 65 | DC123: =MyXor(CI123,VLOOKUP(DB123,'Таблица CRC'!$A$43:$C$298,3,FALSE)) -> 9 | DD123: =MyXor(CJ123,VLOOKUP(DC123,'Таблица CRC'!$A$43:$C$298,3,FALSE)) -> 153 | DE123: =MyXor(CK123,VLOOKUP(DD123,'Таблица CRC'!$A$43:$C$298,3,FALSE)) -> 98 | DF123: =MyXor(CL123,VLOOKUP(DE123,'Таблица CRC'!$A$43:$C$298,3,FALSE)) -> 201 | DG123: =MyXor(CM123,VLOOKUP(DF123,'Таблица CRC'!$A$43:$C$298,3,FALSE)) -> 70 | DH123: =MyXor(CN123,VLOOKUP(DG123,'Таблица CRC'!$A$43:$C$298,3,FALSE)) -> 101 | DI123: =MyXor(CO123,VLOOKUP(DH123,'Таблица CRC'!$A$43:$C$298,3,FALSE)) -> 164 | DJ123: =MyXor(CP123,VLOOKUP(DI123,'Таблица CRC'!$A$43:$C$298,3,FALSE)) -> 48 | DK123: =MyXor(CQ123,VLOOKUP(DJ123,'Таблица CRC'!$A$43:$C$298,3,FALSE)) -> 64 | DL123: =MyXor(CR123,VLOOKUP(DK123,'Таблица CRC'!$A$43:$C$298,3,FALSE)) -> 82 | DM123: =MyXor(CS123,VLOOKUP(DL123,'Таблица CRC'!$A$43:$C$298,3,FALSE)) -> 112 | DN123: =MyXor(CT123,VLOOKUP(DM123,'Таблица CRC'!$A$43:$C$298,3,FALSE)) -> 248 | DO123: =CONCATENATE(DEC2HEX(CA123,2)," ",DEC2HEX(CB123,2)," ",DEC2HEX(CC123,2)," ",DEC2HEX(CD123,2)," ",DEC2HEX(CE123,2)," ",DEC2HEX(CF123,2)," ",DEC2HEX(CG123,2)," ",DEC2HEX(CH123,2)," ",DEC2HEX(CI123,2)," ",DEC2HEX(CJ123,2)," ",DEC2HEX(CK123,2)," ",DEC2HEX(CL123,2)," ",DEC2HEX(CM123,2)," ",DEC2HEX(CN123,2)," ",DEC2HEX(CO123,2)," ",DEC2HEX(CP123,2)," ",DEC2HEX(CQ123,2)," ",DEC2HEX(CR123,2)," ",DEC2HEX(CS123,2)," ",DEC2HEX(DN123,2)) -> 64 13 00 2B 11 01 01 00 11 05 EF 10 10 FE FE FE FE 14 17 F8 | DP123: диод (шестой байт № диода)18 байт, (зависит от программирования БКИ)2,3,4,5, 23 моргает зел, 24 горит красн,другой не горит.
A124: Принято в обработку | D124: Принято в обработку | Y124: =MyXor(Y123,0) -> 100 | Z124: =MyXor(Z123,VLOOKUP(Y124,'Таблица CRC'!$A$43:$C$298,3,FALSE)) -> 2 | AA124: =MyXor(AA123,VLOOKUP(Z124,'Таблица CRC'!$A$43:$C$298,3,FALSE)) -> 188 | AB124: =MyXor(AB123,VLOOKUP(AA124,'Таблица CRC'!$A$43:$C$298,3,FALSE)) -> 144 | AC124: =MyXor(AC123,VLOOKUP(AB124,'Таблица CRC'!$A$43:$C$298,3,FALSE)) -> 17 | AD124: =MyXor(AD123,VLOOKUP(AC124,'Таблица CRC'!$A$43:$C$298,3,FALSE)) -> 59 | AE124: =MyXor(AE123,VLOOKUP(AD124,'Таблица CRC'!$A$43:$C$298,3,FALSE)) -> 158 | AK124: E4 05 61 4D 4D E3 | AL124: E4 | AM124: 5 | AN124: 61 | AO124: 4D | AP124: 4D | AQ124: E3 | BF124: 228 | BG124: 5 | BH124: 97 | BI124: 77 | BJ124: 77 | BK124: 227 | BL124: 0 | BM124: 0 | BN124: 0 | BO124: 0 | BP124: 0 | BQ124: 0 | BR124: 0 | BS124: 0 | BT124: 0 | BU124: 0 | BV124: 0 | BW124: 0 | BX124: 0 | BY124: 0 | BZ124: 205 | CA124: 100 | CB124: 5 | CC124: 0 | CD124: 128 | CE124: 128 | CU124: 100 | CV124: =MyXor(CB124,VLOOKUP(CU124,'Таблица CRC'!$A$43:$C$298,3,FALSE)) -> 1 | CW124: =MyXor(CC124,VLOOKUP(CV124,'Таблица CRC'!$A$43:$C$298,3,FALSE)) -> 94 | CX124: =MyXor(CD124,VLOOKUP(CW124,'Таблица CRC'!$A$43:$C$298,3,FALSE)) -> 68 | CY124: =MyXor(CE124,VLOOKUP(CX124,'Таблица CRC'!$A$43:$C$298,3,FALSE)) -> 167 | CZ124: =MyXor(CF124,VLOOKUP(CY124,'Таблица CRC'!$A$43:$C$298,3,FALSE)) -> 44 | DO124: =CONCATENATE(DEC2HEX(CA124,2)," ",DEC2HEX(CB124,2)," ",DEC2HEX(CC124,2)," ",DEC2HEX(CD124,2)," ",DEC2HEX(CE124,2)," ",DEC2HEX(CZ124,2)) -> 64 05 00 80 80 2C
A125: ключ шифрования-46 | B125: 46 | D125: ключ шифрования-46 | Y125: =DEC2HEX(Y123,2) -> 64 | Z125: =DEC2HEX(Z123,2) -> 06 | AA125: 00 | AB125: 01 | AC125: 00 | AD125: F8 | AE125: =DEC2HEX(AE124,2) -> 9E | AI125: =CONCATENATE(Y125," ",Z125," ",AA125," ",AB125," ",AC125," ",AD125," ",AE125," ",AF125," ",AG125," ",AH125) -> 64 06 00 01 00 F8 9E | AJ125: 64 09 0E 07 02 00 00 00 00 05 | AK125: E4 06 0D A0 A1 59 6F | AL125: E4 | AM125: 6 | AN125: 0D | AO125: A0 | AP125: A1 | AQ125: 59 | AR125: 6F | BF125: 228 | BG125: 6 | BH125: 13 | BI125: 160 | BJ125: 161 | BK125: 89 | BL125: 111 | BM125: 0 | BN125: 0 | BO125: 0 | BP125: 0 | BQ125: 0 | BR125: 0 | BS125: 0 | BT125: 0 | BU125: 0 | BV125: 0 | BW125: 0 | BX125: 0 | BY125: 0 | BZ125: 161 | CA125: 100 | CB125: 6 | CC125: 0 | CD125: 1 | CE125: 0 | CF125: 248 | CU125: 100 | CV125: =MyXor(CB125,VLOOKUP(CU125,'Таблица CRC'!$A$43:$C$298,3,FALSE)) -> 2 | CW125: =MyXor(CC125,VLOOKUP(CV125,'Таблица CRC'!$A$43:$C$298,3,FALSE)) -> 188 | CX125: =MyXor(CD125,VLOOKUP(CW125,'Таблица CRC'!$A$43:$C$298,3,FALSE)) -> 144 | CY125: =MyXor(CE125,VLOOKUP(CX125,'Таблица CRC'!$A$43:$C$298,3,FALSE)) -> 17 | CZ125: =MyXor(CF125,VLOOKUP(CY125,'Таблица CRC'!$A$43:$C$298,3,FALSE)) -> 59 | DA125: =MyXor(CG125,VLOOKUP(CZ125,'Таблица CRC'!$A$43:$C$298,3,FALSE)) -> 158 | DO125: 64 06 00 01 00 F8 9E
A126: zapros.s 1,0,248, | D126: zapros.s 1 | E126: 0 | F126: 248 | AK126: E4 10 AF AC A0 A0 A1 51 B0 B0 5E 5E 5E 5E B5 A0 27 | AL126: E4 | AM126: 10 | AN126: AF | AO126: AC | AP126: A0 | AQ126: A0 | AR126: A1 | AS126: 51 | AT126: B0 | AU126: B0 | AV126: 5E | AW126: 5E | AX126: 5E | AY126: 5E | AZ126: B5 | BA126: A0 | BB126: 27 | BF126: 228 | BG126: 16 | BH126: 175 | BI126: 172 | BJ126: 160 | BK126: 160 | BL126: 161 | BM126: 81 | BN126: 176 | BO126: 176 | BP126: 94 | BQ126: 94 | BR126: 94 | BS126: 94 | BT126: 181 | BU126: 160 | BV126: 39 | BW126: 0 | BX126: 0 | BY126: 0 | BZ126: 3 | CA126: 100 | CB126: 16 | CC126: 0 | CD126: 175 | CE126: 163 | CF126: 163 | CG126: 162 | CH126: 82 | CI126: 179 | CJ126: 179 | CK126: 93 | CL126: 93 | CM126: 93 | CN126: 93 | CO126: 182 | CP126: 163 | CU126: 100 | CV126: =MyXor(CB126,VLOOKUP(CU126,'Таблица CRC'!$A$43:$C$298,3,FALSE)) -> 20 | CW126: =MyXor(CC126,VLOOKUP(CV126,'Таблица CRC'!$A$43:$C$298,3,FALSE)) -> 252 | CX126: =MyXor(CD126,VLOOKUP(CW126,'Таблица CRC'!$A$43:$C$298,3,FALSE)) -> 120 | CY126: =MyXor(CE126,VLOOKUP(CX126,'Таблица CRC'!$A$43:$C$298,3,FALSE)) -> 153 | CZ126: =MyXor(CF126,VLOOKUP(CY126,'Таблица CRC'!$A$43:$C$298,3,FALSE)) -> 46 | DA126: =MyXor(CG126,VLOOKUP(CZ126,'Таблица CRC'!$A$43:$C$298,3,FALSE)) -> 158 | DB126: =MyXor(CH126,VLOOKUP(DA126,'Таблица CRC'!$A$43:$C$298,3,FALSE)) -> 92 | DC126: =MyXor(CI126,VLOOKUP(DB126,'Таблица CRC'!$A$43:$C$298,3,FALSE)) -> 203 | DD126: =MyXor(CJ126,VLOOKUP(DC126,'Таблица CRC'!$A$43:$C$298,3,FALSE)) -> 89 | DE126: =MyXor(CK126,VLOOKUP(DD126,'Таблица CRC'!$A$43:$C$298,3,FALSE)) -> 26 | DF126: =MyXor(CL126,VLOOKUP(DE126,'Таблица CRC'!$A$43:$C$298,3,FALSE)) -> 190 | DG126: =MyXor(CM126,VLOOKUP(DF126,'Таблица CRC'!$A$43:$C$298,3,FALSE)) -> 112 | DH126: =MyXor(CN126,VLOOKUP(DG126,'Таблица CRC'!$A$43:$C$298,3,FALSE)) -> 165 | DI126: =MyXor(CO126,VLOOKUP(DH126,'Таблица CRC'!$A$43:$C$298,3,FALSE)) -> 38 | DJ126: =MyXor(CP126,VLOOKUP(DI126,'Таблица CRC'!$A$43:$C$298,3,FALSE)) -> 93 | DK126: =MyXor(CQ126,VLOOKUP(DJ126,'Таблица CRC'!$A$43:$C$298,3,FALSE)) -> 38 | DO126: =CONCATENATE(DEC2HEX(CA126,2)," ",DEC2HEX(CB126,2)," ",DEC2HEX(CC126,2)," ",DEC2HEX(CD126,2)," ",DEC2HEX(CE126,2)," ",DEC2HEX(CF126,2)," ",DEC2HEX(CG126,2)," ",DEC2HEX(CH126,2)," ",DEC2HEX(CI126,2)," ",DEC2HEX(CJ126,2)," ",DEC2HEX(CK126,2)," ",DEC2HEX(CL126,2)," ",DEC2HEX(CM126,2)," ",DEC2HEX(CN126,2)," ",DEC2HEX(CO126,2)," ",DEC2HEX(CP126,2)," ",DEC2HEX(DK126,2)) -> 64 10 00 AF A3 A3 A2 52 B3 B3 5D 5D 5D 5D B6 A3 26
A127: ОТВЕТ ЭМУЛЯТОРА 44,45,46, | D127: ОТВЕТ ЭМУЛЯТОРА 44 | E127: 45 | F127: 46 | AK127: E4 06 0D A2 A1 A1 96 | AL127: E4 | AM127: 6 | AN127: 0D | AO127: A2 | AP127: A1 | AQ127: A1 | AR127: 96 | BF127: 228 | BG127: 6 | BH127: 13 | BI127: 162 | BJ127: 161 | BK127: 161 | BL127: 150 | BM127: 0 | BN127: 0 | BO127: 0 | BP127: 0 | BQ127: 0 | BR127: 0 | BS127: 0 | BT127: 0 | BU127: 0 | BV127: 0 | BW127: 0 | BX127: 0 | BY127: 0 | BZ127: 161 | CA127: 100 | CB127: 6 | CC127: 0 | CD127: 3 | CE127: 0 | CF127: 0 | CU127: 100 | CV127: =MyXor(CB127,VLOOKUP(CU127,'Таблица CRC'!$A$43:$C$298,3,FALSE)) -> 2 | CW127: =MyXor(CC127,VLOOKUP(CV127,'Таблица CRC'!$A$43:$C$298,3,FALSE)) -> 188 | CX127: =MyXor(CD127,VLOOKUP(CW127,'Таблица CRC'!$A$43:$C$298,3,FALSE)) -> 146 | CY127: =MyXor(CE127,VLOOKUP(CX127,'Таблица CRC'!$A$43:$C$298,3,FALSE)) -> 173 | CZ127: =MyXor(CF127,VLOOKUP(CY127,'Таблица CRC'!$A$43:$C$298,3,FALSE)) -> 82 | DA127: =MyXor(CG127,VLOOKUP(CZ127,'Таблица CRC'!$A$43:$C$298,3,FALSE)) -> 103 | DO127: 64 06 00 03 00 00 67
A128: 228,9,32,41,43,46,46,46,46,178, | C128: =MyXor(F128,$C$1) -> 140 | D128: 228 | E128: 9 | F128: 32 | G128: 41 | H128: 43 | I128: 46 | J128: 46 | K128: 46 | L128: 46 | M128: 178 | N128: =IF(D128>127,D128-128,D128) -> 100 | O128: =E128 -> 9 | P128: =MyXor(F128,$B130) -> 172 | Q128: 165 | R128: 167 | S128: 162 | T128: 162 | U128: 162 | V128: 162 | W128: 62 | Y128: 100 | Z128: 9 | AA128: 0 | AB128: 165 | AC128: 167 | AD128: 162 | AE128: 162 | AF128: 162 | AG128: 162 | AK128: E4 06 47 EA EB 13 8B | AL128: E4 | AM128: 6 | AN128: 47 | AO128: EA | AP128: EB | AQ128: 13 | AR128: 8B | BF128: 228 | BG128: 6 | BH128: 71 | BI128: 234 | BJ128: 235 | BK128: 19 | BL128: 139 | BM128: 0 | BN128: 0 | BO128: 0 | BP128: 0 | BQ128: 0 | BR128: 0 | BS128: 0 | BT128: 0 | BU128: 0 | BV128: 0 | BW128: 0 | BX128: 0 | BY128: 0 | BZ128: 235 | CA128: 100 | CB128: 6 | CC128: 0 | CD128: 1 | CE128: 0 | CF128: 248 | CU128: 100 | CV128: =MyXor(CB128,VLOOKUP(CU128,'Таблица CRC'!$A$43:$C$298,3,FALSE)) -> 2 | CW128: =MyXor(CC128,VLOOKUP(CV128,'Таблица CRC'!$A$43:$C$298,3,FALSE)) -> 188 | CX128: =MyXor(CD128,VLOOKUP(CW128,'Таблица CRC'!$A$43:$C$298,3,FALSE)) -> 144 | CY128: =MyXor(CE128,VLOOKUP(CX128,'Таблица CRC'!$A$43:$C$298,3,FALSE)) -> 17 | CZ128: =MyXor(CF128,VLOOKUP(CY128,'Таблица CRC'!$A$43:$C$298,3,FALSE)) -> 59 | DA128: =MyXor(CG128,VLOOKUP(CZ128,'Таблица CRC'!$A$43:$C$298,3,FALSE)) -> 158 | DO128: 64 06 00 01 00 F8 9E
A129: Принято в обработку | D129: Принято в обработку | Y129: =MyXor(Y128,0) -> 100 | Z129: =MyXor(Z128,VLOOKUP(Y129,'Таблица CRC'!$A$43:$C$298,3,FALSE)) -> 13 | AA129: =MyXor(AA128,VLOOKUP(Z129,'Таблица CRC'!$A$43:$C$298,3,FALSE)) -> 253 | AB129: =MyXor(AB128,VLOOKUP(AA129,'Таблица CRC'!$A$43:$C$298,3,FALSE)) -> 44 | AC129: =MyXor(AC128,VLOOKUP(AB129,'Таблица CRC'!$A$43:$C$298,3,FALSE)) -> 39 | AD129: =MyXor(AD128,VLOOKUP(AC129,'Таблица CRC'!$A$43:$C$298,3,FALSE)) -> 2 | AE129: =MyXor(AE128,VLOOKUP(AD129,'Таблица CRC'!$A$43:$C$298,3,FALSE)) -> 30 | AF129: =MyXor(AF128,VLOOKUP(AE129,'Таблица CRC'!$A$43:$C$298,3,FALSE)) -> 32 | AG129: =MyXor(AG128,VLOOKUP(AF129,'Таблица CRC'!$A$43:$C$298,3,FALSE)) -> 129 | AH129: =MyXor(AH128,VLOOKUP(AG129,'Таблица CRC'!$A$43:$C$298,3,FALSE)) -> 210 | AK129: E4 09 E5 EC FD EB EB EB EB FD | AL129: E4 | AM129: 9 | AN129: E5 | AO129: EC | AP129: FD | AQ129: EB | AR129: EB | AS129: EB | AT129: EB | AU129: FD | BF129: 228 | BG129: 9 | BH129: 229 | BI129: 236 | BJ129: 253 | BK129: 235 | BL129: 235 | BM129: 235 | BN129: 235 | BO129: 253 | BP129: 0 | BQ129: 0 | BR129: 0 | BS129: 0 | BT129: 0 | BU129: 0 | BV129: 0 | BW129: 0 | BX129: 0 | BY129: 0 | BZ129: 73 | CA129: 100 | CB129: 9 | CC129: 0 | CD129: 165 | CE129: 180 | CF129: 162 | CG129: 162 | CH129: 162 | CI129: 162 | CU129: 100 | CV129: =MyXor(CB129,VLOOKUP(CU129,'Таблица CRC'!$A$43:$C$298,3,FALSE)) -> 13 | CW129: =MyXor(CC129,VLOOKUP(CV129,'Таблица CRC'!$A$43:$C$298,3,FALSE)) -> 253 | CX129: =MyXor(CD129,VLOOKUP(CW129,'Таблица CRC'!$A$43:$C$298,3,FALSE)) -> 44 | CY129: =MyXor(CE129,VLOOKUP(CX129,'Таблица CRC'!$A$43:$C$298,3,FALSE)) -> 52 | CZ129: =MyXor(CF129,VLOOKUP(CY129,'Таблица CRC'!$A$43:$C$298,3,FALSE)) -> 125 | DA129: =MyXor(CG129,VLOOKUP(CZ129,'Таблица CRC'!$A$43:$C$298,3,FALSE)) -> 167 | DB129: =MyXor(CH129,VLOOKUP(DA129,'Таблица CRC'!$A$43:$C$298,3,FALSE)) -> 142 | DC129: =MyXor(CI129,VLOOKUP(DB129,'Таблица CRC'!$A$43:$C$298,3,FALSE)) -> 49 | DD129: =MyXor(CJ129,VLOOKUP(DC129,'Таблица CRC'!$A$43:$C$298,3,FALSE)) -> 224 | DO129: =CONCATENATE(DEC2HEX(CA129,2)," ",DEC2HEX(CB129,2)," ",DEC2HEX(CC129,2)," ",DEC2HEX(CD129,2)," ",DEC2HEX(CE129,2)," ",DEC2HEX(CF129,2)," ",DEC2HEX(CG129,2)," ",DEC2HEX(CH129,2)," ",DEC2HEX(CI129,2)," ",DEC2HEX(DD129,2)) -> 64 09 00 A5 B4 A2 A2 A2 A2 E0
A130: ключ шифрования-140 | B130: 140 | D130: ключ шифрования-140 | Y130: =DEC2HEX(Y128,2) -> 64 | Z130: =DEC2HEX(Z128,2) -> 09 | AA130: 00 | AB130: A5 | AC130: A7 | AD130: A2 | AE130: A2 | AF130: A2 | AG130: A2 | AH130: =DEC2HEX(AH129,2) -> D2 | AI130: =CONCATENATE(Y130," ",Z130," ",AA130," ",AB130," ",AC130," ",AD130," ",AE130," ",AF130," ",AG130," ",AH130) -> 64 09 00 A5 A7 A2 A2 A2 A2 D2 | AJ130: 64 05 0A 00 00 E5 | AK130: E4 06 47 E8 EB EB 72 | AL130: E4 | AM130: 6 | AN130: 47 | AO130: E8 | AP130: EB | AQ130: EB | AR130: 72 | BF130: 228 | BG130: 6 | BH130: 71 | BI130: 232 | BJ130: 235 | BK130: 235 | BL130: 114 | BM130: 0 | BN130: 0 | BO130: 0 | BP130: 0 | BQ130: 0 | BR130: 0 | BS130: 0 | BT130: 0 | BU130: 0 | BV130: 0 | BW130: 0 | BX130: 0 | BY130: 0 | BZ130: 235 | CA130: 100 | CB130: 6 | CC130: 0 | CD130: 3 | CE130: 0 | CF130: 0 | CU130: 100 | CV130: =MyXor(CB130,VLOOKUP(CU130,'Таблица CRC'!$A$43:$C$298,3,FALSE)) -> 2 | CW130: =MyXor(CC130,VLOOKUP(CV130,'Таблица CRC'!$A$43:$C$298,3,FALSE)) -> 188 | CX130: =MyXor(CD130,VLOOKUP(CW130,'Таблица CRC'!$A$43:$C$298,3,FALSE)) -> 146 | CY130: =MyXor(CE130,VLOOKUP(CX130,'Таблица CRC'!$A$43:$C$298,3,FALSE)) -> 173 | CZ130: =MyXor(CF130,VLOOKUP(CY130,'Таблица CRC'!$A$43:$C$298,3,FALSE)) -> 82 | DA130: =MyXor(CG130,VLOOKUP(CZ130,'Таблица CRC'!$A$43:$C$298,3,FALSE)) -> 103 | DO130: 64 06 00 03 00 00 67
A131: zapros.s 165,167,162, | D131: zapros.s 165 | E131: 167 | F131: 162 | AK131: E4 08 3F B8 97 85 93 92 24 | AL131: E4 | AM131: 8 | AN131: 3F | AO131: B8 | AP131: 97 | AQ131: 85 | AR131: 93 | AS131: 92 | AT131: 24 | BF131: 228 | BG131: 8 | BH131: 63 | BI131: 184 | BJ131: 151 | BK131: 133 | BL131: 147 | BM131: 146 | BN131: 36 | BO131: 0 | BP131: 0 | BQ131: 0 | BR131: 0 | BS131: 0 | BT131: 0 | BU131: 0 | BV131: 0 | BW131: 0 | BX131: 0 | BY131: 0 | BZ131: 147 | CA131: 100 | CB131: 8 | CC131: 0 | CD131: 43 | CE131: 4 | CF131: 22 | CG131: 0 | CH131: 1 | CU131: 100 | CV131: =MyXor(CB131,VLOOKUP(CU131,'Таблица CRC'!$A$43:$C$298,3,FALSE)) -> 12 | CW131: =MyXor(CC131,VLOOKUP(CV131,'Таблица CRC'!$A$43:$C$298,3,FALSE)) -> 163 | CX131: =MyXor(CD131,VLOOKUP(CW131,'Таблица CRC'!$A$43:$C$298,3,FALSE)) -> 102 | CY131: =MyXor(CE131,VLOOKUP(CX131,'Таблица CRC'!$A$43:$C$298,3,FALSE)) -> 188 | CZ131: =MyXor(CF131,VLOOKUP(CY131,'Таблица CRC'!$A$43:$C$298,3,FALSE)) -> 135 | DA131: =MyXor(CG131,VLOOKUP(CZ131,'Таблица CRC'!$A$43:$C$298,3,FALSE)) -> 15 | DB131: =MyXor(CH131,VLOOKUP(DA131,'Таблица CRC'!$A$43:$C$298,3,FALSE)) -> 64 | DC131: =MyXor(CI131,VLOOKUP(DB131,'Таблица CRC'!$A$43:$C$298,3,FALSE)) -> 70 | DO131: =CONCATENATE(DEC2HEX(CA131,2)," ",DEC2HEX(CB131,2)," ",DEC2HEX(CC131,2)," ",DEC2HEX(CD131,2)," ",DEC2HEX(CE131,2)," ",DEC2HEX(CF131,2)," ",DEC2HEX(CG131,2)," ",DEC2HEX(CH131,2)," ",DEC2HEX(DC131,2)) -> 64 08 00 2B 04 16 00 01 46
A132: 228,6,130,45,46,46,18, | C132: =MyXor(F132,$C$1) -> 46 | D132: 228 | E132: 6 | F132: 130 | G132: 45 | H132: 46 | I132: 46 | J132: 18 | N132: =IF(D132>127,D132-128,D132) -> 100 | O132: =E132 -> 6 | P132: =MyXor(F132,$B134) -> 172 | Q132: 3 | R132: 0 | S132: 0 | T132: 60 | U132: 46 | V132: 46 | W132: 46 | Y132: 100 | Z132: 6 | AA132: 0 | AB132: 3 | AC132: 0 | AD132: 0 | AK132: E4 05 BF 93 93 C2 | AL132: E4 | AM132: 5 | AN132: BF | AO132: 93 | AP132: 93 | AQ132: C2 | BF132: 228 | BG132: 5 | BH132: 191 | BI132: 147 | BJ132: 147 | BK132: 194 | BL132: 0 | BM132: 0 | BN132: 0 | BO132: 0 | BP132: 0 | BQ132: 0 | BR132: 0 | BS132: 0 | BT132: 0 | BU132: 0 | BV132: 0 | BW132: 0 | BX132: 0 | BY132: 0 | BZ132: 19 | CA132: 100 | CB132: 5 | CC132: 0 | CD132: 128 | CE132: 128 | CU132: 100 | CV132: =MyXor(CB132,VLOOKUP(CU132,'Таблица CRC'!$A$43:$C$298,3,FALSE)) -> 1 | CW132: =MyXor(CC132,VLOOKUP(CV132,'Таблица CRC'!$A$43:$C$298,3,FALSE)) -> 94 | CX132: =MyXor(CD132,VLOOKUP(CW132,'Таблица CRC'!$A$43:$C$298,3,FALSE)) -> 68 | CY132: =MyXor(CE132,VLOOKUP(CX132,'Таблица CRC'!$A$43:$C$298,3,FALSE)) -> 167 | CZ132: =MyXor(CF132,VLOOKUP(CY132,'Таблица CRC'!$A$43:$C$298,3,FALSE)) -> 44 | DO132: =CONCATENATE(DEC2HEX(CA132,2)," ",DEC2HEX(CB132,2)," ",DEC2HEX(CC132,2)," ",DEC2HEX(CD132,2)," ",DEC2HEX(CE132,2)," ",DEC2HEX(CZ132,2)) -> 64 05 00 80 80 2C
A133: Принято в обработку | D133: Принято в обработку | Y133: =MyXor(Y132,0) -> 100 | Z133: =MyXor(Z132,VLOOKUP(Y133,'Таблица CRC'!$A$43:$C$298,3,FALSE)) -> 2 | AA133: =MyXor(AA132,VLOOKUP(Z133,'Таблица CRC'!$A$43:$C$298,3,FALSE)) -> 188 | AB133: =MyXor(AB132,VLOOKUP(AA133,'Таблица CRC'!$A$43:$C$298,3,FALSE)) -> 146 | AC133: =MyXor(AC132,VLOOKUP(AB133,'Таблица CRC'!$A$43:$C$298,3,FALSE)) -> 173 | AD133: =MyXor(AD132,VLOOKUP(AC133,'Таблица CRC'!$A$43:$C$298,3,FALSE)) -> 82 | AE133: =MyXor(AE132,VLOOKUP(AD133,'Таблица CRC'!$A$43:$C$298,3,FALSE)) -> 103 | AK133: E4 06 6C C1 C0 38 DB | AL133: E4 | AM133: 6 | AN133: 6C | AO133: C1 | AP133: C0 | AQ133: 38 | AR133: DB | BF133: 228 | BG133: 6 | BH133: 108 | BI133: 193 | BJ133: 192 | BK133: 56 | BL133: 219 | BM133: 0 | BN133: 0 | BO133: 0 | BP133: 0 | BQ133: 0 | BR133: 0 | BS133: 0 | BT133: 0 | BU133: 0 | BV133: 0 | BW133: 0 | BX133: 0 | BY133: 0 | BZ133: 192 | CA133: 100 | CB133: 6 | CC133: 0 | CD133: 1 | CE133: 0 | CF133: 248 | CU133: 100 | CV133: =MyXor(CB133,VLOOKUP(CU133,'Таблица CRC'!$A$43:$C$298,3,FALSE)) -> 2 | CW133: =MyXor(CC133,VLOOKUP(CV133,'Таблица CRC'!$A$43:$C$298,3,FALSE)) -> 188 | CX133: =MyXor(CD133,VLOOKUP(CW133,'Таблица CRC'!$A$43:$C$298,3,FALSE)) -> 144 | CY133: =MyXor(CE133,VLOOKUP(CX133,'Таблица CRC'!$A$43:$C$298,3,FALSE)) -> 17 | CZ133: =MyXor(CF133,VLOOKUP(CY133,'Таблица CRC'!$A$43:$C$298,3,FALSE)) -> 59 | DA133: =MyXor(CG133,VLOOKUP(CZ133,'Таблица CRC'!$A$43:$C$298,3,FALSE)) -> 158 | DO133: 64 06 00 01 00 F8 9E
A134: ключ шифрования-46 | B134: 46 | D134: ключ шифрования-46 | Y134: =DEC2HEX(Y132,2) -> 64 | Z134: =DEC2HEX(Z132,2) -> 06 | AA134: 00 | AB134: 03 | AC134: 00 | AD134: 00 | AE134: =DEC2HEX(AE133,2) -> 67 | AI134: =CONCATENATE(Y134," ",Z134," ",AA134," ",AB134," ",AC134," ",AD134," ",AE134," ",AF134," ",AG134," ",AH134) -> 64 06 00 03 00 00 67 | AK134: E4 09 CE C7 D7 C0 C0 C0 C0 9C | AL134: E4 | AM134: 9 | AN134: CE | AO134: C7 | AP134: D7 | AQ134: C0 | AR134: C0 | AS134: C0 | AT134: C0 | AU134: 9C | BF134: =HEX2DEC(AL134) -> 228 | BG134: =HEX2DEC(AM134) -> 9 | BH134: =HEX2DEC(AN134) -> 206 | BI134: =HEX2DEC(AO134) -> 199 | BJ134: =HEX2DEC(AP134) -> 215 | BK134: =HEX2DEC(AQ134) -> 192 | BL134: =HEX2DEC(AR134) -> 192 | BM134: =HEX2DEC(AS134) -> 192 | BN134: =HEX2DEC(AT134) -> 192 | BO134: =HEX2DEC(AU134) -> 156 | BP134: =HEX2DEC(AV134) -> 0 | BQ134: =HEX2DEC(AW134) -> 0 | BR134: =HEX2DEC(AX134) -> 0 | BS134: =HEX2DEC(AY134) -> 0 | BT134: =HEX2DEC(AZ134) -> 0 | BU134: =HEX2DEC(BA134) -> 0 | BV134: =HEX2DEC(BB134) -> 0 | BW134: =HEX2DEC(BC134) -> 0 | BX134: =HEX2DEC(BD134) -> 0 | BY134: =HEX2DEC(BE134) -> 0 | BZ134: 98 | CA134: 100 | CB134: 9 | CC134: 0 | CD134: 165 | CE134: 181 | CF134: 162 | CG134: 162 | CH134: 162 | CI134: 162 | CU134: 100 | CV134: =MyXor(CB134,VLOOKUP(CU134,'Таблица CRC'!$A$43:$C$298,3,FALSE)) -> 13 | CW134: =MyXor(CC134,VLOOKUP(CV134,'Таблица CRC'!$A$43:$C$298,3,FALSE)) -> 253 | CX134: =MyXor(CD134,VLOOKUP(CW134,'Таблица CRC'!$A$43:$C$298,3,FALSE)) -> 44 | CY134: =MyXor(CE134,VLOOKUP(CX134,'Таблица CRC'!$A$43:$C$298,3,FALSE)) -> 53 | CZ134: =MyXor(CF134,VLOOKUP(CY134,'Таблица CRC'!$A$43:$C$298,3,FALSE)) -> 35 | DA134: =MyXor(CG134,VLOOKUP(CZ134,'Таблица CRC'!$A$43:$C$298,3,FALSE)) -> 99 | DB134: =MyXor(CH134,VLOOKUP(DA134,'Таблица CRC'!$A$43:$C$298,3,FALSE)) -> 37 | DC134: =MyXor(CI134,VLOOKUP(DB134,'Таблица CRC'!$A$43:$C$298,3,FALSE)) -> 190 | DD134: =MyXor(CJ134,VLOOKUP(DC134,'Таблица CRC'!$A$43:$C$298,3,FALSE)) -> 45 | DO134: =CONCATENATE(DEC2HEX(CA134,2)," ",DEC2HEX(CB134,2)," ",DEC2HEX(CC134,2)," ",DEC2HEX(CD134,2)," ",DEC2HEX(CE134,2)," ",DEC2HEX(CF134,2)," ",DEC2HEX(CG134,2)," ",DEC2HEX(CH134,2)," ",DEC2HEX(CI134,2)," ",DEC2HEX(DD134,2)) -> 64 09 00 A5 B5 A2 A2 A2 A2 2D
A135: zapros.s 3,0,0, | D135: zapros.s 3 | E135: 0 | F135: 0 | AK135: E4 06 6C C3 C0 C0 22 | AL135: E4 | AM135: 6 | AN135: 6C | AO135: C3 | AP135: C0 | AQ135: C0 | AR135: 22 | BF135: 228 | BG135: 6 | BH135: 108 | BI135: 195 | BJ135: 192 | BK135: 192 | BL135: 34 | BM135: 0 | BN135: 0 | BO135: 0 | BP135: 0 | BQ135: 0 | BR135: 0 | BS135: 0 | BT135: 0 | BU135: 0 | BV135: 0 | BW135: 0 | BX135: 0 | BY135: 0 | BZ135: 192 | CA135: 100 | CB135: 6 | CC135: 0 | CD135: 3 | CE135: 0 | CF135: 0 | CU135: 100 | CV135: =MyXor(CB135,VLOOKUP(CU135,'Таблица CRC'!$A$43:$C$298,3,FALSE)) -> 2 | CW135: =MyXor(CC135,VLOOKUP(CV135,'Таблица CRC'!$A$43:$C$298,3,FALSE)) -> 188 | CX135: =MyXor(CD135,VLOOKUP(CW135,'Таблица CRC'!$A$43:$C$298,3,FALSE)) -> 146 | CY135: =MyXor(CE135,VLOOKUP(CX135,'Таблица CRC'!$A$43:$C$298,3,FALSE)) -> 173 | CZ135: =MyXor(CF135,VLOOKUP(CY135,'Таблица CRC'!$A$43:$C$298,3,FALSE)) -> 82 | DA135: =MyXor(CG135,VLOOKUP(CZ135,'Таблица CRC'!$A$43:$C$298,3,FALSE)) -> 103 | DO135: 64 06 00 03 00 00 67
A136: 228,8,210,85,122,123,126,127,52, | C136: =MyXor(F136,$C$1) -> 126 | D136: 228 | E136: 8 | F136: 210 | G136: 85 | H136: 122 | I136: 123 | J136: 126 | K136: 127 | L136: 52 | N136: =IF(D136>127,D136-128,D136) -> 100 | O136: =E136 -> 8 | P136: =MyXor(F136,$B138) -> 172 | Q136: 43 | R136: 4 | S136: 5 | T136: 0 | U136: 1 | V136: 74 | W136: 126 | Y136: 100 | Z136: 8 | AA136: 0 | AB136: 43 | AC136: 4 | AD136: 5 | AE136: 0 | AF136: 1 | AK136: E4 09 56 D1 EA FB FA FA 97 19 | AL136: E4 | AM136: 9 | AN136: 56 | AO136: D1 | AP136: EA | AQ136: FB | AR136: FA | AS136: FA | AT136: 97 | AU136: 19 | BF136: 228 | BG136: 9 | BH136: 86 | BI136: 209 | BJ136: 234 | BK136: 251 | BL136: 250 | BM136: 250 | BN136: 151 | BO136: 25 | BP136: 0 | BQ136: 0 | BR136: 0 | BS136: 0 | BT136: 0 | BU136: 0 | BV136: 0 | BW136: 0 | BX136: 0 | BY136: 0 | BZ136: 250 | CA136: 100 | CB136: 9 | CC136: 0 | CD136: 43 | CE136: 16 | CF136: 1 | CG136: 0 | CH136: 0 | CI136: 109 | CU136: 100 | CV136: =MyXor(CB136,VLOOKUP(CU136,'Таблица CRC'!$A$43:$C$298,3,FALSE)) -> 13 | CW136: =MyXor(CC136,VLOOKUP(CV136,'Таблица CRC'!$A$43:$C$298,3,FALSE)) -> 253 | CX136: =MyXor(CD136,VLOOKUP(CW136,'Таблица CRC'!$A$43:$C$298,3,FALSE)) -> 162 | CY136: =MyXor(CE136,VLOOKUP(CX136,'Таблица CRC'!$A$43:$C$298,3,FALSE)) -> 3 | CZ136: =MyXor(CF136,VLOOKUP(CY136,'Таблица CRC'!$A$43:$C$298,3,FALSE)) -> 227 | DA136: =MyXor(CG136,VLOOKUP(CZ136,'Таблица CRC'!$A$43:$C$298,3,FALSE)) -> 11 | DB136: =MyXor(CH136,VLOOKUP(DA136,'Таблица CRC'!$A$43:$C$298,3,FALSE)) -> 32 | DC136: =MyXor(CI136,VLOOKUP(DB136,'Таблица CRC'!$A$43:$C$298,3,FALSE)) -> 78 | DD136: =MyXor(CJ136,VLOOKUP(DC136,'Таблица CRC'!$A$43:$C$298,3,FALSE)) -> 89 | DO136: 64 09 00 2B 10 01 0B
A137: Принято в обработку | D137: Принято в обработку | Y137: =MyXor(Y136,0) -> 100 | Z137: =MyXor(Z136,VLOOKUP(Y137,'Таблица CRC'!$A$43:$C$298,3,FALSE)) -> 12 | AA137: =MyXor(AA136,VLOOKUP(Z137,'Таблица CRC'!$A$43:$C$298,3,FALSE)) -> 163 | AB137: =MyXor(AB136,VLOOKUP(AA137,'Таблица CRC'!$A$43:$C$298,3,FALSE)) -> 102 | AC137: =MyXor(AC136,VLOOKUP(AB137,'Таблица CRC'!$A$43:$C$298,3,FALSE)) -> 188 | AD137: =MyXor(AD136,VLOOKUP(AC137,'Таблица CRC'!$A$43:$C$298,3,FALSE)) -> 148 | AE137: =MyXor(AE136,VLOOKUP(AD137,'Таблица CRC'!$A$43:$C$298,3,FALSE)) -> 112 | AF137: =MyXor(AF136,VLOOKUP(AE137,'Таблица CRC'!$A$43:$C$298,3,FALSE)) -> 249 | AG137: =MyXor(AG136,VLOOKUP(AF137,'Таблица CRC'!$A$43:$C$298,3,FALSE)) -> 252 | AK137: E4 05 D6 FA FA F8 | AL137: E4 | AM137: 5 | AN137: D6 | AO137: FA | AP137: FA | AQ137: F8 | BF137: 228 | BG137: 5 | BH137: 214 | BI137: 250 | BJ137: 250 | BK137: 248 | BL137: 0 | BM137: 0 | BN137: 0 | BO137: 0 | BP137: 0 | BQ137: 0 | BR137: 0 | BS137: 0 | BT137: 0 | BU137: 0 | BV137: 0 | BW137: 0 | BX137: 0 | BY137: 0 | BZ137: 122 | CA137: 100 | CB137: 5 | CC137: 0 | CD137: 128 | CE137: 128 | CU137: 100 | CV137: =MyXor(CB137,VLOOKUP(CU137,'Таблица CRC'!$A$43:$C$298,3,FALSE)) -> 1 | CW137: =MyXor(CC137,VLOOKUP(CV137,'Таблица CRC'!$A$43:$C$298,3,FALSE)) -> 94 | CX137: =MyXor(CD137,VLOOKUP(CW137,'Таблица CRC'!$A$43:$C$298,3,FALSE)) -> 68 | CY137: =MyXor(CE137,VLOOKUP(CX137,'Таблица CRC'!$A$43:$C$298,3,FALSE)) -> 167 | CZ137: =MyXor(CF137,VLOOKUP(CY137,'Таблица CRC'!$A$43:$C$298,3,FALSE)) -> 44 | DO137: =CONCATENATE(DEC2HEX(CA137,2)," ",DEC2HEX(CB137,2)," ",DEC2HEX(CC137,2)," ",DEC2HEX(CD137,2)," ",DEC2HEX(CE137,2)," ",DEC2HEX(CZ137,2)) -> 64 05 00 80 80 2C
A138: ключ шифрования-126 | B138: 126 | D138: ключ шифрования-126 | Y138: =DEC2HEX(Y136,2) -> 64 | Z138: =DEC2HEX(Z136,2) -> 08 | AA138: 00 | AB138: 2B | AC138: 04 | AD138: 05 | AE138: 00 | AF138: 01 | AG138: =DEC2HEX(AG137,2) -> FC | AI138: =CONCATENATE(Y138," ",Z138," ",AA138," ",AB138," ",AC138," ",AD138," ",AE138," ",AF138," ",AG138," ",AH138) -> 64 08 00 2B 04 05 00 01 FC | AJ138: 64 05 2C 00 00 A0 | AK138: E4 09 19 9E A4 B4 B4 B5 B5 25 | AL138: E4 | AM138: 9 | AN138: 19 | AO138: 9E | AP138: A4 | AQ138: B4 | AR138: B4 | AS138: B5 | AT138: B5 | AU138: 25 | BF138: 228 | BG138: 9 | BH138: 25 | BI138: 158 | BJ138: 164 | BK138: 180 | BL138: 180 | BM138: 181 | BN138: 181 | BO138: 37 | BP138: 0 | BQ138: 0 | BR138: 0 | BS138: 0 | BT138: 0 | BU138: 0 | BV138: 0 | BW138: 0 | BX138: 0 | BY138: 0 | BZ138: =MyXor(BH138,$C$1) -> 181 | CA138: 100 | CB138: 9 | CC138: 0 | CD138: 43 | CE138: 17 | CF138: 1 | CG138: 1 | CH138: 0 | CI138: 0 | CU138: 100 | CV138: =MyXor(CB138,VLOOKUP(CU138,'Таблица CRC'!$A$43:$C$298,3,FALSE)) -> 13 | CW138: =MyXor(CC138,VLOOKUP(CV138,'Таблица CRC'!$A$43:$C$298,3,FALSE)) -> 253 | CX138: =MyXor(CD138,VLOOKUP(CW138,'Таблица CRC'!$A$43:$C$298,3,FALSE)) -> 162 | CY138: =MyXor(CE138,VLOOKUP(CX138,'Таблица CRC'!$A$43:$C$298,3,FALSE)) -> 2 | CZ138: =MyXor(CF138,VLOOKUP(CY138,'Таблица CRC'!$A$43:$C$298,3,FALSE)) -> 189 | DA138: =MyXor(CG138,VLOOKUP(CZ138,'Таблица CRC'!$A$43:$C$298,3,FALSE)) -> 206 | DB138: =MyXor(CH138,VLOOKUP(DA138,'Таблица CRC'!$A$43:$C$298,3,FALSE)) -> 213 | DC138: =MyXor(CI138,VLOOKUP(DB138,'Таблица CRC'!$A$43:$C$298,3,FALSE)) -> 104 | DD138: =MyXor(CJ138,VLOOKUP(DC138,'Таблица CRC'!$A$43:$C$298,3,FALSE)) -> 167 | DO138: =CONCATENATE(DEC2HEX(CA138,2)," ",DEC2HEX(CB138,2)," ",DEC2HEX(CC138,2)," ",DEC2HEX(CD138,2)," ",DEC2HEX(CE138,2)," ",DEC2HEX(CF138,2)," ",DEC2HEX(CG138,2)," ",DEC2HEX(CH138,2)," ",DEC2HEX(CI138,2)," ",DEC2HEX(DD138,2)) -> 64 09 00 2B 11 01 01 00 00 A7
A139: zapros.s 43,4,5, | D139: zapros.s 43 | E139: 4 | F139: 5 | AK139: E4 05 99 B5 B5 12 | AL139: E4 | AM139: 5 | AN139: 99 | AO139: B5 | AP139: B5 | AQ139: 12 | BF139: 228 | BG139: 5 | BH139: 153 | BI139: 181 | BJ139: 181 | BK139: 18 | BL139: 0 | BM139: 0 | BN139: 0 | BO139: 0 | BP139: 0 | BQ139: 0 | BR139: 0 | BS139: 0 | BT139: 0 | BU139: 0 | BV139: 0 | BW139: 0 | BX139: 0 | BY139: 0 | BZ139: 53 | CA139: 100 | CB139: 5 | CC139: 0 | CD139: 128 | CE139: 128 | CU139: 100 | CV139: =MyXor(CB139,VLOOKUP(CU139,'Таблица CRC'!$A$43:$C$298,3,FALSE)) -> 1 | CW139: =MyXor(CC139,VLOOKUP(CV139,'Таблица CRC'!$A$43:$C$298,3,FALSE)) -> 94 | CX139: =MyXor(CD139,VLOOKUP(CW139,'Таблица CRC'!$A$43:$C$298,3,FALSE)) -> 68 | CY139: =MyXor(CE139,VLOOKUP(CX139,'Таблица CRC'!$A$43:$C$298,3,FALSE)) -> 167 | CZ139: =MyXor(CF139,VLOOKUP(CY139,'Таблица CRC'!$A$43:$C$298,3,FALSE)) -> 44 | DO139: =CONCATENATE(DEC2HEX(CA139,2)," ",DEC2HEX(CB139,2)," ",DEC2HEX(CC139,2)," ",DEC2HEX(CD139,2)," ",DEC2HEX(CE139,2)," ",DEC2HEX(CZ139,2)) -> 64 05 00 80 80 2C
A140: 228,5,82,126,126,253, | C140: =MyXor(F140,$C$1) -> 254 | D140: 228 | E140: 5 | F140: 82 | G140: 126 | H140: 126 | I140: 253 | N140: =IF(D140>127,D140-128,D140) -> 100 | O140: =E140 -> 5 | P140: =MyXor(F140,$B142) -> 172 | Q140: 128 | R140: 128 | S140: 3 | T140: 254 | U140: 254 | V140: 254 | W140: 254 | Y140: 100 | Z140: 5 | AA140: 0 | AB140: 128 | AC140: 128 | AK140: E4 08 E6 61 4E 5D 4A 4B 54 | AL140: E4 | AM140: 8 | AN140: E6 | AO140: 61 | AP140: 4E | AQ140: 5D | AR140: 4A | AS140: 4B | AT140: 54 | BF140: 228 | BG140: 8 | BH140: 230 | BI140: 97 | BJ140: 78 | BK140: 93 | BL140: 74 | BM140: 75 | BN140: 84 | BO140: 0 | BP140: 0 | BQ140: 0 | BR140: 0 | BS140: 0 | BT140: 0 | BU140: 0 | BV140: 0 | BW140: 0 | BX140: 0 | BY140: 0 | BZ140: 74 | CA140: 100 | CB140: 8 | CC140: 0 | CD140: 43 | CE140: 4 | CF140: 23 | CG140: 0 | CH140: 1 | CI140: 30 | CU140: 100 | CV140: =MyXor(CB140,VLOOKUP(CU140,'Таблица CRC'!$A$43:$C$298,3,FALSE)) -> 12 | CW140: =MyXor(CC140,VLOOKUP(CV140,'Таблица CRC'!$A$43:$C$298,3,FALSE)) -> 163 | CX140: =MyXor(CD140,VLOOKUP(CW140,'Таблица CRC'!$A$43:$C$298,3,FALSE)) -> 102 | CY140: =MyXor(CE140,VLOOKUP(CX140,'Таблица CRC'!$A$43:$C$298,3,FALSE)) -> 188 | CZ140: =MyXor(CF140,VLOOKUP(CY140,'Таблица CRC'!$A$43:$C$298,3,FALSE)) -> 134 | DA140: =MyXor(CG140,VLOOKUP(CZ140,'Таблица CRC'!$A$43:$C$298,3,FALSE)) -> 81 | DB140: =MyXor(CH140,VLOOKUP(DA140,'Таблица CRC'!$A$43:$C$298,3,FALSE)) -> 132 | DC140: =MyXor(CI140,VLOOKUP(DB140,'Таблица CRC'!$A$43:$C$298,3,FALSE)) -> 243 | DO140: =CONCATENATE(DEC2HEX(CA140,2)," ",DEC2HEX(CB140,2)," ",DEC2HEX(CC140,2)," ",DEC2HEX(CD140,2)," ",DEC2HEX(CE140,2)," ",DEC2HEX(CF140,2)," ",DEC2HEX(CG140,2)," ",DEC2HEX(CH140,2)," ",DEC2HEX(DC140,2)) -> 64 08 00 2B 04 17 00 01 F3
A141: Принято в обработку | D141: Принято в обработку | Y141: =MyXor(Y140,0) -> 100 | Z141: =MyXor(Z140,VLOOKUP(Y141,'Таблица CRC'!$A$43:$C$298,3,FALSE)) -> 1 | AA141: =MyXor(AA140,VLOOKUP(Z141,'Таблица CRC'!$A$43:$C$298,3,FALSE)) -> 94 | AB141: =MyXor(AB140,VLOOKUP(AA141,'Таблица CRC'!$A$43:$C$298,3,FALSE)) -> 68 | AC141: =MyXor(AC140,VLOOKUP(AB141,'Таблица CRC'!$A$43:$C$298,3,FALSE)) -> 167 | AD141: =MyXor(AD140,VLOOKUP(AC141,'Таблица CRC'!$A$43:$C$298,3,FALSE)) -> 44 | AK141: E4 05 66 4A 4A 74 | AL141: E4 | AM141: 5 | AN141: 66 | AO141: 4A | AP141: 4A | AQ141: 74 | BF141: 228 | BG141: 5 | BH141: 102 | BI141: 74 | BJ141: 74 | BK141: 116 | BL141: 0 | BM141: 0 | BN141: 0 | BO141: 0 | BP141: 0 | BQ141: 0 | BR141: 0 | BS141: 0 | BT141: 0 | BU141: 0 | BV141: 0 | BW141: 0 | BX141: 0 | BY141: 0 | BZ141: 202 | CA141: 100 | CB141: 5 | CC141: 0 | CD141: 128 | CE141: 128 | CU141: 100 | CV141: =MyXor(CB141,VLOOKUP(CU141,'Таблица CRC'!$A$43:$C$298,3,FALSE)) -> 1 | CW141: =MyXor(CC141,VLOOKUP(CV141,'Таблица CRC'!$A$43:$C$298,3,FALSE)) -> 94 | CX141: =MyXor(CD141,VLOOKUP(CW141,'Таблица CRC'!$A$43:$C$298,3,FALSE)) -> 68 | CY141: =MyXor(CE141,VLOOKUP(CX141,'Таблица CRC'!$A$43:$C$298,3,FALSE)) -> 167 | CZ141: =MyXor(CF141,VLOOKUP(CY141,'Таблица CRC'!$A$43:$C$298,3,FALSE)) -> 44 | DO141: =CONCATENATE(DEC2HEX(CA141,2)," ",DEC2HEX(CB141,2)," ",DEC2HEX(CC141,2)," ",DEC2HEX(CD141,2)," ",DEC2HEX(CE141,2)," ",DEC2HEX(CZ141,2)) -> 64 05 00 80 80 2C
A142: otvet 44,0,0, | B142: 254 | D142: otvet 44 | E142: 0 | F142: 0 | Y142: =DEC2HEX(Y140,2) -> 64 | Z142: =DEC2HEX(Z140,2) -> 05 | AA142: 00 | AB142: 80 | AC142: 80 | AD142: =DEC2HEX(AD141,2) -> 2C | AI142: =CONCATENATE(Y142," ",Z142," ",AA142," ",AB142," ",AC142," ",AD142," ",AE142," ",AF142," ",AG142," ",AH142) -> 64 05 00 80 80 2C | AK142: E4 06 80 2D 2C D4 8E | AL142: E4 | AM142: 6 | AN142: 80 | AO142: 2D | AP142: 2C | AQ142: D4 | AR142: 8E | BF142: 228 | BG142: 6 | BH142: 128 | BI142: 45 | BJ142: 44 | BK142: 212 | BL142: 142 | BM142: 0 | BN142: 0 | BO142: 0 | BP142: 0 | BQ142: 0 | BR142: 0 | BS142: 0 | BT142: 0 | BU142: 0 | BV142: 0 | BW142: 0 | BX142: 0 | BY142: 0 | BZ142: 44 | CA142: 100 | CB142: 6 | CC142: 0 | CD142: 1 | CE142: 0 | CF142: 248 | CU142: 100 | CV142: =MyXor(CB142,VLOOKUP(CU142,'Таблица CRC'!$A$43:$C$298,3,FALSE)) -> 2 | CW142: =MyXor(CC142,VLOOKUP(CV142,'Таблица CRC'!$A$43:$C$298,3,FALSE)) -> 188 | CX142: =MyXor(CD142,VLOOKUP(CW142,'Таблица CRC'!$A$43:$C$298,3,FALSE)) -> 144 | CY142: =MyXor(CE142,VLOOKUP(CX142,'Таблица CRC'!$A$43:$C$298,3,FALSE)) -> 17 | CZ142: =MyXor(CF142,VLOOKUP(CY142,'Таблица CRC'!$A$43:$C$298,3,FALSE)) -> 59 | DA142: =MyXor(CG142,VLOOKUP(CZ142,'Таблица CRC'!$A$43:$C$298,3,FALSE)) -> 158 | DO142: =CONCATENATE(DEC2HEX(CA142,2)," ",DEC2HEX(CB142,2)," ",DEC2HEX(CC142,2)," ",DEC2HEX(CD142,2)," ",DEC2HEX(CE142,2)," ",DEC2HEX(CF142,2)," ",DEC2HEX(DA142,2)) -> 64 06 00 01 00 F8 9E
A143: 228,6,204,97,96,152,197, | C143: =MyXor(F143,$C$1) -> 96 | D143: 228 | E143: 6 | F143: 204 | G143: 97 | H143: 96 | I143: 152 | J143: 197 | N143: =IF(D143>127,D143-128,D143) -> 100 | O143: =E143 -> 6 | P143: =MyXor(F143,$B145) -> 172 | Q143: 1 | R143: 0 | S143: 248 | T143: 165 | U143: 96 | V143: 96 | W143: 96 | Y143: 100 | Z143: 6 | AA143: 0 | AB143: 1 | AC143: 0 | AD143: 248 | AK143: E4 09 22 2B 34 2C 2C 2C 2C D0 | AL143: E4 | AM143: 9 | AN143: 22 | AO143: 2B | AP143: 34 | AQ143: 2C | AR143: 2C | AS143: 2C | AT143: 2C | AU143: D0 | BF143: 228 | BG143: 9 | BH143: 34 | BI143: 43 | BJ143: 52 | BK143: 44 | BL143: 44 | BM143: 44 | BN143: 44 | BO143: 208 | BP143: 0 | BQ143: 0 | BR143: 0 | BS143: 0 | BT143: 0 | BU143: 0 | BV143: 0 | BW143: 0 | BX143: 0 | BY143: 0 | BZ143: 142 | CA143: 100 | CB143: 9 | CC143: 0 | CD143: 165 | CE143: 186 | CF143: 162 | CG143: 162 | CH143: 162 | CI143: 162 | CU143: 100 | CV143: =MyXor(CB143,VLOOKUP(CU143,'Таблица CRC'!$A$43:$C$298,3,FALSE)) -> 13 | CW143: =MyXor(CC143,VLOOKUP(CV143,'Таблица CRC'!$A$43:$C$298,3,FALSE)) -> 253 | CX143: =MyXor(CD143,VLOOKUP(CW143,'Таблица CRC'!$A$43:$C$298,3,FALSE)) -> 44 | CY143: =MyXor(CE143,VLOOKUP(CX143,'Таблица CRC'!$A$43:$C$298,3,FALSE)) -> 58 | CZ143: =MyXor(CF143,VLOOKUP(CY143,'Таблица CRC'!$A$43:$C$298,3,FALSE)) -> 98 | DA143: =MyXor(CG143,VLOOKUP(CZ143,'Таблица CRC'!$A$43:$C$298,3,FALSE)) -> 123 | DB143: =MyXor(CH143,VLOOKUP(DA143,'Таблица CRC'!$A$43:$C$298,3,FALSE)) -> 122 | DC143: =MyXor(CI143,VLOOKUP(DB143,'Таблица CRC'!$A$43:$C$298,3,FALSE)) -> 36 | DD143: =MyXor(CJ143,VLOOKUP(DC143,'Таблица CRC'!$A$43:$C$298,3,FALSE)) -> 66 | DO143: =CONCATENATE(DEC2HEX(CA143,2)," ",DEC2HEX(CB143,2)," ",DEC2HEX(CC143,2)," ",DEC2HEX(CD143,2)," ",DEC2HEX(CE143,2)," ",DEC2HEX(CF143,2)," ",DEC2HEX(CG143,2)," ",DEC2HEX(CH143,2)," ",DEC2HEX(CI143,2)," ",DEC2HEX(DD143,2)) -> 64 09 00 A5 BA A2 A2 A2 A2 42
A144: Принято в обработку | D144: Принято в обработку | Y144: =MyXor(Y143,0) -> 100 | Z144: =MyXor(Z143,VLOOKUP(Y144,'Таблица CRC'!$A$43:$C$298,3,FALSE)) -> 2 | AA144: =MyXor(AA143,VLOOKUP(Z144,'Таблица CRC'!$A$43:$C$298,3,FALSE)) -> 188 | AB144: =MyXor(AB143,VLOOKUP(AA144,'Таблица CRC'!$A$43:$C$298,3,FALSE)) -> 144 | AC144: =MyXor(AC143,VLOOKUP(AB144,'Таблица CRC'!$A$43:$C$298,3,FALSE)) -> 17 | AD144: =MyXor(AD143,VLOOKUP(AC144,'Таблица CRC'!$A$43:$C$298,3,FALSE)) -> 59 | AE144: =MyXor(AE143,VLOOKUP(AD144,'Таблица CRC'!$A$43:$C$298,3,FALSE)) -> 158 | AK144: E4 06 80 2F 2C 2C 77 | AL144: E4 | AM144: 6 | AN144: 80 | AO144: 2F | AP144: 2C | AQ144: 2C | AR144: 77 | BF144: 228 | BG144: 6 | BH144: 128 | BI144: 47 | BJ144: 44 | BK144: 44 | BL144: 119 | BM144: 0 | BN144: 0 | BO144: 0 | BP144: 0 | BQ144: 0 | BR144: 0 | BS144: 0 | BT144: 0 | BU144: 0 | BV144: 0 | BW144: 0 | BX144: 0 | BY144: 0 | BZ144: 44 | CA144: 100 | CB144: 6 | CC144: 0 | CD144: 3 | CE144: 0 | CF144: 0 | CU144: 100 | CV144: =MyXor(CB144,VLOOKUP(CU144,'Таблица CRC'!$A$43:$C$298,3,FALSE)) -> 2 | CW144: =MyXor(CC144,VLOOKUP(CV144,'Таблица CRC'!$A$43:$C$298,3,FALSE)) -> 188 | CX144: =MyXor(CD144,VLOOKUP(CW144,'Таблица CRC'!$A$43:$C$298,3,FALSE)) -> 146 | CY144: =MyXor(CE144,VLOOKUP(CX144,'Таблица CRC'!$A$43:$C$298,3,FALSE)) -> 173 | CZ144: =MyXor(CF144,VLOOKUP(CY144,'Таблица CRC'!$A$43:$C$298,3,FALSE)) -> 82 | DA144: =MyXor(CG144,VLOOKUP(CZ144,'Таблица CRC'!$A$43:$C$298,3,FALSE)) -> 103 | DO144: 64 06 00 03 00 00 67
A145: ключ шифрования-96 | B145: 96 | D145: ключ шифрования-96 | Y145: =DEC2HEX(Y143,2) -> 64 | Z145: =DEC2HEX(Z143,2) -> 06 | AA145: 00 | AB145: 01 | AC145: 00 | AD145: F8 | AE145: =DEC2HEX(AE144,2) -> 9E | AI145: =CONCATENATE(Y145," ",Z145," ",AA145," ",AB145," ",AC145," ",AD145," ",AE145," ",AF145," ",AG145," ",AH145) -> 64 06 00 01 00 F8 9E | AJ145: 64 09 0E 07 02 00 00 00 00 05 | AK145: E4 08 18 9F B0 AC B4 B5 5D | AL145: E4 | AM145: 8 | AN145: 18 | AO145: 9F | AP145: B0 | AQ145: AC | AR145: B4 | AS145: B5 | AT145: 5D | BF145: 228 | BG145: 8 | BH145: 24 | BI145: 159 | BJ145: 176 | BK145: 172 | BL145: 180 | BM145: 181 | BN145: 93 | BO145: 0 | BP145: 0 | BQ145: 0 | BR145: 0 | BS145: 0 | BT145: 0 | BU145: 0 | BV145: 0 | BW145: 0 | BX145: 0 | BY145: 0 | BZ145: 180 | CA145: 100 | CB145: 8 | CC145: 0 | CD145: 43 | CE145: 4 | CF145: 24 | CG145: 0 | CH145: 1 | CU145: 100 | CV145: =MyXor(CB145,VLOOKUP(CU145,'Таблица CRC'!$A$43:$C$298,3,FALSE)) -> 12 | CW145: =MyXor(CC145,VLOOKUP(CV145,'Таблица CRC'!$A$43:$C$298,3,FALSE)) -> 163 | CX145: =MyXor(CD145,VLOOKUP(CW145,'Таблица CRC'!$A$43:$C$298,3,FALSE)) -> 102 | CY145: =MyXor(CE145,VLOOKUP(CX145,'Таблица CRC'!$A$43:$C$298,3,FALSE)) -> 188 | CZ145: =MyXor(CF145,VLOOKUP(CY145,'Таблица CRC'!$A$43:$C$298,3,FALSE)) -> 137 | DA145: =MyXor(CG145,VLOOKUP(CZ145,'Таблица CRC'!$A$43:$C$298,3,FALSE)) -> 16 | DB145: =MyXor(CH145,VLOOKUP(DA145,'Таблица CRC'!$A$43:$C$298,3,FALSE)) -> 156 | DC145: =MyXor(CI145,VLOOKUP(DB145,'Таблица CRC'!$A$43:$C$298,3,FALSE)) -> 178 | DO145: =CONCATENATE(DEC2HEX(CA145,2)," ",DEC2HEX(CB145,2)," ",DEC2HEX(CC145,2)," ",DEC2HEX(CD145,2)," ",DEC2HEX(CE145,2)," ",DEC2HEX(CF145,2)," ",DEC2HEX(CG145,2)," ",DEC2HEX(CH145,2)," ",DEC2HEX(DC145,2)) -> 64 08 00 2B 04 18 00 01 B2
A146: zapros.s 1,0,248, | D146: zapros.s 1 | E146: 0 | F146: 248 | AK146: E4 05 98 B4 B4 23 | AL146: E4 | AM146: 5 | AN146: 98 | AO146: B4 | AP146: B4 | AQ146: 23 | BF146: 228 | BG146: 5 | BH146: 152 | BI146: 180 | BJ146: 180 | BK146: 35 | BL146: 0 | BM146: 0 | BN146: 0 | BO146: 0 | BP146: 0 | BQ146: 0 | BR146: 0 | BS146: 0 | BT146: 0 | BU146: 0 | BV146: 0 | BW146: 0 | BX146: 0 | BY146: 0 | BZ146: 52 | CA146: 100 | CB146: 5 | CC146: 0 | CD146: 128 | CE146: 128 | CU146: 100 | CV146: =MyXor(CB146,VLOOKUP(CU146,'Таблица CRC'!$A$43:$C$298,3,FALSE)) -> 1 | CW146: =MyXor(CC146,VLOOKUP(CV146,'Таблица CRC'!$A$43:$C$298,3,FALSE)) -> 94 | CX146: =MyXor(CD146,VLOOKUP(CW146,'Таблица CRC'!$A$43:$C$298,3,FALSE)) -> 68 | CY146: =MyXor(CE146,VLOOKUP(CX146,'Таблица CRC'!$A$43:$C$298,3,FALSE)) -> 167 | CZ146: =MyXor(CF146,VLOOKUP(CY146,'Таблица CRC'!$A$43:$C$298,3,FALSE)) -> 44 | DO146: =CONCATENATE(DEC2HEX(CA146,2)," ",DEC2HEX(CB146,2)," ",DEC2HEX(CC146,2)," ",DEC2HEX(CD146,2)," ",DEC2HEX(CE146,2)," ",DEC2HEX(CZ146,2)) -> 64 05 00 80 80 2C
A147: ОТВЕТ ЭМУЛЯТОРА 98,99,96, | D147: ОТВЕТ ЭМУЛЯТОРА 98 | E147: 99 | F147: 96 | AK147: E4 06 DA 77 76 8E 69 | AL147: E4 | AM147: 6 | AN147: DA | AO147: 77 | AP147: 76 | AQ147: 8E | AR147: 69 | BF147: 228 | BG147: 6 | BH147: 218 | BI147: 119 | BJ147: 118 | BK147: 142 | BL147: 105 | BM147: 0 | BN147: 0 | BO147: 0 | BP147: 0 | BQ147: 0 | BR147: 0 | BS147: 0 | BT147: 0 | BU147: 0 | BV147: 0 | BW147: 0 | BX147: 0 | BY147: 0 | BZ147: 118 | CA147: 100 | CB147: 6 | CC147: 0 | CD147: 1 | CE147: 0 | CF147: 248 | CU147: 100 | CV147: =MyXor(CB147,VLOOKUP(CU147,'Таблица CRC'!$A$43:$C$298,3,FALSE)) -> 2 | CW147: =MyXor(CC147,VLOOKUP(CV147,'Таблица CRC'!$A$43:$C$298,3,FALSE)) -> 188 | CX147: =MyXor(CD147,VLOOKUP(CW147,'Таблица CRC'!$A$43:$C$298,3,FALSE)) -> 144 | CY147: =MyXor(CE147,VLOOKUP(CX147,'Таблица CRC'!$A$43:$C$298,3,FALSE)) -> 17 | CZ147: =MyXor(CF147,VLOOKUP(CY147,'Таблица CRC'!$A$43:$C$298,3,FALSE)) -> 59 | DA147: =MyXor(CG147,VLOOKUP(CZ147,'Таблица CRC'!$A$43:$C$298,3,FALSE)) -> 158 | DO147: 64 06 00 01 00 F8 9E
A148: 228,9,110,103,102,96,96,96,96,71, | C148: =MyXor(F148,$C$1) -> 194 | D148: 228 | E148: 9 | F148: 110 | G148: 103 | H148: 102 | I148: 96 | J148: 96 | K148: 96 | L148: 96 | M148: 71 | N148: =IF(D148>127,D148-128,D148) -> 100 | O148: =E148 -> 9 | P148: =MyXor(F148,$B150) -> 172 | Q148: 165 | R148: 164 | S148: 162 | T148: 162 | U148: 162 | V148: 162 | W148: 133 | Y148: 100 | Z148: 9 | AA148: 0 | AB148: 165 | AC148: 164 | AD148: 162 | AE148: 162 | AF148: 162 | AG148: 162 | AK148: E4 09 78 71 6F 76 76 76 76 84 | AL148: E4 | AM148: 9 | AN148: 78 | AO148: 71 | AP148: 6F | AQ148: 76 | AR148: 76 | AS148: 76 | AT148: 76 | AU148: 84 | BF148: 228 | BG148: 9 | BH148: 120 | BI148: 113 | BJ148: 111 | BK148: 118 | BL148: 118 | BM148: 118 | BN148: 118 | BO148: 132 | BP148: 0 | BQ148: 0 | BR148: 0 | BS148: 0 | BT148: 0 | BU148: 0 | BV148: 0 | BW148: 0 | BX148: 0 | BY148: 0 | BZ148: 212 | CA148: 100 | CB148: 9 | CC148: 0 | CD148: 165 | CE148: 187 | CF148: 162 | CG148: 162 | CH148: 162 | CI148: 162 | CU148: 100 | CV148: =MyXor(CB148,VLOOKUP(CU148,'Таблица CRC'!$A$43:$C$298,3,FALSE)) -> 13 | CW148: =MyXor(CC148,VLOOKUP(CV148,'Таблица CRC'!$A$43:$C$298,3,FALSE)) -> 253 | CX148: =MyXor(CD148,VLOOKUP(CW148,'Таблица CRC'!$A$43:$C$298,3,FALSE)) -> 44 | CY148: =MyXor(CE148,VLOOKUP(CX148,'Таблица CRC'!$A$43:$C$298,3,FALSE)) -> 59 | CZ148: =MyXor(CF148,VLOOKUP(CY148,'Таблица CRC'!$A$43:$C$298,3,FALSE)) -> 60 | DA148: =MyXor(CG148,VLOOKUP(CZ148,'Таблица CRC'!$A$43:$C$298,3,FALSE)) -> 191 | DB148: =MyXor(CH148,VLOOKUP(DA148,'Таблица CRC'!$A$43:$C$298,3,FALSE)) -> 209 | DC148: =MyXor(CI148,VLOOKUP(DB148,'Таблица CRC'!$A$43:$C$298,3,FALSE)) -> 171 | DD148: =MyXor(CJ148,VLOOKUP(DC148,'Таблица CRC'!$A$43:$C$298,3,FALSE)) -> 143 | DO148: =CONCATENATE(DEC2HEX(CA148,2)," ",DEC2HEX(CB148,2)," ",DEC2HEX(CC148,2)," ",DEC2HEX(CD148,2)," ",DEC2HEX(CE148,2)," ",DEC2HEX(CF148,2)," ",DEC2HEX(CG148,2)," ",DEC2HEX(CH148,2)," ",DEC2HEX(CI148,2)," ",DEC2HEX(DD148,2)) -> 64 09 00 A5 BB A2 A2 A2 A2 8F
A149: Принято в обработку | D149: Принято в обработку | Y149: =MyXor(Y148,0) -> 100 | Z149: =MyXor(Z148,VLOOKUP(Y149,'Таблица CRC'!$A$43:$C$298,3,FALSE)) -> 13 | AA149: =MyXor(AA148,VLOOKUP(Z149,'Таблица CRC'!$A$43:$C$298,3,FALSE)) -> 253 | AB149: =MyXor(AB148,VLOOKUP(AA149,'Таблица CRC'!$A$43:$C$298,3,FALSE)) -> 44 | AC149: =MyXor(AC148,VLOOKUP(AB149,'Таблица CRC'!$A$43:$C$298,3,FALSE)) -> 36 | AD149: =MyXor(AD148,VLOOKUP(AC149,'Таблица CRC'!$A$43:$C$298,3,FALSE)) -> 224 | AE149: =MyXor(AE148,VLOOKUP(AD149,'Таблица CRC'!$A$43:$C$298,3,FALSE)) -> 75 | AF149: =MyXor(AF148,VLOOKUP(AE149,'Таблица CRC'!$A$43:$C$298,3,FALSE)) -> 196 | AG149: =MyXor(AG148,VLOOKUP(AF149,'Таблица CRC'!$A$43:$C$298,3,FALSE)) -> 9 | AH149: =MyXor(AH148,VLOOKUP(AG149,'Таблица CRC'!$A$43:$C$298,3,FALSE)) -> 156 | AK149: E4 06 DA 75 76 76 90 | AL149: E4 | AM149: 6 | AN149: DA | AO149: 75 | AP149: 76 | AQ149: 76 | AR149: 90 | BF149: 228 | BG149: 6 | BH149: 218 | BI149: 117 | BJ149: 118 | BK149: 118 | BL149: 144 | BM149: 0 | BN149: 0 | BO149: 0 | BP149: 0 | BQ149: 0 | BR149: 0 | BS149: 0 | BT149: 0 | BU149: 0 | BV149: 0 | BW149: 0 | BX149: 0 | BY149: 0 | BZ149: 118 | CA149: 100 | CB149: 6 | CC149: 0 | CD149: 3 | CE149: 0 | CF149: 0 | CU149: 100 | CV149: =MyXor(CB149,VLOOKUP(CU149,'Таблица CRC'!$A$43:$C$298,3,FALSE)) -> 2 | CW149: =MyXor(CC149,VLOOKUP(CV149,'Таблица CRC'!$A$43:$C$298,3,FALSE)) -> 188 | CX149: =MyXor(CD149,VLOOKUP(CW149,'Таблица CRC'!$A$43:$C$298,3,FALSE)) -> 146 | CY149: =MyXor(CE149,VLOOKUP(CX149,'Таблица CRC'!$A$43:$C$298,3,FALSE)) -> 173 | CZ149: =MyXor(CF149,VLOOKUP(CY149,'Таблица CRC'!$A$43:$C$298,3,FALSE)) -> 82 | DA149: =MyXor(CG149,VLOOKUP(CZ149,'Таблица CRC'!$A$43:$C$298,3,FALSE)) -> 103 | DO149: 64 06 00 03 00 00 67
A150: ключ шифрования-194 | B150: 194 | D150: ключ шифрования-194 | Y150: =DEC2HEX(Y148,2) -> 64 | Z150: =DEC2HEX(Z148,2) -> 09 | AA150: 00 | AB150: A5 | AC150: A4 | AD150: A2 | AE150: A2 | AF150: A2 | AG150: A2 | AH150: =DEC2HEX(AH149,2) -> 9C | AI150: =CONCATENATE(Y150," ",Z150," ",AA150," ",AB150," ",AC150," ",AD150," ",AE150," ",AF150," ",AG150," ",AH150) -> 64 09 00 A5 A4 A2 A2 A2 A2 9C | AJ150: 64 05 0A 00 00 E5 | AK150: E4 08 04 83 AC B1 A8 A9 C9 | AL150: E4 | AM150: 8 | AN150: 4 | AO150: 83 | AP150: AC | AQ150: B1 | AR150: A8 | AS150: A9 | AT150: C9 | BF150: 228 | BG150: 8 | BH150: 4 | BI150: 131 | BJ150: 172 | BK150: 177 | BL150: 168 | BM150: 169 | BN150: 201 | BO150: 0 | BP150: 0 | BQ150: 0 | BR150: 0 | BS150: 0 | BT150: 0 | BU150: 0 | BV150: 0 | BW150: 0 | BX150: 0 | BY150: 0 | BZ150: 168 | CA150: 100 | CB150: 8 | CC150: 0 | CD150: 43 | CE150: 4 | CF150: 25 | CG150: 0 | CH150: 1 | CU150: =MyXor(CA150,0) -> 100 | CV150: =MyXor(CB150,VLOOKUP(CU150,'Таблица CRC'!$A$43:$C$298,3,FALSE)) -> 12 | CW150: =MyXor(CC150,VLOOKUP(CV150,'Таблица CRC'!$A$43:$C$298,3,FALSE)) -> 163 | CX150: =MyXor(CD150,VLOOKUP(CW150,'Таблица CRC'!$A$43:$C$298,3,FALSE)) -> 102 | CY150: =MyXor(CE150,VLOOKUP(CX150,'Таблица CRC'!$A$43:$C$298,3,FALSE)) -> 188 | CZ150: =MyXor(CF150,VLOOKUP(CY150,'Таблица CRC'!$A$43:$C$298,3,FALSE)) -> 136 | DA150: =MyXor(CG150,VLOOKUP(CZ150,'Таблица CRC'!$A$43:$C$298,3,FALSE)) -> 78 | DB150: =MyXor(CH150,VLOOKUP(DA150,'Таблица CRC'!$A$43:$C$298,3,FALSE)) -> 88 | DC150: =MyXor(CI150,VLOOKUP(DB150,'Таблица CRC'!$A$43:$C$298,3,FALSE)) -> 25 | DO150: =CONCATENATE(DEC2HEX(CA150,2)," ",DEC2HEX(CB150,2)," ",DEC2HEX(CC150,2)," ",DEC2HEX(CD150,2)," ",DEC2HEX(CE150,2)," ",DEC2HEX(CF150,2)," ",DEC2HEX(CG150,2)," ",DEC2HEX(CH150,2)," ",DEC2HEX(DC150,2)) -> 64 08 00 2B 04 19 00 01 19
A151: zapros.s 165,164,162, | D151: zapros.s 165 | E151: 164 | F151: 162 | AK151: E4 05 84 A8 A8 4D | AL151: E4 | AM151: 5 | AN151: 84 | AO151: A8 | AP151: A8 | AQ151: 4D | BF151: 228 | BG151: 5 | BH151: 132 | BI151: 168 | BJ151: 168 | BK151: 77 | BL151: 0 | BM151: 0 | BN151: 0 | BO151: 0 | BP151: 0 | BQ151: 0 | BR151: 0 | BS151: 0 | BT151: 0 | BU151: 0 | BV151: 0 | BW151: 0 | BX151: 0 | BY151: 0 | BZ151: 40 | CA151: 100 | CB151: 5 | CC151: 0 | CD151: 128 | CE151: 128 | CU151: 100 | CV151: =MyXor(CB151,VLOOKUP(CU151,'Таблица CRC'!$A$43:$C$298,3,FALSE)) -> 1 | CW151: =MyXor(CC151,VLOOKUP(CV151,'Таблица CRC'!$A$43:$C$298,3,FALSE)) -> 94 | CX151: =MyXor(CD151,VLOOKUP(CW151,'Таблица CRC'!$A$43:$C$298,3,FALSE)) -> 68 | CY151: =MyXor(CE151,VLOOKUP(CX151,'Таблица CRC'!$A$43:$C$298,3,FALSE)) -> 167 | CZ151: =MyXor(CF151,VLOOKUP(CY151,'Таблица CRC'!$A$43:$C$298,3,FALSE)) -> 44 | DO151: =CONCATENATE(DEC2HEX(CA151,2)," ",DEC2HEX(CB151,2)," ",DEC2HEX(CC151,2)," ",DEC2HEX(CD151,2)," ",DEC2HEX(CE151,2)," ",DEC2HEX(CZ151,2)) -> 64 05 00 80 80 2C
A152: 228,6,204,99,96,96,235, | C152: =MyXor(F152,$C$1) -> 96 | D152: 228 | E152: 6 | F152: 204 | G152: 99 | H152: 96 | I152: 96 | J152: 235 | N152: =IF(D152>127,D152-128,D152) -> 100 | O152: =E152 -> 6 | P152: =MyXor(F152,$B154) -> 172 | Q152: 3 | R152: 0 | S152: 0 | T152: 139 | U152: 96 | V152: 96 | W152: 96 | Y152: 100 | Z152: 6 | AA152: 0 | AB152: 3 | AC152: 0 | AD152: 0 | AK152: E4 06 BD 10 11 E9 72 | AL152: E4 | AM152: 6 | AN152: BD | AO152: 10 | AP152: 11 | AQ152: E9 | AR152: 72 | BF152: 228 | BG152: 6 | BH152: 189 | BI152: 16 | BJ152: 17 | BK152: 233 | BL152: 114 | BM152: 0 | BN152: 0 | BO152: 0 | BP152: 0 | BQ152: 0 | BR152: 0 | BS152: 0 | BT152: 0 | BU152: 0 | BV152: 0 | BW152: 0 | BX152: 0 | BY152: 0 | BZ152: 17 | CA152: 100 | CB152: 6 | CC152: 0 | CD152: 1 | CE152: 0 | CF152: 248 | CU152: 100 | CV152: =MyXor(CB152,VLOOKUP(CU152,'Таблица CRC'!$A$43:$C$298,3,FALSE)) -> 2 | CW152: =MyXor(CC152,VLOOKUP(CV152,'Таблица CRC'!$A$43:$C$298,3,FALSE)) -> 188 | CX152: =MyXor(CD152,VLOOKUP(CW152,'Таблица CRC'!$A$43:$C$298,3,FALSE)) -> 144 | CY152: =MyXor(CE152,VLOOKUP(CX152,'Таблица CRC'!$A$43:$C$298,3,FALSE)) -> 17 | CZ152: =MyXor(CF152,VLOOKUP(CY152,'Таблица CRC'!$A$43:$C$298,3,FALSE)) -> 59 | DA152: =MyXor(CG152,VLOOKUP(CZ152,'Таблица CRC'!$A$43:$C$298,3,FALSE)) -> 158 | DO152: 64 06 00 01 00 F8 9E
A153: Принято в обработку | D153: Принято в обработку | Y153: =MyXor(Y152,0) -> 100 | Z153: =MyXor(Z152,VLOOKUP(Y153,'Таблица CRC'!$A$43:$C$298,3,FALSE)) -> 2 | AA153: =MyXor(AA152,VLOOKUP(Z153,'Таблица CRC'!$A$43:$C$298,3,FALSE)) -> 188 | AB153: =MyXor(AB152,VLOOKUP(AA153,'Таблица CRC'!$A$43:$C$298,3,FALSE)) -> 146 | AC153: =MyXor(AC152,VLOOKUP(AB153,'Таблица CRC'!$A$43:$C$298,3,FALSE)) -> 173 | AD153: =MyXor(AD152,VLOOKUP(AC153,'Таблица CRC'!$A$43:$C$298,3,FALSE)) -> 82 | AE153: =MyXor(AE152,VLOOKUP(AD153,'Таблица CRC'!$A$43:$C$298,3,FALSE)) -> 103 | AK153: E4 09 1F 16 0B 11 11 11 11 4C | AL153: E4 | AM153: 9 | AN153: 1F | AO153: 16 | AP153: 0B | AQ153: 11 | AR153: 11 | AS153: 11 | AT153: 11 | AU153: 4C | BF153: 228 | BG153: 9 | BH153: 31 | BI153: 22 | BJ153: 11 | BK153: 17 | BL153: 17 | BM153: 17 | BN153: 17 | BO153: 76 | BP153: 0 | BQ153: 0 | BR153: 0 | BS153: 0 | BT153: 0 | BU153: 0 | BV153: 0 | BW153: 0 | BX153: 0 | BY153: 0 | BZ153: 179 | CA153: 100 | CB153: 9 | CC153: 0 | CD153: 165 | CE153: 184 | CF153: 162 | CG153: 162 | CH153: 162 | CI153: 162 | CU153: 100 | CV153: =MyXor(CB153,VLOOKUP(CU153,'Таблица CRC'!$A$43:$C$298,3,FALSE)) -> 13 | CW153: =MyXor(CC153,VLOOKUP(CV153,'Таблица CRC'!$A$43:$C$298,3,FALSE)) -> 253 | CX153: =MyXor(CD153,VLOOKUP(CW153,'Таблица CRC'!$A$43:$C$298,3,FALSE)) -> 44 | CY153: =MyXor(CE153,VLOOKUP(CX153,'Таблица CRC'!$A$43:$C$298,3,FALSE)) -> 56 | CZ153: =MyXor(CF153,VLOOKUP(CY153,'Таблица CRC'!$A$43:$C$298,3,FALSE)) -> 222 | DA153: =MyXor(CG153,VLOOKUP(CZ153,'Таблица CRC'!$A$43:$C$298,3,FALSE)) -> 234 | DB153: =MyXor(CH153,VLOOKUP(DA153,'Таблица CRC'!$A$43:$C$298,3,FALSE)) -> 53 | DC153: =MyXor(CI153,VLOOKUP(DB153,'Таблица CRC'!$A$43:$C$298,3,FALSE)) -> 35 | DD153: =MyXor(CJ153,VLOOKUP(DC153,'Таблица CRC'!$A$43:$C$298,3,FALSE)) -> 193 | DO153: =CONCATENATE(DEC2HEX(CA153,2)," ",DEC2HEX(CB153,2)," ",DEC2HEX(CC153,2)," ",DEC2HEX(CD153,2)," ",DEC2HEX(CE153,2)," ",DEC2HEX(CF153,2)," ",DEC2HEX(CG153,2)," ",DEC2HEX(CH153,2)," ",DEC2HEX(CI153,2)," ",DEC2HEX(DD153,2)) -> 64 09 00 A5 B8 A2 A2 A2 A2 C1
A154: ключ шифрования-96 | B154: 96 | D154: ключ шифрования-96 | Y154: =DEC2HEX(Y152,2) -> 64 | Z154: =DEC2HEX(Z152,2) -> 06 | AA154: 00 | AB154: 03 | AC154: 00 | AD154: 00 | AE154: =DEC2HEX(AE153,2) -> 67 | AI154: =CONCATENATE(Y154," ",Z154," ",AA154," ",AB154," ",AC154," ",AD154," ",AE154," ",AF154," ",AG154," ",AH154) -> 64 06 00 03 00 00 67 | AK154: E4 06 BD 12 11 11 8B | AL154: E4 | AM154: 6 | AN154: BD | AO154: 12 | AP154: 11 | AQ154: 11 | AR154: 8B | BF154: 228 | BG154: 6 | BH154: 189 | BI154: 18 | BJ154: 17 | BK154: 17 | BL154: 139 | BM154: 0 | BN154: 0 | BO154: 0 | BP154: 0 | BQ154: 0 | BR154: 0 | BS154: 0 | BT154: 0 | BU154: 0 | BV154: 0 | BW154: 0 | BX154: 0 | BY154: 0 | BZ154: 17 | CA154: 100 | CB154: 6 | CC154: 0 | CD154: 3 | CE154: 0 | CF154: 0 | CU154: 100 | CV154: =MyXor(CB154,VLOOKUP(CU154,'Таблица CRC'!$A$43:$C$298,3,FALSE)) -> 2 | CW154: =MyXor(CC154,VLOOKUP(CV154,'Таблица CRC'!$A$43:$C$298,3,FALSE)) -> 188 | CX154: =MyXor(CD154,VLOOKUP(CW154,'Таблица CRC'!$A$43:$C$298,3,FALSE)) -> 146 | CY154: =MyXor(CE154,VLOOKUP(CX154,'Таблица CRC'!$A$43:$C$298,3,FALSE)) -> 173 | CZ154: =MyXor(CF154,VLOOKUP(CY154,'Таблица CRC'!$A$43:$C$298,3,FALSE)) -> 82 | DA154: =MyXor(CG154,VLOOKUP(CZ154,'Таблица CRC'!$A$43:$C$298,3,FALSE)) -> 103 | DO154: 64 06 00 03 00 00 67
A155: zapros.s 3,0,0, | D155: zapros.s 3 | E155: 0 | F155: 0 | AK155: E4 08 2B AC 83 9D 87 86 B2 | AL155: E4 | AM155: 8 | AN155: 2B | AO155: AC | AP155: 83 | AQ155: 9D | AR155: 87 | AS155: 86 | AT155: B2 | BF155: 228 | BG155: 8 | BH155: 43 | BI155: 172 | BJ155: 131 | BK155: 157 | BL155: 135 | BM155: 134 | BN155: 178 | BO155: 0 | BP155: 0 | BQ155: 0 | BR155: 0 | BS155: 0 | BT155: 0 | BU155: 0 | BV155: 0 | BW155: 0 | BX155: 0 | BY155: 0 | BZ155: 135 | CA155: 100 | CB155: 8 | CC155: 0 | CD155: 43 | CE155: 4 | CF155: 26 | CG155: 0 | CH155: 1 | CU155: 100 | CV155: =MyXor(CB155,VLOOKUP(CU155,'Таблица CRC'!$A$43:$C$298,3,FALSE)) -> 12 | CW155: =MyXor(CC155,VLOOKUP(CV155,'Таблица CRC'!$A$43:$C$298,3,FALSE)) -> 163 | CX155: =MyXor(CD155,VLOOKUP(CW155,'Таблица CRC'!$A$43:$C$298,3,FALSE)) -> 102 | CY155: =MyXor(CE155,VLOOKUP(CX155,'Таблица CRC'!$A$43:$C$298,3,FALSE)) -> 188 | CZ155: =MyXor(CF155,VLOOKUP(CY155,'Таблица CRC'!$A$43:$C$298,3,FALSE)) -> 139 | DA155: =MyXor(CG155,VLOOKUP(CZ155,'Таблица CRC'!$A$43:$C$298,3,FALSE)) -> 172 | DB155: =MyXor(CH155,VLOOKUP(DA155,'Таблица CRC'!$A$43:$C$298,3,FALSE)) -> 13 | DC155: =MyXor(CI155,VLOOKUP(DB155,'Таблица CRC'!$A$43:$C$298,3,FALSE)) -> 253 | DO155: =CONCATENATE(DEC2HEX(CA155,2)," ",DEC2HEX(CB155,2)," ",DEC2HEX(CC155,2)," ",DEC2HEX(CD155,2)," ",DEC2HEX(CE155,2)," ",DEC2HEX(CF155,2)," ",DEC2HEX(CG155,2)," ",DEC2HEX(CH155,2)," ",DEC2HEX(DC155,2)) -> 64 08 00 2B 04 1A 00 01 FD
A156: 228,8,54,177,158,156,154,155,56, | C156: =MyXor(F156,$C$1) -> 154 | D156: 228 | E156: 8 | F156: 54 | G156: 177 | H156: 158 | I156: 156 | J156: 154 | K156: 155 | L156: 56 | N156: =IF(D156>127,D156-128,D156) -> 100 | O156: =E156 -> 8 | P156: =MyXor(F156,$B158) -> 172 | Q156: 43 | R156: 4 | S156: 6 | T156: 0 | U156: 1 | V156: 162 | W156: 154 | Y156: 100 | Z156: 8 | AA156: 0 | AB156: 43 | AC156: 4 | AD156: 6 | AE156: 0 | AF156: 1 | AK156: E4 05 AB 87 87 3D | AL156: E4 | AM156: 5 | AN156: AB | AO156: 87 | AP156: 87 | AQ156: 3D | BF156: 228 | BG156: 5 | BH156: 171 | BI156: 135 | BJ156: 135 | BK156: 61 | BL156: 0 | BM156: 0 | BN156: 0 | BO156: 0 | BP156: 0 | BQ156: 0 | BR156: 0 | BS156: 0 | BT156: 0 | BU156: 0 | BV156: 0 | BW156: 0 | BX156: 0 | BY156: 0 | BZ156: 7 | CA156: 100 | CB156: 5 | CC156: 0 | CD156: 128 | CE156: 128 | CU156: 100 | CV156: =MyXor(CB156,VLOOKUP(CU156,'Таблица CRC'!$A$43:$C$298,3,FALSE)) -> 1 | CW156: =MyXor(CC156,VLOOKUP(CV156,'Таблица CRC'!$A$43:$C$298,3,FALSE)) -> 94 | CX156: =MyXor(CD156,VLOOKUP(CW156,'Таблица CRC'!$A$43:$C$298,3,FALSE)) -> 68 | CY156: =MyXor(CE156,VLOOKUP(CX156,'Таблица CRC'!$A$43:$C$298,3,FALSE)) -> 167 | CZ156: =MyXor(CF156,VLOOKUP(CY156,'Таблица CRC'!$A$43:$C$298,3,FALSE)) -> 44 | DO156: =CONCATENATE(DEC2HEX(CA156,2)," ",DEC2HEX(CB156,2)," ",DEC2HEX(CC156,2)," ",DEC2HEX(CD156,2)," ",DEC2HEX(CE156,2)," ",DEC2HEX(CZ156,2)) -> 64 05 00 80 80 2C
A157: Принято в обработку | D157: Принято в обработку | Y157: =MyXor(Y156,0) -> 100 | Z157: =MyXor(Z156,VLOOKUP(Y157,'Таблица CRC'!$A$43:$C$298,3,FALSE)) -> 12 | AA157: =MyXor(AA156,VLOOKUP(Z157,'Таблица CRC'!$A$43:$C$298,3,FALSE)) -> 163 | AB157: =MyXor(AB156,VLOOKUP(AA157,'Таблица CRC'!$A$43:$C$298,3,FALSE)) -> 102 | AC157: =MyXor(AC156,VLOOKUP(AB157,'Таблица CRC'!$A$43:$C$298,3,FALSE)) -> 188 | AD157: =MyXor(AD156,VLOOKUP(AC157,'Таблица CRC'!$A$43:$C$298,3,FALSE)) -> 151 | AE157: =MyXor(AE156,VLOOKUP(AD157,'Таблица CRC'!$A$43:$C$298,3,FALSE)) -> 146 | AF157: =MyXor(AF156,VLOOKUP(AE157,'Таблица CRC'!$A$43:$C$298,3,FALSE)) -> 172 | AG157: =MyXor(AG156,VLOOKUP(AF157,'Таблица CRC'!$A$43:$C$298,3,FALSE)) -> 12 | AK157: E4 06 42 EF EE 16 FF | AL157: E4 | AM157: 6 | AN157: 42 | AO157: EF | AP157: EE | AQ157: 16 | AR157: FF | BF157: 228 | BG157: 6 | BH157: 66 | BI157: 239 | BJ157: 238 | BK157: 22 | BL157: 255 | BM157: 0 | BN157: 0 | BO157: 0 | BP157: 0 | BQ157: 0 | BR157: 0 | BS157: 0 | BT157: 0 | BU157: 0 | BV157: 0 | BW157: 0 | BX157: 0 | BY157: 0 | BZ157: 238 | CA157: 100 | CB157: 6 | CC157: 0 | CD157: 1 | CE157: 0 | CF157: 248 | CU157: 100 | CV157: =MyXor(CB157,VLOOKUP(CU157,'Таблица CRC'!$A$43:$C$298,3,FALSE)) -> 2 | CW157: =MyXor(CC157,VLOOKUP(CV157,'Таблица CRC'!$A$43:$C$298,3,FALSE)) -> 188 | CX157: =MyXor(CD157,VLOOKUP(CW157,'Таблица CRC'!$A$43:$C$298,3,FALSE)) -> 144 | CY157: =MyXor(CE157,VLOOKUP(CX157,'Таблица CRC'!$A$43:$C$298,3,FALSE)) -> 17 | CZ157: =MyXor(CF157,VLOOKUP(CY157,'Таблица CRC'!$A$43:$C$298,3,FALSE)) -> 59 | DA157: =MyXor(CG157,VLOOKUP(CZ157,'Таблица CRC'!$A$43:$C$298,3,FALSE)) -> 158 | DO157: 64 06 00 01 00 F8 9E
A158: ключ шифрования-154 | B158: 154 | D158: ключ шифрования-154 | Y158: =DEC2HEX(Y156,2) -> 64 | Z158: =DEC2HEX(Z156,2) -> 08 | AA158: 00 | AB158: 2B | AC158: 04 | AD158: 06 | AE158: 00 | AF158: 01 | AG158: =DEC2HEX(AG157,2) -> 0C | AI158: =CONCATENATE(Y158," ",Z158," ",AA158," ",AB158," ",AC158," ",AD158," ",AE158," ",AF158," ",AG158," ",AH158) -> 64 08 00 2B 04 06 00 01 0C | AJ158: 64 05 2C 00 00 A0 | AK158: E4 09 E0 E9 F5 EE EE EE EE 95 | AL158: E4 | AM158: 9 | AN158: E0 | AO158: E9 | AP158: F5 | AQ158: EE | AR158: EE | AS158: EE | AT158: EE | AU158: 95 | BF158: 228 | BG158: 9 | BH158: 224 | BI158: 233 | BJ158: 245 | BK158: 238 | BL158: 238 | BM158: 238 | BN158: 238 | BO158: 149 | BP158: 0 | BQ158: 0 | BR158: 0 | BS158: 0 | BT158: 0 | BU158: 0 | BV158: 0 | BW158: 0 | BX158: 0 | BY158: 0 | BZ158: 76 | CA158: 100 | CB158: 9 | CC158: 0 | CD158: 165 | CE158: 185 | CF158: 162 | CG158: 162 | CH158: 162 | CI158: 162 | CU158: 100 | CV158: =MyXor(CB158,VLOOKUP(CU158,'Таблица CRC'!$A$43:$C$298,3,FALSE)) -> 13 | CW158: =MyXor(CC158,VLOOKUP(CV158,'Таблица CRC'!$A$43:$C$298,3,FALSE)) -> 253 | CX158: =MyXor(CD158,VLOOKUP(CW158,'Таблица CRC'!$A$43:$C$298,3,FALSE)) -> 44 | CY158: =MyXor(CE158,VLOOKUP(CX158,'Таблица CRC'!$A$43:$C$298,3,FALSE)) -> 57 | CZ158: =MyXor(CF158,VLOOKUP(CY158,'Таблица CRC'!$A$43:$C$298,3,FALSE)) -> 128 | DA158: =MyXor(CG158,VLOOKUP(CZ158,'Таблица CRC'!$A$43:$C$298,3,FALSE)) -> 46 | DB158: =MyXor(CH158,VLOOKUP(DA158,'Таблица CRC'!$A$43:$C$298,3,FALSE)) -> 158 | DC158: =MyXor(CI158,VLOOKUP(DB158,'Таблица CRC'!$A$43:$C$298,3,FALSE)) -> 172 | DD158: =MyXor(CJ158,VLOOKUP(DC158,'Таблица CRC'!$A$43:$C$298,3,FALSE)) -> 12 | DO158: =CONCATENATE(DEC2HEX(CA158,2)," ",DEC2HEX(CB158,2)," ",DEC2HEX(CC158,2)," ",DEC2HEX(CD158,2)," ",DEC2HEX(CE158,2)," ",DEC2HEX(CF158,2)," ",DEC2HEX(CG158,2)," ",DEC2HEX(CH158,2)," ",DEC2HEX(CI158,2)," ",DEC2HEX(DD158,2)) -> 64 09 00 A5 B9 A2 A2 A2 A2 0C
A159: zapros.s 43,4,6, | D159: zapros.s 43 | E159: 4 | F159: 6 | AK159: E4 06 42 ED EE EE 06 | AL159: E4 | AM159: 6 | AN159: 42 | AO159: ED | AP159: EE | AQ159: EE | AR159: 6 | BF159: 228 | BG159: 6 | BH159: 66 | BI159: 237 | BJ159: 238 | BK159: 238 | BL159: 6 | BM159: 0 | BN159: 0 | BO159: 0 | BP159: 0 | BQ159: 0 | BR159: 0 | BS159: 0 | BT159: 0 | BU159: 0 | BV159: 0 | BW159: 0 | BX159: 0 | BY159: 0 | BZ159: 238 | CA159: 100 | CB159: 6 | CC159: 0 | CD159: 3 | CE159: 0 | CF159: 0 | CU159: 100 | CV159: =MyXor(CB159,VLOOKUP(CU159,'Таблица CRC'!$A$43:$C$298,3,FALSE)) -> 2 | CW159: =MyXor(CC159,VLOOKUP(CV159,'Таблица CRC'!$A$43:$C$298,3,FALSE)) -> 188 | CX159: =MyXor(CD159,VLOOKUP(CW159,'Таблица CRC'!$A$43:$C$298,3,FALSE)) -> 146 | CY159: =MyXor(CE159,VLOOKUP(CX159,'Таблица CRC'!$A$43:$C$298,3,FALSE)) -> 173 | CZ159: =MyXor(CF159,VLOOKUP(CY159,'Таблица CRC'!$A$43:$C$298,3,FALSE)) -> 82 | DA159: =MyXor(CG159,VLOOKUP(CZ159,'Таблица CRC'!$A$43:$C$298,3,FALSE)) -> 103 | DO159: 64 06 00 03 00 00 67
A160: 228,5,182,154,154,98, | C160: =MyXor(F160,$C$1) -> 26 | D160: 228 | E160: 5 | F160: 182 | G160: 154 | H160: 154 | I160: 98 | N160: =IF(D160>127,D160-128,D160) -> 100 | O160: =E160 -> 5 | P160: =MyXor(F160,$B162) -> 172 | Q160: =MyXor(G160,$B162) -> 128 | R160: =MyXor(H160,$B162) -> 128 | S160: =MyXor(I160,$B162) -> 120 | T160: =MyXor(J160,$B162) -> 26 | U160: =MyXor(K160,$B162) -> 26 | V160: =MyXor(L160,$B162) -> 26 | W160: =MyXor(M160,$B162) -> 26 | Y160: 100 | Z160: 5 | AA160: 0 | AB160: 128 | AC160: 128 | AD160: 120 | AE160: 26 | AF160: 26 | AG160: 26 | AH160: 26 | AK160: E4 08 79 FE D1 CE D5 D4 25 | AL160: E4 | AM160: 8 | AN160: 79 | AO160: FE | AP160: D1 | AQ160: CE | AR160: D5 | AS160: D4 | AT160: 25 | BF160: 228 | BG160: 8 | BH160: 121 | BI160: 254 | BJ160: 209 | BK160: 206 | BL160: 213 | BM160: 212 | BN160: 37 | BO160: 0 | BP160: 0 | BQ160: 0 | BR160: 0 | BS160: 0 | BT160: 0 | BU160: 0 | BV160: 0 | BW160: 0 | BX160: 0 | BY160: 0 | BZ160: 213 | CA160: 100 | CB160: 8 | CC160: 0 | CD160: 43 | CE160: 4 | CF160: 27 | CG160: 0 | CH160: 1 | CU160: 100 | CV160: =MyXor(CB160,VLOOKUP(CU160,'Таблица CRC'!$A$43:$C$298,3,FALSE)) -> 12 | CW160: =MyXor(CC160,VLOOKUP(CV160,'Таблица CRC'!$A$43:$C$298,3,FALSE)) -> 163 | CX160: =MyXor(CD160,VLOOKUP(CW160,'Таблица CRC'!$A$43:$C$298,3,FALSE)) -> 102 | CY160: =MyXor(CE160,VLOOKUP(CX160,'Таблица CRC'!$A$43:$C$298,3,FALSE)) -> 188 | CZ160: =MyXor(CF160,VLOOKUP(CY160,'Таблица CRC'!$A$43:$C$298,3,FALSE)) -> 138 | DA160: =MyXor(CG160,VLOOKUP(CZ160,'Таблица CRC'!$A$43:$C$298,3,FALSE)) -> 242 | DB160: =MyXor(CH160,VLOOKUP(DA160,'Таблица CRC'!$A$43:$C$298,3,FALSE)) -> 201 | DC160: =MyXor(CI160,VLOOKUP(DB160,'Таблица CRC'!$A$43:$C$298,3,FALSE)) -> 86 | DO160: =CONCATENATE(DEC2HEX(CA160,2)," ",DEC2HEX(CB160,2)," ",DEC2HEX(CC160,2)," ",DEC2HEX(CD160,2)," ",DEC2HEX(CE160,2)," ",DEC2HEX(CF160,2)," ",DEC2HEX(CG160,2)," ",DEC2HEX(CH160,2)," ",DEC2HEX(DC160,2)) -> 64 08 00 2B 04 1B 00 01 56
A161: Принято в обработку | D161: Принято в обработку | AK161: E4 05 F9 D5 D5 88 | AL161: E4 | AM161: 5 | AN161: F9 | AO161: D5 | AP161: D5 | AQ161: 88 | BF161: 228 | BG161: 5 | BH161: 249 | BI161: 213 | BJ161: 213 | BK161: 136 | BL161: 0 | BM161: 0 | BN161: 0 | BO161: 0 | BP161: 0 | BQ161: 0 | BR161: 0 | BS161: 0 | BT161: 0 | BU161: 0 | BV161: 0 | BW161: 0 | BX161: 0 | BY161: 0 | BZ161: 85 | CA161: 100 | CB161: 5 | CC161: 0 | CD161: 128 | CE161: 128 | CU161: 100 | CV161: =MyXor(CB161,VLOOKUP(CU161,'Таблица CRC'!$A$43:$C$298,3,FALSE)) -> 1 | CW161: =MyXor(CC161,VLOOKUP(CV161,'Таблица CRC'!$A$43:$C$298,3,FALSE)) -> 94 | CX161: =MyXor(CD161,VLOOKUP(CW161,'Таблица CRC'!$A$43:$C$298,3,FALSE)) -> 68 | CY161: =MyXor(CE161,VLOOKUP(CX161,'Таблица CRC'!$A$43:$C$298,3,FALSE)) -> 167 | CZ161: =MyXor(CF161,VLOOKUP(CY161,'Таблица CRC'!$A$43:$C$298,3,FALSE)) -> 44 | DO161: =CONCATENATE(DEC2HEX(CA161,2)," ",DEC2HEX(CB161,2)," ",DEC2HEX(CC161,2)," ",DEC2HEX(CD161,2)," ",DEC2HEX(CE161,2)," ",DEC2HEX(CZ161,2)) -> 64 05 00 80 80 2C
A162: otvet 44,0,0, | B162: 26 | D162: otvet 44 | E162: 0 | F162: 0 | AK162: E4 06 88 25 24 DC 03 | AL162: E4 | AM162: 6 | AN162: 88 | AO162: 25 | AP162: 24 | AQ162: DC | AR162: 3 | BF162: 228 | BG162: 6 | BH162: 136 | BI162: 37 | BJ162: 36 | BK162: 220 | BL162: 3 | BM162: 0 | BN162: 0 | BO162: 0 | BP162: 0 | BQ162: 0 | BR162: 0 | BS162: 0 | BT162: 0 | BU162: 0 | BV162: 0 | BW162: 0 | BX162: 0 | BY162: 0 | BZ162: 36 | CA162: 100 | CB162: 6 | CC162: 0 | CD162: 1 | CE162: 0 | CF162: 248 | CU162: 100 | CV162: =MyXor(CB162,VLOOKUP(CU162,'Таблица CRC'!$A$43:$C$298,3,FALSE)) -> 2 | CW162: =MyXor(CC162,VLOOKUP(CV162,'Таблица CRC'!$A$43:$C$298,3,FALSE)) -> 188 | CX162: =MyXor(CD162,VLOOKUP(CW162,'Таблица CRC'!$A$43:$C$298,3,FALSE)) -> 144 | CY162: =MyXor(CE162,VLOOKUP(CX162,'Таблица CRC'!$A$43:$C$298,3,FALSE)) -> 17 | CZ162: =MyXor(CF162,VLOOKUP(CY162,'Таблица CRC'!$A$43:$C$298,3,FALSE)) -> 59 | DA162: =MyXor(CG162,VLOOKUP(CZ162,'Таблица CRC'!$A$43:$C$298,3,FALSE)) -> 158 | DO162: 64 06 00 01 00 F8 9E
A163: 228,6,31,178,179,75,9, | C163: =MyXor(F163,$C$1) -> 179 | D163: 228 | E163: 6 | F163: 31 | G163: 178 | H163: 179 | I163: 75 | J163: 9 | N163: =IF(D163>127,D163-128,D163) -> 100 | O163: =E163 -> 6 | P163: =MyXor(F163,$B165) -> 172 | Q163: =MyXor(G163,$B165) -> 1 | R163: =MyXor(H163,$B165) -> 0 | S163: =MyXor(I163,$B165) -> 248 | T163: =MyXor(J163,$B165) -> 186 | U163: =MyXor(K163,$B165) -> 179 | V163: =MyXor(L163,$B165) -> 179 | W163: =MyXor(M163,$B165) -> 179 | Y163: 100 | Z163: 6 | AA163: 0 | AB163: 1 | AC163: 0 | AD163: 248 | AE163: 186 | AF163: 179 | AG163: 179 | AH163: 179 | AK163: E4 09 2A 23 38 24 24 24 24 2C | AL163: E4 | AM163: 9 | AN163: 2A | AO163: 23 | AP163: 38 | AQ163: 24 | AR163: 24 | AS163: 24 | AT163: 24 | AU163: 2C | BF163: 228 | BG163: 9 | BH163: 42 | BI163: 35 | BJ163: 56 | BK163: 36 | BL163: 36 | BM163: 36 | BN163: 36 | BO163: 44 | BP163: 0 | BQ163: 0 | BR163: 0 | BS163: 0 | BT163: 0 | BU163: 0 | BV163: 0 | BW163: 0 | BX163: 0 | BY163: 0 | BZ163: 134 | CA163: 100 | CB163: 9 | CC163: 0 | CD163: 165 | CE163: 190 | CF163: 162 | CG163: 162 | CH163: 162 | CI163: 162 | CU163: 100 | CV163: =MyXor(CB163,VLOOKUP(CU163,'Таблица CRC'!$A$43:$C$298,3,FALSE)) -> 13 | CW163: =MyXor(CC163,VLOOKUP(CV163,'Таблица CRC'!$A$43:$C$298,3,FALSE)) -> 253 | CX163: =MyXor(CD163,VLOOKUP(CW163,'Таблица CRC'!$A$43:$C$298,3,FALSE)) -> 44 | CY163: =MyXor(CE163,VLOOKUP(CX163,'Таблица CRC'!$A$43:$C$298,3,FALSE)) -> 62 | CZ163: =MyXor(CF163,VLOOKUP(CY163,'Таблица CRC'!$A$43:$C$298,3,FALSE)) -> 3 | DA163: =MyXor(CG163,VLOOKUP(CZ163,'Таблица CRC'!$A$43:$C$298,3,FALSE)) -> 64 | DB163: =MyXor(CH163,VLOOKUP(DA163,'Таблица CRC'!$A$43:$C$298,3,FALSE)) -> 228 | DC163: =MyXor(CI163,VLOOKUP(DB163,'Таблица CRC'!$A$43:$C$298,3,FALSE)) -> 42 | DD163: =MyXor(CJ163,VLOOKUP(DC163,'Таблица CRC'!$A$43:$C$298,3,FALSE)) -> 93 | DO163: =CONCATENATE(DEC2HEX(CA163,2)," ",DEC2HEX(CB163,2)," ",DEC2HEX(CC163,2)," ",DEC2HEX(CD163,2)," ",DEC2HEX(CE163,2)," ",DEC2HEX(CF163,2)," ",DEC2HEX(CG163,2)," ",DEC2HEX(CH163,2)," ",DEC2HEX(CI163,2)," ",DEC2HEX(DD163,2)) -> 64 09 00 A5 BE A2 A2 A2 A2 5D
A164: Принято в обработку | D164: Принято в обработку | AK164: E4 06 88 27 24 24 FA | AL164: E4 | AM164: 6 | AN164: 88 | AO164: 27 | AP164: 24 | AQ164: 24 | AR164: FA | BF164: 228 | BG164: 6 | BH164: 136 | BI164: 39 | BJ164: 36 | BK164: 36 | BL164: 250 | BM164: 0 | BN164: 0 | BO164: 0 | BP164: 0 | BQ164: 0 | BR164: 0 | BS164: 0 | BT164: 0 | BU164: 0 | BV164: 0 | BW164: 0 | BX164: 0 | BY164: 0 | BZ164: 36 | CA164: 100 | CB164: 6 | CC164: 0 | CD164: 3 | CE164: 0 | CF164: 0 | CU164: 100 | CV164: =MyXor(CB164,VLOOKUP(CU164,'Таблица CRC'!$A$43:$C$298,3,FALSE)) -> 2 | CW164: =MyXor(CC164,VLOOKUP(CV164,'Таблица CRC'!$A$43:$C$298,3,FALSE)) -> 188 | CX164: =MyXor(CD164,VLOOKUP(CW164,'Таблица CRC'!$A$43:$C$298,3,FALSE)) -> 146 | CY164: =MyXor(CE164,VLOOKUP(CX164,'Таблица CRC'!$A$43:$C$298,3,FALSE)) -> 173 | CZ164: =MyXor(CF164,VLOOKUP(CY164,'Таблица CRC'!$A$43:$C$298,3,FALSE)) -> 82 | DA164: =MyXor(CG164,VLOOKUP(CZ164,'Таблица CRC'!$A$43:$C$298,3,FALSE)) -> 103 | DO164: 64 06 00 03 00 00 67
A165: ключ шифрования-179 | B165: 179 | D165: ключ шифрования-179 | AK165: E4 08 E9 6E 41 59 45 44 42 | AL165: E4 | AM165: 8 | AN165: E9 | AO165: 6E | AP165: 41 | AQ165: 59 | AR165: 45 | AS165: 44 | AT165: 42 | BF165: 228 | BG165: 8 | BH165: 233 | BI165: 110 | BJ165: 65 | BK165: 89 | BL165: 69 | BM165: 68 | BN165: 66 | BO165: 0 | BP165: 0 | BQ165: 0 | BR165: 0 | BS165: 0 | BT165: 0 | BU165: 0 | BV165: 0 | BW165: 0 | BX165: 0 | BY165: 0 | BZ165: 69 | CA165: 100 | CB165: 8 | CC165: 0 | CD165: 43 | CE165: 4 | CF165: 28 | CG165: 0 | CH165: 1 | CU165: 100 | CV165: =MyXor(CB165,VLOOKUP(CU165,'Таблица CRC'!$A$43:$C$298,3,FALSE)) -> 12 | CW165: =MyXor(CC165,VLOOKUP(CV165,'Таблица CRC'!$A$43:$C$298,3,FALSE)) -> 163 | CX165: =MyXor(CD165,VLOOKUP(CW165,'Таблица CRC'!$A$43:$C$298,3,FALSE)) -> 102 | CY165: =MyXor(CE165,VLOOKUP(CX165,'Таблица CRC'!$A$43:$C$298,3,FALSE)) -> 188 | CZ165: =MyXor(CF165,VLOOKUP(CY165,'Таблица CRC'!$A$43:$C$298,3,FALSE)) -> 141 | DA165: =MyXor(CG165,VLOOKUP(CZ165,'Таблица CRC'!$A$43:$C$298,3,FALSE)) -> 113 | DB165: =MyXor(CH165,VLOOKUP(DA165,'Таблица CRC'!$A$43:$C$298,3,FALSE)) -> 167 | DC165: =MyXor(CI165,VLOOKUP(DB165,'Таблица CRC'!$A$43:$C$298,3,FALSE)) -> 44 | DO165: =CONCATENATE(DEC2HEX(CA165,2)," ",DEC2HEX(CB165,2)," ",DEC2HEX(CC165,2)," ",DEC2HEX(CD165,2)," ",DEC2HEX(CE165,2)," ",DEC2HEX(CF165,2)," ",DEC2HEX(CG165,2)," ",DEC2HEX(CH165,2)," ",DEC2HEX(DC165,2)) -> 64 08 00 2B 04 1C 00 01 2C
A166: zapros.s 1,0,248, | D166: zapros.s 1 | E166: 0 | F166: 248 | AK166: E4 05 69 45 45 72 | AL166: E4 | AM166: 5 | AN166: 69 | AO166: 45 | AP166: 45 | AQ166: 72 | BF166: 228 | BG166: 5 | BH166: 105 | BI166: 69 | BJ166: 69 | BK166: 114 | BL166: 0 | BM166: 0 | BN166: 0 | BO166: 0 | BP166: 0 | BQ166: 0 | BR166: 0 | BS166: 0 | BT166: 0 | BU166: 0 | BV166: 0 | BW166: 0 | BX166: 0 | BY166: 0 | BZ166: 197 | CA166: 100 | CB166: 5 | CC166: 0 | CD166: 128 | CE166: 128 | CU166: 100 | CV166: =MyXor(CB166,VLOOKUP(CU166,'Таблица CRC'!$A$43:$C$298,3,FALSE)) -> 1 | CW166: =MyXor(CC166,VLOOKUP(CV166,'Таблица CRC'!$A$43:$C$298,3,FALSE)) -> 94 | CX166: =MyXor(CD166,VLOOKUP(CW166,'Таблица CRC'!$A$43:$C$298,3,FALSE)) -> 68 | CY166: =MyXor(CE166,VLOOKUP(CX166,'Таблица CRC'!$A$43:$C$298,3,FALSE)) -> 167 | CZ166: =MyXor(CF166,VLOOKUP(CY166,'Таблица CRC'!$A$43:$C$298,3,FALSE)) -> 44 | DO166: =CONCATENATE(DEC2HEX(CA166,2)," ",DEC2HEX(CB166,2)," ",DEC2HEX(CC166,2)," ",DEC2HEX(CD166,2)," ",DEC2HEX(CE166,2)," ",DEC2HEX(CZ166,2)) -> 64 05 00 80 80 2C
A167: ОТВЕТ ЭМУЛЯТОРА 177,176,179, | D167: ОТВЕТ ЭМУЛЯТОРА 177 | E167: 176 | F167: 179 | AK167: E4 06 5B F6 F7 0F CF | AL167: E4 | AM167: 6 | AN167: 5B | AO167: F6 | AP167: F7 | AQ167: 0F | AR167: CF | BF167: 228 | BG167: 6 | BH167: 91 | BI167: 246 | BJ167: 247 | BK167: 15 | BL167: 207 | BM167: 0 | BN167: 0 | BO167: 0 | BP167: 0 | BQ167: 0 | BR167: 0 | BS167: 0 | BT167: 0 | BU167: 0 | BV167: 0 | BW167: 0 | BX167: 0 | BY167: 0 | BZ167: 247 | CA167: 100 | CB167: 6 | CC167: 0 | CD167: 1 | CE167: 0 | CF167: 248 | CU167: 100 | CV167: =MyXor(CB167,VLOOKUP(CU167,'Таблица CRC'!$A$43:$C$298,3,FALSE)) -> 2 | CW167: =MyXor(CC167,VLOOKUP(CV167,'Таблица CRC'!$A$43:$C$298,3,FALSE)) -> 188 | CX167: =MyXor(CD167,VLOOKUP(CW167,'Таблица CRC'!$A$43:$C$298,3,FALSE)) -> 144 | CY167: =MyXor(CE167,VLOOKUP(CX167,'Таблица CRC'!$A$43:$C$298,3,FALSE)) -> 17 | CZ167: =MyXor(CF167,VLOOKUP(CY167,'Таблица CRC'!$A$43:$C$298,3,FALSE)) -> 59 | DA167: =MyXor(CG167,VLOOKUP(CZ167,'Таблица CRC'!$A$43:$C$298,3,FALSE)) -> 158 | DO167: 64 06 00 01 00 F8 9E
A168: 228,9,189,180,180,179,179,179,179,39, | C168: =MyXor(F168,$C$1) -> 17 | D168: 228 | E168: 9 | F168: 189 | G168: 180 | H168: 180 | I168: 179 | J168: 179 | K168: 179 | L168: 179 | M168: 39 | N168: =IF(D168>127,D168-128,D168) -> 100 | O168: =E168 -> 9 | P168: =MyXor(F168,$B170) -> 172 | Q168: =MyXor(G168,$B170) -> 165 | R168: =MyXor(H168,$B170) -> 165 | S168: =MyXor(I168,$B170) -> 162 | T168: =MyXor(J168,$B170) -> 162 | U168: =MyXor(K168,$B170) -> 162 | V168: =MyXor(L168,$B170) -> 162 | W168: =MyXor(M168,$B170) -> 54 | Y168: 100 | Z168: 9 | AA168: 0 | AB168: 165 | AC168: 165 | AD168: 162 | AE168: 162 | AF168: 162 | AG168: 162 | AK168: E4 09 F9 F0 EA F7 F7 F7 F7 4C | AL168: E4 | AM168: 9 | AN168: F9 | AO168: F0 | AP168: EA | AQ168: F7 | AR168: F7 | AS168: F7 | AT168: F7 | AU168: 4C | BF168: 228 | BG168: 9 | BH168: 249 | BI168: 240 | BJ168: 234 | BK168: 247 | BL168: 247 | BM168: 247 | BN168: 247 | BO168: 76 | BP168: 0 | BQ168: 0 | BR168: 0 | BS168: 0 | BT168: 0 | BU168: 0 | BV168: 0 | BW168: 0 | BX168: 0 | BY168: 0 | BZ168: 85 | CA168: 100 | CB168: 9 | CC168: 0 | CD168: 165 | CE168: 191 | CF168: 162 | CG168: 162 | CH168: 162 | CI168: 162 | CU168: 100 | CV168: =MyXor(CB168,VLOOKUP(CU168,'Таблица CRC'!$A$43:$C$298,3,FALSE)) -> 13 | CW168: =MyXor(CC168,VLOOKUP(CV168,'Таблица CRC'!$A$43:$C$298,3,FALSE)) -> 253 | CX168: =MyXor(CD168,VLOOKUP(CW168,'Таблица CRC'!$A$43:$C$298,3,FALSE)) -> 44 | CY168: =MyXor(CE168,VLOOKUP(CX168,'Таблица CRC'!$A$43:$C$298,3,FALSE)) -> 63 | CZ168: =MyXor(CF168,VLOOKUP(CY168,'Таблица CRC'!$A$43:$C$298,3,FALSE)) -> 93 | DA168: =MyXor(CG168,VLOOKUP(CZ168,'Таблица CRC'!$A$43:$C$298,3,FALSE)) -> 132 | DB168: =MyXor(CH168,VLOOKUP(DA168,'Таблица CRC'!$A$43:$C$298,3,FALSE)) -> 79 | DC168: =MyXor(CI168,VLOOKUP(DB168,'Таблица CRC'!$A$43:$C$298,3,FALSE)) -> 165 | DD168: =MyXor(CJ168,VLOOKUP(DC168,'Таблица CRC'!$A$43:$C$298,3,FALSE)) -> 144 | DO168: =CONCATENATE(DEC2HEX(CA168,2)," ",DEC2HEX(CB168,2)," ",DEC2HEX(CC168,2)," ",DEC2HEX(CD168,2)," ",DEC2HEX(CE168,2)," ",DEC2HEX(CF168,2)," ",DEC2HEX(CG168,2)," ",DEC2HEX(CH168,2)," ",DEC2HEX(CI168,2)," ",DEC2HEX(DD168,2)) -> 64 09 00 A5 BF A2 A2 A2 A2 90
A169: Принято в обработку | D169: Принято в обработку | Y169: =MyXor(Y168,0) -> 100 | Z169: =MyXor(Z168,VLOOKUP(Y169,'Таблица CRC'!$A$43:$C$298,3,FALSE)) -> 13 | AA169: =MyXor(AA168,VLOOKUP(Z169,'Таблица CRC'!$A$43:$C$298,3,FALSE)) -> 253 | AB169: =MyXor(AB168,VLOOKUP(AA169,'Таблица CRC'!$A$43:$C$298,3,FALSE)) -> 44 | AC169: =MyXor(AC168,VLOOKUP(AB169,'Таблица CRC'!$A$43:$C$298,3,FALSE)) -> 37 | AD169: =MyXor(AD168,VLOOKUP(AC169,'Таблица CRC'!$A$43:$C$298,3,FALSE)) -> 190 | AE169: =MyXor(AE168,VLOOKUP(AD169,'Таблица CRC'!$A$43:$C$298,3,FALSE)) -> 143 | AF169: =MyXor(AF168,VLOOKUP(AE169,'Таблица CRC'!$A$43:$C$298,3,FALSE)) -> 111 | AG169: =MyXor(AG168,VLOOKUP(AF169,'Таблица CRC'!$A$43:$C$298,3,FALSE)) -> 134 | AH169: =MyXor(AH168,VLOOKUP(AG169,'Таблица CRC'!$A$43:$C$298,3,FALSE)) -> 81 | AK169: E4 06 5B F4 F7 F7 36 | AL169: E4 | AM169: 6 | AN169: 5B | AO169: F4 | AP169: F7 | AQ169: F7 | AR169: 36 | BF169: 228 | BG169: 6 | BH169: 91 | BI169: 244 | BJ169: 247 | BK169: 247 | BL169: 54 | BM169: 0 | BN169: 0 | BO169: 0 | BP169: 0 | BQ169: 0 | BR169: 0 | BS169: 0 | BT169: 0 | BU169: 0 | BV169: 0 | BW169: 0 | BX169: 0 | BY169: 0 | BZ169: 247 | CA169: 100 | CB169: 6 | CC169: 0 | CD169: 3 | CE169: 0 | CF169: 0 | CU169: 100 | CV169: =MyXor(CB169,VLOOKUP(CU169,'Таблица CRC'!$A$43:$C$298,3,FALSE)) -> 2 | CW169: =MyXor(CC169,VLOOKUP(CV169,'Таблица CRC'!$A$43:$C$298,3,FALSE)) -> 188 | CX169: =MyXor(CD169,VLOOKUP(CW169,'Таблица CRC'!$A$43:$C$298,3,FALSE)) -> 146 | CY169: =MyXor(CE169,VLOOKUP(CX169,'Таблица CRC'!$A$43:$C$298,3,FALSE)) -> 173 | CZ169: =MyXor(CF169,VLOOKUP(CY169,'Таблица CRC'!$A$43:$C$298,3,FALSE)) -> 82 | DA169: =MyXor(CG169,VLOOKUP(CZ169,'Таблица CRC'!$A$43:$C$298,3,FALSE)) -> 103 | DO169: 64 06 00 03 00 00 67
A170: ключ шифрования-17 | B170: 17 | D170: ключ шифрования-17 | Y170: =DEC2HEX(Y168,2) -> 64 | Z170: =DEC2HEX(Z168,2) -> 09 | AA170: 00 | AB170: A5 | AC170: A5 | AD170: A2 | AE170: A2 | AF170: A2 | AG170: A2 | AH170: =DEC2HEX(AH169,2) -> 51 | AI170: =CONCATENATE(Y170," ",Z170," ",AA170," ",AB170," ",AC170," ",AD170," ",AE170," ",AF170," ",AG170," ",AH170) -> 64 09 00 A5 A5 A2 A2 A2 A2 51 | AJ170: 64 05 0A 00 00 E5 | AK170: E4 08 0C 8B A4 BD A0 A1 45 | AL170: E4 | AM170: 8 | AN170: 0C | AO170: 8B | AP170: A4 | AQ170: BD | AR170: A0 | AS170: A1 | AT170: 45 | BF170: 228 | BG170: 8 | BH170: 12 | BI170: 139 | BJ170: 164 | BK170: 189 | BL170: 160 | BM170: 161 | BN170: 69 | BO170: 0 | BP170: 0 | BQ170: 0 | BR170: 0 | BS170: 0 | BT170: 0 | BU170: 0 | BV170: 0 | BW170: 0 | BX170: 0 | BY170: 0 | BZ170: 160 | CA170: 100 | CB170: 8 | CC170: 0 | CD170: 43 | CE170: 4 | CF170: 29 | CG170: 0 | CH170: 1 | CU170: 100 | CV170: =MyXor(CB170,VLOOKUP(CU170,'Таблица CRC'!$A$43:$C$298,3,FALSE)) -> 12 | CW170: =MyXor(CC170,VLOOKUP(CV170,'Таблица CRC'!$A$43:$C$298,3,FALSE)) -> 163 | CX170: =MyXor(CD170,VLOOKUP(CW170,'Таблица CRC'!$A$43:$C$298,3,FALSE)) -> 102 | CY170: =MyXor(CE170,VLOOKUP(CX170,'Таблица CRC'!$A$43:$C$298,3,FALSE)) -> 188 | CZ170: =MyXor(CF170,VLOOKUP(CY170,'Таблица CRC'!$A$43:$C$298,3,FALSE)) -> 140 | DA170: =MyXor(CG170,VLOOKUP(CZ170,'Таблица CRC'!$A$43:$C$298,3,FALSE)) -> 47 | DB170: =MyXor(CH170,VLOOKUP(DA170,'Таблица CRC'!$A$43:$C$298,3,FALSE)) -> 99 | DC170: =MyXor(CI170,VLOOKUP(DB170,'Таблица CRC'!$A$43:$C$298,3,FALSE)) -> 135 | DO170: =CONCATENATE(DEC2HEX(CA170,2)," ",DEC2HEX(CB170,2)," ",DEC2HEX(CC170,2)," ",DEC2HEX(CD170,2)," ",DEC2HEX(CE170,2)," ",DEC2HEX(CF170,2)," ",DEC2HEX(CG170,2)," ",DEC2HEX(CH170,2)," ",DEC2HEX(DC170,2)) -> 64 08 00 2B 04 1D 00 01 87
A171: zapros.s 165,165,162, | D171: zapros.s 165 | E171: 165 | F171: 162 | AK171: E4 05 8C A0 A0 DC | AL171: E4 | AM171: 5 | AN171: 8C | AO171: A0 | AP171: A0 | AQ171: DC | BF171: 228 | BG171: 5 | BH171: 140 | BI171: 160 | BJ171: 160 | BK171: 220 | BL171: 0 | BM171: 0 | BN171: 0 | BO171: 0 | BP171: 0 | BQ171: 0 | BR171: 0 | BS171: 0 | BT171: 0 | BU171: 0 | BV171: 0 | BW171: 0 | BX171: 0 | BY171: 0 | BZ171: 32 | CA171: 100 | CB171: 5 | CC171: 0 | CD171: 128 | CE171: 128 | CU171: 100 | CV171: =MyXor(CB171,VLOOKUP(CU171,'Таблица CRC'!$A$43:$C$298,3,FALSE)) -> 1 | CW171: =MyXor(CC171,VLOOKUP(CV171,'Таблица CRC'!$A$43:$C$298,3,FALSE)) -> 94 | CX171: =MyXor(CD171,VLOOKUP(CW171,'Таблица CRC'!$A$43:$C$298,3,FALSE)) -> 68 | CY171: =MyXor(CE171,VLOOKUP(CX171,'Таблица CRC'!$A$43:$C$298,3,FALSE)) -> 167 | CZ171: =MyXor(CF171,VLOOKUP(CY171,'Таблица CRC'!$A$43:$C$298,3,FALSE)) -> 44 | DO171: =CONCATENATE(DEC2HEX(CA171,2)," ",DEC2HEX(CB171,2)," ",DEC2HEX(CC171,2)," ",DEC2HEX(CD171,2)," ",DEC2HEX(CE171,2)," ",DEC2HEX(CZ171,2)) -> 64 05 00 80 80 2C
A172: 228,6,31,176,179,179,240, | C172: =MyXor(F172,$C$1) -> 179 | D172: 228 | E172: 6 | F172: 31 | G172: 176 | H172: 179 | I172: 179 | J172: 240 | N172: =IF(D172>127,D172-128,D172) -> 100 | O172: =E172 -> 6 | P172: =MyXor(F172,$B174) -> 172 | Q172: =MyXor(G172,$B174) -> 3 | R172: =MyXor(H172,$B174) -> 0 | S172: =MyXor(I172,$B174) -> 0 | T172: =MyXor(J172,$B174) -> 67 | U172: =MyXor(K172,$B174) -> 179 | V172: =MyXor(L172,$B174) -> 179 | W172: =MyXor(M172,$B174) -> 179 | Y172: 100 | Z172: 6 | AA172: 0 | AB172: 3 | AC172: 0 | AD172: 0 | AE172: 67 | AF172: 179 | AG172: 179 | AH172: 179 | AK172: E4 06 D2 7F 7E 86 E4 | AL172: E4 | AM172: 6 | AN172: D2 | AO172: 7F | AP172: 7E | AQ172: 86 | AR172: E4 | BF172: 228 | BG172: 6 | BH172: 210 | BI172: 127 | BJ172: 126 | BK172: 134 | BL172: 228 | BM172: 0 | BN172: 0 | BO172: 0 | BP172: 0 | BQ172: 0 | BR172: 0 | BS172: 0 | BT172: 0 | BU172: 0 | BV172: 0 | BW172: 0 | BX172: 0 | BY172: 0 | BZ172: 126 | CA172: 100 | CB172: 6 | CC172: 0 | CD172: 1 | CE172: 0 | CF172: 248 | CU172: 100 | CV172: =MyXor(CB172,VLOOKUP(CU172,'Таблица CRC'!$A$43:$C$298,3,FALSE)) -> 2 | CW172: =MyXor(CC172,VLOOKUP(CV172,'Таблица CRC'!$A$43:$C$298,3,FALSE)) -> 188 | CX172: =MyXor(CD172,VLOOKUP(CW172,'Таблица CRC'!$A$43:$C$298,3,FALSE)) -> 144 | CY172: =MyXor(CE172,VLOOKUP(CX172,'Таблица CRC'!$A$43:$C$298,3,FALSE)) -> 17 | CZ172: =MyXor(CF172,VLOOKUP(CY172,'Таблица CRC'!$A$43:$C$298,3,FALSE)) -> 59 | DA172: =MyXor(CG172,VLOOKUP(CZ172,'Таблица CRC'!$A$43:$C$298,3,FALSE)) -> 158 | DO172: 64 06 00 01 00 F8 9E
A173: Принято в обработку | D173: Принято в обработку | AK173: E4 09 70 79 60 7E 7E 7E 7E 36 | AL173: E4 | AM173: 9 | AN173: 70 | AO173: 79 | AP173: 60 | AQ173: 7E | AR173: 7E | AS173: 7E | AT173: 7E | AU173: 36 | BF173: 228 | BG173: 9 | BH173: 112 | BI173: 121 | BJ173: 96 | BK173: 126 | BL173: 126 | BM173: 126 | BN173: 126 | BO173: 54 | BP173: 0 | BQ173: 0 | BR173: 0 | BS173: 0 | BT173: 0 | BU173: 0 | BV173: 0 | BW173: 0 | BX173: 0 | BY173: 0 | BZ173: 220 | CA173: 100 | CB173: 9 | CC173: 0 | CD173: 165 | CE173: 188 | CF173: 162 | CG173: 162 | CH173: 162 | CI173: 162 | CU173: 100 | CV173: =MyXor(CB173,VLOOKUP(CU173,'Таблица CRC'!$A$43:$C$298,3,FALSE)) -> 13 | CW173: =MyXor(CC173,VLOOKUP(CV173,'Таблица CRC'!$A$43:$C$298,3,FALSE)) -> 253 | CX173: =MyXor(CD173,VLOOKUP(CW173,'Таблица CRC'!$A$43:$C$298,3,FALSE)) -> 44 | CY173: =MyXor(CE173,VLOOKUP(CX173,'Таблица CRC'!$A$43:$C$298,3,FALSE)) -> 60 | CZ173: =MyXor(CF173,VLOOKUP(CY173,'Таблица CRC'!$A$43:$C$298,3,FALSE)) -> 191 | DA173: =MyXor(CG173,VLOOKUP(CZ173,'Таблица CRC'!$A$43:$C$298,3,FALSE)) -> 209 | DB173: =MyXor(CH173,VLOOKUP(DA173,'Таблица CRC'!$A$43:$C$298,3,FALSE)) -> 171 | DC173: =MyXor(CI173,VLOOKUP(DB173,'Таблица CRC'!$A$43:$C$298,3,FALSE)) -> 45 | DD173: =MyXor(CJ173,VLOOKUP(DC173,'Таблица CRC'!$A$43:$C$298,3,FALSE)) -> 222 | DO173: =CONCATENATE(DEC2HEX(CA173,2)," ",DEC2HEX(CB173,2)," ",DEC2HEX(CC173,2)," ",DEC2HEX(CD173,2)," ",DEC2HEX(CE173,2)," ",DEC2HEX(CF173,2)," ",DEC2HEX(CG173,2)," ",DEC2HEX(CH173,2)," ",DEC2HEX(CI173,2)," ",DEC2HEX(DD173,2)) -> 64 09 00 A5 BC A2 A2 A2 A2 DE
A174: ключ шифрования-179 | B174: 179 | D174: ключ шифрования-179 | AK174: E4 06 D2 7D 7E 7E 1D | AL174: E4 | AM174: 6 | AN174: D2 | AO174: 7D | AP174: 7E | AQ174: 7E | AR174: 1D | BF174: 228 | BG174: 6 | BH174: 210 | BI174: 125 | BJ174: 126 | BK174: 126 | BL174: 29 | BM174: 0 | BN174: 0 | BO174: 0 | BP174: 0 | BQ174: 0 | BR174: 0 | BS174: 0 | BT174: 0 | BU174: 0 | BV174: 0 | BW174: 0 | BX174: 0 | BY174: 0 | BZ174: 126 | CA174: 100 | CB174: 6 | CC174: 0 | CD174: 3 | CE174: 0 | CF174: 0 | CU174: 100 | CV174: =MyXor(CB174,VLOOKUP(CU174,'Таблица CRC'!$A$43:$C$298,3,FALSE)) -> 2 | CW174: =MyXor(CC174,VLOOKUP(CV174,'Таблица CRC'!$A$43:$C$298,3,FALSE)) -> 188 | CX174: =MyXor(CD174,VLOOKUP(CW174,'Таблица CRC'!$A$43:$C$298,3,FALSE)) -> 146 | CY174: =MyXor(CE174,VLOOKUP(CX174,'Таблица CRC'!$A$43:$C$298,3,FALSE)) -> 173 | CZ174: =MyXor(CF174,VLOOKUP(CY174,'Таблица CRC'!$A$43:$C$298,3,FALSE)) -> 82 | DA174: =MyXor(CG174,VLOOKUP(CZ174,'Таблица CRC'!$A$43:$C$298,3,FALSE)) -> 103 | DO174: 64 06 00 03 00 00 67
A175: zapros.s 3,0,0, | D175: zapros.s 3 | E175: 0 | F175: 0 | AK175: E4 08 BB 3C 13 09 17 16 31 | AL175: E4 | AM175: 8 | AN175: BB | AO175: 3C | AP175: 13 | AQ175: 9 | AR175: 17 | AS175: 16 | AT175: 31 | BF175: 228 | BG175: 8 | BH175: 187 | BI175: 60 | BJ175: 19 | BK175: 9 | BL175: 23 | BM175: 22 | BN175: 49 | BO175: 0 | BP175: 0 | BQ175: 0 | BR175: 0 | BS175: 0 | BT175: 0 | BU175: 0 | BV175: 0 | BW175: 0 | BX175: 0 | BY175: 0 | BZ175: 23 | CA175: 100 | CB175: 8 | CC175: 0 | CD175: 43 | CE175: 4 | CF175: 30 | CG175: 0 | CH175: 1 | CU175: 100 | CV175: =MyXor(CB175,VLOOKUP(CU175,'Таблица CRC'!$A$43:$C$298,3,FALSE)) -> 12 | CW175: =MyXor(CC175,VLOOKUP(CV175,'Таблица CRC'!$A$43:$C$298,3,FALSE)) -> 163 | CX175: =MyXor(CD175,VLOOKUP(CW175,'Таблица CRC'!$A$43:$C$298,3,FALSE)) -> 102 | CY175: =MyXor(CE175,VLOOKUP(CX175,'Таблица CRC'!$A$43:$C$298,3,FALSE)) -> 188 | CZ175: =MyXor(CF175,VLOOKUP(CY175,'Таблица CRC'!$A$43:$C$298,3,FALSE)) -> 143 | DA175: =MyXor(CG175,VLOOKUP(CZ175,'Таблица CRC'!$A$43:$C$298,3,FALSE)) -> 205 | DB175: =MyXor(CH175,VLOOKUP(DA175,'Таблица CRC'!$A$43:$C$298,3,FALSE)) -> 54 | DC175: =MyXor(CI175,VLOOKUP(DB175,'Таблица CRC'!$A$43:$C$298,3,FALSE)) -> 99 | DO175: =CONCATENATE(DEC2HEX(CA175,2)," ",DEC2HEX(CB175,2)," ",DEC2HEX(CC175,2)," ",DEC2HEX(CD175,2)," ",DEC2HEX(CE175,2)," ",DEC2HEX(CF175,2)," ",DEC2HEX(CG175,2)," ",DEC2HEX(CH175,2)," ",DEC2HEX(DC175,2)) -> 64 08 00 2B 04 1E 00 01 63
A176: 228,8,35,164,139,136,143,142,250, | C176: =MyXor(F176,$C$1) -> 143 | D176: 228 | E176: 8 | F176: 35 | G176: 164 | H176: 139 | I176: 136 | J176: 143 | K176: 142 | L176: 250 | N176: =IF(D176>127,D176-128,D176) -> 100 | O176: =E176 -> 8 | P176: =MyXor(F176,$B178) -> 172 | Q176: =MyXor(G176,$B178) -> 43 | R176: =MyXor(H176,$B178) -> 4 | S176: =MyXor(I176,$B178) -> 7 | T176: =MyXor(J176,$B178) -> 0 | U176: =MyXor(K176,$B178) -> 1 | V176: =MyXor(L176,$B178) -> 117 | W176: =MyXor(M176,$B178) -> 143 | Y176: 100 | Z176: 8 | AA176: 0 | AB176: 43 | AC176: 4 | AD176: 7 | AE176: 0 | AF176: 1 | AG176: 117 | AH176: 143 | AK176: E4 05 3B 17 17 C7 | AL176: E4 | AM176: 5 | AN176: 3B | AO176: 17 | AP176: 17 | AQ176: C7 | BF176: 228 | BG176: 5 | BH176: 59 | BI176: 23 | BJ176: 23 | BK176: 199 | BL176: 0 | BM176: 0 | BN176: 0 | BO176: 0 | BP176: 0 | BQ176: 0 | BR176: 0 | BS176: 0 | BT176: 0 | BU176: 0 | BV176: 0 | BW176: 0 | BX176: 0 | BY176: 0 | BZ176: 151 | CA176: 100 | CB176: 5 | CC176: 0 | CD176: 128 | CE176: 128 | CU176: 100 | CV176: =MyXor(CB176,VLOOKUP(CU176,'Таблица CRC'!$A$43:$C$298,3,FALSE)) -> 1 | CW176: =MyXor(CC176,VLOOKUP(CV176,'Таблица CRC'!$A$43:$C$298,3,FALSE)) -> 94 | CX176: =MyXor(CD176,VLOOKUP(CW176,'Таблица CRC'!$A$43:$C$298,3,FALSE)) -> 68 | CY176: =MyXor(CE176,VLOOKUP(CX176,'Таблица CRC'!$A$43:$C$298,3,FALSE)) -> 167 | CZ176: =MyXor(CF176,VLOOKUP(CY176,'Таблица CRC'!$A$43:$C$298,3,FALSE)) -> 44 | DO176: =CONCATENATE(DEC2HEX(CA176,2)," ",DEC2HEX(CB176,2)," ",DEC2HEX(CC176,2)," ",DEC2HEX(CD176,2)," ",DEC2HEX(CE176,2)," ",DEC2HEX(CZ176,2)) -> 64 05 00 80 80 2C
A177: Принято в обработку | D177: Принято в обработку | AK177: E4 06 9E 33 32 CA AF | AL177: E4 | AM177: 6 | AN177: 9E | AO177: 33 | AP177: 32 | AQ177: CA | AR177: AF | BF177: 228 | BG177: 6 | BH177: 158 | BI177: 51 | BJ177: 50 | BK177: 202 | BL177: 175 | BM177: 0 | BN177: 0 | BO177: 0 | BP177: 0 | BQ177: 0 | BR177: 0 | BS177: 0 | BT177: 0 | BU177: 0 | BV177: 0 | BW177: 0 | BX177: 0 | BY177: 0 | BZ177: 50 | CA177: 100 | CB177: 6 | CC177: 0 | CD177: 1 | CE177: 0 | CF177: 248 | CU177: 100 | CV177: =MyXor(CB177,VLOOKUP(CU177,'Таблица CRC'!$A$43:$C$298,3,FALSE)) -> 2 | CW177: =MyXor(CC177,VLOOKUP(CV177,'Таблица CRC'!$A$43:$C$298,3,FALSE)) -> 188 | CX177: =MyXor(CD177,VLOOKUP(CW177,'Таблица CRC'!$A$43:$C$298,3,FALSE)) -> 144 | CY177: =MyXor(CE177,VLOOKUP(CX177,'Таблица CRC'!$A$43:$C$298,3,FALSE)) -> 17 | CZ177: =MyXor(CF177,VLOOKUP(CY177,'Таблица CRC'!$A$43:$C$298,3,FALSE)) -> 59 | DA177: =MyXor(CG177,VLOOKUP(CZ177,'Таблица CRC'!$A$43:$C$298,3,FALSE)) -> 158 | DO177: 64 06 00 01 00 F8 9E
A178: ключ шифрования-143 | B178: 143 | D178: ключ шифрования-143 | AK178: E4 09 3C 35 2D 32 32 32 32 B2 | AL178: E4 | AM178: 9 | AN178: 3C | AO178: 35 | AP178: 2D | AQ178: 32 | AR178: 32 | AS178: 32 | AT178: 32 | AU178: B2 | BF178: 228 | BG178: 9 | BH178: 60 | BI178: 53 | BJ178: 45 | BK178: 50 | BL178: 50 | BM178: 50 | BN178: 50 | BO178: 178 | BP178: 0 | BQ178: 0 | BR178: 0 | BS178: 0 | BT178: 0 | BU178: 0 | BV178: 0 | BW178: 0 | BX178: 0 | BY178: 0 | BZ178: 144 | CA178: 100 | CB178: 9 | CC178: 0 | CD178: 165 | CE178: 189 | CF178: 162 | CG178: 162 | CH178: 162 | CI178: 162 | CU178: 100 | CV178: =MyXor(CB178,VLOOKUP(CU178,'Таблица CRC'!$A$43:$C$298,3,FALSE)) -> 13 | CW178: =MyXor(CC178,VLOOKUP(CV178,'Таблица CRC'!$A$43:$C$298,3,FALSE)) -> 253 | CX178: =MyXor(CD178,VLOOKUP(CW178,'Таблица CRC'!$A$43:$C$298,3,FALSE)) -> 44 | CY178: =MyXor(CE178,VLOOKUP(CX178,'Таблица CRC'!$A$43:$C$298,3,FALSE)) -> 61 | CZ178: =MyXor(CF178,VLOOKUP(CY178,'Таблица CRC'!$A$43:$C$298,3,FALSE)) -> 225 | DA178: =MyXor(CG178,VLOOKUP(CZ178,'Таблица CRC'!$A$43:$C$298,3,FALSE)) -> 21 | DB178: =MyXor(CH178,VLOOKUP(DA178,'Таблица CRC'!$A$43:$C$298,3,FALSE)) -> 0 | DC178: =MyXor(CI178,VLOOKUP(DB178,'Таблица CRC'!$A$43:$C$298,3,FALSE)) -> 162 | DD178: =MyXor(CJ178,VLOOKUP(DC178,'Таблица CRC'!$A$43:$C$298,3,FALSE)) -> 19 | DO178: =CONCATENATE(DEC2HEX(CA178,2)," ",DEC2HEX(CB178,2)," ",DEC2HEX(CC178,2)," ",DEC2HEX(CD178,2)," ",DEC2HEX(CE178,2)," ",DEC2HEX(CF178,2)," ",DEC2HEX(CG178,2)," ",DEC2HEX(CH178,2)," ",DEC2HEX(CI178,2)," ",DEC2HEX(DD178,2)) -> 64 09 00 A5 BD A2 A2 A2 A2 13
A179: zapros.s 43,4,7, | D179: zapros.s 43 | E179: 4 | F179: 7 | AK179: E4 06 9E 31 32 32 56 | AL179: E4 | AM179: 6 | AN179: 9E | AO179: 31 | AP179: 32 | AQ179: 32 | AR179: 56 | BF179: 228 | BG179: 6 | BH179: 158 | BI179: 49 | BJ179: 50 | BK179: 50 | BL179: 86 | BM179: 0 | BN179: 0 | BO179: 0 | BP179: 0 | BQ179: 0 | BR179: 0 | BS179: 0 | BT179: 0 | BU179: 0 | BV179: 0 | BW179: 0 | BX179: 0 | BY179: 0 | BZ179: 50 | CA179: 100 | CB179: 6 | CC179: 0 | CD179: 3 | CE179: 0 | CF179: 0 | CU179: 100 | CV179: =MyXor(CB179,VLOOKUP(CU179,'Таблица CRC'!$A$43:$C$298,3,FALSE)) -> 2 | CW179: =MyXor(CC179,VLOOKUP(CV179,'Таблица CRC'!$A$43:$C$298,3,FALSE)) -> 188 | CX179: =MyXor(CD179,VLOOKUP(CW179,'Таблица CRC'!$A$43:$C$298,3,FALSE)) -> 146 | CY179: =MyXor(CE179,VLOOKUP(CX179,'Таблица CRC'!$A$43:$C$298,3,FALSE)) -> 173 | CZ179: =MyXor(CF179,VLOOKUP(CY179,'Таблица CRC'!$A$43:$C$298,3,FALSE)) -> 82 | DA179: =MyXor(CG179,VLOOKUP(CZ179,'Таблица CRC'!$A$43:$C$298,3,FALSE)) -> 103 | DO179: 64 06 00 03 00 00 67
A180: 228,5,163,143,143,172, | C180: =MyXor(F180,$C$1) -> 15 | D180: 228 | E180: 5 | F180: 163 | G180: 143 | H180: 143 | I180: 172 | N180: =IF(D180>127,D180-128,D180) -> 100 | O180: =E180 -> 5 | P180: =MyXor(F180,$B182) -> 172 | Q180: =MyXor(G180,$B182) -> 128 | R180: =MyXor(H180,$B182) -> 128 | S180: =MyXor(I180,$B182) -> 163 | T180: =MyXor(J180,$B182) -> 15 | U180: =MyXor(K180,$B182) -> 15 | V180: =MyXor(L180,$B182) -> 15 | W180: =MyXor(M180,$B182) -> 15 | Y180: 100 | Z180: 5 | AA180: 0 | AB180: 128 | AC180: 128 | AD180: 163 | AE180: 15 | AF180: 15 | AG180: 15 | AH180: 15 | AK180: E4 08 C2 45 6A 71 6E 6F 30 | AL180: E4 | AM180: 8 | AN180: C2 | AO180: 45 | AP180: 6A | AQ180: 71 | AR180: 6E | AS180: 6F | AT180: 30 | BF180: 228 | BG180: 8 | BH180: 194 | BI180: 69 | BJ180: 106 | BK180: 113 | BL180: 110 | BM180: 111 | BN180: 48 | BO180: 0 | BP180: 0 | BQ180: 0 | BR180: 0 | BS180: 0 | BT180: 0 | BU180: 0 | BV180: 0 | BW180: 0 | BX180: 0 | BY180: 0 | BZ180: 110 | CA180: 100 | CB180: 8 | CC180: 0 | CD180: 43 | CE180: 4 | CF180: 31 | CG180: 0 | CH180: 1 | CU180: 100 | CV180: =MyXor(CB180,VLOOKUP(CU180,'Таблица CRC'!$A$43:$C$298,3,FALSE)) -> 12 | CW180: =MyXor(CC180,VLOOKUP(CV180,'Таблица CRC'!$A$43:$C$298,3,FALSE)) -> 163 | CX180: =MyXor(CD180,VLOOKUP(CW180,'Таблица CRC'!$A$43:$C$298,3,FALSE)) -> 102 | CY180: =MyXor(CE180,VLOOKUP(CX180,'Таблица CRC'!$A$43:$C$298,3,FALSE)) -> 188 | CZ180: =MyXor(CF180,VLOOKUP(CY180,'Таблица CRC'!$A$43:$C$298,3,FALSE)) -> 142 | DA180: =MyXor(CG180,VLOOKUP(CZ180,'Таблица CRC'!$A$43:$C$298,3,FALSE)) -> 147 | DB180: =MyXor(CH180,VLOOKUP(DA180,'Таблица CRC'!$A$43:$C$298,3,FALSE)) -> 242 | DC180: =MyXor(CI180,VLOOKUP(DB180,'Таблица CRC'!$A$43:$C$298,3,FALSE)) -> 200 | DO180: =CONCATENATE(DEC2HEX(CA180,2)," ",DEC2HEX(CB180,2)," ",DEC2HEX(CC180,2)," ",DEC2HEX(CD180,2)," ",DEC2HEX(CE180,2)," ",DEC2HEX(CF180,2)," ",DEC2HEX(CG180,2)," ",DEC2HEX(CH180,2)," ",DEC2HEX(DC180,2)) -> 64 08 00 2B 04 1F 00 01 C8
A181: Принято в обработку | D181: Принято в обработку | AK181: E4 05 42 6E 6E C6 | AL181: E4 | AM181: 5 | AN181: 42 | AO181: 6E | AP181: 6E | AQ181: C6 | BF181: 228 | BG181: 5 | BH181: 66 | BI181: 110 | BJ181: 110 | BK181: 198 | BL181: 0 | BM181: 0 | BN181: 0 | BO181: 0 | BP181: 0 | BQ181: 0 | BR181: 0 | BS181: 0 | BT181: 0 | BU181: 0 | BV181: 0 | BW181: 0 | BX181: 0 | BY181: 0 | BZ181: 238 | CA181: 100 | CB181: 5 | CC181: 0 | CD181: 128 | CE181: 128 | CU181: 100 | CV181: =MyXor(CB181,VLOOKUP(CU181,'Таблица CRC'!$A$43:$C$298,3,FALSE)) -> 1 | CW181: =MyXor(CC181,VLOOKUP(CV181,'Таблица CRC'!$A$43:$C$298,3,FALSE)) -> 94 | CX181: =MyXor(CD181,VLOOKUP(CW181,'Таблица CRC'!$A$43:$C$298,3,FALSE)) -> 68 | CY181: =MyXor(CE181,VLOOKUP(CX181,'Таблица CRC'!$A$43:$C$298,3,FALSE)) -> 167 | CZ181: =MyXor(CF181,VLOOKUP(CY181,'Таблица CRC'!$A$43:$C$298,3,FALSE)) -> 44 | DO181: =CONCATENATE(DEC2HEX(CA181,2)," ",DEC2HEX(CB181,2)," ",DEC2HEX(CC181,2)," ",DEC2HEX(CD181,2)," ",DEC2HEX(CE181,2)," ",DEC2HEX(CZ181,2)) -> 64 05 00 80 80 2C
A182: otvet 44,0,0, | B182: 15 | D182: otvet 44 | E182: 0 | F182: 0 | AK182: E4 06 6A C7 C6 3E A0 | AL182: E4 | AM182: 6 | AN182: 6A | AO182: C7 | AP182: C6 | AQ182: 3E | AR182: A0 | BF182: 228 | BG182: 6 | BH182: 106 | BI182: 199 | BJ182: 198 | BK182: 62 | BL182: 160 | BM182: 0 | BN182: 0 | BO182: 0 | BP182: 0 | BQ182: 0 | BR182: 0 | BS182: 0 | BT182: 0 | BU182: 0 | BV182: 0 | BW182: 0 | BX182: 0 | BY182: 0 | BZ182: 198 | CA182: 100 | CB182: 6 | CC182: 0 | CD182: 1 | CE182: 0 | CF182: 248 | CU182: 100 | CV182: =MyXor(CB182,VLOOKUP(CU182,'Таблица CRC'!$A$43:$C$298,3,FALSE)) -> 2 | CW182: =MyXor(CC182,VLOOKUP(CV182,'Таблица CRC'!$A$43:$C$298,3,FALSE)) -> 188 | CX182: =MyXor(CD182,VLOOKUP(CW182,'Таблица CRC'!$A$43:$C$298,3,FALSE)) -> 144 | CY182: =MyXor(CE182,VLOOKUP(CX182,'Таблица CRC'!$A$43:$C$298,3,FALSE)) -> 17 | CZ182: =MyXor(CF182,VLOOKUP(CY182,'Таблица CRC'!$A$43:$C$298,3,FALSE)) -> 59 | DA182: =MyXor(CG182,VLOOKUP(CZ182,'Таблица CRC'!$A$43:$C$298,3,FALSE)) -> 158 | DO182: 64 06 00 01 00 F8 9E
A183: 228,6,146,63,62,198,252, | C183: =MyXor(F183,$C$1) -> 62 | D183: 228 | E183: 6 | F183: 146 | G183: 63 | H183: 62 | I183: 198 | J183: 252 | N183: =IF(D183>127,D183-128,D183) -> 100 | O183: =E183 -> 6 | P183: =MyXor(F183,$B185) -> 172 | Q183: =MyXor(G183,$B185) -> 1 | R183: =MyXor(H183,$B185) -> 0 | S183: =MyXor(I183,$B185) -> 248 | T183: =MyXor(J183,$B185) -> 194 | U183: =MyXor(K183,$B185) -> 62 | V183: =MyXor(L183,$B185) -> 62 | W183: =MyXor(M183,$B185) -> 62 | Y183: 100 | Z183: 6 | AA183: 0 | AB183: 1 | AC183: 0 | AD183: 248 | AE183: 194 | AF183: 62 | AG183: 62 | AH183: 62 | AK183: E4 09 C8 C1 E6 C6 C6 C6 C6 25 | AL183: E4 | AM183: 9 | AN183: C8 | AO183: C1 | AP183: E6 | AQ183: C6 | AR183: C6 | AS183: C6 | AT183: C6 | AU183: 25 | BF183: 228 | BG183: 9 | BH183: 200 | BI183: 193 | BJ183: 230 | BK183: 198 | BL183: 198 | BM183: 198 | BN183: 198 | BO183: 37 | BP183: 0 | BQ183: 0 | BR183: 0 | BS183: 0 | BT183: 0 | BU183: 0 | BV183: 0 | BW183: 0 | BX183: 0 | BY183: 0 | BZ183: 100 | CA183: 100 | CB183: 9 | CC183: 0 | CD183: 165 | CE183: 130 | CF183: 162 | CG183: 162 | CH183: 162 | CI183: 162 | CU183: 100 | CV183: =MyXor(CB183,VLOOKUP(CU183,'Таблица CRC'!$A$43:$C$298,3,FALSE)) -> 13 | CW183: =MyXor(CC183,VLOOKUP(CV183,'Таблица CRC'!$A$43:$C$298,3,FALSE)) -> 253 | CX183: =MyXor(CD183,VLOOKUP(CW183,'Таблица CRC'!$A$43:$C$298,3,FALSE)) -> 44 | CY183: =MyXor(CE183,VLOOKUP(CX183,'Таблица CRC'!$A$43:$C$298,3,FALSE)) -> 2 | CZ183: =MyXor(CF183,VLOOKUP(CY183,'Таблица CRC'!$A$43:$C$298,3,FALSE)) -> 30 | DA183: =MyXor(CG183,VLOOKUP(CZ183,'Таблица CRC'!$A$43:$C$298,3,FALSE)) -> 32 | DB183: =MyXor(CH183,VLOOKUP(DA183,'Таблица CRC'!$A$43:$C$298,3,FALSE)) -> 129 | DC183: =MyXor(CI183,VLOOKUP(DB183,'Таблица CRC'!$A$43:$C$298,3,FALSE)) -> 112 | DD183: =MyXor(CJ183,VLOOKUP(DC183,'Таблица CRC'!$A$43:$C$298,3,FALSE)) -> 248 | DO183: =CONCATENATE(DEC2HEX(CA183,2)," ",DEC2HEX(CB183,2)," ",DEC2HEX(CC183,2)," ",DEC2HEX(CD183,2)," ",DEC2HEX(CE183,2)," ",DEC2HEX(CF183,2)," ",DEC2HEX(CG183,2)," ",DEC2HEX(CH183,2)," ",DEC2HEX(CI183,2)," ",DEC2HEX(DD183,2)) -> 64 09 00 A5 82 A2 A2 A2 A2 F8
A184: Принято в обработку | D184: Принято в обработку | AK184: E4 06 6A C5 C6 C6 59 | AL184: E4 | AM184: 6 | AN184: 6A | AO184: C5 | AP184: C6 | AQ184: C6 | AR184: 59 | BF184: 228 | BG184: 6 | BH184: 106 | BI184: 197 | BJ184: 198 | BK184: 198 | BL184: 89 | BM184: 0 | BN184: 0 | BO184: 0 | BP184: 0 | BQ184: 0 | BR184: 0 | BS184: 0 | BT184: 0 | BU184: 0 | BV184: 0 | BW184: 0 | BX184: 0 | BY184: 0 | BZ184: 198 | CA184: 100 | CB184: 6 | CC184: 0 | CD184: 3 | CE184: 0 | CF184: 0 | CU184: 100 | CV184: =MyXor(CB184,VLOOKUP(CU184,'Таблица CRC'!$A$43:$C$298,3,FALSE)) -> 2 | CW184: =MyXor(CC184,VLOOKUP(CV184,'Таблица CRC'!$A$43:$C$298,3,FALSE)) -> 188 | CX184: =MyXor(CD184,VLOOKUP(CW184,'Таблица CRC'!$A$43:$C$298,3,FALSE)) -> 146 | CY184: =MyXor(CE184,VLOOKUP(CX184,'Таблица CRC'!$A$43:$C$298,3,FALSE)) -> 173 | CZ184: =MyXor(CF184,VLOOKUP(CY184,'Таблица CRC'!$A$43:$C$298,3,FALSE)) -> 82 | DA184: =MyXor(CG184,VLOOKUP(CZ184,'Таблица CRC'!$A$43:$C$298,3,FALSE)) -> 103 | DO184: 64 06 00 03 00 00 67
A185: ключ шифрования-62 | B185: 62 | D185: ключ шифрования-62 | AK185: E4 08 E2 65 4A 6E 4E 4F F9 | AL185: E4 | AM185: 8 | AN185: E2 | AO185: 65 | AP185: 4A | AQ185: 6E | AR185: 4E | AS185: 4F | AT185: F9 | BF185: 228 | BG185: 8 | BH185: 226 | BI185: 101 | BJ185: 74 | BK185: 110 | BL185: 78 | BM185: 79 | BN185: 249 | BO185: 0 | BP185: 0 | BQ185: 0 | BR185: 0 | BS185: 0 | BT185: 0 | BU185: 0 | BV185: 0 | BW185: 0 | BX185: 0 | BY185: 0 | BZ185: 78 | CA185: 100 | CB185: 8 | CC185: 0 | CD185: 43 | CE185: 4 | CF185: 32 | CG185: 0 | CH185: 1 | CU185: 100 | CV185: =MyXor(CB185,VLOOKUP(CU185,'Таблица CRC'!$A$43:$C$298,3,FALSE)) -> 12 | CW185: =MyXor(CC185,VLOOKUP(CV185,'Таблица CRC'!$A$43:$C$298,3,FALSE)) -> 163 | CX185: =MyXor(CD185,VLOOKUP(CW185,'Таблица CRC'!$A$43:$C$298,3,FALSE)) -> 102 | CY185: =MyXor(CE185,VLOOKUP(CX185,'Таблица CRC'!$A$43:$C$298,3,FALSE)) -> 188 | CZ185: =MyXor(CF185,VLOOKUP(CY185,'Таблица CRC'!$A$43:$C$298,3,FALSE)) -> 177 | DA185: =MyXor(CG185,VLOOKUP(CZ185,'Таблица CRC'!$A$43:$C$298,3,FALSE)) -> 108 | DB185: =MyXor(CH185,VLOOKUP(DA185,'Таблица CRC'!$A$43:$C$298,3,FALSE)) -> 199 | DC185: =MyXor(CI185,VLOOKUP(DB185,'Таблица CRC'!$A$43:$C$298,3,FALSE)) -> 73 | DO185: =CONCATENATE(DEC2HEX(CA185,2)," ",DEC2HEX(CB185,2)," ",DEC2HEX(CC185,2)," ",DEC2HEX(CD185,2)," ",DEC2HEX(CE185,2)," ",DEC2HEX(CF185,2)," ",DEC2HEX(CG185,2)," ",DEC2HEX(CH185,2)," ",DEC2HEX(DC185,2)) -> 64 08 00 2B 04 20 00 01 49
A186: zapros.s 1,0,248, | D186: zapros.s 1 | E186: 0 | F186: 248 | AK186: E4 05 62 4E 4E B0 | AL186: E4 | AM186: 5 | AN186: 62 | AO186: 4E | AP186: 4E | AQ186: B0 | BF186: 228 | BG186: 5 | BH186: 98 | BI186: 78 | BJ186: 78 | BK186: 176 | BL186: 0 | BM186: 0 | BN186: 0 | BO186: 0 | BP186: 0 | BQ186: 0 | BR186: 0 | BS186: 0 | BT186: 0 | BU186: 0 | BV186: 0 | BW186: 0 | BX186: 0 | BY186: 0 | BZ186: 206 | CA186: 100 | CB186: 5 | CC186: 0 | CD186: 128 | CE186: 128 | CU186: 100 | CV186: =MyXor(CB186,VLOOKUP(CU186,'Таблица CRC'!$A$43:$C$298,3,FALSE)) -> 1 | CW186: =MyXor(CC186,VLOOKUP(CV186,'Таблица CRC'!$A$43:$C$298,3,FALSE)) -> 94 | CX186: =MyXor(CD186,VLOOKUP(CW186,'Таблица CRC'!$A$43:$C$298,3,FALSE)) -> 68 | CY186: =MyXor(CE186,VLOOKUP(CX186,'Таблица CRC'!$A$43:$C$298,3,FALSE)) -> 167 | CZ186: =MyXor(CF186,VLOOKUP(CY186,'Таблица CRC'!$A$43:$C$298,3,FALSE)) -> 44 | DO186: =CONCATENATE(DEC2HEX(CA186,2)," ",DEC2HEX(CB186,2)," ",DEC2HEX(CC186,2)," ",DEC2HEX(CD186,2)," ",DEC2HEX(CE186,2)," ",DEC2HEX(CZ186,2)) -> 64 05 00 80 80 2C
A187: ОТВЕТ ЭМУЛЯТОРА 60,61,62, | D187: ОТВЕТ ЭМУЛЯТОРА 60 | E187: 61 | F187: 62 | AK187: E4 06 2B 86 87 7F C6 | AL187: E4 | AM187: 6 | AN187: 2B | AO187: 86 | AP187: 87 | AQ187: 7F | AR187: C6 | BF187: 228 | BG187: 6 | BH187: 43 | BI187: 134 | BJ187: 135 | BK187: 127 | BL187: 198 | BM187: 0 | BN187: 0 | BO187: 0 | BP187: 0 | BQ187: 0 | BR187: 0 | BS187: 0 | BT187: 0 | BU187: 0 | BV187: 0 | BW187: 0 | BX187: 0 | BY187: 0 | BZ187: 135 | CA187: 100 | CB187: 6 | CC187: 0 | CD187: 1 | CE187: 0 | CF187: 248 | CU187: 100 | CV187: =MyXor(CB187,VLOOKUP(CU187,'Таблица CRC'!$A$43:$C$298,3,FALSE)) -> 2 | CW187: =MyXor(CC187,VLOOKUP(CV187,'Таблица CRC'!$A$43:$C$298,3,FALSE)) -> 188 | CX187: =MyXor(CD187,VLOOKUP(CW187,'Таблица CRC'!$A$43:$C$298,3,FALSE)) -> 144 | CY187: =MyXor(CE187,VLOOKUP(CX187,'Таблица CRC'!$A$43:$C$298,3,FALSE)) -> 17 | CZ187: =MyXor(CF187,VLOOKUP(CY187,'Таблица CRC'!$A$43:$C$298,3,FALSE)) -> 59 | DA187: =MyXor(CG187,VLOOKUP(CZ187,'Таблица CRC'!$A$43:$C$298,3,FALSE)) -> 158 | DO187: 64 06 00 01 00 F8 9E
A188: 228,9,48,57,54,62,62,62,62,129, | C188: =MyXor(F188,$C$1) -> 156 | D188: 228 | E188: 9 | F188: 48 | G188: 57 | H188: 54 | I188: 62 | J188: 62 | K188: 62 | L188: 62 | M188: 129 | N188: =IF(D188>127,D188-128,D188) -> 100 | O188: =E188 -> 9 | P188: =MyXor(F188,$B190) -> 172 | Q188: =MyXor(G188,$B190) -> 165 | R188: =MyXor(H188,$B190) -> 170 | S188: =MyXor(I188,$B190) -> 162 | T188: =MyXor(J188,$B190) -> 162 | U188: =MyXor(K188,$B190) -> 162 | V188: =MyXor(L188,$B190) -> 162 | W188: =MyXor(M188,$B190) -> 29 | Y188: 100 | Z188: 9 | AA188: 0 | AB188: 165 | AC188: 170 | AD188: 162 | AE188: 162 | AF188: 162 | AG188: 162 | AK188: E4 11 89 88 86 85 87 87 77 96 96 78 78 78 78 93 85 C6 | AL188: E4 | AM188: 11 | AN188: 89 | AO188: 88 | AP188: 86 | AQ188: 85 | AR188: 87 | AS188: 87 | AT188: 77 | AU188: 96 | AV188: 96 | AW188: 78 | AX188: 78 | AY188: 78 | AZ188: 78 | BA188: 93 | BB188: 85 | BC188: C6 | BF188: 228 | BG188: 17 | BH188: 137 | BI188: 136 | BJ188: 134 | BK188: 133 | BL188: 135 | BM188: 135 | BN188: 119 | BO188: 150 | BP188: 150 | BQ188: 120 | BR188: 120 | BS188: 120 | BT188: 120 | BU188: 147 | BV188: 133 | BW188: 198 | BX188: 0 | BY188: 0 | BZ188: 37 | CA188: 100 | CB188: 17 | CC188: 0 | CD188: 173 | CE188: 163 | CF188: 160 | CG188: 162 | CH188: 162 | CI188: 82 | CJ188: 179 | CK188: 179 | CL188: 93 | CM188: 93 | CN188: 93 | CO188: 93 | CP188: 182 | CQ188: 160 | CU188: 100 | CV188: =MyXor(CB188,VLOOKUP(CU188,'Таблица CRC'!$A$43:$C$298,3,FALSE)) -> 21 | CW188: =MyXor(CC188,VLOOKUP(CV188,'Таблица CRC'!$A$43:$C$298,3,FALSE)) -> 162 | CX188: =MyXor(CD188,VLOOKUP(CW188,'Таблица CRC'!$A$43:$C$298,3,FALSE)) -> 190 | CY188: =MyXor(CE188,VLOOKUP(CX188,'Таблица CRC'!$A$43:$C$298,3,FALSE)) -> 142 | CZ188: =MyXor(CF188,VLOOKUP(CY188,'Таблица CRC'!$A$43:$C$298,3,FALSE)) -> 51 | DA188: =MyXor(CG188,VLOOKUP(CZ188,'Таблица CRC'!$A$43:$C$298,3,FALSE)) -> 254 | DB188: =MyXor(CH188,VLOOKUP(DA188,'Таблица CRC'!$A$43:$C$298,3,FALSE)) -> 201 | DC188: =MyXor(CI188,VLOOKUP(DB188,'Таблица CRC'!$A$43:$C$298,3,FALSE)) -> 4 | DD188: =MyXor(CJ188,VLOOKUP(DC188,'Таблица CRC'!$A$43:$C$298,3,FALSE)) -> 210 | DE188: =MyXor(CK188,VLOOKUP(DD188,'Таблица CRC'!$A$43:$C$298,3,FALSE)) -> 88 | DF188: =MyXor(CL188,VLOOKUP(DE188,'Таблица CRC'!$A$43:$C$298,3,FALSE)) -> 68 | DG188: =MyXor(CM188,VLOOKUP(DF188,'Таблица CRC'!$A$43:$C$298,3,FALSE)) -> 122 | DH188: =MyXor(CN188,VLOOKUP(DG188,'Таблица CRC'!$A$43:$C$298,3,FALSE)) -> 219 | DI188: =MyXor(CO188,VLOOKUP(DH188,'Таблица CRC'!$A$43:$C$298,3,FALSE)) -> 42 | DJ188: =MyXor(CP188,VLOOKUP(DI188,'Таблица CRC'!$A$43:$C$298,3,FALSE)) -> 235 | DK188: =MyXor(CQ188,VLOOKUP(DJ188,'Таблица CRC'!$A$43:$C$298,3,FALSE)) -> 105 | DL188: =MyXor(CR188,VLOOKUP(DK188,'Таблица CRC'!$A$43:$C$298,3,FALSE)) -> 249 | DO188: =CONCATENATE(DEC2HEX(CA188,2)," ",DEC2HEX(CB188,2)," ",DEC2HEX(CC188,2)," ",DEC2HEX(CD188,2)," ",DEC2HEX(CE188,2)," ",DEC2HEX(CF188,2)," ",DEC2HEX(CG188,2)," ",DEC2HEX(CH188,2)," ",DEC2HEX(CI188,2)," ",DEC2HEX(CJ188,2)," ",DEC2HEX(CK188,2)," ",DEC2HEX(CL188,2)," ",DEC2HEX(CM188,2)," ",DEC2HEX(CN188,2)," ",DEC2HEX(CO188,2)," ",DEC2HEX(CP188,2)," ",DEC2HEX(CQ188,2)," ",DEC2HEX(DL188,2)) -> 64 11 00 AD A3 A0 A2 A2 52 B3 B3 5D 5D 5D 5D B6 A0 F9
A189: Принято в обработку | D189: Принято в обработку | Y189: =MyXor(Y188,0) -> 100 | Z189: =MyXor(Z188,VLOOKUP(Y189,'Таблица CRC'!$A$43:$C$298,3,FALSE)) -> 13 | AA189: =MyXor(AA188,VLOOKUP(Z189,'Таблица CRC'!$A$43:$C$298,3,FALSE)) -> 253 | AB189: =MyXor(AB188,VLOOKUP(AA189,'Таблица CRC'!$A$43:$C$298,3,FALSE)) -> 44 | AC189: =MyXor(AC188,VLOOKUP(AB189,'Таблица CRC'!$A$43:$C$298,3,FALSE)) -> 42 | AD189: =MyXor(AD188,VLOOKUP(AC189,'Таблица CRC'!$A$43:$C$298,3,FALSE)) -> 255 | AE189: =MyXor(AE188,VLOOKUP(AD189,'Таблица CRC'!$A$43:$C$298,3,FALSE)) -> 151 | AF189: =MyXor(AF188,VLOOKUP(AE189,'Таблица CRC'!$A$43:$C$298,3,FALSE)) -> 48 | AG189: =MyXor(AG188,VLOOKUP(AF189,'Таблица CRC'!$A$43:$C$298,3,FALSE)) -> 28 | AH189: =MyXor(AH188,VLOOKUP(AG189,'Таблица CRC'!$A$43:$C$298,3,FALSE)) -> 62 | AK189: E4 06 2B 84 87 87 3F | AL189: E4 | AM189: 6 | AN189: 2B | AO189: 84 | AP189: 87 | AQ189: 87 | AR189: 3F | BF189: 228 | BG189: 6 | BH189: 43 | BI189: 132 | BJ189: 135 | BK189: 135 | BL189: 63 | BM189: 0 | BN189: 0 | BO189: 0 | BP189: 0 | BQ189: 0 | BR189: 0 | BS189: 0 | BT189: 0 | BU189: 0 | BV189: 0 | BW189: 0 | BX189: 0 | BY189: 0 | BZ189: 135 | CA189: 100 | CB189: 6 | CC189: 0 | CD189: 3 | CE189: 0 | CF189: 0 | CU189: 100 | CV189: =MyXor(CB189,VLOOKUP(CU189,'Таблица CRC'!$A$43:$C$298,3,FALSE)) -> 2 | CW189: =MyXor(CC189,VLOOKUP(CV189,'Таблица CRC'!$A$43:$C$298,3,FALSE)) -> 188 | CX189: =MyXor(CD189,VLOOKUP(CW189,'Таблица CRC'!$A$43:$C$298,3,FALSE)) -> 146 | CY189: =MyXor(CE189,VLOOKUP(CX189,'Таблица CRC'!$A$43:$C$298,3,FALSE)) -> 173 | CZ189: =MyXor(CF189,VLOOKUP(CY189,'Таблица CRC'!$A$43:$C$298,3,FALSE)) -> 82 | DA189: =MyXor(CG189,VLOOKUP(CZ189,'Таблица CRC'!$A$43:$C$298,3,FALSE)) -> 103 | DO189: 64 06 00 03 00 00 67
A190: ключ шифрования-156 | B190: 156 | D190: ключ шифрования-156 | Y190: =DEC2HEX(Y188,2) -> 64 | Z190: =DEC2HEX(Z188,2) -> 09 | AA190: 00 | AB190: A5 | AC190: AA | AD190: A2 | AE190: A2 | AF190: A2 | AG190: A2 | AH190: =DEC2HEX(AH189,2) -> 3E | AI190: =CONCATENATE(Y190," ",Z190," ",AA190," ",AB190," ",AC190," ",AD190," ",AE190," ",AF190," ",AG190," ",AH190) -> 64 09 00 A5 AA A2 A2 A2 A2 3E | AJ190: 64 05 0A 00 00 E5 | AK190: E4 13 7B FC C6 D6 D5 D7 C7 D1 27 C6 C6 28 28 28 28 C3 CF 6F | AL190: E4 | AM190: 13 | AN190: 7B | AO190: FC | AP190: C6 | AQ190: D6 | AR190: D5 | AS190: D7 | AT190: C7 | AU190: D1 | AV190: 27 | AW190: C6 | AX190: C6 | AY190: 28 | AZ190: 28 | BA190: 28 | BB190: 28 | BC190: C3 | BD190: CF | BE190: 6F | BF190: 228 | BG190: 19 | BH190: 123 | BI190: 252 | BJ190: 198 | BK190: 214 | BL190: 213 | BM190: 215 | BN190: 199 | BO190: 209 | BP190: 39 | BQ190: 198 | BR190: 198 | BS190: 40 | BT190: 40 | BU190: 40 | BV190: 40 | BW190: 195 | BX190: 207 | BY190: 111 | BZ190: 215 | CA190: 100 | CB190: 19 | CC190: 0 | CD190: 43 | CE190: 17 | CF190: 1 | CG190: 2 | CH190: 0 | CI190: 16 | CJ190: 6 | CK190: 240 | CL190: 17 | CM190: 17 | CN190: 255 | CO190: 255 | CP190: 255 | CQ190: 255 | CR190: 20 | CS190: 24 | CU190: 100 | CV190: =MyXor(CB190,VLOOKUP(CU190,'Таблица CRC'!$A$43:$C$298,3,FALSE)) -> 23 | CW190: =MyXor(CC190,VLOOKUP(CV190,'Таблица CRC'!$A$43:$C$298,3,FALSE)) -> 30 | CX190: =MyXor(CD190,VLOOKUP(CW190,'Таблица CRC'!$A$43:$C$298,3,FALSE)) -> 169 | CY190: =MyXor(CE190,VLOOKUP(CX190,'Таблица CRC'!$A$43:$C$298,3,FALSE)) -> 34 | CZ190: =MyXor(CF190,VLOOKUP(CY190,'Таблица CRC'!$A$43:$C$298,3,FALSE)) -> 158 | DA190: =MyXor(CG190,VLOOKUP(CZ190,'Таблица CRC'!$A$43:$C$298,3,FALSE)) -> 12 | DB190: =MyXor(CH190,VLOOKUP(DA190,'Таблица CRC'!$A$43:$C$298,3,FALSE)) -> 163 | DC190: =MyXor(CI190,VLOOKUP(DB190,'Таблица CRC'!$A$43:$C$298,3,FALSE)) -> 93 | DD190: =MyXor(CJ190,VLOOKUP(DC190,'Таблица CRC'!$A$43:$C$298,3,FALSE)) -> 32 | DE190: =MyXor(CK190,VLOOKUP(DD190,'Таблица CRC'!$A$43:$C$298,3,FALSE)) -> 211 | DF190: =MyXor(CL190,VLOOKUP(DE190,'Таблица CRC'!$A$43:$C$298,3,FALSE)) -> 164 | DG190: =MyXor(CM190,VLOOKUP(DF190,'Таблица CRC'!$A$43:$C$298,3,FALSE)) -> 223 | DH190: =MyXor(CN190,VLOOKUP(DG190,'Таблица CRC'!$A$43:$C$298,3,FALSE)) -> 233 | DI190: =MyXor(CO190,VLOOKUP(DH190,'Таблица CRC'!$A$43:$C$298,3,FALSE)) -> 138 | DJ190: =MyXor(CP190,VLOOKUP(DI190,'Таблица CRC'!$A$43:$C$298,3,FALSE)) -> 13 | DK190: =MyXor(CQ190,VLOOKUP(DJ190,'Таблица CRC'!$A$43:$C$298,3,FALSE)) -> 2 | DL190: =MyXor(CR190,VLOOKUP(DK190,'Таблица CRC'!$A$43:$C$298,3,FALSE)) -> 168 | DM190: =MyXor(CS190,VLOOKUP(DL190,'Таблица CRC'!$A$43:$C$298,3,FALSE)) -> 117 | DN190: =MyXor(CT190,VLOOKUP(DM190,'Таблица CRC'!$A$43:$C$298,3,FALSE)) -> 199 | DO190: =CONCATENATE(DEC2HEX(CA190,2)," ",DEC2HEX(CB190,2)," ",DEC2HEX(CC190,2)," ",DEC2HEX(CD190,2)," ",DEC2HEX(CE190,2)," ",DEC2HEX(CF190,2)," ",DEC2HEX(CG190,2)," ",DEC2HEX(CH190,2)," ",DEC2HEX(CI190,2)," ",DEC2HEX(CJ190,2)," ",DEC2HEX(CK190,2)," ",DEC2HEX(CL190,2)," ",DEC2HEX(CM190,2)," ",DEC2HEX(CN190,2)," ",DEC2HEX(CO190,2)," ",DEC2HEX(CP190,2)," ",DEC2HEX(CQ190,2)," ",DEC2HEX(CR190,2)," ",DEC2HEX(CS190,2)," ",DEC2HEX(DN190,2)) -> 64 13 00 2B 11 01 02 00 10 06 F0 11 11 FF FF FF FF 14 18 C7
A191: zapros.s 165,170,162, | D191: zapros.s 165 | E191: 170 | F191: 162 | AK191: E4 05 FB D7 D7 EA | AL191: E4 | AM191: 5 | AN191: FB | AO191: D7 | AP191: D7 | AQ191: EA | BF191: 228 | BG191: 5 | BH191: 251 | BI191: 215 | BJ191: 215 | BK191: 234 | BL191: 0 | BM191: 0 | BN191: 0 | BO191: 0 | BP191: 0 | BQ191: 0 | BR191: 0 | BS191: 0 | BT191: 0 | BU191: 0 | BV191: 0 | BW191: 0 | BX191: 0 | BY191: 0 | BZ191: 87 | CA191: 100 | CB191: 5 | CC191: 0 | CD191: 128 | CE191: 128 | CU191: 100 | CV191: =MyXor(CB191,VLOOKUP(CU191,'Таблица CRC'!$A$43:$C$298,3,FALSE)) -> 1 | CW191: =MyXor(CC191,VLOOKUP(CV191,'Таблица CRC'!$A$43:$C$298,3,FALSE)) -> 94 | CX191: =MyXor(CD191,VLOOKUP(CW191,'Таблица CRC'!$A$43:$C$298,3,FALSE)) -> 68 | CY191: =MyXor(CE191,VLOOKUP(CX191,'Таблица CRC'!$A$43:$C$298,3,FALSE)) -> 167 | CZ191: =MyXor(CF191,VLOOKUP(CY191,'Таблица CRC'!$A$43:$C$298,3,FALSE)) -> 44 | DO191: =CONCATENATE(DEC2HEX(CA191,2)," ",DEC2HEX(CB191,2)," ",DEC2HEX(CC191,2)," ",DEC2HEX(CD191,2)," ",DEC2HEX(CE191,2)," ",DEC2HEX(CZ191,2)) -> 64 05 00 80 80 2C
A192: 228,6,146,61,62,62,17, | C192: =MyXor(F192,$C$1) -> 62 | D192: 228 | E192: 6 | F192: 146 | G192: 61 | H192: 62 | I192: 62 | J192: 17 | N192: =IF(D192>127,D192-128,D192) -> 100 | O192: =E192 -> 6 | P192: =MyXor(F192,$B194) -> 172 | Q192: =MyXor(G192,$B194) -> 3 | R192: =MyXor(H192,$B194) -> 0 | S192: =MyXor(I192,$B194) -> 0 | T192: =MyXor(J192,$B194) -> 47 | U192: =MyXor(K192,$B194) -> 62 | V192: =MyXor(L192,$B194) -> 62 | W192: =MyXor(M192,$B194) -> 62 | Y192: 100 | Z192: 6 | AA192: 0 | AB192: 3 | AC192: 0 | AD192: 0 | AE192: 47 | AF192: 62 | AG192: 62 | AH192: 62 | AK192: E4 06 B6 1B 1A E2 24 | AL192: E4 | AM192: 6 | AN192: B6 | AO192: 1B | AP192: 1A | AQ192: E2 | AR192: 24 | BF192: 228 | BG192: 6 | BH192: 182 | BI192: 27 | BJ192: 26 | BK192: 226 | BL192: 36 | BM192: 0 | BN192: 0 | BO192: 0 | BP192: 0 | BQ192: 0 | BR192: 0 | BS192: 0 | BT192: 0 | BU192: 0 | BV192: 0 | BW192: 0 | BX192: 0 | BY192: 0 | BZ192: 26 | CA192: 100 | CB192: 6 | CC192: 0 | CD192: 1 | CE192: 0 | CF192: 248 | CU192: 100 | CV192: =MyXor(CB192,VLOOKUP(CU192,'Таблица CRC'!$A$43:$C$298,3,FALSE)) -> 2 | CW192: =MyXor(CC192,VLOOKUP(CV192,'Таблица CRC'!$A$43:$C$298,3,FALSE)) -> 188 | CX192: =MyXor(CD192,VLOOKUP(CW192,'Таблица CRC'!$A$43:$C$298,3,FALSE)) -> 144 | CY192: =MyXor(CE192,VLOOKUP(CX192,'Таблица CRC'!$A$43:$C$298,3,FALSE)) -> 17 | CZ192: =MyXor(CF192,VLOOKUP(CY192,'Таблица CRC'!$A$43:$C$298,3,FALSE)) -> 59 | DA192: =MyXor(CG192,VLOOKUP(CZ192,'Таблица CRC'!$A$43:$C$298,3,FALSE)) -> 158 | DO192: 64 06 00 01 00 F8 9E
A193: Принято в обработку | D193: Принято в обработку | AK193: E4 10 14 17 1B 18 1A EA 0B 0B E5 E5 E5 E5 0E 18 E1 | AL193: E4 | AM193: 10 | AN193: 14 | AO193: 17 | AP193: 1B | AQ193: 18 | AR193: 1A | AS193: EA | AT193: 0B | AU193: 0B | AV193: E5 | AW193: E5 | AX193: E5 | AY193: E5 | AZ193: 0E | BA193: 18 | BB193: E1 | BF193: 228 | BG193: 16 | BH193: 20 | BI193: 23 | BJ193: 27 | BK193: 24 | BL193: 26 | BM193: 234 | BN193: 11 | BO193: 11 | BP193: 229 | BQ193: 229 | BR193: 229 | BS193: 229 | BT193: 14 | BU193: 24 | BV193: 225 | BW193: 0 | BX193: 0 | BY193: 0 | BZ193: 184 | CA193: 100 | CB193: 16 | CC193: 0 | CD193: 175 | CE193: 163 | CF193: 160 | CG193: 162 | CH193: 82 | CI193: 179 | CJ193: 179 | CK193: 93 | CL193: 93 | CM193: 93 | CN193: 93 | CO193: 182 | CP193: 160 | CU193: 100 | CV193: =MyXor(CB193,VLOOKUP(CU193,'Таблица CRC'!$A$43:$C$298,3,FALSE)) -> 20 | CW193: =MyXor(CC193,VLOOKUP(CV193,'Таблица CRC'!$A$43:$C$298,3,FALSE)) -> 252 | CX193: =MyXor(CD193,VLOOKUP(CW193,'Таблица CRC'!$A$43:$C$298,3,FALSE)) -> 120 | CY193: =MyXor(CE193,VLOOKUP(CX193,'Таблица CRC'!$A$43:$C$298,3,FALSE)) -> 153 | CZ193: =MyXor(CF193,VLOOKUP(CY193,'Таблица CRC'!$A$43:$C$298,3,FALSE)) -> 45 | DA193: =MyXor(CG193,VLOOKUP(CZ193,'Таблица CRC'!$A$43:$C$298,3,FALSE)) -> 124 | DB193: =MyXor(CH193,VLOOKUP(DA193,'Таблица CRC'!$A$43:$C$298,3,FALSE)) -> 9 | DC193: =MyXor(CI193,VLOOKUP(DB193,'Таблица CRC'!$A$43:$C$298,3,FALSE)) -> 47 | DD193: =MyXor(CJ193,VLOOKUP(DC193,'Таблица CRC'!$A$43:$C$298,3,FALSE)) -> 209 | DE193: =MyXor(CK193,VLOOKUP(DD193,'Таблица CRC'!$A$43:$C$298,3,FALSE)) -> 84 | DF193: =MyXor(CL193,VLOOKUP(DE193,'Таблица CRC'!$A$43:$C$298,3,FALSE)) -> 231 | DG193: =MyXor(CM193,VLOOKUP(DF193,'Таблица CRC'!$A$43:$C$298,3,FALSE)) -> 55 | DH193: =MyXor(CN193,VLOOKUP(DG193,'Таблица CRC'!$A$43:$C$298,3,FALSE)) -> 96 | DI193: =MyXor(CO193,VLOOKUP(DH193,'Таблица CRC'!$A$43:$C$298,3,FALSE)) -> 211 | DJ193: =MyXor(CP193,VLOOKUP(DI193,'Таблица CRC'!$A$43:$C$298,3,FALSE)) -> 21 | DK193: =MyXor(CQ193,VLOOKUP(DJ193,'Таблица CRC'!$A$43:$C$298,3,FALSE)) -> 162 | DO193: =CONCATENATE(DEC2HEX(CA193,2)," ",DEC2HEX(CB193,2)," ",DEC2HEX(CC193,2)," ",DEC2HEX(CD193,2)," ",DEC2HEX(CE193,2)," ",DEC2HEX(CF193,2)," ",DEC2HEX(CG193,2)," ",DEC2HEX(CH193,2)," ",DEC2HEX(CI193,2)," ",DEC2HEX(CJ193,2)," ",DEC2HEX(CK193,2)," ",DEC2HEX(CL193,2)," ",DEC2HEX(CM193,2)," ",DEC2HEX(CN193,2)," ",DEC2HEX(CO193,2)," ",DEC2HEX(CP193,2)," ",DEC2HEX(DK193,2)) -> 64 10 00 AF A3 A0 A2 52 B3 B3 5D 5D 5D 5D B6 A0 A2
A194: ключ шифрования-62 | B194: 62 | D194: ключ шифрования-62 | AK194: E4 06 B6 19 1A 1A DD | AL194: E4 | AM194: 6 | AN194: B6 | AO194: 19 | AP194: 1A | AQ194: 1A | AR194: DD | BF194: 228 | BG194: 6 | BH194: 182 | BI194: 25 | BJ194: 26 | BK194: 26 | BL194: 221 | BM194: 0 | BN194: 0 | BO194: 0 | BP194: 0 | BQ194: 0 | BR194: 0 | BS194: 0 | BT194: 0 | BU194: 0 | BV194: 0 | BW194: 0 | BX194: 0 | BY194: 0 | BZ194: 26 | CA194: 100 | CB194: 6 | CC194: 0 | CD194: 3 | CE194: 0 | CF194: 0 | CU194: 100 | CV194: =MyXor(CB194,VLOOKUP(CU194,'Таблица CRC'!$A$43:$C$298,3,FALSE)) -> 2 | CW194: =MyXor(CC194,VLOOKUP(CV194,'Таблица CRC'!$A$43:$C$298,3,FALSE)) -> 188 | CX194: =MyXor(CD194,VLOOKUP(CW194,'Таблица CRC'!$A$43:$C$298,3,FALSE)) -> 146 | CY194: =MyXor(CE194,VLOOKUP(CX194,'Таблица CRC'!$A$43:$C$298,3,FALSE)) -> 173 | CZ194: =MyXor(CF194,VLOOKUP(CY194,'Таблица CRC'!$A$43:$C$298,3,FALSE)) -> 82 | DA194: =MyXor(CG194,VLOOKUP(CZ194,'Таблица CRC'!$A$43:$C$298,3,FALSE)) -> 103 | DO194: 64 06 00 03 00 00 67
A195: zapros.s 3,0,0, | D195: zapros.s 3 | E195: 0 | F195: 0 | AK195: E4 06 7A D7 D6 2E 77 | AL195: E4 | AM195: 6 | AN195: 7A | AO195: D7 | AP195: D6 | AQ195: 2E | AR195: 77 | BF195: 228 | BG195: 6 | BH195: 122 | BI195: 215 | BJ195: 214 | BK195: 46 | BL195: 119 | BM195: 0 | BN195: 0 | BO195: 0 | BP195: 0 | BQ195: 0 | BR195: 0 | BS195: 0 | BT195: 0 | BU195: 0 | BV195: 0 | BW195: 0 | BX195: 0 | BY195: 0 | BZ195: 214 | CA195: 100 | CB195: 6 | CC195: 0 | CD195: 1 | CE195: 0 | CF195: 248 | CU195: 100 | CV195: =MyXor(CB195,VLOOKUP(CU195,'Таблица CRC'!$A$43:$C$298,3,FALSE)) -> 2 | CW195: =MyXor(CC195,VLOOKUP(CV195,'Таблица CRC'!$A$43:$C$298,3,FALSE)) -> 188 | CX195: =MyXor(CD195,VLOOKUP(CW195,'Таблица CRC'!$A$43:$C$298,3,FALSE)) -> 144 | CY195: =MyXor(CE195,VLOOKUP(CX195,'Таблица CRC'!$A$43:$C$298,3,FALSE)) -> 17 | CZ195: =MyXor(CF195,VLOOKUP(CY195,'Таблица CRC'!$A$43:$C$298,3,FALSE)) -> 59 | DA195: =MyXor(CG195,VLOOKUP(CZ195,'Таблица CRC'!$A$43:$C$298,3,FALSE)) -> 158 | DO195: 64 06 00 01 00 F8 9E
A196: 228,8,188,59,20,24,16,17,111, | C196: =MyXor(F196,$C$1) -> 16 | D196: 228 | E196: 8 | F196: 188 | G196: 59 | H196: 20 | I196: 24 | J196: 16 | K196: 17 | L196: 111 | N196: =IF(D196>127,D196-128,D196) -> 100 | O196: =E196 -> 8 | P196: =MyXor(F196,$B198) -> 172 | Q196: =MyXor(G196,$B198) -> 43 | R196: =MyXor(H196,$B198) -> 4 | S196: =MyXor(I196,$B198) -> 8 | T196: =MyXor(J196,$B198) -> 0 | U196: =MyXor(K196,$B198) -> 1 | V196: =MyXor(L196,$B198) -> 127 | W196: =MyXor(M196,$B198) -> 16 | Y196: 100 | Z196: 8 | AA196: 0 | AB196: 43 | AC196: 4 | AD196: 8 | AE196: 0 | AF196: 1 | AG196: 127 | AH196: 16 | AK196: E4 09 D8 D1 F7 D6 D6 D6 D6 37 | AL196: E4 | AM196: 9 | AN196: D8 | AO196: D1 | AP196: F7 | AQ196: D6 | AR196: D6 | AS196: D6 | AT196: D6 | AU196: 37 | BF196: 228 | BG196: 9 | BH196: 216 | BI196: 209 | BJ196: 247 | BK196: 214 | BL196: 214 | BM196: 214 | BN196: 214 | BO196: 55 | BP196: 0 | BQ196: 0 | BR196: 0 | BS196: 0 | BT196: 0 | BU196: 0 | BV196: 0 | BW196: 0 | BX196: 0 | BY196: 0 | BZ196: 116 | CA196: 100 | CB196: 9 | CC196: 0 | CD196: 165 | CE196: 131 | CF196: 162 | CG196: 162 | CH196: 162 | CI196: 162 | CU196: 100 | CV196: =MyXor(CB196,VLOOKUP(CU196,'Таблица CRC'!$A$43:$C$298,3,FALSE)) -> 13 | CW196: =MyXor(CC196,VLOOKUP(CV196,'Таблица CRC'!$A$43:$C$298,3,FALSE)) -> 253 | CX196: =MyXor(CD196,VLOOKUP(CW196,'Таблица CRC'!$A$43:$C$298,3,FALSE)) -> 44 | CY196: =MyXor(CE196,VLOOKUP(CX196,'Таблица CRC'!$A$43:$C$298,3,FALSE)) -> 3 | CZ196: =MyXor(CF196,VLOOKUP(CY196,'Таблица CRC'!$A$43:$C$298,3,FALSE)) -> 64 | DA196: =MyXor(CG196,VLOOKUP(CZ196,'Таблица CRC'!$A$43:$C$298,3,FALSE)) -> 228 | DB196: =MyXor(CH196,VLOOKUP(DA196,'Таблица CRC'!$A$43:$C$298,3,FALSE)) -> 42 | DC196: =MyXor(CI196,VLOOKUP(DB196,'Таблица CRC'!$A$43:$C$298,3,FALSE)) -> 255 | DD196: =MyXor(CJ196,VLOOKUP(DC196,'Таблица CRC'!$A$43:$C$298,3,FALSE)) -> 53 | DO196: =CONCATENATE(DEC2HEX(CA196,2)," ",DEC2HEX(CB196,2)," ",DEC2HEX(CC196,2)," ",DEC2HEX(CD196,2)," ",DEC2HEX(CE196,2)," ",DEC2HEX(CF196,2)," ",DEC2HEX(CG196,2)," ",DEC2HEX(CH196,2)," ",DEC2HEX(CI196,2)," ",DEC2HEX(DD196,2)) -> 64 09 00 A5 83 A2 A2 A2 A2 35
A197: Принято в обработку | D197: Принято в обработку | AK197: E4 06 7A D5 D6 D6 8E | AL197: E4 | AM197: 6 | AN197: 7A | AO197: D5 | AP197: D6 | AQ197: D6 | AR197: 8E | BF197: 228 | BG197: 6 | BH197: 122 | BI197: 213 | BJ197: 214 | BK197: 214 | BL197: 142 | BM197: 0 | BN197: 0 | BO197: 0 | BP197: 0 | BQ197: 0 | BR197: 0 | BS197: 0 | BT197: 0 | BU197: 0 | BV197: 0 | BW197: 0 | BX197: 0 | BY197: 0 | BZ197: 214 | CA197: 100 | CB197: 6 | CC197: 0 | CD197: 3 | CE197: 0 | CF197: 0 | CU197: 100 | CV197: =MyXor(CB197,VLOOKUP(CU197,'Таблица CRC'!$A$43:$C$298,3,FALSE)) -> 2 | CW197: =MyXor(CC197,VLOOKUP(CV197,'Таблица CRC'!$A$43:$C$298,3,FALSE)) -> 188 | CX197: =MyXor(CD197,VLOOKUP(CW197,'Таблица CRC'!$A$43:$C$298,3,FALSE)) -> 146 | CY197: =MyXor(CE197,VLOOKUP(CX197,'Таблица CRC'!$A$43:$C$298,3,FALSE)) -> 173 | CZ197: =MyXor(CF197,VLOOKUP(CY197,'Таблица CRC'!$A$43:$C$298,3,FALSE)) -> 82 | DA197: =MyXor(CG197,VLOOKUP(CZ197,'Таблица CRC'!$A$43:$C$298,3,FALSE)) -> 103 | DO197: 64 06 00 03 00 00 67
A198: ключ шифрования-16 | B198: 16 | D198: ключ шифрования-16 | AK198: E4 08 8F 08 27 02 23 22 D5 | AL198: E4 | AM198: 8 | AN198: 8F | AO198: 8 | AP198: 27 | AQ198: 2 | AR198: 23 | AS198: 22 | AT198: D5 | BF198: =HEX2DEC(AL198) -> 228 | BG198: =HEX2DEC(AM198) -> 8 | BH198: =HEX2DEC(AN198) -> 143 | BI198: =HEX2DEC(AO198) -> 8 | BJ198: =HEX2DEC(AP198) -> 39 | BK198: =HEX2DEC(AQ198) -> 2 | BL198: =HEX2DEC(AR198) -> 35 | BM198: =HEX2DEC(AS198) -> 34 | BN198: =HEX2DEC(AT198) -> 213 | BO198: =HEX2DEC(AU198) -> 0 | BP198: =HEX2DEC(AV198) -> 0 | BQ198: =HEX2DEC(AW198) -> 0 | BR198: =HEX2DEC(AX198) -> 0 | BS198: =HEX2DEC(AY198) -> 0 | BT198: =HEX2DEC(AZ198) -> 0 | BU198: =HEX2DEC(BA198) -> 0 | BV198: =HEX2DEC(BB198) -> 0 | BW198: =HEX2DEC(BC198) -> 0 | BX198: =HEX2DEC(BD198) -> 0 | BY198: =HEX2DEC(BE198) -> 0 | BZ198: 35 | CA198: 100 | CB198: 8 | CC198: 0 | CD198: 43 | CE198: 4 | CF198: 33 | CG198: 0 | CH198: 1 | CU198: 100 | CV198: =MyXor(CB198,VLOOKUP(CU198,'Таблица CRC'!$A$43:$C$298,3,FALSE)) -> 12 | CW198: =MyXor(CC198,VLOOKUP(CV198,'Таблица CRC'!$A$43:$C$298,3,FALSE)) -> 163 | CX198: =MyXor(CD198,VLOOKUP(CW198,'Таблица CRC'!$A$43:$C$298,3,FALSE)) -> 102 | CY198: =MyXor(CE198,VLOOKUP(CX198,'Таблица CRC'!$A$43:$C$298,3,FALSE)) -> 188 | CZ198: =MyXor(CF198,VLOOKUP(CY198,'Таблица CRC'!$A$43:$C$298,3,FALSE)) -> 176 | DA198: =MyXor(CG198,VLOOKUP(CZ198,'Таблица CRC'!$A$43:$C$298,3,FALSE)) -> 50 | DB198: =MyXor(CH198,VLOOKUP(DA198,'Таблица CRC'!$A$43:$C$298,3,FALSE)) -> 3 | DC198: =MyXor(CI198,VLOOKUP(DB198,'Таблица CRC'!$A$43:$C$298,3,FALSE)) -> 226 | DO198: =CONCATENATE(DEC2HEX(CA198,2)," ",DEC2HEX(CB198,2)," ",DEC2HEX(CC198,2)," ",DEC2HEX(CD198,2)," ",DEC2HEX(CE198,2)," ",DEC2HEX(CF198,2)," ",DEC2HEX(CG198,2)," ",DEC2HEX(CH198,2)," ",DEC2HEX(DC198,2)) -> 64 08 00 2B 04 21 00 01 E2
A199: zapros.s 43,4,8, | D199: zapros.s 43 | E199: 4 | F199: 8 | AK199: E4 05 0F 23 23 4E | AL199: E4 | AM199: 5 | AN199: 0F | AO199: 23 | AP199: 23 | AQ199: 4E | BF199: 228 | BG199: 5 | BH199: 15 | BI199: 35 | BJ199: 35 | BK199: 78 | BL199: 0 | BM199: 0 | BN199: 0 | BO199: 0 | BP199: 0 | BQ199: 0 | BR199: 0 | BS199: 0 | BT199: 0 | BU199: 0 | BV199: 0 | BW199: 0 | BX199: 0 | BY199: 0 | BZ199: 163 | CA199: 100 | CB199: 5 | CC199: 0 | CD199: 128 | CE199: 128 | CU199: 100 | CV199: =MyXor(CB199,VLOOKUP(CU199,'Таблица CRC'!$A$43:$C$298,3,FALSE)) -> 1 | CW199: =MyXor(CC199,VLOOKUP(CV199,'Таблица CRC'!$A$43:$C$298,3,FALSE)) -> 94 | CX199: =MyXor(CD199,VLOOKUP(CW199,'Таблица CRC'!$A$43:$C$298,3,FALSE)) -> 68 | CY199: =MyXor(CE199,VLOOKUP(CX199,'Таблица CRC'!$A$43:$C$298,3,FALSE)) -> 167 | CZ199: =MyXor(CF199,VLOOKUP(CY199,'Таблица CRC'!$A$43:$C$298,3,FALSE)) -> 44 | DO199: =CONCATENATE(DEC2HEX(CA199,2)," ",DEC2HEX(CB199,2)," ",DEC2HEX(CC199,2)," ",DEC2HEX(CD199,2)," ",DEC2HEX(CE199,2)," ",DEC2HEX(CZ199,2)) -> 64 05 00 80 80 2C
A200: 228,5,60,16,16,80, | C200: =MyXor(F200,$C$1) -> 144 | D200: 228 | E200: 5 | F200: 60 | G200: 16 | H200: 16 | I200: 80 | N200: =IF(D200>127,D200-128,D200) -> 100 | O200: =E200 -> 5 | P200: =MyXor(F200,$B202) -> 172 | Q200: =MyXor(G200,$B202) -> 128 | R200: =MyXor(H200,$B202) -> 128 | S200: =MyXor(I200,$B202) -> 192 | T200: =MyXor(J200,$B202) -> 144 | U200: =MyXor(K200,$B202) -> 144 | V200: =MyXor(L200,$B202) -> 144 | W200: =MyXor(M200,$B202) -> 144 | Y200: 100 | Z200: 5 | AA200: 0 | AB200: 128 | AC200: 128 | AD200: 192 | AE200: 144 | AF200: 144 | AG200: 144 | AH200: 144 | AK200: E4 06 22 8F 8E 76 F5 | AL200: E4 | AM200: 6 | AN200: 22 | AO200: 8F | AP200: 8E | AQ200: 76 | AR200: F5 | BF200: 228 | BG200: 6 | BH200: 34 | BI200: 143 | BJ200: 142 | BK200: 118 | BL200: 245 | BM200: 0 | BN200: 0 | BO200: 0 | BP200: 0 | BQ200: 0 | BR200: 0 | BS200: 0 | BT200: 0 | BU200: 0 | BV200: 0 | BW200: 0 | BX200: 0 | BY200: 0 | BZ200: 142 | CA200: 100 | CB200: 6 | CC200: 0 | CD200: 1 | CE200: 0 | CF200: 248 | CU200: 100 | CV200: =MyXor(CB200,VLOOKUP(CU200,'Таблица CRC'!$A$43:$C$298,3,FALSE)) -> 2 | CW200: =MyXor(CC200,VLOOKUP(CV200,'Таблица CRC'!$A$43:$C$298,3,FALSE)) -> 188 | CX200: =MyXor(CD200,VLOOKUP(CW200,'Таблица CRC'!$A$43:$C$298,3,FALSE)) -> 144 | CY200: =MyXor(CE200,VLOOKUP(CX200,'Таблица CRC'!$A$43:$C$298,3,FALSE)) -> 17 | CZ200: =MyXor(CF200,VLOOKUP(CY200,'Таблица CRC'!$A$43:$C$298,3,FALSE)) -> 59 | DA200: =MyXor(CG200,VLOOKUP(CZ200,'Таблица CRC'!$A$43:$C$298,3,FALSE)) -> 158 | DO200: 64 06 00 01 00 F8 9E
... 601 more rows

Sheet принятый лог comport
E1: адресс 100 | F1: адресс 103 Сигнал 20 | G1: широковещательная посылка в данном случае включаются диоды | H1: СП-1 адрес 20
A3: 000001 14:35:37.774 64 06 00 01 00 F8 9E 64 06 04 CB 00 00 d....шћd..Л.. | B3: =RIGHT(A3,52) -> 64 06 00 01 00 F8 9E 64 06 04 CB 00 00 d....шћd..Л.. | C3: 64 06 00 01 00 F8 9E 64 06 04 CB 00 00 | D3: 64 06 00 01 00 F8 9E | E3: =IF((LEFT(D3,2)="64"),$D$3," ") -> 64 06 00 01 00 F8 9E | F3: =IF((LEFT($D3,2)="67"),$D3," ") ->  | G3: =IF((LEFT($D3,2)="00"),$D3," ") ->  | H3: =IF((LEFT($D3,2)="94"),$D3," ") -> 
A4: 000002 14:35:37.790 1F 64 06 00 11 AC AC CD 64 05 12 AC AC .d...¬¬Нd..¬¬ | B4: =RIGHT(A4,52) -> 1F 64 06 00 11 AC AC CD 64 05 12 AC AC .d...¬¬Нd..¬¬ | C4: 1F 64 06 00 11 AC AC CD 64 05 12 AC AC | D4: 64 06 04 CB 00 00 1F | E4: =IF((LEFT(D4,2)="64"),D4," ") -> 64 06 04 CB 00 00 1F | F4: =IF((LEFT($D4,2)="67"),$D4," ") ->  | G4: =IF((LEFT($D4,2)="00"),$D4," ") ->  | H4: =IF((LEFT($D4,2)="94"),$D4," ") -> 
A5: 000003 14:35:37.822 25 67 06 00 01 00 F8 C7 67 0B 0C CB 00 %g....шЗg..Л. | B5: 25 67 06 00 01 00 F8 C7 67 0B 0C CB 00 %g....шЗg..Л. | C5: 25 67 06 00 01 00 F8 C7 67 0B 0C CB 00 | D5: 64 06 00 11 AC AC CD | E5: 64 06 00 11 AC AC CD
A6: 000004 14:35:38.095 00 00 01 00 00 00 5C 67 06 00 11 4E 4E ......\g...NN | B6: 00 00 01 00 00 00 5C 67 06 00 11 4E 4E ......\g...NN | C6: 00 00 01 00 00 00 5C 67 06 00 11 4E 4E | D6: 64 05 12 AC AC 25 | E6: 64 05 12 AC AC 25
A7: 000005 14:35:38.111 25 67 05 12 4E 4E DA 01 06 00 01 00 F8 %g..NNЪ.....ш | B7: 25 67 05 12 4E 4E DA 01 06 00 01 00 F8 %g..NNЪ.....ш | C7: 25 67 05 12 4E 4E DA 01 06 00 01 00 F8 | D7: 67 06 00 01 00 F8 C7 | F7: 67 06 00 01 00 F8 C7
A8: 000006 14:35:38.127 B6 E4 06 00 BB AC AF 59 E4 05 B4 AC AF ¶д..»¬ЇYд.ґ¬Ї | B8: B6 E4 06 00 BB AC AF 59 E4 05 B4 AC AF ¶д..»¬ЇYд.ґ¬Ї | C8: B6 E4 06 00 BB AC AF 59 E4 05 B4 AC AF | D8: 67 0B 0C CB 00 00 00 01 00 00 00 5C | F8: 67 0B 0C CB 00 00 00 01 00 00 00 5C
A9: 000007 14:35:38.159 2B E4 06 5E F3 F2 0A BB E4 06 F6 39 F2 +д.^ут.»д.ц9т | B9: 2B E4 06 5E F3 F2 0A BB E4 06 F6 39 F2 +д.^ут.»д.ц9т | C9: 2B E4 06 5E F3 F2 0A BB E4 06 F6 39 F2 | D9: 67 06 00 11 4E 4E 25 | F9: 67 06 00 11 4E 4E 25
A10: 000008 14:35:38.175 F2 81 E4 06 5E F1 F2 F2 42 E4 06 75 C0 тЃд.^сттBд.uА | B10: F2 81 E4 06 5E F1 F2 F2 42 E4 06 75 C0 тЃд.^сттBд.uА | C10: F2 81 E4 06 5E F1 F2 F2 42 E4 06 75 C0 | D10: 67 05 12 4E 4E DA | F10: 67 05 12 4E 4E DA
A11: 000009 14:35:38.223 D9 D9 32 E4 06 C3 D9 1E 41 67 E7 06 F1 ЩЩ2д.ГЩ.Agз.с | B11: D9 D9 32 E4 06 C3 D9 1E 41 67 E7 06 F1 ЩЩ2д.ГЩ.Agз.с | C11: D9 D9 32 E4 06 C3 D9 1E 41 67 E7 06 F1 | D11: 01 06 00 01 00 F8 B6
A12: 000010 14:35:38.271 A6 BD BF 11 E7 05 A5 BD A7 6E 00 09 00 ¦Ѕї.з.ҐЅ§n... | B12: A6 BD BF 11 E7 05 A5 BD A7 6E 00 09 00 ¦Ѕї.з.ҐЅ§n... | C12: A6 BD BF 11 E7 05 A5 BD A7 6E 00 09 00 | D12: E4 06 00 BB AC AF 59 | E12: =IF((LEFT(D12,2)="E4"),D12," ") -> E4 06 00 BB AC AF 59 | F12: =IF((LEFT($D12,2)="E7"),$D12," ") -> 
A13: 000011 14:35:38.303 2B 10 02 00 10 18 EF 00 09 00 2B 10 02 +.....п...+.. | B13: 2B 10 02 00 10 18 EF 00 09 00 2B 10 02 +.....п...+.. | C13: 2B 10 02 00 10 18 EF 00 09 00 2B 10 02 | D13: E4 05 B4 AC AF 2B | E13: =IF((LEFT(D13,2)="E4"),D13," ") -> E4 05 B4 AC AF 2B | F13: =IF((LEFT($D13,2)="E7"),$D13," ") -> 
A14: 000012 14:35:38.319 00 10 18 EF 00 09 00 2B 10 02 00 10 18 ...п...+..... | B14: 00 10 18 EF 00 09 00 2B 10 02 00 10 18 ...п...+..... | C14: 00 10 18 EF 00 09 00 2B 10 02 00 10 18 | D14: E4 06 5E F3 F2 0A BB | E14: E4 06 5E F3 F2 0A BB
A15: 000013 14:35:38.351 EF 00 09 00 2B 10 02 00 10 18 EF 00 09 п...+.....п.. | B15: EF 00 09 00 2B 10 02 00 10 18 EF 00 09 п...+.....п.. | C15: EF 00 09 00 2B 10 02 00 10 18 EF 00 09 | D15: E4 06 F6 39 F2 F2 81 | E15: E4 06 F6 39 F2 F2 81
A16: 000014 14:35:38.367 00 2B 10 02 00 10 18 EF 00 09 00 2B 10 .+.....п...+. | B16: 00 2B 10 02 00 10 18 EF 00 09 00 2B 10 .+.....п...+. | C16: 00 2B 10 02 00 10 18 EF 00 09 00 2B 10 | D16: E4 06 5E F1 F2 F2 42 | E16: E4 06 5E F1 F2 F2 42
A17: 000015 14:35:38.383 02 00 10 18 EF E7 06 E9 A6 A7 5F D7 E7 ....пз.й¦§_Чз | B17: 02 00 10 18 EF E7 06 E9 A6 A7 5F D7 E7 ....пз.й¦§_Чз | C17: 02 00 10 18 EF E7 06 E9 A6 A7 5F D7 E7 | D17: E4 06 75 C0 D9 D9 32 | E17: E4 06 75 C0 D9 D9 32
A18: 000016 14:35:38.447 0B AB 6C A7 A7 A7 A6 A7 A7 A7 39 E7 06 .«l§§§¦§§§9з. | B18: 0B AB 6C A7 A7 A7 A6 A7 A7 A7 39 E7 06 .«l§§§¦§§§9з. | C18: 0B AB 6C A7 A7 A7 A6 A7 A7 A7 39 E7 06 | D18: E4 06 C3 D9 1E 41 67 | E18: E4 06 C3 D9 1E 41 67
A19: 000017 14:35:38.469 E9 A4 A7 A7 2E E7 06 A4 FD EA E9 ED E7 й¤§§.з.¤экйнз | B19: E9 A4 A7 A7 2E E7 06 A4 FD EA E9 ED E7 й¤§§.з.¤экйнз | C19: E9 A4 A7 A7 2E E7 06 A4 FD EA E9 ED E7 | D19: E7 06 F1 A6 BD BF 11 | F19: E7 06 F1 A6 BD BF 11
A20: 000018 14:35:38.495 05 E0 EE EA F3 E7 06 E3 B4 AD AD E6 E7 .аокуз.гґ­­жз | B20: 05 E0 EE EA F3 E7 06 E3 B4 AD AD E6 E7 .аокуз.гґ­­жз | C20: 05 E0 EE EA F3 E7 06 E3 B4 AD AD E6 E7 | D20: E7 05 A5 BD A7 6E | F20: E7 05 A5 BD A7 6E
A21: 000019 14:35:38.543 06 B7 AD 6A 35 FD 02 06 00 01 00 F8 EF .·­j5э.....шп | B21: 06 B7 AD 6A 35 FD 02 06 00 01 00 F8 EF .·­j5э.....шп | C21: 06 B7 AD 6A 35 FD 02 06 00 01 00 F8 EF | D21: 00 09 00 2B 10 02 00 10 18 EF | G21: 00 09 00 2B 10 02 00 10 18 EF
A22: 000020 14:35:38.623 E4 06 88 25 24 DC 03 E4 09 2A 23 25 24 д.€%$Ь.д.*#%$ | B22: E4 06 88 25 24 DC 03 E4 09 2A 23 25 24 д.€%$Ь.д.*#%$ | C22: E4 06 88 25 24 DC 03 E4 09 2A 23 25 24 | D22: 00 09 00 2B 10 02 00 10 18 EF | G22: 00 09 00 2B 10 02 00 10 18 EF
A23: 000021 14:35:38.639 24 24 24 BC E4 06 88 27 24 24 FA E4 06 $$$јд.€'$$ъд. | B23: 24 24 24 BC E4 06 88 27 24 24 FA E4 06 $$$јд.€'$$ъд. | C23: 24 24 24 BC E4 06 88 27 24 24 FA E4 06 | D23: 00 09 00 2B 10 02 00 10 18 EF | G23: 00 09 00 2B 10 02 00 10 18 EF
A24: 000022 14:35:38.687 EE 5B 42 42 7F E4 06 58 42 85 DA 2A E7 о[BBд.XB…Ъ*з | B24: EE 5B 42 42 7F E4 06 58 42 85 DA 2A E7 о[BBд.XB…Ъ*з | C24: EE 5B 42 42 7F E4 06 58 42 85 DA 2A E7 | D24: 00 09 00 2B 10 02 00 10 18 EF | G24: 00 09 00 2B 10 02 00 10 18 EF
A25: 000023 14:35:38.703 06 BA F5 F4 0C 03 E7 05 F6 F4 F4 E1 03 .єхф..з.цффб. | B25: 06 BA F5 F4 0C 03 E7 05 F6 F4 F4 E1 03 .єхф..з.цффб. | C25: 06 BA F5 F4 0C 03 E7 05 F6 F4 F4 E1 03 | D25: 00 09 00 2B 10 02 00 10 18 EF | G25: 00 09 00 2B 10 02 00 10 18 EF
A26: 000024 14:35:38.735 06 00 01 00 F8 D8 E7 06 E2 B5 AC AC 58 ....шШз.вµ¬¬X | B26: 06 00 01 00 F8 D8 E7 06 E2 B5 AC AC 58 ....шШз.вµ¬¬X | C26: 06 00 01 00 F8 D8 E7 06 E2 B5 AC AC 58 | D26: 00 09 00 2B 10 02 00 10 18 EF | G26: 00 09 00 2B 10 02 00 10 18 EF
A27: 000025 14:35:38.767 E7 06 B6 AC 6B 34 43 E4 06 53 FE FF 07 з.¶¬k4Cд.Sюя. | B27: E7 06 B6 AC 6B 34 43 E4 06 53 FE FF 07 з.¶¬k4Cд.Sюя. | C27: E7 06 B6 AC 6B 34 43 E4 06 53 FE FF 07 | D27: E7 06 E9 A6 A7 5F D7 | F27: E7 06 E9 A6 A7 5F D7
A28: 000026 14:35:38.783 42 E4 05 FD FF FF 6D E4 08 98 1F 24 35 Bд.эяяmд..$5 | B28: 42 E4 05 FD FF FF 6D E4 08 98 1F 24 35 Bд.эяяmд..$5 | C28: 42 E4 05 FD FF FF 6D E4 08 98 1F 24 35 | D28: E7 0B AB 6C A7 A7 A7 A6 A7 A7 A7 39 | F28: E7 0B AB 6C A7 A7 A7 A6 A7 A7 A7 39
A29: 000027 14:35:38.799 34 CB FD E4 05 18 34 34 E2 E7 06 DF 90 4Лэд..44вз.Яђ | B29: 34 CB FD E4 05 18 34 34 E2 E7 06 DF 90 4Лэд..44вз.Яђ | C29: 34 CB FD E4 05 18 34 34 E2 E7 06 DF 90 | D29: E7 06 E9 A4 A7 A7 2E | F29: E7 06 E9 A4 A7 A7 2E
A30: 000028 14:35:38.831 91 69 7D E7 05 93 90 91 4A 04 06 00 01 ‘i}з.“ђ‘J.... | B30: 91 69 7D E7 05 93 90 91 4A 04 06 00 01 ‘i}з.“ђ‘J.... | C30: 91 69 7D E7 05 93 90 91 4A 04 06 00 01 | D30: E7 06 A4 FD EA E9 ED | F30: E7 06 A4 FD EA E9 ED
A31: 000029 14:35:38.847 00 F8 5D E4 06 41 EC ED 15 24 E4 09 E3 .ш]д.Aмн.$д.г | B31: 00 F8 5D E4 06 41 EC ED 15 24 E4 09 E3 .ш]д.Aмн.$д.г | C31: 00 F8 5D E4 06 41 EC ED 15 24 E4 09 E3 | D31: E7 05 E0 EE EA F3 | F31: E7 05 E0 EE EA F3
A32: 000030 14:35:38.879 EA EE ED ED ED ED 5C E4 06 41 EE ED ED конннн\д.Aонн | B32: EA EE ED ED ED ED 5C E4 06 41 EE ED ED конннн\д.Aонн | C32: EA EE ED ED ED ED 5C E4 06 41 EE ED ED | D32: E7 06 E3 B4 AD AD E6 | F32: E7 06 E3 B4 AD AD E6
A33: 000031 14:35:38.895 DD E4 08 51 D6 F9 FE FD FC 10 E4 05 D1 Эд.QЦщюэь.д.С | B33: DD E4 08 51 D6 F9 FE FD FC 10 E4 05 D1 Эд.QЦщюэь.д.С | C33: DD E4 08 51 D6 F9 FE FD FC 10 E4 05 D1 | D33: E7 06 B7 AD 6A 35 FD | F33: E7 06 B7 AD 6A 35 FD
A34: 000032 14:35:38.927 FD FD 6F E7 06 CF 80 81 79 7E E7 05 83 ээoз.ПЂЃy~з.ѓ | B34: FD FD 6F E7 06 CF 80 81 79 7E E7 05 83 ээoз.ПЂЃy~з.ѓ | C34: FD FD 6F E7 06 CF 80 81 79 7E E7 05 83 | D34: 02 06 00 01 00 F8 EF
A35: 000033 14:35:38.959 83 81 24 05 06 00 01 00 F8 6A E4 06 BE ѓЃ$.....шjд.ѕ | B35: 83 81 24 05 06 00 01 00 F8 6A E4 06 BE ѓЃ$.....шjд.ѕ | C35: 83 81 24 05 06 00 01 00 F8 6A E4 06 BE | D35: E4 06 88 25 24 DC 03 | E35: E4 06 88 25 24 DC 03
A36: 000034 14:35:38.991 13 12 EA A9 E4 09 1C 15 16 12 12 12 12 ..к©д........ | B36: 13 12 EA A9 E4 09 1C 15 16 12 12 12 12 ..к©д........ | C36: 13 12 EA A9 E4 09 1C 15 16 12 12 12 12 | D36: E4 09 2A 23 25 24 24 24 24 BC | E36: E4 09 2A 23 25 24 24 24 24 BC
A37: 000035 14:35:39.007 19 E4 06 BE 11 12 12 50 E4 08 7E F9 D6 .д.ѕ...Pд.~щЦ | B37: 19 E4 06 BE 11 12 12 50 E4 08 7E F9 D6 .д.ѕ...Pд.~щЦ | C37: 19 E4 06 BE 11 12 12 50 E4 08 7E F9 D6 | D37: E4 06 88 27 24 24 FA | E37: E4 06 88 27 24 24 FA
A38: 000036 14:35:39.039 D6 D2 D3 F5 E4 05 FE D2 D2 1F E7 06 F3 ЦТУхд.юТТ.з.у | B38: D6 D2 D3 F5 E4 05 FE D2 D2 1F E7 06 F3 ЦТУхд.юТТ.з.у | C38: D6 D2 D3 F5 E4 05 FE D2 D2 1F E7 06 F3 | D38: E4 06 EE 5B 42 42 7F | E38: E4 06 EE 5B 42 42 7F
A39: 000037 14:35:39.055 BC BD 45 3C E7 05 BF BE BD F8 06 06 00 јЅE<з.їѕЅш... | B39: BC BD 45 3C E7 05 BF BE BD F8 06 06 00 јЅE<з.їѕЅш... | C39: BC BD 45 3C E7 05 BF BE BD F8 06 06 00 | D39: E4 06 58 42 85 DA 2A | E39: E4 06 58 42 85 DA 2A
A40: 000038 14:35:39.071 01 00 F8 33 E4 06 82 2F 2E D6 EB E4 09 ..ш3д.‚/.Цлд. | B40: 01 00 F8 33 E4 06 82 2F 2E D6 EB E4 09 ..ш3д.‚/.Цлд. | C40: 01 00 F8 33 E4 06 82 2F 2E D6 EB E4 09 | D40: E7 06 BA F5 F4 0C 03 | F40: E7 06 BA F5 F4 0C 03
A41: 000039 14:35:39.103 20 29 2B 2E 2E 2E 2E B2 E4 06 82 2D 2E )+....Ід.‚-. | B41: 20 29 2B 2E 2E 2E 2E B2 E4 06 82 2D 2E )+....Ід.‚-. | C41: 20 29 2B 2E 2E 2E 2E B2 E4 06 82 2D 2E | D41: E7 05 F6 F4 F4 E1 | F41: E7 05 F6 F4 F4 E1
A42: 000040 14:35:39.135 2E 12 E4 08 D2 55 7A 7B 7E 7F 34 E4 05 ..д.ТUz{~4д. | B42: 2E 12 E4 08 D2 55 7A 7B 7E 7F 34 E4 05 ..д.ТUz{~4д. | C42: 2E 12 E4 08 D2 55 7A 7B 7E 7F 34 E4 05 | D42: 03 06 00 01 00 F8 D8
A43: 000041 14:35:39.151 52 7E 7E FD E7 06 EB A4 A5 5D B2 E7 05 R~~эз.л¤Ґ]Із. | B43: 52 7E 7E FD E7 06 EB A4 A5 5D B2 E7 05 R~~эз.л¤Ґ]Із. | C43: 52 7E 7E FD E7 06 EB A4 A5 5D B2 E7 05 | D43: E7 06 E2 B5 AC AC 58 | F43: E7 06 E2 B5 AC AC 58
A44: 000042 14:35:39.183 A7 A1 A5 3C 07 06 00 01 00 F8 04 E4 06 §ЎҐ<.....ш.д. | B44: A7 A1 A5 3C 07 06 00 01 00 F8 04 E4 06 §ЎҐ<.....ш.д. | C44: A7 A1 A5 3C 07 06 00 01 00 F8 04 E4 06 | D44: E7 06 B6 AC 6B 34 43 | F44: E7 06 B6 AC 6B 34 43
A45: 000043 14:35:39.215 CC 61 60 98 C5 E4 09 6E 67 66 60 60 60 Мa`Ед.ngf``` | B45: CC 61 60 98 C5 E4 09 6E 67 66 60 60 60 Мa`Ед.ngf``` | C45: CC 61 60 98 C5 E4 09 6E 67 66 60 60 60 | D45: E4 06 53 FE FF 07 42 | E45: E4 06 53 FE FF 07 42
A46: 000044 14:35:39.231 60 47 E4 06 CC 63 60 60 EB E4 08 36 B1 `Gд.Мc``лд.6± | B46: 60 47 E4 06 CC 63 60 60 EB E4 08 36 B1 `Gд.Мc``лд.6± | C46: 60 47 E4 06 CC 63 60 60 EB E4 08 36 B1 | D46: E4 05 FD FF FF 6D | E46: E4 05 FD FF FF 6D
A47: 000045 14:35:39.263 9E 9C 9A 9B 38 E4 05 B6 9A 9A 62 E7 06 ћњљ›8д.¶љљbз. | B47: 9E 9C 9A 9B 38 E4 05 B6 9A 9A 62 E7 06 ћњљ›8д.¶љљbз. | C47: 9E 9C 9A 9B 38 E4 05 B6 9A 9A 62 E7 06 | D47: E4 08 98 1F 24 35 34 CB FD | E47: E4 08 98 1F 24 35 34 CB FD
A48: 000046 14:35:39.279 5B 14 15 ED AF E7 05 17 10 15 74 08 06 [..нЇз....t.. | B48: 5B 14 15 ED AF E7 05 17 10 15 74 08 06 [..нЇз....t.. | C48: 5B 14 15 ED AF E7 05 17 10 15 74 08 06 | D48: E4 05 18 34 34 E2 | E48: E4 05 18 34 34 E2
